Workbook

Sheet T220000000
B1: Agencia Tributaria
A3: =+T22001000!A3 -> Modelo 220 | C3: =+T22001000!C3 -> Diseño de registro. 2014
A4: =+T22001000!A4 -> Versión 1.2 | C4: Impuesto sobre Sociedades. Regimen de Consolidación Fiscal.
A5: =+T22001000!A4 -> Versión 1.2 | B5: Posic. | C5: Lon | D5: Tipo | E5: Descripción | F5: Validación | G5: Contenido
A6: 1 | B6: 1 | C6: 2 | D6: An | E6: Constante. | G6: <T
A7: =+A6+1 -> 2 | B7: =C6+B6 -> 3 | C7: 3 | D7: An | E7: Modelo | G7: 220
A8: =+A7+1 -> 3 | B8: =C7+B7 -> 6 | C8: 1 | D8: An | E8: Discriminente | G8: (*)[A|E|I|0]
A9: 4 | B9: 7 | C9: 4 | D9: An | E9: Ejercicio de devengo
A10: 5 | B10: 11 | C10: 2 | D10: An | E10: Período | G10: 0A
A11: 6 | B11: 13 | C11: 5 | D11: An | E11: Constante | G11: 0000>
A12: 7 | B12: 18 | C12: 5 | D12: An | E12: Constante | G12: "<AUX>"
A13: 8 | B13: 23 | C13: 70 | D13: An | E13: Reservado para la Administración. Rellenar con blancos | G13: BLANCOS
A14: 9 | B14: =C13+B13 -> 93 | C14: 4 | D14: An | E14: Versión del programa (**)
A15: 10 | B15: 97 | C15: 4 | D15: An | E15: Reservado para la Administración. Rellenar con blancos
A16: 11 | B16: 101 | C16: 9 | D16: An | E16: NIF Empresa Desarrollo (**)
A17: 12 | B17: 110 | C17: 213 | D17: An | E17: Reservado para la Administración. Rellenar con blancos
A18: 13 | B18: 323 | C18: 6 | D18: An | E18: Constante | G18: "</AUX>"
A19: 14 | B19: 329 | C19: Variable | D19: An | E19: Contenido del fichero. Aquí se debe incluir el contenido de las páginas correspondientes a la declaración según el formato descrito para cada página en este mismo documento
A20: 15 | B20: *** | C20: 3 | D20: An | E20: Constante | G20: </T
A21: 16 | B21: *** | C21: 3 | D21: An | E21: Modelo | G21: 220
A22: 17 | B22: *** | C22: 1 | D22: An | E22: Discriminente | G22: (*)[A|E|I|0]
A23: 18 | B23: *** | C23: 4 | D23: An | E23: Ejercicio de devengo
A24: 19 | B24: *** | C24: 2 | D24: An | E24: Período | G24: 0A
A25: 20 | B25: *** | C25: 5 | D25: An | E25: Constante. Salto de línea | G25: 0000>
A26: Total | C26: Variable
E27: (*) NOTA. Valor discriminante: "A" Aseguradoras; "E" Entidades de crédito; "I" Inversión colectiva; "0" Resto de entidades.
E28: Debe rellenarse en función del estado de cuentas que se cumplimenta.
E30: (**) A cumplimentar por las entidades desarrolladoras (EEDD):
E31: Versión del programa: Debe consignarse el identificador de la versión del SW desarrollado por la ED
E32: NIF Empresa Desarrollo: Debe consignarse el NIF de la ED del SW

Sheet T22001000
B1: Agencia Tributaria
A3: Modelo 220 | C3: Diseño de registro. 2014
A4: Versión 1.2 | C4: Impuesto Sobre Sociedades. Régimen de consolidación Fiscal
A6: Nº | B6: Posic. | C6: Lon | D6: Tipo | E6: Descripción | F6: Contenido
A7: 1 | B7: 1 | C7: 2 | D7: An | E7: Inicio del identificador de modelo y página. | F7: <T
A8: =+A7+1 -> 2 | B8: =C7+B7 -> 3 | C8: 3 | D8: Num | E8: Modelo. | F8: 220
A9: 3 | B9: =C8+B8 -> 6 | C9: 2 | D9: An | E9: Página. | F9: 01
A10: 4 | B10: 8 | C10: 1 | D10: An | E10: Letra | F10: 0
A11: 5 | B11: 9 | C11: 2 | D11: Num | E11: Hoja | F11: 00
A12: 6 | B12: 11 | C12: 1 | D12: An | E12: Fin de identificador de modelo y página. Constante ">". | F12: >
A13: 7 | B13: 12 | C13: 1 | D13: An | E13: Indicador de página complementaria. (Admite 99 complementarias)* | F13: [' ',C]
A14: 8 | B14: 13 | C14: 3 | D14: Num | E14: Número de orden de la página complementaria
A15: 9 | B15: 16 | C15: 1 | D15: An | E15: Tipo de declaración. RESERVADO PARA LA ADMINISTRACIÓN | F15: <Blancos>
A16: 10 | B16: 17 | C16: 9 | D16: An | E16: Identificación - NIF. {Iden_NIF}
A17: 11 | B17: 26 | C17: 60 | D17: An | E17: Identificación - Apellidos o Razón Social. {Iden_apellidos}
A18: 12 | B18: 86 | C18: 20 | D18: An | E18: Identificación - Nombre {Iden_nombre}
A19: 13 | B19: 106 | C19: 4 | D19: Num | E19: Ejercicio. Campaña del registro. {campaña} | F19: 2014
A20: 14 | B20: 110 | C20: 2 | D20: An | E20: Periodo {periodo} | F20: 0A
A21: 15 | B21: 112 | C21: 7 | D21: An | E21: Identificación - Número del grupo {num_grupo}
A22: 16 | B22: 119 | C22: 9 | D22: An | E22: Identificación - Teléfono {Iden_tlfn}
A23: =+A22+1 -> 17 | B23: 128 | C23: 8 | D23: Num | E23: Período Impositivo - Fecha de inicio. {PI_fecha_inicio} (AAAAMMDD)
A24: 18 | B24: 136 | C24: 8 | D24: Num | E24: Período Impositivo - Fecha final. {PI_fecha_final} (AAAAMMDD)
A25: 19 | B25: 144 | C25: 1 | D25: Num | E25: Tipo de ejercicio.{Tipo_Eje}
A26: =+A25+1 -> 20 | B26: 145 | C26: 1 | D26: Num | E26: Declaración complementaria. {comp} | F26: [Blanco,X]
A27: =+A26+1 -> 21 | B27: 146 | C27: 13 | D27: Num | E27: Nº de justificante de la declaración anterior. {NJust_ant}
A28: 22 | B28: 159 | C28: 5 | D28: An | E28: Actividades desarrolladas por el grupo. Actividad principal. Epigrafe_CNAE. {CNAE_01}
A29: 23 | B29: 164 | C29: 60 | D29: An | E29: Actividades desarrolladas por el grupo. Actividad principal. Descripcion CNAE (2009) {Descripcion_01}
A30: 24 | B30: 224 | C30: 5 | D30: An | E30: Actividades desarrolladas por el grupo. Otras actividades. Epigrafe_CNAE. {CNAE_02}
A31: 25 | B31: 229 | C31: 60 | D31: An | E31: Actividades desarrolladas por le grupo.Otras actividades. Descripcion CNAE (2009) {Descripcion_02}
A32: 26 | B32: 289 | C32: 5 | D32: An | E32: Actividades desarrolladas por el grupo. Otras actividades. Epigrafe_CNAE. {CNAE_03}
A33: 27 | B33: 294 | C33: 60 | D33: An | E33: Actividades desarrollasas por el grupo.Otras actividades. Descripcion CNAE {Descripcion_03}
A34: 28 | B34: 354 | C34: 5 | D34: An | E34: Actividades desarrolladas por el grupo. Otras actividades. Epigrafe_CNAE. {CNAE_04}
A35: 29 | B35: 359 | C35: 60 | D35: An | E35: Actividades desarrollasas por el grupo.Otras actividades. Descripcion CNAE (2009) {Descripcion_04}
A36: 30 | B36: 419 | C36: 5 | D36: An | E36: Actividades desarrolladas por el grupo. Otras actividades. Epigrafe_CNAE. {CNAE_05}
A37: 31 | B37: 424 | C37: 60 | D37: An | E37: Actividades desarrollasas por el grupo.Otras actividades. Descripcion CNAE {Descripcion_05}
A38: 32 | B38: 484 | C38: 5 | D38: An | E38: Actividades desarrolladas por el grupo. Otras actividades. Epigrafe_CNAE. {CNAE_06}
A39: 33 | B39: 489 | C39: 60 | D39: An | E39: Actividades desarrollasas por el grupo.Otras actividades. Descripcion CNAE (2009) {Descripcion_06}
A40: 34 | B40: 549 | C40: 5 | D40: An | E40: Actividades desarrolladas por el grupo. Otras actividades. Epigrafe_CNAE. {CNAE_07}
A41: 35 | B41: 554 | C41: 60 | D41: An | E41: Actividades desarrollasas por el grupo.Otras actividades. Descripcion CNAE {Descripcion_07}
A42: 36 | B42: 614 | C42: 5 | D42: An | E42: Actividades desarrolladas por el grupo. Otras actividades. Epigrafe_CNAE. {CNAE_08}
A43: 37 | B43: 619 | C43: 60 | D43: An | E43: Actividades desarrollasas por el grupo.Otras actividades. Descripcion CNAE (2009) {Descripcion_08}
A44: 38 | B44: 679 | C44: 5 | D44: An | E44: Actividades desarrolladas por el grupo. Otras actividades. Epigrafe_CNAE. {CNAE_09}
A45: 39 | B45: 684 | C45: 60 | D45: an | E45: Actividades desarrollasas por el grupo.Otras actividades. Descripcion CNAE {Descripcion_09}
A46: 40 | B46: 744 | C46: 5 | D46: An | E46: Actividades desarrolladas por el grupo. Otras actividades. Epigrafe_CNAE. {CNAE_10}
A47: 41 | B47: 749 | C47: 60 | D47: An | E47: Actividades desarrollasas por el grupo.Otras actividades. Descripcion CNAE (2009) {Descripcion_10}
A48: 42 | B48: 809 | C48: 5 | D48: An | E48: Actividades desarrolladas por el grupo. Otras actividades. Epigrafe_CNAE. {CNAE_11}
A49: 43 | B49: 814 | C49: 60 | D49: An | E49: Actividades desarrollasas por el grupo.Otras actividades. Descripcion CNAE {Descripcion_11}
A50: 44 | B50: 874 | C50: 5 | D50: An | E50: Actividades desarrolladas por el grupo. Otras actividades. Epigrafe_CNAE. {CNAE_12}
A51: 45 | B51: 879 | C51: 60 | D51: An | E51: Actividades desarrollasas por el grupo.Otras actividades. Descripcion CNAE (2009) {Descripcion_12}
A52: 46 | B52: 939 | C52: 5 | D52: An | E52: Actividades desarrolladas por el grupo. Otras actividades. Epigrafe_CNAE. {CNAE_13}
A53: 47 | B53: 944 | C53: 60 | D53: An | E53: Actividades desarrollasas por el grupo.Otras actividades. Descripcion CNAE {Descripcion_13}
A54: 48 | B54: 1004 | C54: 5 | D54: An | E54: Actividades desarrolladas por el grupo. Otras actividades. Epigrafe_CNAE. {CNAE_14}
A55: 49 | B55: 1009 | C55: 60 | D55: An | E55: Actividades desarrollasas por el grupo.Otras actividades. Descripcion CNAE (2009) {Descripcion_14}
A56: 50 | B56: 1069 | C56: 1 | D56: Num | E56: Tipo de grupo, a efecto de estados de cuentas consolidadas. Grupo General [007] | F56: [0 = no, 1 = si]
A57: 51 | B57: 1070 | C57: 1 | D57: Num | E57: Tipo de grupo, a efectos de estados de cuentas consolidades. Grupo entidades de crédito [012] | F57: [0 = no, 1 = si]
A58: 52 | B58: 1071 | C58: 1 | D58: Num | E58: Tipo de grupo, a efecto de estados de cuentas consolidadas. Grupo de entidades aseguradoras [016] | F58: [0 = no, 1 = si]
A59: 53 | B59: 1072 | C59: 1 | D59: Num | E59: Tipo de grupo, a efectos de estados de cuentas consolidadas. Grupos de Cooperativas [020] | F59: [0 = no, 1 = si]
A60: 54 | B60: 1073 | C60: 1 | D60: Num | E60: Tipo de grupo, a efectos de estados de cuentas consolidadas. Aplicación de incentivos reducida dimensión (Titulo VII, Capitulo XII R.D. Legislativo 4/2004) [006] | F60: [0 = no, 1 = si]
A61: 55 | B61: 1074 | C61: 1 | D61: Num | E61: Tipo de grupo, a efectos de estados de cuentas consolidadas. Grupo foral [065] | F61: [0 = no, 1 = si]
A62: 56 | B62: 1075 | C62: 36 | D62: An | E62: Declaración representante legales entidad. 1 - Nombre y apellidos.{RL1_nombre}
A63: 57 | B63: 1111 | C63: 9 | D63: An | E63: Declaración representante legales entidad. 1 - N.I.F. {RL1_NIF}
A64: 58 | B64: 1120 | C64: 8 | D64: Num | E64: Declaración representante legales entidad. 1 - Fecha poder {RL1_FechaPoder} (AAAAMMDD)
A65: 59 | B65: 1128 | C65: 12 | D65: An | E65: Declaración representante legales entidad. 1 - Notaria {RL1_Notaria}
A66: 60 | B66: 1140 | C66: 36 | D66: An | E66: Declaración representante legales entidad. 2 - Nombre y apellidos. {RL2_nombre}
A67: 61 | B67: 1176 | C67: 9 | D67: An | E67: Declaración representante legales entidad. 2 - N.I.F. {RL2_NIF}
A68: 62 | B68: 1185 | C68: 8 | D68: Num | E68: Declaración representante legales entidad. 2 - Fecha poder {RL2_FechaPoder} (AAAAMMDD)
A69: 63 | B69: 1193 | C69: 12 | D69: An | E69: Declaración representante legales entidad. 2 - Notaria {RL2_Notaria}
A70: 64 | B70: 1205 | C70: 36 | D70: An | E70: Declaración representante legales entidad. 3 - Nombre y apellidos. {RL3_nombre}
A71: 65 | B71: 1241 | C71: 9 | D71: An | E71: Declaración representante legales entidad. 3 - N.I.F. {RL3_NIF}
A72: 66 | B72: 1250 | C72: 8 | D72: Num | E72: Declaración representante legales entidad. 3 - Fecha poder {RL3_FechaPoder} (AAAAMMDD)
A73: 67 | B73: 1258 | C73: 12 | D73: An | E73: Declaración representante legales entidad. 3 - Notaria {RL3_Notaria}
A74: 68 | B74: =C73+B73 -> 1270 | C74: 50 | D74: An | E74: Nombre y apellidos de la persona de contacto para incidencias
A75: 69 | B75: 1320 | C75: 9 | D75: Num | E75: Teléfono fijo de contacto para incidencias
A76: 70 | B76: 1329 | C76: 9 | D76: Num | E76: Teléfono movil de contacto para incidencias
A77: 71 | B77: 1338 | C77: 50 | D77: An | E77: Dirección de correo electrónico para incidencias
A78: 72 | B78: 1388 | C78: 88 | D78: An | E78: RESERVADO PARA LA ADMINISTRACIÓN | F78: <Blancos>
A79: 73 | B79: 1476 | C79: 13 | D79: An | E79: SELLO ELECTRONICO RESERVADO PARA LA ADMINISTRACION | F79: <Blancos>
A80: 74 | B80: 1489 | C80: 12 | D80: An | E80: Fin de Registro. | F80: </T22001000>
A81: Total: | C81: =+B80+C80-1 -> 1500
E83: * IMPORTANTE: El fichero de la declaración no puede superar las 2999 páginas.

Sheet T22002000
B1: Agencia Tributaria
A3: =+T22001000!A3 -> Modelo 220 | C3: =+T22001000!C3 -> Diseño de registro. 2014
A4: =+T22001000!A4 -> Versión 1.2 | C4: Impuesto Sobre Sociedades. Régimen de consolidación Fiscal. SOCIEDADES DEL GRUPO EN RÉGIMEN DE CONSOLIDACIÓN FISCAL
A6: Nº | B6: Posic. | C6: Lon | D6: Tipo | E6: Descripción | F6: Contenido
A7: 1 | B7: 1 | C7: 2 | D7: An | E7: Inicio del identificador de modelo y página. | F7: <T
A8: =+A7+1 -> 2 | B8: =C7+B7 -> 3 | C8: 3 | D8: Num | E8: Modelo. | F8: 220
A9: 3 | B9: 6 | C9: 2 | D9: An | E9: Página. | F9: 02
A10: 4 | B10: 8 | C10: 1 | D10: An | E10: Letra | F10: 0
A11: 5 | B11: 9 | C11: 2 | D11: Num | E11: Hoja | F11: 00
A12: 6 | B12: 11 | C12: 1 | D12: An | E12: Fin de identificador de modelo y página. Constante ">". | F12: >
A13: 7 | B13: 12 | C13: 1 | D13: An | E13: Indicador de página complementaria. (Admite 99 complementrias)* | F13: [' ',C]
A14: =A13+1 -> 8 | B14: =B13+C13 -> 13 | C14: 3 | D14: Num | E14: Número de orden de la página complementaria
A15: 9 | B15: 16 | C15: 40 | D15: An | E15: Sociedad dominante/Entidad cabeza de grupo. Denominación social
A16: 10 | B16: 56 | C16: 9 | D16: An | E16: Sociedad dominante/Entidad cabeza de grupo. NIF
A17: 11 | B17: 65 | C17: 40 | D17: An | E17: Sociedad dominante/Entidad cabeza de grupo. Domicilio ﬁscal
A18: 12 | B18: 105 | C18: 8 | D18: Num | E18: Sociedad dominante/Entidad cabeza de grupo. Fecha de incorporación al grupo (AAAAMMDD)
A19: =A18+1 -> 13 | B19: =B18+C18 -> 113 | C19: 16 | D19: An | E19: Sociedad dominante/Entidad cabeza de grupo. Código seguro de identificación de presentación de la declaración individual
A20: =A19+1 -> 14 | B20: =B19+C19 -> 129 | C20: 1 | D20: Num | E20: Sociedad dominante/Entidad cabeza de grupo. Declaración individual únicamente a Hacienda Foral(*) | F20: [0,1]
A21: =A20+1 -> 15 | B21: =B20+C20 -> 130 | C21: 40 | D21: An | E21: Sociedades dependientes/Cooperativas integrantes del grupo. Denominación social. 1
A22: 16 | B22: 170 | C22: 9 | D22: An | E22: Sociedades dependientes/Cooperativas integrantes del grupo. NIF. 1
A23: 17 | B23: 179 | C23: 40 | D23: An | E23: Sociedades dependientes/Cooperativas integrantes del grupo. Domicilio ﬁscal. 1
A24: 18 | B24: 219 | C24: 8 | D24: Num | E24: Sociedades dependientes/Cooperativas integrantes del grupo. Fecha de incorporación al grupo. 1 (AAAAMMDD)
A25: 19 | B25: 227 | C25: 5 | D25: Num | E25: Sociedades dependientes/Cooperativas integrantes del grupo. Participación directa e indirecta al ﬁ nal del ejercicio %. 1
A26: 20 | B26: 232 | C26: 16 | D26: An | E26: Sociedades dependientes/Cooperativas integrantes del grupo. Código seguro de identificación de presentación de la declaración individual. 1
A27: =A26+1 -> 21 | B27: =B26+C26 -> 248 | C27: 1 | D27: Num | E27: Sociedades dependientes/Cooperativas integrantes del grupo. Declaración individual únicamente a Hacienda Foral(*). 1 | F27: [0,1]
A28: =A27+1 -> 22 | B28: =B27+C27 -> 249 | C28: 40 | D28: An | E28: Sociedades dependientes/Cooperativas integrantes del grupo. Denominación social. 2
A29: 23 | B29: 289 | C29: 9 | D29: An | E29: Sociedades dependientes/Cooperativas integrantes del grupo. NIF. 2
A30: 24 | B30: 298 | C30: 40 | D30: An | E30: Sociedades dependientes/Cooperativas integrantes del grupo. Domicilio ﬁscal. 2
A31: 25 | B31: 338 | C31: 8 | D31: Num | E31: Sociedades dependientes/Cooperativas integrantes del grupo. Fecha de incorporación al grupo. 2 (AAAAMMDD)
A32: 26 | B32: 346 | C32: 5 | D32: Num | E32: Sociedades dependientes/Cooperativas integrantes del grupo. Participación directa e indirecta al ﬁ nal del ejercicio %. 2
A33: 27 | B33: 351 | C33: 16 | D33: An | E33: Sociedades dependientes/Cooperativas integrantes del grupo. Código seguro de identificación de presentación de la declaración individual. 2
A34: =A33+1 -> 28 | B34: =B33+C33 -> 367 | C34: 1 | D34: Num | E34: Sociedades dependientes/Cooperativas integrantes del grupo. Declaración individual únicamente a Hacienda Foral(*). 2 | F34: [0,1]
A35: =A34+1 -> 29 | B35: =B34+C34 -> 368 | C35: 40 | D35: An | E35: Sociedades dependientes/Cooperativas integrantes del grupo. Denominación social. 3
A36: 30 | B36: 408 | C36: 9 | D36: An | E36: Sociedades dependientes/Cooperativas integrantes del grupo. NIF. 3
A37: 31 | B37: 417 | C37: 40 | D37: An | E37: Sociedades dependientes/Cooperativas integrantes del grupo. Domicilio ﬁscal. 3
A38: 32 | B38: 457 | C38: 8 | D38: Num | E38: Sociedades dependientes/Cooperativas integrantes del grupo. Fecha de incorporación al grupo. 3 (AAAAMMDD)
A39: 33 | B39: 465 | C39: 5 | D39: Num | E39: Sociedades dependientes/Cooperativas integrantes del grupo. Participación directa e indirecta al ﬁ nal del ejercicio %. 3
A40: 34 | B40: 470 | C40: 16 | D40: An | E40: Sociedades dependientes/Cooperativas integrantes del grupo. Código seguro de identificación de presentación de la declaración individual. 3
A41: =A40+1 -> 35 | B41: =B40+C40 -> 486 | C41: 1 | D41: Num | E41: Sociedades dependientes/Cooperativas integrantes del grupo. Declaración individual únicamente a Hacienda Foral(*). 3 | F41: [0,1]
A42: =A41+1 -> 36 | B42: =B41+C41 -> 487 | C42: 40 | D42: An | E42: Sociedades dependientes/Cooperativas integrantes del grupo. Denominación social. 4
A43: 37 | B43: 527 | C43: 9 | D43: An | E43: Sociedades dependientes/Cooperativas integrantes del grupo. NIF. 4
A44: 38 | B44: 536 | C44: 40 | D44: An | E44: Sociedades dependientes/Cooperativas integrantes del grupo. Domicilio ﬁscal. 4
A45: 39 | B45: 576 | C45: 8 | D45: Num | E45: Sociedades dependientes/Cooperativas integrantes del grupo. Fecha de incorporación al grupo. 4 (AAAAMMDD)
A46: 40 | B46: 584 | C46: 5 | D46: Num | E46: Sociedades dependientes/Cooperativas integrantes del grupo. Participación directa e indirecta al ﬁ nal del ejercicio %. 4
A47: 41 | B47: 589 | C47: 16 | D47: An | E47: Sociedades dependientes/Cooperativas integrantes del grupo. Código seguro de identificación de presentación de la declaración individual. 4
A48: =A47+1 -> 42 | B48: =B47+C47 -> 605 | C48: 1 | D48: Num | E48: Sociedades dependientes/Cooperativas integrantes del grupo. Declaración individual únicamente a Hacienda Foral(*). 4 | F48: [0,1]
A49: =A48+1 -> 43 | B49: =B48+C48 -> 606 | C49: 40 | D49: An | E49: Sociedades dependientes/Cooperativas integrantes del grupo. Denominación social. 5
A50: =A49+1 -> 44 | B50: =B49+C49 -> 646 | C50: 9 | D50: An | E50: Sociedades dependientes/Cooperativas integrantes del grupo. NIF. 5
A51: 45 | B51: 655 | C51: 40 | D51: An | E51: Sociedades dependientes/Cooperativas integrantes del grupo. Domicilio ﬁscal. 5
A52: 46 | B52: 695 | C52: 8 | D52: Num | E52: Sociedades dependientes/Cooperativas integrantes del grupo. Fecha de incorporación al grupo. 5 (AAAAMMDD)
A53: 47 | B53: 703 | C53: 5 | D53: Num | E53: Sociedades dependientes/Cooperativas integrantes del grupo. Participación directa e indirecta al ﬁ nal del ejercicio %. 5
A54: 48 | B54: 708 | C54: 16 | D54: An | E54: Sociedades dependientes/Cooperativas integrantes del grupo. Código seguro de identificación de presentación de la declaración individual. 5
A55: =A54+1 -> 49 | B55: =B54+C54 -> 724 | C55: 1 | D55: Num | E55: Sociedades dependientes/Cooperativas integrantes del grupo. Declaración individual únicamente a Hacienda Foral(*). 5 | F55: [0,1]
A56: =A55+1 -> 50 | B56: =B55+C55 -> 725 | C56: 40 | D56: An | E56: Sociedades dependientes/Cooperativas integrantes del grupo. Denominación social. 6
A57: 51 | B57: 765 | C57: 9 | D57: An | E57: Sociedades dependientes/Cooperativas integrantes del grupo. NIF. 6
A58: 52 | B58: 774 | C58: 40 | D58: An | E58: Sociedades dependientes/Cooperativas integrantes del grupo. Domicilio ﬁscal. 6
A59: 53 | B59: 814 | C59: 8 | D59: Num | E59: Sociedades dependientes/Cooperativas integrantes del grupo. Fecha de incorporación al grupo. 6 (AAAAMMDD)
A60: 54 | B60: 822 | C60: 5 | D60: Num | E60: Sociedades dependientes/Cooperativas integrantes del grupo. Participación directa e indirecta al ﬁ nal del ejercicio %. 6
A61: 55 | B61: 827 | C61: 16 | D61: An | E61: Sociedades dependientes/Cooperativas integrantes del grupo. Código seguro de identificación de presentación de la declaración individual. 6
A62: =A61+1 -> 56 | B62: =B61+C61 -> 843 | C62: 1 | D62: Num | E62: Sociedades dependientes/Cooperativas integrantes del grupo. Declaración individual únicamente a Hacienda Foral(*). 6 | F62: [0,1]
A63: =A62+1 -> 57 | B63: =B62+C62 -> 844 | C63: 40 | D63: An | E63: Sociedades dependientes/Cooperativas integrantes del grupo. Denominación social. 7
A64: 58 | B64: 884 | C64: 9 | D64: An | E64: Sociedades dependientes/Cooperativas integrantes del grupo. NIF. 7
A65: 59 | B65: 893 | C65: 40 | D65: An | E65: Sociedades dependientes/Cooperativas integrantes del grupo. Domicilio ﬁscal. 7
A66: 60 | B66: 933 | C66: 8 | D66: Num | E66: Sociedades dependientes/Cooperativas integrantes del grupo. Fecha de incorporación al grupo. 7 (AAAAMMDD)
A67: 61 | B67: 941 | C67: 5 | D67: Num | E67: Sociedades dependientes/Cooperativas integrantes del grupo. Participación directa e indirecta al ﬁ nal del ejercicio %. 7
A68: 62 | B68: 946 | C68: 16 | D68: An | E68: Sociedades dependientes/Cooperativas integrantes del grupo. Código seguro de identificación de presentación de la declaración individual. 7
A69: =A68+1 -> 63 | B69: =B68+C68 -> 962 | C69: 1 | D69: Num | E69: Sociedades dependientes/Cooperativas integrantes del grupo. Declaración individual únicamente a Hacienda Foral(*). 7 | F69: [0,1]
A70: =A69+1 -> 64 | B70: =B69+C69 -> 963 | C70: 40 | D70: An | E70: Sociedades dependientes/Cooperativas integrantes del grupo. Denominación social. 8
A71: 65 | B71: 1003 | C71: 9 | D71: An | E71: Sociedades dependientes/Cooperativas integrantes del grupo. NIF. 8
A72: 66 | B72: 1012 | C72: 40 | D72: An | E72: Sociedades dependientes/Cooperativas integrantes del grupo. Domicilio ﬁscal. 8
A73: 67 | B73: 1052 | C73: 8 | D73: Num | E73: Sociedades dependientes/Cooperativas integrantes del grupo. Fecha de incorporación al grupo. 8 (AAAAMMDD)
A74: 68 | B74: 1060 | C74: 5 | D74: Num | E74: Sociedades dependientes/Cooperativas integrantes del grupo. Participación directa e indirecta al ﬁ nal del ejercicio %. 8
A75: 69 | B75: 1065 | C75: 16 | D75: An | E75: Sociedades dependientes/Cooperativas integrantes del grupo. Código seguro de identificación de presentación de la declaración individual. 8
A76: =A75+1 -> 70 | B76: =B75+C75 -> 1081 | C76: 1 | D76: Num | E76: Sociedades dependientes/Cooperativas integrantes del grupo. Declaración individual únicamente a Hacienda Foral(*). 8 | F76: [0,1]
A77: =A76+1 -> 71 | B77: =B76+C76 -> 1082 | C77: 40 | D77: An | E77: Sociedades dependientes/Cooperativas integrantes del grupo. Denominación social. 9
A78: 72 | B78: 1122 | C78: 9 | D78: An | E78: Sociedades dependientes/Cooperativas integrantes del grupo. NIF. 9
A79: 73 | B79: 1131 | C79: 40 | D79: An | E79: Sociedades dependientes/Cooperativas integrantes del grupo. Domicilio ﬁscal. 9
A80: 74 | B80: 1171 | C80: 8 | D80: Num | E80: Sociedades dependientes/Cooperativas integrantes del grupo. Fecha de incorporación al grupo. 9 (AAAAMMDD)
A81: 75 | B81: 1179 | C81: 5 | D81: Num | E81: Sociedades dependientes/Cooperativas integrantes del grupo. Participación directa e indirecta al ﬁ nal del ejercicio %. 9
A82: 76 | B82: 1184 | C82: 16 | D82: An | E82: Sociedades dependientes/Cooperativas integrantes del grupo. Código seguro de identificación de presentación de la declaración individual. 9
A83: =A82+1 -> 77 | B83: =B82+C82 -> 1200 | C83: 1 | D83: Num | E83: Sociedades dependientes/Cooperativas integrantes del grupo. Declaración individual únicamente a Hacienda Foral(*). 9 | F83: [0,1]
A84: =A83+1 -> 78 | B84: =B83+C83 -> 1201 | C84: 40 | D84: An | E84: Sociedades dependientes/Cooperativas integrantes del grupo. Denominación social. 10
A85: 79 | B85: 1241 | C85: 9 | D85: An | E85: Sociedades dependientes/Cooperativas integrantes del grupo. NIF. 10
A86: 80 | B86: 1250 | C86: 40 | D86: An | E86: Sociedades dependientes/Cooperativas integrantes del grupo. Domicilio ﬁscal. 10
A87: =A86+1 -> 81 | B87: =B86+C86 -> 1290 | C87: 8 | D87: Num | E87: Sociedades dependientes/Cooperativas integrantes del grupo. Fecha de incorporación al grupo. 10 (AAAAMMDD)
A88: 82 | B88: 1298 | C88: 5 | D88: Num | E88: Sociedades dependientes/Cooperativas integrantes del grupo. Participación directa e indirecta al ﬁ nal del ejercicio %. 10
A89: 83 | B89: 1303 | C89: 16 | D89: An | E89: Sociedades dependientes/Cooperativas integrantes del grupo. Código seguro de identificación de presentación de la declaración individual. 10
A90: =A89+1 -> 84 | B90: =B89+C89 -> 1319 | C90: 1 | D90: Num | E90: Sociedades dependientes/Cooperativas integrantes del grupo. Declaración individual únicamente a Hacienda Foral(*). 10 | F90: [0,1]
A91: =A90+1 -> 85 | B91: =B90+C90 -> 1320 | C91: 40 | D91: An | E91: Sociedades dependientes/Cooperativas integrantes del grupo. Denominación social. 11
A92: 86 | B92: 1360 | C92: 9 | D92: An | E92: Sociedades dependientes/Cooperativas integrantes del grupo. NIF. 11
A93: 87 | B93: 1369 | C93: 40 | D93: An | E93: Sociedades dependientes/Cooperativas integrantes del grupo. Domicilio ﬁscal. 11
A94: 88 | B94: 1409 | C94: 8 | D94: Num | E94: Sociedades dependientes/Cooperativas integrantes del grupo. Fecha de incorporación al grupo. 11 (AAAAMMDD)
A95: 89 | B95: 1417 | C95: 5 | D95: Num | E95: Sociedades dependientes/Cooperativas integrantes del grupo. Participación directa e indirecta al ﬁ nal del ejercicio %. 11
A96: 90 | B96: 1422 | C96: 16 | D96: An | E96: Sociedades dependientes/Cooperativas integrantes del grupo. Código seguro de identificación de presentación de la declaración individual. 11
A97: =A96+1 -> 91 | B97: =B96+C96 -> 1438 | C97: 1 | D97: Num | E97: Sociedades dependientes/Cooperativas integrantes del grupo. Declaración individual únicamente a Hacienda Foral(*). 11 | F97: [0,1]
A98: =A97+1 -> 92 | B98: =B97+C97 -> 1439 | C98: 40 | D98: An | E98: Sociedades dependientes/Cooperativas integrantes del grupo. Denominación social. 12
A99: 93 | B99: 1479 | C99: 9 | D99: An | E99: Sociedades dependientes/Cooperativas integrantes del grupo. NIF. 12
A100: 94 | B100: 1488 | C100: 40 | D100: An | E100: Sociedades dependientes/Cooperativas integrantes del grupo. Domicilio ﬁscal. 12
A101: 95 | B101: 1528 | C101: 8 | D101: Num | E101: Sociedades dependientes/Cooperativas integrantes del grupo. Fecha de incorporación al grupo. 12 (AAAAMMDD)
A102: 96 | B102: 1536 | C102: 5 | D102: Num | E102: Sociedades dependientes/Cooperativas integrantes del grupo. Participación directa e indirecta al ﬁ nal del ejercicio %. 12
A103: 97 | B103: 1541 | C103: 16 | D103: An | E103: Sociedades dependientes/Cooperativas integrantes del grupo. Código seguro de identificación de presentación de la declaración individual. 12
A104: =A103+1 -> 98 | B104: =B103+C103 -> 1557 | C104: 1 | D104: Num | E104: Sociedades dependientes/Cooperativas integrantes del grupo. Declaración individual únicamente a Hacienda Foral(*). 12 | F104: [0,1]
A105: =A104+1 -> 99 | B105: =B104+C104 -> 1558 | C105: 40 | D105: An | E105: Sociedades dependientes/Cooperativas integrantes del grupo. Denominación social. 13
A106: 100 | B106: 1598 | C106: 9 | D106: An | E106: Sociedades dependientes/Cooperativas integrantes del grupo. NIF. 13
A107: 101 | B107: 1607 | C107: 40 | D107: An | E107: Sociedades dependientes/Cooperativas integrantes del grupo. Domicilio ﬁscal. 13
A108: 102 | B108: 1647 | C108: 8 | D108: Num | E108: Sociedades dependientes/Cooperativas integrantes del grupo. Fecha de incorporación al grupo. 13 (AAAAMMDD)
A109: 103 | B109: 1655 | C109: 5 | D109: Num | E109: Sociedades dependientes/Cooperativas integrantes del grupo. Participación directa e indirecta al ﬁ nal del ejercicio %. 13
A110: 104 | B110: 1660 | C110: 16 | D110: An | E110: Sociedades dependientes/Cooperativas integrantes del grupo. Código seguro de identificación de presentación de la declaración individual. 13
A111: =A110+1 -> 105 | B111: =B110+C110 -> 1676 | C111: 1 | D111: Num | E111: Sociedades dependientes/Cooperativas integrantes del grupo. Declaración individual únicamente a Hacienda Foral(*). 13 | F111: [0,1]
A112: =A111+1 -> 106 | B112: =B111+C111 -> 1677 | C112: 40 | D112: An | E112: Sociedades dependientes/Cooperativas integrantes del grupo. Denominación social. 14
A113: 107 | B113: 1717 | C113: 9 | D113: An | E113: Sociedades dependientes/Cooperativas integrantes del grupo. NIF. 14
A114: 108 | B114: 1726 | C114: 40 | D114: An | E114: Sociedades dependientes/Cooperativas integrantes del grupo. Domicilio ﬁscal. 14
A115: 109 | B115: 1766 | C115: 8 | D115: Num | E115: Sociedades dependientes/Cooperativas integrantes del grupo. Fecha de incorporación al grupo. 14 (AAAAMMDD)
A116: 110 | B116: 1774 | C116: 5 | D116: Num | E116: Sociedades dependientes/Cooperativas integrantes del grupo. Participación directa e indirecta al ﬁ nal del ejercicio %. 14
A117: 111 | B117: 1779 | C117: 16 | D117: An | E117: Sociedades dependientes/Cooperativas integrantes del grupo. Código seguro de identificación de presentación de la declaración individual. 14
A118: =A117+1 -> 112 | B118: =B117+C117 -> 1795 | C118: 1 | D118: Num | E118: Sociedades dependientes/Cooperativas integrantes del grupo. Declaración individual únicamente a Hacienda Foral(*). 14 | F118: [0,1]
A119: =A118+1 -> 113 | B119: =B118+C118 -> 1796 | C119: 40 | D119: An | E119: Sociedades dependientes/Cooperativas integrantes del grupo. Denominación social. 15
A120: 114 | B120: 1836 | C120: 9 | D120: An | E120: Sociedades dependientes/Cooperativas integrantes del grupo. NIF. 15
A121: 115 | B121: 1845 | C121: 40 | D121: An | E121: Sociedades dependientes/Cooperativas integrantes del grupo. Domicilio ﬁscal. 15
A122: 116 | B122: 1885 | C122: 8 | D122: Num | E122: Sociedades dependientes/Cooperativas integrantes del grupo. Fecha de incorporación al grupo. 15 (AAAAMMDD)
A123: 117 | B123: 1893 | C123: 5 | D123: Num | E123: Sociedades dependientes/Cooperativas integrantes del grupo. Participación directa e indirecta al ﬁ nal del ejercicio %. 15
A124: =A123+1 -> 118 | B124: =B123+C123 -> 1898 | C124: 16 | D124: An | E124: Sociedades dependientes/Cooperativas integrantes del grupo. Código seguro de identificación de presentación de la declaración individual. 15
A125: =A124+1 -> 119 | B125: =B124+C124 -> 1914 | C125: 1 | D125: Num | E125: Sociedades dependientes/Cooperativas integrantes del grupo. Declaración individual únicamente a Hacienda Foral(*). 15 | F125: [0,1]
A126: =A125+1 -> 120 | B126: =B125+C125 -> 1915 | C126: 40 | D126: An | E126: Sociedades dependientes/Cooperativas integrantes del grupo. Denominación social. 16
A127: 121 | B127: 1955 | C127: 9 | D127: An | E127: Sociedades dependientes/Cooperativas integrantes del grupo. NIF. 16
A128: 122 | B128: 1964 | C128: 40 | D128: An | E128: Sociedades dependientes/Cooperativas integrantes del grupo. Domicilio ﬁscal. 16
A129: 123 | B129: 2004 | C129: 8 | D129: Num | E129: Sociedades dependientes/Cooperativas integrantes del grupo. Fecha de incorporación al grupo. 16 (AAAAMMDD)
A130: 124 | B130: 2012 | C130: 5 | D130: Num | E130: Sociedades dependientes/Cooperativas integrantes del grupo. Participación directa e indirecta al ﬁ nal del ejercicio %. 16
A131: 125 | B131: 2017 | C131: 16 | D131: An | E131: Sociedades dependientes/Cooperativas integrantes del grupo. Código seguro de identificación de presentación de la declaración individual. 16
A132: =A131+1 -> 126 | B132: =B131+C131 -> 2033 | C132: 1 | D132: Num | E132: Sociedades dependientes/Cooperativas integrantes del grupo. Declaración individual únicamente a Hacienda Foral(*). 16 | F132: [0,1]
A133: =A132+1 -> 127 | B133: =B132+C132 -> 2034 | C133: 40 | D133: An | E133: Sociedades dependientes/Cooperativas integrantes del grupo. Denominación social. 17
A134: 128 | B134: 2074 | C134: 9 | D134: An | E134: Sociedades dependientes/Cooperativas integrantes del grupo. NIF. 17
A135: 129 | B135: 2083 | C135: 40 | D135: An | E135: Sociedades dependientes/Cooperativas integrantes del grupo. Domicilio ﬁscal. 17
A136: 130 | B136: 2123 | C136: 8 | D136: Num | E136: Sociedades dependientes/Cooperativas integrantes del grupo. Fecha de incorporación al grupo. 17 (AAAAMMDD)
A137: 131 | B137: 2131 | C137: 5 | D137: Num | E137: Sociedades dependientes/Cooperativas integrantes del grupo. Participación directa e indirecta al ﬁ nal del ejercicio %. 17
A138: 132 | B138: 2136 | C138: 16 | D138: An | E138: Sociedades dependientes/Cooperativas integrantes del grupo. Código seguro de identificación de presentación de la declaración individual. 17
A139: =A138+1 -> 133 | B139: =B138+C138 -> 2152 | C139: 1 | D139: Num | E139: Sociedades dependientes/Cooperativas integrantes del grupo. Declaración individual únicamente a Hacienda Foral(*). 17 | F139: [0,1]
A140: =A139+1 -> 134 | B140: =B139+C139 -> 2153 | C140: 40 | D140: An | E140: Sociedades dependientes/Cooperativas integrantes del grupo. Denominación social. 18
A141: 135 | B141: 2193 | C141: 9 | D141: An | E141: Sociedades dependientes/Cooperativas integrantes del grupo. NIF. 18
A142: 136 | B142: 2202 | C142: 40 | D142: An | E142: Sociedades dependientes/Cooperativas integrantes del grupo. Domicilio ﬁscal. 18
A143: 137 | B143: 2242 | C143: 8 | D143: Num | E143: Sociedades dependientes/Cooperativas integrantes del grupo. Fecha de incorporación al grupo. 18 (AAAAMMDD)
A144: 138 | B144: 2250 | C144: 5 | D144: Num | E144: Sociedades dependientes/Cooperativas integrantes del grupo. Participación directa e indirecta al ﬁ nal del ejercicio %. 18
A145: 139 | B145: 2255 | C145: 16 | D145: An | E145: Sociedades dependientes/Cooperativas integrantes del grupo. Código seguro de identificación de presentación de la declaración individual. 18
A146: =A145+1 -> 140 | B146: =B145+C145 -> 2271 | C146: 1 | D146: Num | E146: Sociedades dependientes/Cooperativas integrantes del grupo. Declaración individual únicamente a Hacienda Foral(*). 18 | F146: [0,1]
A147: =A146+1 -> 141 | B147: =B146+C146 -> 2272 | C147: 40 | D147: An | E147: Sociedades dependientes/Cooperativas integrantes del grupo. Denominación social. 19
A148: 142 | B148: 2312 | C148: 9 | D148: An | E148: Sociedades dependientes/Cooperativas integrantes del grupo. NIF. 19
A149: 143 | B149: 2321 | C149: 40 | D149: An | E149: Sociedades dependientes/Cooperativas integrantes del grupo. Domicilio ﬁscal. 19
A150: 144 | B150: 2361 | C150: 8 | D150: Num | E150: Sociedades dependientes/Cooperativas integrantes del grupo. Fecha de incorporación al grupo. 19 (AAAAMMDD)
A151: 145 | B151: 2369 | C151: 5 | D151: Num | E151: Sociedades dependientes/Cooperativas integrantes del grupo. Participación directa e indirecta al ﬁ nal del ejercicio %. 19
A152: 146 | B152: 2374 | C152: 16 | D152: An | E152: Sociedades dependientes/Cooperativas integrantes del grupo. Código seguro de identificación de presentación de la declaración individual. 19
A153: =A152+1 -> 147 | B153: =B152+C152 -> 2390 | C153: 1 | D153: Num | E153: Sociedades dependientes/Cooperativas integrantes del grupo. Declaración individual únicamente a Hacienda Foral(*). 19 | F153: [0,1]
A154: =A153+1 -> 148 | B154: =B153+C153 -> 2391 | C154: 40 | D154: An | E154: Sociedades dependientes/Cooperativas integrantes del grupo. Denominación social. 20
A155: 149 | B155: 2431 | C155: 9 | D155: An | E155: Sociedades dependientes/Cooperativas integrantes del grupo. NIF. 20
A156: 150 | B156: 2440 | C156: 40 | D156: An | E156: Sociedades dependientes/Cooperativas integrantes del grupo. Domicilio ﬁscal. 20
A157: 151 | B157: 2480 | C157: 8 | D157: Num | E157: Sociedades dependientes/Cooperativas integrantes del grupo. Fecha de incorporación al grupo. 20 (AAAAMMDD)
A158: 152 | B158: 2488 | C158: 5 | D158: Num | E158: Sociedades dependientes/Cooperativas integrantes del grupo. Participación directa e indirecta al ﬁ nal del ejercicio %. 20
A159: 153 | B159: 2493 | C159: 16 | D159: An | E159: Sociedades dependientes/Cooperativas integrantes del grupo. Código seguro de identificación de presentación de la declaración individual. 20
A160: =A159+1 -> 154 | B160: =B159+C159 -> 2509 | C160: 1 | D160: Num | E160: Sociedades dependientes/Cooperativas integrantes del grupo. Declaración individual únicamente a Hacienda Foral(*). 20 | F160: [0,1]
A161: =A160+1 -> 155 | B161: =B160+C160 -> 2510 | C161: 40 | D161: An | E161: Sociedades dependientes/Cooperativas integrantes del grupo. Denominación social. 21
A162: =A161+1 -> 156 | B162: =B161+C161 -> 2550 | C162: 9 | D162: An | E162: Sociedades dependientes/Cooperativas integrantes del grupo. NIF. 21
A163: 157 | B163: 2559 | C163: 40 | D163: An | E163: Sociedades dependientes/Cooperativas integrantes del grupo. Domicilio ﬁscal. 21
A164: 158 | B164: 2599 | C164: 8 | D164: Num | E164: Sociedades dependientes/Cooperativas integrantes del grupo. Fecha de incorporación al grupo. 21 (AAAAMMDD)
A165: 159 | B165: 2607 | C165: 5 | D165: Num | E165: Sociedades dependientes/Cooperativas integrantes del grupo. Participación directa e indirecta al ﬁ nal del ejercicio %. 21
A166: 160 | B166: 2612 | C166: 16 | D166: An | E166: Sociedades dependientes/Cooperativas integrantes del grupo. Código seguro de identificación de presentación de la declaración individual. 21
A167: =A166+1 -> 161 | B167: =B166+C166 -> 2628 | C167: 1 | D167: Num | E167: Sociedades dependientes/Cooperativas integrantes del grupo. Declaración individual únicamente a Hacienda Foral(*). 21 | F167: [0,1]
A168: =A167+1 -> 162 | B168: =B167+C167 -> 2629 | C168: 40 | D168: An | E168: Sociedades dependientes/Cooperativas integrantes del grupo. Denominación social. 22
A169: 163 | B169: 2669 | C169: 9 | D169: An | E169: Sociedades dependientes/Cooperativas integrantes del grupo. NIF. 22
A170: 164 | B170: 2678 | C170: 40 | D170: An | E170: Sociedades dependientes/Cooperativas integrantes del grupo. Domicilio ﬁscal. 22
A171: 165 | B171: 2718 | C171: 8 | D171: Num | E171: Sociedades dependientes/Cooperativas integrantes del grupo. Fecha de incorporación al grupo. 22 (AAAAMMDD)
A172: 166 | B172: 2726 | C172: 5 | D172: Num | E172: Sociedades dependientes/Cooperativas integrantes del grupo. Participación directa e indirecta al ﬁ nal del ejercicio %. 22
A173: 167 | B173: 2731 | C173: 16 | D173: An | E173: Sociedades dependientes/Cooperativas integrantes del grupo. Código seguro de identificación de presentación de la declaración individual. 22
A174: =A173+1 -> 168 | B174: =B173+C173 -> 2747 | C174: 1 | D174: Num | E174: Sociedades dependientes/Cooperativas integrantes del grupo. Declaración individual únicamente a Hacienda Foral(*). 22 | F174: [0,1]
A175: =A174+1 -> 169 | B175: =B174+C174 -> 2748 | C175: 40 | D175: An | E175: Sociedades dependientes/Cooperativas integrantes del grupo. Denominación social. 23
A176: 170 | B176: 2788 | C176: 9 | D176: An | E176: Sociedades dependientes/Cooperativas integrantes del grupo. NIF. 23
A177: 171 | B177: 2797 | C177: 40 | D177: An | E177: Sociedades dependientes/Cooperativas integrantes del grupo. Domicilio ﬁscal. 23
A178: 172 | B178: 2837 | C178: 8 | D178: Num | E178: Sociedades dependientes/Cooperativas integrantes del grupo. Fecha de incorporación al grupo. 23 (AAAAMMDD)
A179: 173 | B179: 2845 | C179: 5 | D179: Num | E179: Sociedades dependientes/Cooperativas integrantes del grupo. Participación directa e indirecta al ﬁ nal del ejercicio %. 23
A180: 174 | B180: 2850 | C180: 16 | D180: An | E180: Sociedades dependientes/Cooperativas integrantes del grupo. Código seguro de identificación de presentación de la declaración individual. 23
A181: =A180+1 -> 175 | B181: =B180+C180 -> 2866 | C181: 1 | D181: Num | E181: Sociedades dependientes/Cooperativas integrantes del grupo. Declaración individual únicamente a Hacienda Foral(*). 23 | F181: [0,1]
A182: =A181+1 -> 176 | B182: =B181+C181 -> 2867 | C182: 40 | D182: An | E182: Sociedades dependientes/Cooperativas integrantes del grupo. Denominación social. 24
A183: 177 | B183: 2907 | C183: 9 | D183: An | E183: Sociedades dependientes/Cooperativas integrantes del grupo. NIF. 24
A184: 178 | B184: 2916 | C184: 40 | D184: An | E184: Sociedades dependientes/Cooperativas integrantes del grupo. Domicilio ﬁscal. 24
A185: 179 | B185: 2956 | C185: 8 | D185: Num | E185: Sociedades dependientes/Cooperativas integrantes del grupo. Fecha de incorporación al grupo. 24 (AAAAMMDD)
A186: 180 | B186: 2964 | C186: 5 | D186: Num | E186: Sociedades dependientes/Cooperativas integrantes del grupo. Participación directa e indirecta al ﬁ nal del ejercicio %. 24
A187: 181 | B187: 2969 | C187: 16 | D187: An | E187: Sociedades dependientes/Cooperativas integrantes del grupo. Código seguro de identificación de presentación de la declaración individual. 24
A188: =A187+1 -> 182 | B188: =B187+C187 -> 2985 | C188: 1 | D188: Num | E188: Sociedades dependientes/Cooperativas integrantes del grupo. Declaración individual únicamente a Hacienda Foral(*). 24 | F188: [0,1]
A189: =A188+1 -> 183 | B189: =B188+C188 -> 2986 | C189: 40 | D189: An | E189: Sociedades dependientes/Cooperativas integrantes del grupo. Denominación social. 25
A190: =A189+1 -> 184 | B190: =B189+C189 -> 3026 | C190: 9 | D190: An | E190: Sociedades dependientes/Cooperativas integrantes del grupo. NIF. 25
A191: 185 | B191: 3035 | C191: 40 | D191: An | E191: Sociedades dependientes/Cooperativas integrantes del grupo. Domicilio ﬁscal. 25
A192: 186 | B192: 3075 | C192: 8 | D192: Num | E192: Sociedades dependientes/Cooperativas integrantes del grupo. Fecha de incorporación al grupo. 25 (AAAAMMDD)
A193: 187 | B193: 3083 | C193: 5 | D193: Num | E193: Sociedades dependientes/Cooperativas integrantes del grupo. Participación directa e indirecta al ﬁ nal del ejercicio %. 25
A194: 188 | B194: 3088 | C194: 16 | D194: An | E194: Sociedades dependientes/Cooperativas integrantes del grupo. Código seguro de identificación de presentación de la declaración individual. 25
A195: =A194+1 -> 189 | B195: =B194+C194 -> 3104 | C195: 1 | D195: Num | E195: Sociedades dependientes/Cooperativas integrantes del grupo. Declaración individual únicamente a Hacienda Foral(*). 25 | F195: [0,1]
A196: =A195+1 -> 190 | B196: =B195+C195 -> 3105 | C196: 40 | D196: An | E196: Sociedades dependientes/Cooperativas integrantes del grupo. Denominación social. 26
A197: 191 | B197: 3145 | C197: 9 | D197: An | E197: Sociedades dependientes/Cooperativas integrantes del grupo. NIF. 26
A198: 192 | B198: 3154 | C198: 40 | D198: An | E198: Sociedades dependientes/Cooperativas integrantes del grupo. Domicilio ﬁscal. 26
A199: 193 | B199: 3194 | C199: 8 | D199: Num | E199: Sociedades dependientes/Cooperativas integrantes del grupo. Fecha de incorporación al grupo. 26 (AAAAMMDD)
A200: 194 | B200: 3202 | C200: 5 | D200: Num | E200: Sociedades dependientes/Cooperativas integrantes del grupo. Participación directa e indirecta al ﬁ nal del ejercicio %. 26
A201: 195 | B201: 3207 | C201: 16 | D201: An | E201: Sociedades dependientes/Cooperativas integrantes del grupo. Código seguro de identificación de presentación de la declaración individual. 26
A202: =A201+1 -> 196 | B202: =B201+C201 -> 3223 | C202: 1 | D202: Num | E202: Sociedades dependientes/Cooperativas integrantes del grupo. Declaración individual únicamente a Hacienda Foral(*). 26 | F202: [0,1]
... 59 more rows

Sheet T22003A00
B1: Agencia Tributaria
A3: =+T22001000!A3 -> Modelo 220 | C3: =+T22001000!C3 -> Diseño de registro. 2014
A4: =+T22001000!A4 -> Versión 1.2 | C4: Impuesto Sobre Sociedades. Régimen de consolidación Fiscal. GRUPO GENERAL. BALANCE CONSOLIDADO: ACTIVO
A6: Nº | B6: Posic. | C6: Lon | D6: Tipo | E6: Descripción | F6: Contenido
A7: 1 | B7: 1 | C7: 2 | D7: An | E7: Inicio del identificador de modelo y página. | F7: <T
A8: =+A7+1 -> 2 | B8: =C7+B7 -> 3 | C8: 3 | D8: Num | E8: Modelo. | F8: 220
A9: 3 | B9: 6 | C9: 2 | D9: An | E9: Página. | F9: 03
A10: 4 | B10: 8 | C10: 1 | D10: An | E10: Letra | F10: A
A11: 5 | B11: 9 | C11: 2 | D11: Num | E11: Hoja | F11: 00
A12: 6 | B12: 11 | C12: 1 | D12: An | E12: Fin de identificador de modelo y página. Constante ">". | F12: >
A13: 7 | B13: 12 | C13: 1 | D13: An | E13: Indicador de página complementaria.
A14: =A13+1 -> 8 | B14: =B13+C13 -> 13 | C14: 3 | D14: Num | E14: Número de orden de la página complementaria
A15: 9 | B15: 16 | C15: 17 | D15: N | E15: ACTIVO. ACTIVO NO CORRIENTE [101]
A16: 10 | B16: 33 | C16: 17 | D16: N | E16: ACTIVO. Inmovilizado intangible [102]
A17: 11 | B17: 50 | C17: 17 | D17: N | E17: ACTIVO. Inmovilizado intangible. Fondo de comercio de consolidación [106]
A18: =A17+1 -> 12 | B18: =B17+C17 -> 67 | C18: 17 | D18: N | E18: ACTIVO. Inmovilizado intangible. Investigación [734]
A19: =A18+1 -> 13 | B19: =B18+C18 -> 84 | C19: 17 | D19: N | E19: ACTIVO. Inmovilizado intangible. Propiedad intelectual [700]
A20: =A19+1 -> 14 | B20: =B19+C19 -> 101 | C20: 17 | D20: N | E20: ACTIVO. Inmovilizado intangible. Derechos de emisión de gases de efecto invernadero [701]
A21: =A20+1 -> 15 | B21: =B20+C20 -> 118 | C21: 17 | D21: N | E21: ACTIVO. Inmovilizado intangible. Otro inmovilizado intangible [110]
A22: 16 | B22: 135 | C22: 17 | D22: N | E22: ACTIVO. Inmovilizado material [111]
A23: 17 | B23: 152 | C23: 17 | D23: N | E23: ACTIVO. Inmovilizado material. Terrenos y construcciones [112]
A24: 18 | B24: 169 | C24: 17 | D24: N | E24: ACTIVO. Inmovilizado material. Instalaciones técnicas y otro inmovilizado material [113]
A25: 19 | B25: 186 | C25: 17 | D25: N | E25: ACTIVO. Inmovilizado material. Inmovilizado en curso y anticipos [114]
A26: 20 | B26: 203 | C26: 17 | D26: N | E26: ACTIVO. Inversiones inmobiliarias [115]
A27: 21 | B27: 220 | C27: 17 | D27: N | E27: ACTIVO. Inversiones en empresas del grupo y asociadas a largo plazo [118]
A28: 22 | B28: 237 | C28: 17 | D28: N | E28: ACTIVO. Inversiones en empresas del grupo y asociadas a largo plazo. Instrumentos de patrimonio [119]
A29: 23 | B29: 254 | C29: 17 | D29: N | E29: ACTIVO. Inversiones en empresas del grupo y asociadas a largo plazo. Resto [125]
A30: 24 | B30: 271 | C30: 17 | D30: N | E30: ACTIVO. Inversiones ﬁnancieras a largo plazo [126]
A31: 25 | B31: 288 | C31: 17 | D31: N | E31: ACTIVO. Inversiones ﬁnancieras a largo plazo. Instrumentos de patrimonio [127]
A32: 26 | B32: 305 | C32: 17 | D32: N | E32: ACTIVO. Inversiones ﬁnancieras a largo plazo. Resto [133]
A33: 27 | B33: 322 | C33: 17 | D33: N | E33: ACTIVO.Activos por impuesto diferido [134]
A34: 28 | B34: 339 | C34: 17 | D34: N | E34: ACTIVO.Deudores comerciales no corrientes [135]
A35: =A34+1 -> 29 | B35: =B34+C34 -> 356 | C35: 17 | D35: N | E35: ACTIVO.ACTIVO CORRIENTE [136]
A36: 30 | B36: 373 | C36: 17 | D36: N | E36: ACTIVO.Activos no corrientes mantenidos para la venta [137]
A37: 31 | B37: 390 | C37: 17 | D37: N | E37: ACTIVO.Existencias [138]
A38: 32 | B38: 407 | C38: 17 | D38: N | E38: ACTIVO.Deudores comerciales y otras cuentas a cobrar [149]
A39: 33 | B39: 424 | C39: 17 | D39: N | E39: ACTIVO.Deudores comerciales y otras cuentas a cobrar. Clientes por ventas y prestaciones de servicios [150]
A40: =A39+1 -> 34 | B40: =B39+C39 -> 441 | C40: 17 | D40: N | E40: ACTIVO.Deudores comerciales y otras cuentas a cobrar. Activos por impuesto corriente [156]
A41: 35 | B41: 458 | C41: 17 | D41: N | E41: ACTIVO.Deudores comerciales y otras cuentas a cobrar. Otros deudores [159]
A42: 36 | B42: 475 | C42: 17 | D42: N | E42: ACTIVO.Inversiones en empresas del grupo no consolidadas y asociadas a corto plazo [160]
A43: =A42+1 -> 37 | B43: =B42+C42 -> 492 | C43: 17 | D43: N | E43: ACTIVO. Inversiones en empresas del grupo no consolidadas y asociadas a corto plazo. Instrumentos de patrimonio [161]
A44: 38 | B44: 509 | C44: 17 | D44: N | E44: ACTIVO. Inversiones en empresas del grupo no consolidadas y asociadas a corto plazo. Resto [167]
A45: 39 | B45: 526 | C45: 17 | D45: N | E45: ACTIVO.Inversiones ﬁnancieras a corto plazo [168]
A46: 40 | B46: 543 | C46: 17 | D46: N | E46: ACTIVO.Inversiones ﬁnancieras a corto plazo. Instrumentos de patrimonio [169]
A47: 41 | B47: 560 | C47: 17 | D47: N | E47: ACTIVO.Inversiones ﬁnancieras a corto plazo. Resto [175]
A48: 42 | B48: 577 | C48: 17 | D48: N | E48: ACTIVO.Periodiﬁcaciones a corto plazo [176]
A49: 43 | B49: 594 | C49: 17 | D49: N | E49: ACTIVO.Efectivo y otros activos líquidos equivalentes [177]
A50: =A49+1 -> 44 | B50: =B49+C49 -> 611 | C50: 17 | D50: N | E50: ACTIVO.TOTAL ACTIVO [180]
A51: 45 | B51: 628 | C51: 12 | D51: An | E51: Fin de registro. | F51: </T22003A00>
A52: Total: | C52: =B51+C51-1 -> 639
E54: A partir de este momento el campo <Hoja> debe tomar el valor, 00 para el grupo general, 01 para el grupo de entidades de crédito y 02 para el grupo de entidades aseguradoras

Sheet T22003B00
B1: Agencia Tributaria
A3: =+T22001000!A3 -> Modelo 220 | C3: =+T22001000!C3 -> Diseño de registro. 2014
A4: =+T22001000!A4 -> Versión 1.2 | C4: Impuesto Sobre Sociedades. Régimen de consolidación Fiscal. GRUPO GENERAL. BALANCE CONSOLIDADO: PATRIMONIO NETO Y PASIVO
A6: Nº | B6: Posic. | C6: Lon | D6: Tipo | E6: Descripción | F6: Contenido
A7: 1 | B7: 1 | C7: 2 | D7: An | E7: Inicio del identificador de modelo y página. | F7: <T
A8: =+A7+1 -> 2 | B8: =C7+B7 -> 3 | C8: 3 | D8: Num | E8: Modelo. | F8: 220
A9: 3 | B9: 6 | C9: 2 | D9: An | E9: Página. | F9: 03
A10: 4 | B10: 8 | C10: 1 | D10: An | E10: Letra | F10: B
A11: 5 | B11: 9 | C11: 2 | D11: Num | E11: Hoja | F11: 00
A12: 6 | B12: 11 | C12: 1 | D12: An | E12: Fin de identificador de modelo y página. Constante ">". | F12: >
A13: 7 | B13: 12 | C13: 1 | D13: An | E13: Indicador de página complementaria.
A14: =A13+1 -> 8 | B14: =B13+C13 -> 13 | C14: 3 | D14: Num | E14: Número de orden de la página complementaria
A15: 9 | B15: 16 | C15: 17 | D15: N | E15: PATRIMONIO NETO [185]
A16: 10 | B16: 33 | C16: 17 | D16: N | E16: Fondos propios [186]
A17: 11 | B17: 50 | C17: 17 | D17: N | E17: Capital [187]
A18: =A17+1 -> 12 | B18: =B17+C17 -> 67 | C18: 17 | D18: N | E18: Capital. Capital escriturado [188]
A19: =A18+1 -> 13 | B19: =B18+C18 -> 84 | C19: 17 | D19: N | E19: Capital. Capital no exigido [189]
A20: =A19+1 -> 14 | B20: =B19+C19 -> 101 | C20: 17 | D20: N | E20: Prima de emisión [190]
A21: 15 | B21: 118 | C21: 17 | D21: N | E21: Reservas [191]
A22: =A21+1 -> 16 | B22: =B21+C21 -> 135 | C22: 17 | D22: N | E22: Reservas. Reserva de revalorización [702]
A23: =A22+1 -> 17 | B23: =B22+C22 -> 152 | C23: 17 | D23: N | E23: Reservas. Otras reservas [750]
A24: =A23+1 -> 18 | B24: =B23+C23 -> 169 | C24: 17 | D24: N | E24: (Acciones y participaciones de la sociedad dominante) [194]
A25: 19 | B25: 186 | C25: 17 | D25: N | E25: Otras aportaciones de socios [198]
A26: 20 | B26: 203 | C26: 17 | D26: N | E26: Resultado del ejercicio atribuido a la sociedad dominante [199]
A27: =A26+1 -> 21 | B27: =B26+C26 -> 220 | C27: 17 | D27: N | E27: (Dividendo a cuenta) [200]
A28: 22 | B28: 237 | C28: 17 | D28: N | E28: Otros instrumentos de patrimonio neto [201]
A29: 23 | B29: 254 | C29: 17 | D29: N | E29: Ajustes por cambios de valor [202]
A30: 24 | B30: 271 | C30: 17 | D30: N | E30: Subvenciones, donaciones y legados recibidos [209]
A31: 25 | B31: 288 | C31: 17 | D31: N | E31: Socios externos [236]
A32: 26 | B32: 305 | C32: 17 | D32: N | E32: PASIVO NO CORRIENTE [210]
A33: 27 | B33: 322 | C33: 17 | D33: N | E33: Provisiones a largo plazo [211]
A34: 28 | B34: 339 | C34: 17 | D34: N | E34: Deudas a largo plazo [216]
A35: 29 | B35: 356 | C35: 17 | D35: N | E35: Deudas a largo plazo. Obligaciones y otros valores negociables [217]
A36: 30 | B36: 373 | C36: 17 | D36: N | E36: Deudas a largo plazo. Deudas con entidades de crédito [218]
A37: 31 | B37: 390 | C37: 17 | D37: N | E37: Deudas a largo plazo. Acreedores por arrendamiento ﬁnanciero [219]
A38: 32 | B38: 407 | C38: 17 | D38: N | E38: Deudas a largo plazo. Otros pasivos ﬁnancieros [222]
A39: 33 | B39: 424 | C39: 17 | D39: N | E39: Deudas con empresas del grupo no consolidadas y asociadas a largo plazo [223]
A40: 34 | B40: 441 | C40: 17 | D40: N | E40: Pasivos por impuesto diferido [224]
A41: 35 | B41: 458 | C41: 17 | D41: N | E41: Periodiﬁcaciones a largo plazo [225]
A42: 36 | B42: 475 | C42: 17 | D42: N | E42: Acreedores comerciales no corrientes [226]
A43: 37 | B43: 492 | C43: 17 | D43: N | E43: Deuda con características especiales a largo plazo [227]
A44: =A43+1 -> 38 | B44: =B43+C43 -> 509 | C44: 17 | D44: N | E44: PASIVO CORRIENTE [228]
A45: 39 | B45: 526 | C45: 17 | D45: N | E45: Pasivos vinculados con activos no corrientes mantenidos para la venta [229]
A46: 40 | B46: 543 | C46: 17 | D46: N | E46: Provisiones a corto plazo [230]
A47: =A46+1 -> 41 | B47: =B46+C46 -> 560 | C47: 17 | D47: N | E47: Procisiones por derechos de emisión de gases de efecto invernadero [735]
A48: =A47+1 -> 42 | B48: =B47+C47 -> 577 | C48: 17 | D48: N | E48: Otras provisiones [736]
A49: =A48+1 -> 43 | B49: =B48+C48 -> 594 | C49: 17 | D49: N | E49: Deudas a corto plazo [231]
A50: 44 | B50: 611 | C50: 17 | D50: N | E50: Deudas a corto plazo. Obligaciones y otros valores negociables [232]
A51: 45 | B51: 628 | C51: 17 | D51: N | E51: Deudas a corto plazo. Deudas con entidades de crédito [233]
A52: 46 | B52: 645 | C52: 17 | D52: N | E52: Deudas a corto plazo. Acreedores por arrendamiento ﬁnanciero [234]
A53: 47 | B53: 662 | C53: 17 | D53: N | E53: Deudas a corto plazo. Otros pasivos ﬁnancieros [237]
A54: 48 | B54: 679 | C54: 17 | D54: N | E54: Deudas con empresas del grupo y asociadas a corto plazo [238]
A55: 49 | B55: 696 | C55: 17 | D55: N | E55: Acreedores comerciales y otras cuentas a pagar [239]
A56: 50 | B56: 713 | C56: 17 | D56: N | E56: Acreedores comerciales y otras cuentas a pagar. Proveedores [240]
A57: =A56+1 -> 51 | B57: =B56+C56 -> 730 | C57: 17 | D57: N | E57: Acreedores comerciales y otras cuentas a pagar. Pasivos por impuesto corriente [246]
A58: 52 | B58: 747 | C58: 17 | D58: N | E58: Acreedores comerciales y otras cuentas a pagar. Otros acreedores [249]
A59: 53 | B59: 764 | C59: 17 | D59: N | E59: Periodiﬁcaciones a corto plazo [250]
A60: 54 | B60: 781 | C60: 17 | D60: N | E60: Deuda con características especiales a corto plazo [251]
A61: 55 | B61: 798 | C61: 17 | D61: N | E61: TOTAL PATRIMONIO NETO Y PASIVO [252]
A62: 56 | B62: 815 | C62: 12 | D62: An | E62: Fin de registro. | F62: </T22003B00>
A63: Total: | C63: =B62+C62-1 -> 826

Sheet T22004A00
B1: Agencia Tributaria
A3: =+T22001000!A3 -> Modelo 220 | C3: =+T22001000!C3 -> Diseño de registro. 2014
A4: =+T22001000!A4 -> Versión 1.2 | C4: Impuesto Sobre Sociedades. Régimen de consolidación Fiscal. GRUPO GENERAL. CUENTA DE PÉRDIDAS Y GANANCIAS CONSOLIDADA (I)
A6: Nº | B6: Posic. | C6: Lon | D6: Tipo | E6: Descripción | F6: Contenido
A7: 1 | B7: 1 | C7: 2 | D7: An | E7: Inicio del identificador de modelo y página. | F7: <T
A8: =+A7+1 -> 2 | B8: =C7+B7 -> 3 | C8: 3 | D8: Num | E8: Modelo. | F8: 220
A9: 3 | B9: 6 | C9: 2 | D9: An | E9: Página. | F9: 4A
A10: 4 | B10: 8 | C10: 1 | D10: An | E10: Letra | F10: 0
A11: 5 | B11: 9 | C11: 2 | D11: Num | E11: Hoja | F11: 00
A12: 6 | B12: 11 | C12: 1 | D12: An | E12: Fin de identificador de modelo y página. Constante ">". | F12: >
A13: 7 | B13: 12 | C13: 1 | D13: An | E13: Indicador de página complementaria.
A14: =A13+1 -> 8 | B14: =B13+C13 -> 13 | C14: 3 | D14: Num | E14: Número de orden de la página complementaria
A15: 9 | B15: 16 | C15: 17 | D15: N | E15: OPERACIONES CONTINUADAS. Importe neto de la cifra de negocios [255]
A16: 10 | B16: 33 | C16: 17 | D16: N | E16: OPERACIONES CONTINUADAS. Ventas [256]
A17: 11 | B17: 50 | C17: 17 | D17: N | E17: OPERACIONES CONTINUADAS. Importe neto de la cifra de negocios. Prestaciones de servicios [257]
A18: =A17+1 -> 12 | B18: =B17+C17 -> 67 | C18: 17 | D18: N | E18: OPERACIONES CONTINUADAS. Importe neto de la cifra de negocios. Ingresos de carácter financiero de las socidades holding [705]
A19: =A18+1 -> 13 | B19: =B18+C18 -> 84 | C19: 17 | D19: N | E19: OPERACIONES CONTINUADAS. Importe neto de la cifra de negocios. De participaciones en instrumentos de patrimonio [706]
A20: =A19+1 -> 14 | B20: =B19+C19 -> 101 | C20: 17 | D20: N | E20: OPERACIONES CONTINUADAS. Importe neto de la cifra de negocios. De valores negociables y otros instrumentos financieros[707]
A21: =A20+1 -> 15 | B21: =B20+C20 -> 118 | C21: 17 | D21: N | E21: OPERACIONES CONTINUADAS. Importe neto de la cifra de negocios. Resto [708]
A22: =A21+1 -> 16 | B22: =B21+C21 -> 135 | C22: 17 | D22: N | E22: OPERACIONES CONTINUADAS. Importe neto de la cifra de negocios. Variación de existencias de productos terminados y en curso de fabricación [258]
A23: 17 | B23: 152 | C23: 17 | D23: N | E23: OPERACIONES CONTINUADAS. Trabajos realizados por la empresa para su activo [259]
A24: 18 | B24: 169 | C24: 17 | D24: N | E24: OPERACIONES CONTINUADAS. Aprovisionamientos [260]
A25: 19 | B25: 186 | C25: 17 | D25: N | E25: OPERACIONES CONTINUADAS. Aprovisionamientos. Consumo de mercaderías [261]
A26: 20 | B26: 203 | C26: 17 | D26: N | E26: OPERACIONES CONTINUADAS. Aprovisionamientos. Consumo de materias primas y otras materias consumibles [262]
A27: 21 | B27: 220 | C27: 17 | D27: N | E27: OPERACIONES CONTINUADAS. Aprovisionamientos. Trabajos realizados por otras empresas [263]
A28: 22 | B28: 237 | C28: 17 | D28: N | E28: OPERACIONES CONTINUADAS. Aprovisionamientos. Deterioro de mercaderías, materias primas y otros aprovisionamientos [264]
A29: 23 | B29: 254 | C29: 17 | D29: N | E29: OPERACIONES CONTINUADAS. Otros ingresos de explotación [265]
A30: 24 | B30: 271 | C30: 17 | D30: N | E30: OPERACIONES CONTINUADAS. Otros ingresos de explotación. Ingresos accesorios y otros de gestión corriente [266]
A31: 25 | B31: 288 | C31: 17 | D31: N | E31: OPERACIONES CONTINUADAS. Otros ingresos de explotación. Ingresos accesorios y otros de gestión corriente. Ingresos por arrendamientos [267]
A32: 26 | B32: 305 | C32: 17 | D32: N | E32: OPERACIONES CONTINUADAS. Otros ingresos de explotación. Ingresos accesorios y otros de gestión corriente. Resto [268]
A33: 27 | B33: 322 | C33: 17 | D33: N | E33: OPERACIONES CONTINUADAS. Otros ingresos de explotación. Subvenciones de explotación incorporadas al resultado del ejercicio [269]
A34: 28 | B34: 339 | C34: 17 | D34: N | E34: OPERACIONES CONTINUADAS. Gastos de personal [270]
A35: 29 | B35: 356 | C35: 17 | D35: N | E35: OPERACIONES CONTINUADAS. Gastos de personal. Sueldos, salarios y asimilados [271]
A36: =A35+1 -> 30 | B36: =B35+C35 -> 373 | C36: 17 | D36: N | E36: OPERACIONES CONTINUADAS. Gastos de personal. Cargas sociales [272]
A37: =A36+1 -> 31 | B37: =B36+C36 -> 390 | C37: 17 | D37: N | E37: OPERACIONES CONTINUADAS. Gastos de personal. Indemnizaciones [273]
A38: 32 | B38: 407 | C38: 17 | D38: N | E38: OPERACIONES CONTINUADAS. Gastos de personal. Seguridad Social a cargo de la empresa [274]
A39: 33 | B39: 424 | C39: 17 | D39: N | E39: OPERACIONES CONTINUADAS. Gastos de personal. Retribuciones a largo plazo mediante sistemas de aportación o prestación deﬁnida [275]
A40: 34 | B40: 441 | C40: 17 | D40: N | E40: OPERACIONES CONTINUADAS. Gastos de personal. Retribuciones mediante instrumentos de patrimonio [276]
A41: 35 | B41: 458 | C41: 17 | D41: N | E41: OPERACIONES CONTINUADAS.Gastos de personal. Otros gastos sociales [277]
A42: 36 | B42: 475 | C42: 17 | D42: N | E42: OPERACIONES CONTINUADAS. Gastos de personal. Provisiones [278]
A43: 37 | B43: 492 | C43: 17 | D43: N | E43: OPERACIONES CONTINUADAS. Otros gastos de explotación [279]
A44: =A43+1 -> 38 | B44: =B43+C43 -> 509 | C44: 17 | D44: N | E44: OPERACIONES CONTINUADAS. Otros gastos de explotación. Pérdidas, deterioro y variación de provisiones por operaciones comerciales [282]
A45: 39 | B45: 526 | C45: 17 | D45: N | E45: OPERACIONES CONTINUADAS. Otros gastos de explotación. Otros gastos de gestión corriente [283]
A46: =A45+1 -> 40 | B46: =B45+C45 -> 543 | C46: 17 | D46: N | E46: OPERACIONES CONTINUADAS. Otros gastos de explotación. Gastos por emisión de gases de efecto invernadero [709]
A47: =A46+1 -> 41 | B47: =B46+C46 -> 560 | C47: 17 | D47: N | E47: OPERACIONES CONTINUADAS. Amortización del inmovilizado [284]
A48: 42 | B48: 577 | C48: 17 | D48: N | E48: OPERACIONES CONTINUADAS. Imputación de subvenciones de inmovilizado no ﬁnanciero y otras [285]
A49: 43 | B49: 594 | C49: 17 | D49: N | E49: OPERACIONES CONTINUADAS. Excesos de provisiones [286]
A50: 44 | B50: 611 | C50: 17 | D50: N | E50: OPERACIONES CONTINUADAS. Deterioro y resultado por enajenaciones del inmovilizado [287]
A51: 45 | B51: 628 | C51: 17 | D51: N | E51: OPERACIONES CONTINUADAS. Deterioro y resultado por enajenaciones del inmovilizado. Deterioro y pérdidas [288]
A52: 46 | B52: 645 | C52: 17 | D52: N | E52: OPERACIONES CONTINUADAS. Deterioro y resultado por enajenaciones del inmovilizado. Deterioro y pérdidas. Deterioros [289]
A53: 47 | B53: 662 | C53: 17 | D53: N | E53: OPERACIONES CONTINUADAS. Deterioro y resultado por enajenaciones del inmovilizado. Deterioro y pérdidas. Reversión de deterioros [290]
A54: 48 | B54: 679 | C54: 17 | D54: N | E54: OPERACIONES CONTINUADAS. Deterioro y resultado por enajenaciones del inmovilizado. Resultados por enajenaciones y otras [291]
A55: 49 | B55: 696 | C55: 17 | D55: N | E55: OPERACIONES CONTINUADAS.Deterioro y resultado por enajenaciones del inmovilizado. Resultados por enajenaciones y otras. Beneﬁcios[292]
A56: 50 | B56: 713 | C56: 17 | D56: N | E56: OPERACIONES CONTINUADAS. Deterioro y resultado por enajenaciones del inmovilizado. Resultados por enajenaciones y otras. Pérdidas [293]
A57: 51 | B57: 730 | C57: 17 | D57: N | E57: OPERACIONES CONTINUADAS. Resultado por la pérdida de control de participaciones consolidadas [244]
A58: =A57+1 -> 52 | B58: =B57+C57 -> 747 | C58: 17 | D58: N | E58: OPERACIONES CONTINUADAS. Resultado por la pérdida de control de participaciones consolidadas. Resultado por la pérdida de control de una dependiente [329]
A59: =A58+1 -> 53 | B59: =B58+C58 -> 764 | C59: 17 | D59: N | E59: OPERACIONES CONTINUADAS. Resultado por la pérdida de control de participaciones consolidadas. Resultado atribuido a la participación retenida[330]
A60: =A59+1 -> 54 | B60: =B59+C59 -> 781 | C60: 17 | D60: N | E60: OPERACIONES CONTINUADAS. Diferencia negativa de combinaciones de negocios [294]
A61: 55 | B61: 798 | C61: 17 | D61: N | E61: OPERACIONES CONTINUADAS. Otros resultados [295]
A62: 56 | B62: 815 | C62: 17 | D62: N | E62: OPERACIONES CONTINUADAS. RESULTADO DE EXPLOTACIÓN [296]
A63: 57 | B63: 832 | C63: 12 | D63: An | E63: Fin de registro. | F63: </T22004A00>
A64: Total: | C64: =B63+C63-1 -> 843

Sheet T22004B00
B1: Agencia Tributaria
A3: =+T22001000!A3 -> Modelo 220 | C3: =+T22001000!C3 -> Diseño de registro. 2014
A4: =+T22001000!A4 -> Versión 1.2 | C4: Impuesto Sobre Sociedades. Régimen de consolidación Fiscal. GRUPO GENERAL. CUENTA DE PÉRDIDAS Y GANANCIAS CONSOLIDADA (II)
A6: Nº | B6: Posic. | C6: Lon | D6: Tipo | E6: Descripción | F6: Contenido
A7: 1 | B7: 1 | C7: 2 | D7: An | E7: Inicio del identificador de modelo y página. | F7: <T
A8: =+A7+1 -> 2 | B8: =C7+B7 -> 3 | C8: 3 | D8: Num | E8: Modelo. | F8: 220
A9: 3 | B9: 6 | C9: 2 | D9: An | E9: Página. | F9: 04
A10: 4 | B10: 8 | C10: 1 | D10: An | E10: Letra | F10: B
A11: 5 | B11: 9 | C11: 2 | D11: Num | E11: Hoja | F11: 00
A12: 6 | B12: 11 | C12: 1 | D12: An | E12: Fin de identificador de modelo y página. Constante ">". | F12: >
A13: 7 | B13: 12 | C13: 1 | D13: An | E13: Indicador de página complementaria.
A14: =A13+1 -> 8 | B14: =B13+C13 -> 13 | C14: 3 | D14: Num | E14: Número de orden de la página complementaria
A15: 9 | B15: 16 | C15: 17 | D15: N | E15: OPERACIONES CONTINUADAS (cont.). Ingresos ﬁnancieros [297]
A16: 10 | B16: 33 | C16: 17 | D16: N | E16: OPERACIONES CONTINUADAS (cont.). Ingresos ﬁnancieros. De participaciones en instrumentos de patrimonio [298]
A17: =A16+1 -> 11 | B17: =B16+C16 -> 50 | C17: 17 | D17: N | E17: OPERACIONES CONTINUADAS (cont.). Ingresos ﬁnancieros. De valores negociables y otros instrumentos ﬁnancieros [301]
A18: =A17+1 -> 12 | B18: =B17+C17 -> 67 | C18: 17 | D18: N | E18: OPERACIONES CONTINUADAS (cont.). Ingresos ﬁnancieros. Imputación de subvenciones, donaciones y legados de carácter ﬁnanciero [304]
A19: 13 | B19: 84 | C19: 17 | D19: N | E19: OPERACIONES CONTINUADAS (cont.). Gastos ﬁnancieros [305]
A20: =A19+1 -> 14 | B20: =B19+C19 -> 101 | C20: 17 | D20: N | E20: OPERACIONES CONTINUADAS (cont.). Gastos ﬁnancieros. Por deudas con empresas del grupo asociadas [306]
A21: =A20+1 -> 15 | B21: =B20+C20 -> 118 | C21: 17 | D21: N | E21: OPERACIONES CONTINUADAS (cont.). Gastos ﬁnancieros. Por deudas con terceros [307]
A22: =A21+1 -> 16 | B22: =B21+C21 -> 135 | C22: 17 | D22: N | E22: OPERACIONES CONTINUADAS (cont.). Gastos ﬁnancieros. Por actuación de provisiones [308]
A23: =A22+1 -> 17 | B23: =B22+C22 -> 152 | C23: 17 | D23: N | E23: OPERACIONES CONTINUADAS (cont.). Variación de valor razonable en instrumentos ﬁnancieros [309]
A24: 18 | B24: 169 | C24: 17 | D24: N | E24: OPERACIONES CONTINUADAS (cont.). Variación de valor razonable en instrumentos ﬁnancieros. Variación de valor razonable en instrumentos ﬁnancieros. Cartera de negociación y otros [310]
A25: 19 | B25: 186 | C25: 17 | D25: N | E25: OPERACIONES CONTINUADAS (cont.). Imputación al resultado del ejercicio por activos ﬁnancieros disponibles para la venta [311]
A26: 20 | B26: 203 | C26: 17 | D26: N | E26: OPERACIONES CONTINUADAS (cont.). Diferencias de cambio [312]
A27: 21 | B27: 220 | C27: 17 | D27: N | E27: OPERACIONES CONTINUADAS (cont.). Deterioro y resultado por enajenaciones de instrumentos ﬁnancieros [313]
A28: 22 | B28: 237 | C28: 17 | D28: N | E28: OPERACIONES CONTINUADAS (cont.). Deterioro y resultado por enajenaciones de instrumentos ﬁnancieros. Deterioros y pérdidas [314]
A29: 23 | B29: 254 | C29: 17 | D29: N | E29: OPERACIONES CONTINUADAS (cont.). Deterioro y resultado por enajenaciones de instrumentos ﬁnancieros. Deterioros y pérdidas.Deterioros, empresas del grupo, asociadas y vinculadas [315]
A30: 24 | B30: 271 | C30: 17 | D30: N | E30: OPERACIONES CONTINUADAS (cont.). Deterioro y resultado por enajenaciones de instrumentos ﬁnancieros.Deterioros y pérdidas. Deterioros, otras empresas [316]
A31: 25 | B31: 288 | C31: 17 | D31: N | E31: OPERACIONES CONTINUADAS (cont.). Deterioro y resultado por enajenaciones de instrumentos ﬁnancieros. Deterioros y pérdidas. Reversión de deterioros, empresas del grupo, asociadas y vinculadas [317]
A32: 26 | B32: 305 | C32: 17 | D32: N | E32: OPERACIONES CONTINUADAS (cont.). Deterioro y resultado por enajenaciones de instrumentos ﬁnancieros. Deterioros y pérdidas. Reversión de deterioros, otras empresas [318]
A33: 27 | B33: 322 | C33: 17 | D33: N | E33: OPERACIONES CONTINUADAS (cont.). Deterioro y resultado por enajenaciones de instrumentos ﬁnancieros. Resultados por enajenaciones y otras [319]
A34: 28 | B34: 339 | C34: 17 | D34: N | E34: OPERACIONES CONTINUADAS (cont.). Resultados por enajenaciones y otras. Beneﬁcios, empresas del grupo asociadas y vinculadas [320]
A35: 29 | B35: 356 | C35: 17 | D35: N | E35: OPERACIONES CONTINUADAS (cont.). Resultados por enajenaciones y otras. Beneﬁcios, empresas del grupo no consolidadas y asociadas a largo plazo. Beneﬁ cios, otras empresas [321]
A36: 30 | B36: 373 | C36: 17 | D36: N | E36: OPERACIONES CONTINUADAS (cont.). Resultados por enajenaciones y otras. Beneﬁcios, empresas del grupo no consolidadas y asociadas a largo plazo.Pérdidas, empresas del grupo asociadas y vinculadas [322]
A37: 31 | B37: 390 | C37: 17 | D37: N | E37: OPERACIONES CONTINUADAS (cont.). Resultados por enajenaciones y otras. Beneﬁcios, empresas del grupo no consolidadas y asociadas a largo plazo.Pérdidas, otras empresas [323]
A38: =A37+1 -> 32 | B38: =B37+C37 -> 407 | C38: 17 | D38: N | E38: OPERACIONES CONTINUADAS (cont.). Otros ingresos y gastos de carácter financiero [360]
A39: =A38+1 -> 33 | B39: =B38+C38 -> 424 | C39: 17 | D39: N | E39: OPERACIONES CONTINUADAS (cont.). Otros ingresos y gastos de carácter financiero. Incorporación al activo de gastos financieros [361]
A40: =A39+1 -> 34 | B40: =B39+C39 -> 441 | C40: 17 | D40: N | E40: OPERACIONES CONTINUADAS (cont.). Otros ingresos y gastos de carácter financiero. Ingresos financieros derivados de convenios de acreedores [362]
A41: =A40+1 -> 35 | B41: =B40+C40 -> 458 | C41: 17 | D41: N | E41: OPERACIONES CONTINUADAS (cont.). Otros ingresos y gastos de carácter financiero. Resto de ingresos y gastos [363]
A42: =A41+1 -> 36 | B42: =B41+C41 -> 475 | C42: 17 | D42: N | E42: OPERACIONES CONTINUADAS (cont.). RESULTADO FINANCIERO [324]
A43: 37 | B43: 492 | C43: 17 | D43: N | E43: OPERACIONES CONTINUADAS (cont.). RESULTADO ANTES DE IMPUESTOS [325]
A44: 38 | B44: 509 | C44: 17 | D44: N | E44: OPERACIONES CONTINUADAS (cont.). Impuestos sobre beneﬁcios [326]
A45: 39 | B45: 526 | C45: 17 | D45: N | E45: OPERACIONES CONTINUADAS (cont.). RESULTADO DEL EJERCICIO PROCEDENTE DE OPERACIONES CONTINUADAS [327]
A46: 40 | B46: 543 | C46: 17 | D46: N | E46: OPERACIONES INTERRUMPIDAS. RESULTADO DEL EJERCICIO PROCEDENTE DE OPERACIONES INTERRUMPIDAS NETO DE IMPUESTOS. [328]
A47: 41 | B47: 560 | C47: 17 | D47: N | E47: RESULTADO CONSOLIDADO DEL EJERCICIO. [500]
A48: 42 | B48: 577 | C48: 17 | D48: N | E48: RESULTADO CONSOLIDADO DEL EJERCICIO.Resultado atribuido a la sociedad dominante. [247]
A49: 43 | B49: 594 | C49: 17 | D49: N | E49: RESULTADO CONSOLIDADO DEL EJERCICIO.Resultado atribuido a socios externos. [248]
A50: 44 | B50: 611 | C50: 12 | D50: An | E50: Fin de ejercicio. | F50: </T22004B00>
A51: Total: | C51: =B50+C50-1 -> 622

Sheet T22005A00
B1: Agencia Tributaria
A3: =+T22001000!A3 -> Modelo 220 | C3: =+T22001000!C3 -> Diseño de registro. 2014
A4: =+T22001000!A4 -> Versión 1.2 | C4: Impuesto Sobre Sociedades. Régimen de consolidación Fiscal. GRUPO GENERAL. ESTADO DE CAMBIOS EN EL PATRIMONIO NETO: ESTADO DE INGRESOS Y GASTOS RECONOCIDOS CONSOLIDADO
A6: Nº | B6: Posic. | C6: Lon | D6: Tipo | E6: Descripción | F6: Contenido
A7: 1 | B7: 1 | C7: 2 | D7: An | E7: Inicio del identificador de modelo y página. | F7: <T
A8: =+A7+1 -> 2 | B8: =C7+B7 -> 3 | C8: 3 | D8: Num | E8: Modelo. | F8: 220
A9: 3 | B9: 6 | C9: 2 | D9: An | E9: Página. | F9: 05
A10: 4 | B10: 8 | C10: 1 | D10: An | E10: Letra | F10: A
A11: 5 | B11: 9 | C11: 2 | D11: Num | E11: Hoja | F11: 00
A12: 6 | B12: 11 | C12: 1 | D12: An | E12: Fin de identificador de modelo y página. Constante ">". | F12: >
A13: 7 | B13: 12 | C13: 1 | D13: An | E13: Indicador de página complementaria.
A14: =A13+1 -> 8 | B14: =B13+C13 -> 13 | C14: 3 | D14: Num | E14: Número de orden de la página complementaria
A15: 9 | B15: 16 | C15: 17 | D15: N | E15: Resultado consolidado del ejercicio [500]
A16: 10 | B16: 33 | C16: 17 | D16: N | E16: INGRESOS Y GASTOS IMPUTADOS DIRECTAMENTE EN EL PATRIMONIO NETO CONSOLIDADO. Por valoración de instrumentos ﬁ nancieros [336]
A17: 11 | B17: 50 | C17: 17 | D17: N | E17: INGRESOS Y GASTOS IMPUTADOS DIRECTAMENTE EN EL PATRIMONIO NETO CONSOLIDADO. Por valoración de instrumentos ﬁnancieros. Activos ﬁnancieros disponibles para la venta [337]
A18: 12 | B18: 67 | C18: 17 | D18: N | E18: INGRESOS Y GASTOS IMPUTADOS DIRECTAMENTE EN EL PATRIMONIO NETO CONSOLIDADO. Por valoración de instrumentos ﬁnancieros. Otros ingresos / gastos [338]
A19: 13 | B19: 84 | C19: 17 | D19: N | E19: INGRESOS Y GASTOS IMPUTADOS DIRECTAMENTE EN EL PATRIMONIO NETO CONSOLIDADO. Por coberturas de ﬂ ujos de efectivo [339]
A20: 14 | B20: 101 | C20: 17 | D20: N | E20: INGRESOS Y GASTOS IMPUTADOS DIRECTAMENTE EN EL PATRIMONIO NETO CONSOLIDADO. Subvenciones, donaciones y legados recibidos [340]
A21: 15 | B21: 118 | C21: 17 | D21: N | E21: INGRESOS Y GASTOS IMPUTADOS DIRECTAMENTE EN EL PATRIMONIO NETO CONSOLIDADO. Por ganancias y pérdidas actuariales y otros ajustes [341]
A22: 16 | B22: 135 | C22: 17 | D22: N | E22: INGRESOS Y GASTOS IMPUTADOS DIRECTAMENTE EN EL PATRIMONIO NETO CONSOLIDADO. Por activos no corrientes y pasivos vinculados, mantenidos para la venta [342]
A23: =A22+1 -> 17 | B23: =B22+C22 -> 152 | C23: 17 | D23: N | E23: INGRESOS Y GASTOS IMPUTADOS DIRECTAMENTE EN EL PATRIMONIO NETO CONSOLIDADO. Efecto impositivo [344]
A24: 18 | B24: 169 | C24: 17 | D24: N | E24: INGRESOS Y GASTOS IMPUTADOS DIRECTAMENTE EN EL PATRIMONIO NETO CONSOLIDADO. Total ingresos y gastos imputados directamente en el patrimonio neto consolidado [345]
A25: 19 | B25: 186 | C25: 17 | D25: N | E25: TRANSFERENCIAS A LA CUENTA DE PÉRDIDAS Y GANANCIAS CONSOLIDADA. Por valoración de instrumentos ﬁnancieros [346]
A26: 20 | B26: 203 | C26: 17 | D26: N | E26: TRANSFERENCIAS A LA CUENTA DE PÉRDIDAS Y GANANCIAS CONSOLIDADA. Por valoración de instrumentos ﬁnancieros. Activos ﬁ nancieros disponibles para la venta [347]
A27: 21 | B27: 220 | C27: 17 | D27: N | E27: TRANSFERENCIAS A LA CUENTA DE PÉRDIDAS Y GANANCIAS CONSOLIDADA. Por valoración de instrumentos ﬁnancieros. Otros ingresos / gastos [348]
A28: 22 | B28: 237 | C28: 17 | D28: N | E28: TRANSFERENCIAS A LA CUENTA DE PÉRDIDAS Y GANANCIAS CONSOLIDADA. Por coberturas de ﬂ ujos de efectivo [349]
A29: 23 | B29: 254 | C29: 17 | D29: N | E29: TRANSFERENCIAS A LA CUENTA DE PÉRDIDAS Y GANANCIAS CONSOLIDADA. Subvenciones, donaciones y legados recibidos [350]
A30: 24 | B30: 271 | C30: 17 | D30: N | E30: TRANSFERENCIAS A LA CUENTA DE PÉRDIDAS Y GANANCIAS CONSOLIDADA. Por activos no corrientes y pasivos vinculados, mantenidos para la venta [351]
A31: =A30+1 -> 25 | B31: =B30+C30 -> 288 | C31: 17 | D31: N | E31: TRANSFERENCIAS A LA CUENTA DE PÉRDIDAS Y GANANCIAS CONSOLIDADA. Efecto impositivo [353]
A32: 26 | B32: 305 | C32: 17 | D32: N | E32: TRANSFERENCIAS A LA CUENTA DE PÉRDIDAS Y GANANCIAS CONSOLIDADA. Total transferencia a la cuenta de pérdidas y ganancias consolidada [354]
A33: 27 | B33: 322 | C33: 17 | D33: N | E33: TOTAL DE INGRESOS Y GASTOS CONSOLIDADOS RECONOCIDOS [355]
A34: =A33+1 -> 28 | B34: =B33+C33 -> 339 | C34: 17 | D34: N | E34: TOTAL DE INGRESOS Y GASTOS CONSOLIDADOS RECONOCIDOS.Total de ingresos y gastos atribuidos a la sociedad dominante [333]
A35: =A34+1 -> 29 | B35: =B34+C34 -> 356 | C35: 17 | D35: N | E35: TOTAL DE INGRESOS Y GASTOS CONSOLIDADOS RECONOCIDOS. Total de ingresos y gastos atribuidos a socios externos [334]
A36: =A35+1 -> 30 | B36: =B35+C35 -> 373 | C36: 12 | D36: An | E36: Fin de registro. | F36: </T22005A00>
A37: Total: | C37: =B36+C36-1 -> 384

Sheet T22005B00
B1: Agencia Tributaria
A3: =+T22001000!A3 -> Modelo 220 | C3: =+T22001000!C3 -> Diseño de registro. 2014
A4: =+T22001000!A4 -> Versión 1.2 | C4: Impuesto Sobre Sociedades. Régimen de consolidación Fiscal. GRUPO GENERAL. ESTADO DE CAMBIOS EN EL PATRIMONIO NETO: ESTADO TOTAL DE CAMBIOS EN EL PATRIMONIO NETO CONSOLIDADO (I)
A6: Nº | B6: Posic. | C6: Lon | D6: Tipo | E6: Descripción | F6: Contenido
A7: 1 | B7: 1 | C7: 2 | D7: An | E7: Inicio del identificador de modelo y página. | F7: <T
A8: =+A7+1 -> 2 | B8: =C7+B7 -> 3 | C8: 3 | D8: Num | E8: Modelo. | F8: 220
A9: 3 | B9: 6 | C9: 2 | D9: An | E9: Página. | F9: 05
A10: 4 | B10: 8 | C10: 1 | D10: An | E10: Letra | F10: B
A11: 5 | B11: 9 | C11: 2 | D11: Num | E11: Hoja | F11: 00
A12: 6 | B12: 11 | C12: 1 | D12: An | E12: Fin de identificador de modelo y página. Constante ">". | F12: >
A13: 7 | B13: 12 | C13: 1 | D13: An | E13: Indicador de página complementaria.
A14: =A13+1 -> 8 | B14: =B13+C13 -> 13 | C14: 3 | D14: Num | E14: Número de orden de la página complementaria
A15: 9 | B15: 16 | C15: 17 | D15: N | E15: SALDO, FINAL DEL EJERCICIO ANTERIOR. Capital [380]
A16: 10 | B16: 33 | C16: 17 | D16: N | E16: SALDO, FINAL DEL EJERCICIO ANTERIOR. Prima de emisión [382]
A17: 11 | B17: 50 | C17: 17 | D17: N | E17: SALDO, FINAL DEL EJERCICIO ANTERIOR. Reservas y result. ejercicios anteriores [383]
A18: 12 | B18: 67 | C18: 17 | D18: N | E18: SALDO, FINAL DEL EJERCICIO ANTERIOR. (Acciones propias y de la soc. dominante) [384]
A19: 13 | B19: 84 | C19: 17 | D19: N | E19: SALDO, FINAL DEL EJERCICIO ANTERIOR. Otras aportaciones de socios o mutualistas [386]
A20: 14 | B20: 101 | C20: 17 | D20: N | E20: SALDO, FINAL DEL EJERCICIO ANTERIOR. Resultado del ejercicio atribuido a soc. dominante [387]
A21: 15 | B21: 118 | C21: 17 | D21: N | E21: SALDO, FINAL DEL EJERCICIO ANTERIOR. Ajustes por cambio de criterio de ejercicios anteriores . Capital [394]
A22: 16 | B22: 135 | C22: 17 | D22: N | E22: SALDO, FINAL DEL EJERCICIO ANTERIOR. Ajustes por cambio de criterio de ejercicios anteriores . Prima de emisión [396]
A23: 17 | B23: 152 | C23: 17 | D23: N | E23: SALDO, FINAL DEL EJERCICIO ANTERIOR. Ajustes por cambio de criterio de ejercicios anteriores . Reservas y result. ejercicios anteriores [397]
A24: 18 | B24: 169 | C24: 17 | D24: N | E24: SALDO, FINAL DEL EJERCICIO ANTERIOR. Ajustes por cambio de criterio de ejercicios anteriores . (Acciones propias y de la soc. dominante) [398]
A25: 19 | B25: 186 | C25: 17 | D25: N | E25: SALDO, FINAL DEL EJERCICIO ANTERIOR.Ajustes por cambio de criterio de ejercicios anteriores . Otras aportaciones de socios o mutualistas [400]
A26: 20 | B26: 203 | C26: 17 | D26: N | E26: SALDO, FINAL DEL EJERCICIO ANTERIOR.Ajustes por cambio de criterio de ejercicios anteriores. Resultado del ejercicio atribuido a soc. dominante [401]
A27: 21 | B27: 220 | C27: 17 | D27: N | E27: SALDO, FINAL DEL EJERCICIO ANTERIOR. Ajustes por errores de ejercicios anteriores . Capital [408]
A28: 22 | B28: 237 | C28: 17 | D28: N | E28: SALDO, FINAL DEL EJERCICIO ANTERIOR. Ajustes por errores de ejercicios anteriores. Prima de emisión [410]
A29: 23 | B29: 254 | C29: 17 | D29: N | E29: SALDO, FINAL DEL EJERCICIO ANTERIOR. Ajustes por errores de ejercicios anteriores. Reservas y result. ejercicios anteriores [411]
A30: 24 | B30: 271 | C30: 17 | D30: N | E30: SALDO, FINAL DEL EJERCICIO ANTERIOR.Ajustes por errores de ejercicios anteriores . (Acciones propias y de la soc. dominante) [412]
A31: 25 | B31: 288 | C31: 17 | D31: N | E31: SALDO, FINAL DEL EJERCICIO ANTERIOR.Ajustes por errores de ejercicios anteriores. Otras aportaciones de socios o mutualistas [414]
A32: 26 | B32: 305 | C32: 17 | D32: N | E32: SALDO, FINAL DEL EJERCICIO ANTERIOR.Ajustes por errores de ejercicios anteriores. Resultado del ejercicio atribuido a soc. dominante [415]
A33: 27 | B33: 322 | C33: 17 | D33: N | E33: SALDO AJUSTADO, INICIO DEL EJERCICIO . Capital [422]
A34: 28 | B34: 339 | C34: 17 | D34: N | E34: SALDO AJUSTADO, INICIO DEL EJERCICIO . Prima de emisión [424]
A35: 29 | B35: 356 | C35: 17 | D35: N | E35: SALDO AJUSTADO, INICIO DEL EJERCICIO .Reservas y result. ejercicios anteriores [425]
A36: 30 | B36: 373 | C36: 17 | D36: N | E36: SALDO AJUSTADO, INICIO DEL EJERCICIO . (Acciones propias y de la soc. dominante) [426]
A37: 31 | B37: 390 | C37: 17 | D37: N | E37: SALDO AJUSTADO, INICIO DEL EJERCICIO . Otras aportaciones de socios o mutualistas [428]
A38: 32 | B38: 407 | C38: 17 | D38: N | E38: SALDO AJUSTADO, INICIO DEL EJERCICIO . Resultado del ejercicio atribuido a soc. dominante [429]
A39: 33 | B39: 424 | C39: 17 | D39: N | E39: SALDO AJUSTADO, INICIO DEL EJERCICIO. Total ingresos y gastos consolidados reconocidos. Capital [436]
A40: 34 | B40: 441 | C40: 17 | D40: N | E40: SALDO AJUSTADO, INICIO DEL EJERCICIO. Total ingresos y gastos consolidados reconocidos. Prima de emisión [438]
A41: 35 | B41: 458 | C41: 17 | D41: N | E41: SALDO AJUSTADO, INICIO DEL EJERCICIO. Total ingresos y gastos consolidados reconocidos. ejercicios anteriores. Reservas y result. ejercicios anteriores [439]
A42: 36 | B42: 475 | C42: 17 | D42: N | E42: SALDO AJUSTADO, INICIO DEL EJERCICIO. Total ingresos y gastos consolidados reconocidos. (Acciones propias y de la soc. dominante) [440]
A43: 37 | B43: 492 | C43: 17 | D43: N | E43: SALDO AJUSTADO, INICIO DEL EJERCICIO. Total ingresos y gastos consolidados reconocidos. Otras aportaciones de socios o mutualistas [442]
A44: 38 | B44: 509 | C44: 17 | D44: N | E44: SALDO AJUSTADO, INICIO DEL EJERCICIO. Total ingresos y gastos consolidados reconocidos. Resultado del ejercicio atribuido a soc. dominante [443]
A45: 39 | B45: 526 | C45: 17 | D45: N | E45: SALDO AJUSTADO, INICIO DEL EJERCICIO. Operaciones con socios o propietarios. Capital [506]
A46: =A45+1 -> 40 | B46: =B45+C45 -> 543 | C46: 17 | D46: N | E46: SALDO AJUSTADO, INICIO DEL EJERCICIO. Operaciones con socios o propietarios. Prima de emisión [508]
A47: 41 | B47: 560 | C47: 17 | D47: N | E47: SALDO AJUSTADO, INICIO DEL EJERCICIO. Operaciones con socios o propietarios. Reservas y result. ejercicios anteriores [509]
A48: 42 | B48: 577 | C48: 17 | D48: N | E48: SALDO AJUSTADO, INICIO DEL EJERCICIO. Operaciones con socios o propietarios. (Acciones propias y de la soc. dominante) [510]
A49: 43 | B49: 594 | C49: 17 | D49: N | E49: SALDO AJUSTADO, INICIO DEL EJERCICIO. Operaciones con socios o propietarios. Otras aportaciones de socios o mutualistas [512]
A50: 44 | B50: 611 | C50: 17 | D50: N | E50: SALDO AJUSTADO, INICIO DEL EJERCICIO. Operaciones con socios o propietarios. Resultado del ejercicio atribuido a soc. dominante [513]
A51: 45 | B51: 628 | C51: 17 | D51: N | E51: SALDO AJUSTADO, INICIO DEL EJERCICIO. Operaciones con socios o propietarios.Aumentos (reducciones) de capital. Capital [520]
A52: 46 | B52: 645 | C52: 17 | D52: N | E52: SALDO AJUSTADO, INICIO DEL EJERCICIO. Operaciones con socios o propietarios. Aumentos (reducciones) de capital. Prima de emisión [522]
A53: 47 | B53: 662 | C53: 17 | D53: N | E53: SALDO AJUSTADO, INICIO DEL EJERCICIO. Operaciones con socios o propietarios. Aumentos (reducciones) de capital. Reservas y result. ejercicios anteriores [523]
A54: 48 | B54: 679 | C54: 17 | D54: N | E54: SALDO AJUSTADO, INICIO DEL EJERCICIO. Operaciones con socios o propietarios. Aumentos (reducciones) de capital. (Acciones propias y de la soc. dominante) [524]
A55: 49 | B55: 696 | C55: 17 | D55: N | E55: SALDO AJUSTADO, INICIO DEL EJERCICIO. Operaciones con socios o propietarios. Aumentos (reducciones) de capitalOtras aportaciones de socios o mutualistas [526]
A56: 50 | B56: 713 | C56: 17 | D56: N | E56: SALDO AJUSTADO, INICIO DEL EJERCICIO. Operaciones con socios o propietarios. Aumentos (reducciones) de capital. Resultado del ejercicio atribuido a soc. dominante [527]
A57: 51 | B57: 730 | C57: 17 | D57: N | E57: SALDO AJUSTADO, INICIO DEL EJERCICIO. Operaciones con socios o propietarios.Conversión de pasivos ﬁnancieros en patrimonio neto. Capital [548]
A58: 52 | B58: 747 | C58: 17 | D58: N | E58: SALDO AJUSTADO, INICIO DEL EJERCICIO. Operaciones con socios o propietarios. Conversión de pasivos ﬁnancieros en patrimonio neto. Prima de emisión [550]
A59: 53 | B59: 764 | C59: 17 | D59: N | E59: SALDO AJUSTADO, INICIO DEL EJERCICIO. Operaciones con socios o propietarios. Conversión de pasivos ﬁnancieros en patrimonio neto.. Reservas y result. ejercicios anteriores [551]
A60: 54 | B60: 781 | C60: 17 | D60: N | E60: SALDO AJUSTADO, INICIO DEL EJERCICIO. Operaciones con socios o propietarios. Conversión de pasivos ﬁnancieros en patrimonio neto.. (Acciones propias y de la soc. dominante) [552]
A61: 55 | B61: 798 | C61: 17 | D61: N | E61: SALDO AJUSTADO, INICIO DEL EJERCICIO. Operaciones con socios o propietarios.Conversión de pasivos ﬁnancieros en patrimonio neto. Otras aportaciones de socios o mutualistas [554]
A62: 56 | B62: 815 | C62: 17 | D62: N | E62: SALDO AJUSTADO, INICIO DEL EJERCICIO. Operaciones con socios o propietarios. Conversión de pasivos ﬁnancieros en patrimonio neto. Resultado del ejercicio atribuido a soc. dominante [555]
A63: 57 | B63: 832 | C63: 17 | D63: N | E63: SALDO AJUSTADO, INICIO DEL EJERCICIO. Operaciones con socios o propietarios.(-) Distribución de dividendos. Capital [562]
A64: 58 | B64: 849 | C64: 17 | D64: N | E64: SALDO AJUSTADO, INICIO DEL EJERCICIO. Operaciones con socios o propietarios. (-) Distribución de dividendos. Prima de emisión [564]
A65: 59 | B65: 866 | C65: 17 | D65: N | E65: SALDO AJUSTADO, INICIO DEL EJERCICIO. Operaciones con socios o propietarios. (-) Distribución de dividendos. Reservas y result. ejercicios anteriores [565]
A66: 60 | B66: 883 | C66: 17 | D66: N | E66: SALDO AJUSTADO, INICIO DEL EJERCICIO. Operaciones con socios o propietarios.(-) Distribución de dividendos. (Acciones propias y de la soc. dominante) [566]
A67: 61 | B67: 900 | C67: 17 | D67: N | E67: SALDO AJUSTADO, INICIO DEL EJERCICIO. Operaciones con socios o propietarios.(-) Distribución de dividendos. Otras aportaciones de socios o mutualistas [568]
A68: 62 | B68: 917 | C68: 17 | D68: N | E68: SALDO AJUSTADO, INICIO DEL EJERCICIO. Operaciones con socios o propietarios. (-) Distribución de dividendos. Resultado del ejercicio atribuido a soc. dominante [569]
A69: 63 | B69: 934 | C69: 17 | D69: N | E69: SALDO AJUSTADO, INICIO DEL EJERCICIO. Operaciones con socios o propietarios.Operaciones con acciones o participaciones de la sociedad dominante (netas). Capital [576]
A70: 64 | B70: 951 | C70: 17 | D70: N | E70: SALDO AJUSTADO, INICIO DEL EJERCICIO. Operaciones con socios o propietarios. Operaciones con acciones o participaciones de la sociedad dominante (netas). Prima de emisión [578]
A71: 65 | B71: 968 | C71: 17 | D71: N | E71: SALDO AJUSTADO, INICIO DEL EJERCICIO. Operaciones con socios o propietarios.Operaciones con acciones o participaciones de la sociedad dominante (netas). Reservas y result. ejercicios anteriores [579]
A72: 66 | B72: 985 | C72: 17 | D72: N | E72: SALDO AJUSTADO, INICIO DEL EJERCICIO. Operaciones con socios o propietarios.Operaciones con acciones o participaciones de la sociedad dominante (netas). (Acciones propias y de la soc. dominante) [580]
A73: 67 | B73: 1002 | C73: 17 | D73: N | E73: SALDO AJUSTADO, INICIO DEL EJERCICIO. Operaciones con socios o propietarios.Operaciones con acciones o participaciones de la sociedad dominante (netas). Otras aportaciones de socios o mutualistas [582]
A74: 68 | B74: 1019 | C74: 17 | D74: N | E74: SALDO AJUSTADO, INICIO DEL EJERCICIO. Operaciones con socios o propietarios. Operaciones con acciones o participaciones de la sociedad dominante (netas). Resultado del ejercicio atribuido a soc. dominante [583]
A75: 69 | B75: 1036 | C75: 17 | D75: N | E75: SALDO AJUSTADO, INICIO DEL EJERCICIO. Operaciones con socios o propietarios.Incremento (reducción) de patrimonio neto resultante de una combinación de negocios. Capital [590]
A76: 70 | B76: 1053 | C76: 17 | D76: N | E76: SALDO AJUSTADO, INICIO DEL EJERCICIO. Operaciones con socios o propietarios. Incremento (reducción) de patrimonio neto resultante de una combinación de negocios. Prima de emisión [592]
A77: 71 | B77: 1070 | C77: 17 | D77: N | E77: SALDO AJUSTADO, INICIO DEL EJERCICIO. Operaciones con socios o propietarios.Incremento (reducción) de patrimonio neto resultante de una combinación de negocios. Operaciones con socios o propietarios [593]
A78: =A77+1 -> 72 | B78: =B77+C77 -> 1087 | C78: 17 | D78: N | E78: SALDO AJUSTADO, INICIO DEL EJERCICIO. Operaciones con socios o propietarios.Incremento (reducción) de patrimonio neto resultante de una combinación de negocios. (Acciones propias y de la soc. dominante) [594]
A79: 73 | B79: 1104 | C79: 17 | D79: N | E79: SALDO AJUSTADO, INICIO DEL EJERCICIO. Operaciones con socios o propietarios.Incremento (reducción) de patrimonio neto resultante de una combinación de negocios. Otras aportaciones de socios o mutualistas [596]
A80: 74 | B80: 1121 | C80: 17 | D80: N | E80: SALDO AJUSTADO, INICIO DEL EJERCICIO. Operaciones con socios o propietarios. Incremento (reducción) de patrimonio neto resultante de una combinación de negocios. Resultado del ejercicio atribuido a soc. dominante [597]
A81: 75 | B81: 1138 | C81: 17 | D81: N | E81: SALDO AJUSTADO, INICIO DEL EJERCICIO. Operaciones con socios o propietarios.Adquisiciones (ventas) de participaciones de socios externos. Capital [591]
A82: 76 | B82: 1155 | C82: 17 | D82: N | E82: SALDO AJUSTADO, INICIO DEL EJERCICIO. Operaciones con socios o propietarios. Adquisiciones (ventas) de participaciones de socios externos. Prima de emisión [536]
A83: 77 | B83: 1172 | C83: 17 | D83: N | E83: SALDO AJUSTADO, INICIO DEL EJERCICIO. Operaciones con socios o propietarios.Adquisiciones (ventas) de participaciones de socios externos.Reservas y result. ejercicios anteriores [595]
A84: 78 | B84: 1189 | C84: 17 | D84: N | E84: SALDO AJUSTADO, INICIO DEL EJERCICIO. Operaciones con socios o propietarios.Adquisiciones (ventas) de participaciones de socios externos. (Acciones propias y de la soc. dominante) [538]
A85: 79 | B85: 1206 | C85: 17 | D85: N | E85: SALDO AJUSTADO, INICIO DEL EJERCICIO. Operaciones con socios o propietarios.Adquisiciones (ventas) de participaciones de socios externos. Otras aportaciones de socios o mutualistas [540]
A86: 80 | B86: 1223 | C86: 17 | D86: N | E86: SALDO AJUSTADO, INICIO DEL EJERCICIO. Operaciones con socios o propietarios. Adquisiciones (ventas) de participaciones de socios externos. Resultado del ejercicio atribuido a soc. dominante [541]
A87: 81 | B87: 1240 | C87: 17 | D87: N | E87: SALDO AJUSTADO, INICIO DEL EJERCICIO. Operaciones con socios o propietarios.Otras operaciones con socios o propietarios. Capital [604]
A88: 82 | B88: 1257 | C88: 17 | D88: N | E88: SALDO AJUSTADO, INICIO DEL EJERCICIO. Operaciones con socios o propietarios. Otras operaciones con socios o propietarios. Prima de emisión [606]
A89: 83 | B89: 1274 | C89: 17 | D89: N | E89: SALDO AJUSTADO, INICIO DEL EJERCICIO. Operaciones con socios o propietarios.Otras operaciones con socios o propietarios. Reservas y result. ejercicios anteriores [607]
A90: 84 | B90: 1291 | C90: 17 | D90: N | E90: SALDO AJUSTADO, INICIO DEL EJERCICIO. Operaciones con socios o propietarios.Otras operaciones con socios o propietarios. (Acciones propias y de la soc. dominante) [608]
A91: 85 | B91: 1308 | C91: 17 | D91: N | E91: SALDO AJUSTADO, INICIO DEL EJERCICIO. Operaciones con socios o propietarios.Otras operaciones con socios o propietarios. Otras aportaciones de socios o mutualistas [610]
A92: 86 | B92: 1325 | C92: 17 | D92: N | E92: SALDO AJUSTADO, INICIO DEL EJERCICIO. Operaciones con socios o propietarios.Otras operaciones con socios o propietarios. Resultado del ejercicio atribuido a soc. dominante [611]
A93: 87 | B93: 1342 | C93: 17 | D93: N | E93: SALDO AJUSTADO, INICIO DEL EJERCICIO. Otras variaciones del patrimonio neto. Capital [618]
A94: 88 | B94: 1359 | C94: 17 | D94: N | E94: SALDO AJUSTADO, INICIO DEL EJERCICIO. Otras variaciones del patrimonio neto. Prima de emisión [620]
A95: 89 | B95: 1376 | C95: 17 | D95: N | E95: SALDO AJUSTADO, INICIO DEL EJERCICIO. Otras variaciones del patrimonio neto. Reservas y result. ejercicios anteriores [621]
A96: 90 | B96: 1393 | C96: 17 | D96: N | E96: SALDO AJUSTADO, INICIO DEL EJERCICIO. Otras variaciones del patrimonio neto. (Acciones propias y de la soc. dominante) [622]
A97: 91 | B97: 1410 | C97: 17 | D97: N | E97: SALDO AJUSTADO, INICIO DEL EJERCICIO. Otras variaciones del patrimonio neto. Otras aportaciones de socios o mutualistas [624]
A98: 92 | B98: 1427 | C98: 17 | D98: N | E98: SALDO AJUSTADO, INICIO DEL EJERCICIO. Otras variaciones del patrimonio neto. Resultado del ejercicio atribuido a soc. dominante [625]
A99: =A98+1 -> 93 | B99: =B98+C98 -> 1444 | C99: 17 | D99: N | E99: SALDO AJUSTADO, INICIO DEL EJERCICIO. Mantenimiento de la reserva de revalorización. Capital [710]
A100: 94 | B100: 1461 | C100: 17 | D100: N | E100: SALDO AJUSTADO, INICIO DEL EJERCICIO. Mantenimiento de la reserva de revalorización. Prima de emisión [711]
A101: 95 | B101: 1478 | C101: 17 | D101: N | E101: SALDO AJUSTADO, INICIO DEL EJERCICIO. Mantenimiento de la reserva de revalorización. Reservas y Result. Ejercicios anteriores [712]
A102: 96 | B102: 1495 | C102: 17 | D102: N | E102: SALDO AJUSTADO, INICIO DEL EJERCICIO. Mantenimiento de la reserva de revalorización. (Acciones propias y de la soc. dominante) [713]
A103: 97 | B103: 1512 | C103: 17 | D103: N | E103: SALDO AJUSTADO, INICIO DEL EJERCICIO. Mantenimiento de la reserva de revalorización. Otras aportaciones de socios o mutualistas [714]
A104: 98 | B104: 1529 | C104: 17 | D104: N | E104: SALDO AJUSTADO, INICIO DEL EJERCICIO. Mantenimiento de la reserva de revalorización. Resultado del ejercicio atribuido a la soc. dominante [715]
A105: 99 | B105: 1546 | C105: 17 | D105: N | E105: SALDO AJUSTADO, INICIO DEL EJERCICIO. Otras variaciones. Capital [722]
A106: 100 | B106: 1563 | C106: 17 | D106: N | E106: SALDO AJUSTADO, INICIO DEL EJERCICIO. Otras variaciones. Prima de emisión [723]
A107: 101 | B107: 1580 | C107: 17 | D107: N | E107: SALDO AJUSTADO, INICIO DEL EJERCICIO. Otras variaciones. Reservas y result. Ejercicios anteriores [724]
A108: 102 | B108: 1597 | C108: 17 | D108: N | E108: SALDO AJUSTADO, INICIO DEL EJERCICIO. Otras variaciones. (Acciones propias y de la soc. dominante) [725]
A109: 103 | B109: 1614 | C109: 17 | D109: N | E109: SALDO AJUSTADO, INICIO DEL EJERCICIO. Otras variaciones. Otras aportaciones de socios o mutualistas [726]
A110: 104 | B110: 1631 | C110: 17 | D110: N | E110: SALDO AJUSTADO, INICIO DEL EJERCICIO. Otras variaciones. Resultado del ejercicio atribuído a soc. dominante [727]
A111: 105 | B111: 1648 | C111: 17 | D111: N | E111: SALDO, FINAL DEL EJERCICIO. Capital [632]
A112: 106 | B112: 1665 | C112: 17 | D112: N | E112: SALDO, FINAL DEL EJERCICIO. Prima de emisión [634]
A113: 107 | B113: 1682 | C113: 17 | D113: N | E113: SALDO, FINAL DEL EJERCICIO. Reservas y result. ejercicios anteriores [635]
A114: 108 | B114: 1699 | C114: 17 | D114: N | E114: SALDO, FINAL DEL EJERCICIO. (Acciones propias y de la soc. dominante) [636]
A115: 109 | B115: 1716 | C115: 17 | D115: N | E115: SALDO AJUSTADO, INICIO DEL EJERCICIO. Otras aportaciones de socios o mutualistas [638]
A116: 110 | B116: 1733 | C116: 17 | D116: N | E116: SALDO, FINAL DEL EJERCICIO. Resultado del ejercicio atribuido a soc. dominante [639]
A117: 111 | B117: 1750 | C117: 12 | D117: An | E117: Fin de registro. | F117: </T22005B00>
A118: Total: | C118: =B117+C117-1 -> 1761

Sheet T22005C00
B1: Agencia Tributaria
A3: =+T22001000!A3 -> Modelo 220 | C3: =+T22001000!C3 -> Diseño de registro. 2014
A4: =+T22001000!A4 -> Versión 1.2 | C4: Impuesto Sobre Sociedades. Régimen de consolidación Fiscal. GRUPO GENERAL. ESTADO DE CAMBIOS EN EL PATRIMONIO NETO: ESTADO TOTAL DE CAMBIOS EN EL PATRIMONIO NETO CONSOLIDADO (II)
A6: Nº | B6: Posic. | C6: Lon | D6: Tipo | E6: Descripción | F6: Contenido
A7: 1 | B7: 1 | C7: 2 | D7: An | E7: Inicio del identificador de modelo y página. | F7: <T
A8: =+A7+1 -> 2 | B8: =C7+B7 -> 3 | C8: 3 | D8: Num | E8: Modelo. | F8: 220
A9: 3 | B9: 6 | C9: 2 | D9: An | E9: Página. | F9: 05
A10: 4 | B10: 8 | C10: 1 | D10: An | E10: Letra | F10: C
A11: 5 | B11: 9 | C11: 2 | D11: Num | E11: Hoja | F11: 00
A12: 6 | B12: 11 | C12: 1 | D12: An | E12: Fin de identificador de modelo y página. Constante ">". | F12: >
A13: 7 | B13: 12 | C13: 1 | D13: An | E13: Indicador de página complementaria.
A14: =A13+1 -> 8 | B14: =B13+C13 -> 13 | C14: 3 | D14: Num | E14: Número de orden de la página complementaria
A15: 9 | B15: 16 | C15: 17 | D15: N | E15: SALDO, FINAL DEL EJERCICIO ANTERIOR. (Dividendo a cuenta) [388]
A16: 10 | B16: 33 | C16: 17 | D16: N | E16: SALDO, FINAL DEL EJERCICIO ANTERIOR. Otros instrumentos de patrimonio neto [389]
A17: 11 | B17: 50 | C17: 17 | D17: N | E17: SALDO, FINAL DEL EJERCICIO ANTERIOR. Ajustes por cambios de valor [390]
A18: 12 | B18: 67 | C18: 17 | D18: N | E18: SALDO, FINAL DEL EJERCICIO ANTERIOR. Subvenciones, donaciones y legados recibidos [392]
A19: 13 | B19: 84 | C19: 17 | D19: N | E19: SALDO, FINAL DEL EJERCICIO ANTERIOR. Socios externos [157]
A20: 14 | B20: 101 | C20: 17 | D20: N | E20: SALDO, FINAL DEL EJERCICIO ANTERIOR. Total [393]
A21: 15 | B21: 118 | C21: 17 | D21: N | E21: SALDO, FINAL DEL EJERCICIO ANTERIOR. Ajustes por cambio de criterio de ejercicios anteriores. (Dividendo a cuenta) [402]
A22: 16 | B22: 135 | C22: 17 | D22: N | E22: SALDO, FINAL DEL EJERCICIO ANTERIOR.Ajustes por cambio de criterio de ejercicios anteriores. Otros instrumentos de patrimonio neto [403]
A23: 17 | B23: 152 | C23: 17 | D23: N | E23: SALDO, FINAL DEL EJERCICIO ANTERIOR. Ajustes por cambio de criterio de ejercicios anteriores. Ajustes por cambios de valor [404]
A24: 18 | B24: 169 | C24: 17 | D24: N | E24: SALDO, FINAL DEL EJERCICIO ANTERIOR. Ajustes por cambio de criterio de ejercicios anteriores. Subvenciones, donaciones y legados recibidos [406]
A25: 19 | B25: 186 | C25: 17 | D25: N | E25: SALDO, FINAL DEL EJERCICIO ANTERIOR. Ajustes por cambio de criterio de ejercicios anteriores. Socios externos [158]
A26: 20 | B26: 203 | C26: 17 | D26: N | E26: SALDO, FINAL DEL EJERCICIO ANTERIOR. Ajustes por cambio de criterio de ejercicios anteriores. Total [407]
A27: 21 | B27: 220 | C27: 17 | D27: N | E27: SALDO, FINAL DEL EJERCICIO ANTERIOR. Ajustes por errores de ejercicios anteriores. (Dividendo a cuenta) [416]
A28: 22 | B28: 237 | C28: 17 | D28: N | E28: SALDO, FINAL DEL EJERCICIO ANTERIOR.Ajustes por errores del ejercicios anteriores. Otros instrumentos de patrimonio neto [417]
A29: 23 | B29: 254 | C29: 17 | D29: N | E29: SALDO, FINAL DEL EJERCICIO ANTERIOR. Ajustes por errores de ejercicios anteriores. Ajustes por cambios de valor [418]
A30: 24 | B30: 271 | C30: 17 | D30: N | E30: SALDO, FINAL DEL EJERCICIO ANTERIOR. Ajustes por errores de ejercicios anteriores. Subvenciones, donaciones y legados recibidos [420]
A31: 25 | B31: 288 | C31: 17 | D31: N | E31: SALDO, FINAL DEL EJERCICIO ANTERIOR. Ajustes por errores de ejercicios anteriores. Socios externos [381]
A32: 26 | B32: 305 | C32: 17 | D32: N | E32: SALDO, FINAL DEL EJERCICIO ANTERIOR. Ajustes por errores de ejercicios anteriores. Total [421]
A33: 27 | B33: 322 | C33: 17 | D33: N | E33: SALDO AJUSTADO, INICIO DEL EJERCICIO. (Dividendo a cuenta) [430]
A34: 28 | B34: 339 | C34: 17 | D34: N | E34: SALDO AJUSTADO, INICIO DEL EJERCICIO. Otros instrumentos de patrimonio neto [431]
A35: 29 | B35: 356 | C35: 17 | D35: N | E35: SALDO AJUSTADO, INICIO DEL EJERCICIO. Ajustes por cambios de valor [432]
A36: 30 | B36: 373 | C36: 17 | D36: N | E36: SALDO AJUSTADO, INICIO DEL EJERCICIO. Subvenciones, donaciones y legados recibidos [434]
A37: 31 | B37: 390 | C37: 17 | D37: N | E37: SALDO AJUSTADO, INICIO DEL EJERCICIO. Socios externos [163]
A38: 32 | B38: 407 | C38: 17 | D38: N | E38: SALDO AJUSTADO, INICIO DEL EJERCICIO. Total [435]
A39: 33 | B39: 424 | C39: 17 | D39: N | E39: SALDO AJUSTADO, INICIO DEL EJERCICIO. Total ingresos y gastos consolidados reconocidos. (Dividendo a cuenta) [444]
A40: 34 | B40: 441 | C40: 17 | D40: N | E40: SALDO AJUSTADO, INICIO DEL EJERCICIO. Total ingresos y gastos consolidados reconocidos. Otros instrumentos de patrimonio neto [445]
A41: 35 | B41: 458 | C41: 17 | D41: N | E41: SALDO AJUSTADO, INICIO DEL EJERCICIO. Total ingresos y gastos consolidados reconocidos. Ajustes por cambios de valor [446]
A42: 36 | B42: 475 | C42: 17 | D42: N | E42: SALDO AJUSTADO, INICIO DEL EJERCICIO. Total ingresos y gastos consolidados reconocidos. Subvenciones, donaciones y legados recibidos [448]
A43: 37 | B43: 492 | C43: 17 | D43: N | E43: SALDO AJUSTADO, INICIO DEL EJERCICIO. Total ingresos y gastos consolidados reconocidos. Socios externos [164]
A44: 38 | B44: 509 | C44: 17 | D44: N | E44: SALDO AJUSTADO, INICIO DEL EJERCICIO. Total ingresos y gastos consolidados reconocidos. Total [449]
A45: 39 | B45: 526 | C45: 17 | D45: N | E45: SALDO AJUSTADO, INICIO DEL EJERCICIO. Operaciones con socios o propietarios. (Dividendo a cuenta) [514]
A46: =A45+1 -> 40 | B46: =B45+C45 -> 543 | C46: 17 | D46: N | E46: SALDO AJUSTADO, INICIO DEL EJERCICIO. Operaciones con socios o propietarios. Otros instrumentos de patrimonio neto [515]
A47: 41 | B47: 560 | C47: 17 | D47: N | E47: SALDO AJUSTADO, INICIO DEL EJERCICIO. Operaciones con socios o propietarios. Ajustes por cambios de valor [516]
A48: 42 | B48: 577 | C48: 17 | D48: N | E48: SALDO AJUSTADO, INICIO DEL EJERCICIO. Operaciones con socios o propietarios. Subvenciones, donaciones y legados recibidos [518]
A49: 43 | B49: 594 | C49: 17 | D49: N | E49: SALDO AJUSTADO, INICIO DEL EJERCICIO. Operaciones con socios o propietarios. Socios externos [165]
A50: 44 | B50: 611 | C50: 17 | D50: N | E50: SALDO AJUSTADO, INICIO DEL EJERCICIO. Operaciones con socios o propietarios. Total [519]
A51: 45 | B51: 628 | C51: 17 | D51: N | E51: SALDO AJUSTADO, INICIO DEL EJERCICIO. Operaciones con socios o propietarios. Aumentos (reducciones) de capital. (Dividendo a cuenta) [528]
A52: 46 | B52: 645 | C52: 17 | D52: N | E52: SALDO AJUSTADO, INICIO DEL EJERCICIO. Operaciones con socios o propietarios.Aumentos (reducciones) de capital. Otros instrumentos de patrimonio neto [529]
A53: 47 | B53: 662 | C53: 17 | D53: N | E53: SALDO AJUSTADO, INICIO DEL EJERCICIO. Operaciones con socios o propietarios. Aumentos (reducciones) de capital. Ajustes por cambios de valor [530]
A54: 48 | B54: 679 | C54: 17 | D54: N | E54: SALDO AJUSTADO, INICIO DEL EJERCICIO. Operaciones con socios o propietarios. Aumentos (reducciones) de capital. Subvenciones, donaciones y legados recibidos [532]
A55: 49 | B55: 696 | C55: 17 | D55: N | E55: SALDO AJUSTADO, INICIO DEL EJERCICIO. Operaciones con socios o propietarios. Aumentos (reducciones) de capital. Socios externos [166]
A56: 50 | B56: 713 | C56: 17 | D56: N | E56: SALDO AJUSTADO, INICIO DEL EJERCICIO. Operaciones con socios o propietarios. Aumentos (reducciones) de capital. Total [533]
A57: 51 | B57: 730 | C57: 17 | D57: N | E57: SALDO AJUSTADO, INICIO DEL EJERCICIO. Operaciones con socios o propietarios. Conversión de pasivos ﬁ nancieros en patrimonio neto. (Dividendo a cuenta) [556]
A58: 52 | B58: 747 | C58: 17 | D58: N | E58: SALDO AJUSTADO, INICIO DEL EJERCICIO. Operaciones con socios o propietarios.Conversión de pasivos ﬁ nancieros en patrimonio neto. Otros instrumentos de patrimonio neto [557]
A59: 53 | B59: 764 | C59: 17 | D59: N | E59: SALDO AJUSTADO, INICIO DEL EJERCICIO. Operaciones con socios o propietarios. Conversión de pasivos ﬁ nancieros en patrimonio neto. Ajustes por cambios de valor [558]
A60: 54 | B60: 781 | C60: 17 | D60: N | E60: SALDO AJUSTADO, INICIO DEL EJERCICIO. Operaciones con socios o propietarios. Conversión de pasivos ﬁ nancieros en patrimonio neto. Subvenciones, donaciones y legados recibidos [560]
A61: 55 | B61: 798 | C61: 17 | D61: N | E61: SALDO AJUSTADO, INICIO DEL EJERCICIO. Operaciones con socios o propietarios.. Conversión de pasivos ﬁ nancieros en patrimonio neto. Socios externos [385]
A62: 56 | B62: 815 | C62: 17 | D62: N | E62: SALDO AJUSTADO, INICIO DEL EJERCICIO. Operaciones con socios o propietarios.. Conversión de pasivos ﬁ nancieros en patrimonio neto. Total [561]
A63: 57 | B63: 832 | C63: 17 | D63: N | E63: SALDO AJUSTADO, INICIO DEL EJERCICIO. Operaciones con socios o propietarios. (-) Distribución de dividendos . (Dividendo a cuenta) [570]
A64: 58 | B64: 849 | C64: 17 | D64: N | E64: SALDO AJUSTADO, INICIO DEL EJERCICIO. Operaciones con socios o propietarios.(-) Distribución de dividendos . Otros instrumentos de patrimonio neto [571]
A65: 59 | B65: 866 | C65: 17 | D65: N | E65: SALDO AJUSTADO, INICIO DEL EJERCICIO. Operaciones con socios o propietarios. (-) Distribución de dividendos . Ajustes por cambios de valor [572]
A66: 60 | B66: 883 | C66: 17 | D66: N | E66: SALDO AJUSTADO, INICIO DEL EJERCICIO. Operaciones con socios o propietarios. (-) Distribución de dividendos. Subvenciones, donaciones y legados recibidos [574]
A67: 61 | B67: 900 | C67: 17 | D67: N | E67: SALDO AJUSTADO, INICIO DEL EJERCICIO. Operaciones con socios o propietarios. (-) Distribución de dividendos . Socios externos [171]
A68: 62 | B68: 917 | C68: 17 | D68: N | E68: SALDO AJUSTADO, INICIO DEL EJERCICIO. Operaciones con socios o propietarios. (-) Distribución de dividendos . Total [575]
A69: 63 | B69: 934 | C69: 17 | D69: N | E69: SALDO AJUSTADO, INICIO DEL EJERCICIO. Operaciones con socios o propietarios. Operaciones con acciones o participaciones de la sociedad dominante (netas). (Dividendo a cuenta) [584]
A70: 64 | B70: 951 | C70: 17 | D70: N | E70: SALDO AJUSTADO, INICIO DEL EJERCICIO. Operaciones con socios o propietarios.Operaciones con acciones o participaciones de la sociedad dominante (netas). Otros instrumentos de patrimonio neto [585]
A71: 65 | B71: 968 | C71: 17 | D71: N | E71: SALDO AJUSTADO, INICIO DEL EJERCICIO. Operaciones con socios o propietarios. Operaciones con acciones o participaciones de la sociedad dominante (netas). Ajustes por cambios de valor [586]
A72: 66 | B72: 985 | C72: 17 | D72: N | E72: SALDO AJUSTADO, INICIO DEL EJERCICIO. Operaciones con socios o propietarios. Operaciones con acciones o participaciones de la sociedad dominante (netas). Subvenciones, donaciones y legados recibidos [588]
A73: 67 | B73: 1002 | C73: 17 | D73: N | E73: SALDO AJUSTADO, INICIO DEL EJERCICIO. Operaciones con socios o propietarios. Operaciones con acciones o participaciones de la sociedad dominante (netas). Socios externos [172]
A74: 68 | B74: 1019 | C74: 17 | D74: N | E74: SALDO AJUSTADO, INICIO DEL EJERCICIO. Operaciones con socios o propietarios. Operaciones con acciones o participaciones de la sociedad dominante (netas). Total [589]
A75: 69 | B75: 1036 | C75: 17 | D75: N | E75: SALDO AJUSTADO, INICIO DEL EJERCICIO. Operaciones con socios o propietarios. Incremento (reducción) de patrimonio neto resultante de una combinación de negocios. (Dividendo a cuenta) [598]
A76: 70 | B76: 1053 | C76: 17 | D76: N | E76: SALDO AJUSTADO, INICIO DEL EJERCICIO. Operaciones con socios o propietarios.Incremento (reducción) de patrimonio neto resultante de una combinación de negocios. Otros instrumentos de patrimonio neto [599]
A77: 71 | B77: 1070 | C77: 17 | D77: N | E77: SALDO AJUSTADO, INICIO DEL EJERCICIO. Operaciones con socios o propietarios. Incremento (reducción) de patrimonio neto resultante de una combinación de negocios. Ajustes por cambios de valor [600]
A78: =A77+1 -> 72 | B78: =B77+C77 -> 1087 | C78: 17 | D78: N | E78: SALDO AJUSTADO, INICIO DEL EJERCICIO. Operaciones con socios o propietarios. Incremento (reducción) de patrimonio neto resultante de una combinación de negocios. Subvenciones, donaciones y legados recibidos [602]
A79: 73 | B79: 1104 | C79: 17 | D79: N | E79: SALDO AJUSTADO, INICIO DEL EJERCICIO. Operaciones con socios o propietarios. Incremento (reducción) de patrimonio neto resultante de una combinación de negocios. Socios externos [173]
A80: 74 | B80: 1121 | C80: 17 | D80: N | E80: SALDO AJUSTADO, INICIO DEL EJERCICIO. Operaciones con socios o propietarios. Incremento (reducción) de patrimonio neto resultante de una combinación de negocios. Total [603]
A81: 75 | B81: 1138 | C81: 17 | D81: N | E81: SALDO AJUSTADO, INICIO DEL EJERCICIO. Operaciones con socios o propietarios. Adquisiciones (ventas) de participaciones de socios externos. (Dividendo a cuenta) [542]
A82: 76 | B82: 1155 | C82: 17 | D82: N | E82: SALDO AJUSTADO, INICIO DEL EJERCICIO. Operaciones con socios o propietarios.Adquisiciones (ventas) de participaciones de socios externos. Otros instrumentos de patrimonio neto [543]
A83: 77 | B83: 1172 | C83: 17 | D83: N | E83: SALDO AJUSTADO, INICIO DEL EJERCICIO. Operaciones con socios o propietarios. Adquisiciones (ventas) de participaciones de socios externos. Ajustes por cambios de valor [615]
A84: 78 | B84: 1189 | C84: 17 | D84: N | E84: SALDO AJUSTADO, INICIO DEL EJERCICIO. Operaciones con socios o propietarios. Adquisiciones (ventas) de participaciones de socios externos. Subvenciones, donaciones y legados recibidos [546]
A85: 79 | B85: 1206 | C85: 17 | D85: N | E85: SALDO AJUSTADO, INICIO DEL EJERCICIO. Operaciones con socios o propietarios. Adquisiciones (ventas) de participaciones de socios externos. Socios externos [174]
A86: 80 | B86: 1223 | C86: 17 | D86: N | E86: SALDO AJUSTADO, INICIO DEL EJERCICIO. Operaciones con socios o propietarios. Adquisiciones (ventas) de participaciones de socios externos. Total [399]
A87: 81 | B87: 1240 | C87: 17 | D87: N | E87: SALDO AJUSTADO, INICIO DEL EJERCICIO. Operaciones con socios o propietarios. Otras operaciones con socios o propietarios. (Dividendo a cuenta) [612]
A88: 82 | B88: 1257 | C88: 17 | D88: N | E88: SALDO AJUSTADO, INICIO DEL EJERCICIO. Operaciones con socios o propietarios.Otras operaciones con socios o propietarios. Otros instrumentos de patrimonio neto [613]
A89: 83 | B89: 1274 | C89: 17 | D89: N | E89: SALDO AJUSTADO, INICIO DEL EJERCICIO. Operaciones con socios o propietarios. Otras operaciones con socios o propietarios. Ajustes por cambios de valor [614]
A90: 84 | B90: 1291 | C90: 17 | D90: N | E90: SALDO AJUSTADO, INICIO DEL EJERCICIO. Operaciones con socios o propietarios. Otras operaciones con socios o propietarios. Subvenciones, donaciones y legados recibidos [616]
A91: 85 | B91: 1308 | C91: 17 | D91: N | E91: SALDO AJUSTADO, INICIO DEL EJERCICIO. Operaciones con socios o propietarios. Otras operaciones con socios o propietarios. Socios externos [391]
A92: 86 | B92: 1325 | C92: 17 | D92: N | E92: SALDO AJUSTADO, INICIO DEL EJERCICIO. Operaciones con socios o propietarios. Otras operaciones con socios o propietarios. Total [617]
A93: 87 | B93: 1342 | C93: 17 | D93: N | E93: SALDO AJUSTADO, INICIO DEL EJERCICIO. Otras variaciones del patrimonio neto. (Dividendo a cuenta) [626]
A94: 88 | B94: 1359 | C94: 17 | D94: N | E94: SALDO AJUSTADO, INICIO DEL EJERCICIO. Otras variaciones del patrimonio neto. Otros instrumentos de patrimonio neto [627]
A95: 89 | B95: 1376 | C95: 17 | D95: N | E95: SALDO AJUSTADO, INICIO DEL EJERCICIO. Otras variaciones del patrimonio neto. Ajustes por cambios de valor [628]
A96: 90 | B96: 1393 | C96: 17 | D96: N | E96: SALDO AJUSTADO, INICIO DEL EJERCICIO. Otras variaciones del patrimonio neto. Subvenciones, donaciones y legados recibidos [630]
A97: 91 | B97: 1410 | C97: 17 | D97: N | E97: SALDO AJUSTADO, INICIO DEL EJERCICIO. Otras variaciones del patrimonio neto. Socios externos [652]
A98: 92 | B98: 1427 | C98: 17 | D98: N | E98: SALDO AJUSTADO, INICIO DEL EJERCICIO. Otras variaciones del patrimonio neto. Total [631]
A99: =A98+1 -> 93 | B99: =B98+C98 -> 1444 | C99: 17 | D99: N | E99: SALDO AJUSTADO, INICIO DEL EJERCICIO. Movimiento de reservas de revalorización. (Dividendo a cuenta) [716]
A100: 94 | B100: =B99+C99 -> 1461 | C100: 17 | D100: N | E100: SALDO AJUSTADO, INICIO DEL EJERCICIO. Movimiento de reservas de revalorización. Otros instrumentos de patrimonio neto [717]
A101: 95 | B101: =B100+C100 -> 1478 | C101: 17 | D101: N | E101: SALDO AJUSTADO, INICIO DEL EJERCICIO. Movimiento de reservas de revalorización. Ajustes por cambios de valor [718]
A102: 96 | B102: 1495 | C102: 17 | D102: N | E102: SALDO AJUSTADO, INICIO DEL EJERCICIO. Movimiento de reservas de revalorización. Subvenciones, donaciones y legados recibidos [719]
A103: 97 | B103: 1512 | C103: 17 | D103: N | E103: SALDO AJUSTADO, INICIO DEL EJERCICIO. Movimiento de reservas de revalorización. Socios externos [720]
A104: 98 | B104: 1529 | C104: 17 | D104: N | E104: SALDO AJUSTADO, INICIO DEL EJERCICIO. Movimiento de reservas de revalorización. Total [721]
A105: 99 | B105: 1546 | C105: 17 | D105: N | E105: SALDO AJUSTADO, INICIO DEL EJERCICIO. Otras variaciones. (Dividendo a cuenta) [728]
A106: 100 | B106: 1563 | C106: 17 | D106: N | E106: SALDO AJUSTADO, INICIO DEL EJERCICIO. Otras variaciones. Otros instrumentos de patrimonio neto [729]
A107: 101 | B107: 1580 | C107: 17 | D107: N | E107: SALDO AJUSTADO, INICIO DEL EJERCICIO. Otras variaciones. Ajustes por cambios de valor [730]
A108: 102 | B108: 1597 | C108: 17 | D108: N | E108: SALDO AJUSTADO, INICIO DEL EJERCICIO. Otras variaciones. Subvensiones, donaciones y legados recibidos [731]
A109: 103 | B109: 1614 | C109: 17 | D109: N | E109: SALDO AJUSTADO, INICIO DEL EJERCICIO. Otras variaciones. Socios externos [732]
A110: 104 | B110: 1631 | C110: 17 | D110: N | E110: SALDO AJUSTADO, INICIO DEL EJERCICIO. Otras variaciones. Total [733]
A111: 105 | B111: 1648 | C111: 17 | D111: N | E111: SALDO, FINAL DEL EJERCICIO (Dividendo a cuenta) [640]
A112: 106 | B112: 1665 | C112: 17 | D112: N | E112: SALDO, FINAL DEL EJERCICIO. Otras variaciones del patrimonio neto. Otros instrumentos de patrimonio neto [641]
A113: 107 | B113: 1682 | C113: 17 | D113: N | E113: SALDO, FINAL DEL EJERCICIO. Ajustes por cambios de valor [642]
A114: 108 | B114: 1699 | C114: 17 | D114: N | E114: SALDO, FINAL DEL EJERCICIO. Subvenciones, donaciones y legados recibidos [644]
A115: 109 | B115: 1716 | C115: 17 | D115: N | E115: SALDO, FINAL DEL EJERCICIO. Otras variaciones del patrimonio neto. Socios externos [395]
A116: 110 | B116: 1733 | C116: 17 | D116: N | E116: SALDO, FINAL DEL EJERCICIO. Total [645]
A117: 111 | B117: 1750 | C117: 12 | D117: An | E117: Fin de ejercicio. | F117: </T22005C00>
A118: Total: | C118: =B117+C117-1 -> 1761

Sheet T22003A01
B1: Agencia Tributaria
A3: =+T22001000!A3 -> Modelo 220 | C3: =+T22001000!C3 -> Diseño de registro. 2014
A4: =+T22001000!A4 -> Versión 1.2 | C4: Impuesto Sobre Sociedades. Régimen de consolidación Fiscal. GRUPO DE ENTIDADES DE CRÉDITO. BALANCE CONSOLIDADO: ACTIVO
A6: Nº | B6: Posic. | C6: Lon | D6: Tipo | E6: Descripción | F6: Contenido
A7: 1 | B7: 1 | C7: 2 | D7: An | E7: Inicio del identificador de modelo y página. | F7: <T
A8: =+A7+1 -> 2 | B8: =C7+B7 -> 3 | C8: 3 | D8: Num | E8: Modelo. | F8: 220
A9: 3 | B9: 6 | C9: 2 | D9: An | E9: Página. | F9: 03
A10: 4 | B10: 8 | C10: 1 | D10: An | E10: Letra | F10: A
A11: 5 | B11: 9 | C11: 2 | D11: Num | E11: Hoja | F11: 01
A12: 6 | B12: 11 | C12: 1 | D12: An | E12: Fin de identificador de modelo y página. Constante ">". | F12: >
A13: 7 | B13: 12 | C13: 1 | D13: An | E13: Indicador de página complementaria.
A14: =A13+1 -> 8 | B14: =B13+C13 -> 13 | C14: 3 | D14: Num | E14: Número de orden de la página complementaria
A15: 9 | B15: 16 | C15: 17 | D15: N | E15: ACTIVO. Caja y depósitos en bancos centrales [101]
A16: 10 | B16: 33 | C16: 17 | D16: N | E16: ACTIVO. Cartera de negociación [102]
A17: 11 | B17: 50 | C17: 17 | D17: N | E17: ACTIVO. Cartera de negociación. Depósitos en entidades de crédito [103]
A18: 12 | B18: 67 | C18: 17 | D18: N | E18: ACTIVO. Cartera de negociación. Crédito a la clientela [104]
A19: 13 | B19: 84 | C19: 17 | D19: N | E19: ACTIVO. Cartera de negociación. Valores representativos de deuda [105]
A20: 14 | B20: 101 | C20: 17 | D20: N | E20: ACTIVO. Cartera de negociación. Otros instrumentos de capital [106]
A21: 15 | B21: 118 | C21: 17 | D21: N | E21: ACTIVO. Cartera de negociación. Derivados de negociación [107]
A22: 16 | B22: 135 | C22: 17 | D22: N | E22: ACTIVO. Otros activos ﬁnancieros a valor razonable con cambios en pérdidas y ganancias [108]
A23: 17 | B23: 152 | C23: 17 | D23: N | E23: ACTIVO. Otros activos ﬁnancieros a valor razonable con cambios en pérdidas y ganancias.Depósitos en entidades de crédito [109]
A24: 18 | B24: 169 | C24: 17 | D24: N | E24: ACTIVO. Otros activos ﬁnancieros a valor razonable con cambios en pérdidas y ganancias.Crédito a la clientela [110]
A25: 19 | B25: 186 | C25: 17 | D25: N | E25: ACTIVO. Otros activos ﬁnancieros a valor razonable con cambios en pérdidas y ganancias.Valores representativos de deuda [111]
A26: 20 | B26: 203 | C26: 17 | D26: N | E26: ACTIVO. Otros activos ﬁnancieros a valor razonable con cambios en pérdidas y ganancias.Instrumentos de capital [112]
A27: 21 | B27: 220 | C27: 17 | D27: N | E27: ACTIVO. Activos ﬁ nancieros disponibles para la venta [113]
A28: 22 | B28: 237 | C28: 17 | D28: N | E28: ACTIVO. Activos ﬁ nancieros disponibles para la venta. Valores representativos de deuda [114]
A29: 23 | B29: 254 | C29: 17 | D29: N | E29: ACTIVO. Activos ﬁ nancieros disponibles para la venta. Instrumentos de capital [115]
A30: 24 | B30: 271 | C30: 17 | D30: N | E30: ACTIVO. Inversiones crediticias [116]
A31: 25 | B31: 288 | C31: 17 | D31: N | E31: ACTIVO. Inversiones crediticias.Depósitos en entidades de crédito [117]
A32: 26 | B32: 305 | C32: 17 | D32: N | E32: ACTIVO. Inversiones crediticias.Crédito a la clientela [118]
A33: 27 | B33: 322 | C33: 17 | D33: N | E33: ACTIVO. Inversiones crediticias.Valores representativos de deuda [119]
A34: 28 | B34: 339 | C34: 17 | D34: N | E34: ACTIVO. Cartera de inversión a vencimiento [120]
A35: 29 | B35: 356 | C35: 17 | D35: N | E35: ACTIVO. Ajustes a activos ﬁ nancieros por macro-coberturas [121]
A36: 30 | B36: 373 | C36: 17 | D36: N | E36: ACTIVO. Derivados de cobertura [122]
A37: 31 | B37: 390 | C37: 17 | D37: N | E37: ACTIVO. Activos no corrientes en venta [123]
A38: 32 | B38: 407 | C38: 17 | D38: N | E38: ACTIVO. Participaciones [124]
A39: 33 | B39: 424 | C39: 17 | D39: N | E39: ACTIVO. Participaciones. Entidades asociadas [125]
A40: 34 | B40: 441 | C40: 17 | D40: N | E40: ACTIVO. Participaciones. Entidades multigrupo [126]
A41: 35 | B41: 458 | C41: 17 | D41: N | E41: ACTIVO. Participaciones. Entidades del grupo no consolidadas [127]
A42: 36 | B42: 475 | C42: 17 | D42: N | E42: ACTIVO. Contratos de seguros vinculados a pensiones [128]
A43: 37 | B43: 492 | C43: 17 | D43: N | E43: ACTIVO. Activos por reaseguros [501]
A44: 38 | B44: 509 | C44: 17 | D44: N | E44: ACTIVO. Activo material [129]
A45: 39 | B45: 526 | C45: 17 | D45: N | E45: ACTIVO. Activo material. Inmovilizado material [130]
A46: 40 | B46: 543 | C46: 17 | D46: N | E46: ACTIVO. Activo material. Inmovilizado material. De uso propio [131]
A47: 41 | B47: 560 | C47: 17 | D47: N | E47: ACTIVO. Activo material. Inmovilizado material. Cedido en arrendamiento operativo [132]
A48: 42 | B48: 577 | C48: 17 | D48: N | E48: ACTIVO. Activo material. Inmovilizado material. Afecto a la Obra social (sólo Cajas de ahorros y Cooperativas de crédito) [133]
A49: 43 | B49: 594 | C49: 17 | D49: N | E49: ACTIVO. Activo material. Inmovilizado material. Inversiones inmobiliarias [134]
A50: 44 | B50: 611 | C50: 17 | D50: N | E50: ACTIVO. Activo intangible [135]
A51: 45 | B51: 628 | C51: 17 | D51: N | E51: ACTIVO. Activo intangible. Fondo de comercio [136]
A52: 46 | B52: 645 | C52: 17 | D52: N | E52: ACTIVO. Activo intangible. Otro activo intangible [137]
A53: 47 | B53: 662 | C53: 17 | D53: N | E53: ACTIVO. Activos ﬁscales [138]
A54: 48 | B54: 679 | C54: 17 | D54: N | E54: ACTIVO. Activos ﬁscales. Corrientes [139]
A55: 49 | B55: 696 | C55: 17 | D55: N | E55: ACTIVO. Activos ﬁscales. Diferidos [140]
A56: 50 | B56: 713 | C56: 17 | D56: N | E56: ACTIVO.Resto de activos [141]
A57: 51 | B57: 730 | C57: 17 | D57: N | E57: ACTIVO.Resto de activos. Existencias [502]
A58: 52 | B58: 747 | C58: 17 | D58: N | E58: ACTIVO.Resto de activos. Otros [503]
A59: 53 | B59: 764 | C59: 17 | D59: N | E59: ACTIVO.TOTAL ACTIVO [142]
A60: 54 | B60: 781 | C60: 12 | D60: An | E60: Fin de registro. | F60: </T22003A01>
A61: Total: | C61: =B60+C60-1 -> 792

Sheet T22003B01
B1: Agencia Tributaria
A3: =+T22001000!A3 -> Modelo 220 | C3: =+T22001000!C3 -> Diseño de registro. 2014
A4: =+T22001000!A4 -> Versión 1.2 | C4: Impuesto Sobre Sociedades. Régimen de consolidación Fiscal. GRUPO DE ENTIDADES DE CRÉDITO. BALANCE CONSOLIDADO: PASIVO Y PATRIMONIO NETO (I)
A6: Nº | B6: Posic. | C6: Lon | D6: Tipo | E6: Descripción | F6: Contenido
A7: 1 | B7: 1 | C7: 2 | D7: An | E7: Inicio del identificador de modelo y página. | F7: <T
A8: =+A7+1 -> 2 | B8: =C7+B7 -> 3 | C8: 3 | D8: Num | E8: Modelo. | F8: 220
A9: 3 | B9: 6 | C9: 2 | D9: An | E9: Página. | F9: 03
A10: 4 | B10: 8 | C10: 1 | D10: An | E10: Letra | F10: B
A11: 5 | B11: 9 | C11: 2 | D11: Num | E11: Hoja | F11: 01
A12: 6 | B12: 11 | C12: 1 | D12: An | E12: Fin de identificador de modelo y página. Constante ">". | F12: >
A13: 7 | B13: 12 | C13: 1 | D13: An | E13: Indicador de página complementaria.
A14: =A13+1 -> 8 | B14: =B13+C13 -> 13 | C14: 3 | D14: Num | E14: Número de orden de la página complementaria
A15: 9 | B15: 16 | C15: 17 | D15: N | E15: PASIVO Y PATRIMONIO NETO. Cartera de negociación [143]
A16: 10 | B16: 33 | C16: 17 | D16: N | E16: PASIVO Y PATRIMONIO NETO. Cartera de negociación. Depósitos de bancos centrales [144]
A17: 11 | B17: 50 | C17: 17 | D17: N | E17: PASIVO Y PATRIMONIO NETO. Cartera de negociación. Depósitos de entidades de crédito [145]
A18: 12 | B18: 67 | C18: 17 | D18: N | E18: PASIVO Y PATRIMONIO NETO. Cartera de negociación. Depósitos de la clientela [146]
A19: 13 | B19: 84 | C19: 17 | D19: N | E19: PASIVO Y PATRIMONIO NETO. Cartera de negociación. Débitos representados por valores negociables [147]
A20: 14 | B20: 101 | C20: 17 | D20: N | E20: PASIVO Y PATRIMONIO NETO. Cartera de negociación. Derivados de negociación [148]
A21: 15 | B21: 118 | C21: 17 | D21: N | E21: PASIVO Y PATRIMONIO NETO. Cartera de negociación. Posiciones cortas de valores [149]
A22: 16 | B22: 135 | C22: 17 | D22: N | E22: PASIVO Y PATRIMONIO NETO. Cartera de negociación. Otros pasivos ﬁnancieros [150]
A23: 17 | B23: 152 | C23: 17 | D23: N | E23: PASIVO Y PATRIMONIO NETO. Otros pasivos ﬁnancieros a valor razonable con cambios en pérdidas y ganancias [151]
A24: 18 | B24: 169 | C24: 17 | D24: N | E24: PASIVO Y PATRIMONIO NETO. Otros pasivos ﬁnancieros a valor razonable con cambios en pérdidas y ganancias. Depósitos de bancos centrales [152]
A25: 19 | B25: 186 | C25: 17 | D25: N | E25: PASIVO Y PATRIMONIO NETO. Otros pasivos ﬁnancieros a valor razonable con cambios en pérdidas y ganancias. Depósitos de entidades de crédito [153]
A26: 20 | B26: 203 | C26: 17 | D26: N | E26: PASIVO Y PATRIMONIO NETO. Otros pasivos ﬁnancieros a valor razonable con cambios en pérdidas y ganancias. Depósitos de la clientela [154]
A27: 21 | B27: 220 | C27: 17 | D27: N | E27: PASIVO Y PATRIMONIO NETO. Otros pasivos ﬁnancieros a valor razonable con cambios en pérdidas y ganancias. Débitos representados por valores negociables [155]
A28: 22 | B28: 237 | C28: 17 | D28: N | E28: PASIVO Y PATRIMONIO NETO. Otros pasivos ﬁnancieros a valor razonable con cambios en pérdidas y ganancias. Pasivos subordinados [156]
A29: 23 | B29: 254 | C29: 17 | D29: N | E29: PASIVO Y PATRIMONIO NETO. Otros pasivos ﬁnancieros a valor razonable con cambios en pérdidas y ganancias. Otros pasivos ﬁ nancieros [157]
A30: 24 | B30: 271 | C30: 17 | D30: N | E30: PASIVO Y PATRIMONIO NETO. Pasivos ﬁ nancieros a coste amortizado [158]
A31: 25 | B31: 288 | C31: 17 | D31: N | E31: PASIVO Y PATRIMONIO NETO. Pasivos ﬁ nancieros a coste amortizado. Depósitos de bancos centrales [159]
A32: 26 | B32: 305 | C32: 17 | D32: N | E32: PASIVO Y PATRIMONIO NETO. Pasivos ﬁ nancieros a coste amortizado. Depósitos de entidades de crédito [160]
A33: 27 | B33: 322 | C33: 17 | D33: N | E33: PASIVO Y PATRIMONIO NETO. Pasivos ﬁ nancieros a coste amortizado. Depósitos de la clientela [161]
A34: 28 | B34: 339 | C34: 17 | D34: N | E34: PASIVO Y PATRIMONIO NETO. Pasivos ﬁ nancieros a coste amortizado. Débitos representados por valores negociables [162]
A35: 29 | B35: 356 | C35: 17 | D35: N | E35: PASIVO Y PATRIMONIO NETO. Pasivos ﬁ nancieros a coste amortizado. Pasivos subordinados [163]
A36: 30 | B36: 373 | C36: 17 | D36: N | E36: PASIVO Y PATRIMONIO NETO. Pasivos ﬁ nancieros a coste amortizado. Otros pasivos ﬁnancieros [164]
A37: 31 | B37: 390 | C37: 17 | D37: N | E37: PASIVO Y PATRIMONIO NETO. Ajustes a pasivos ﬁ nancieros por macro-coberturas [165]
A38: 32 | B38: 407 | C38: 17 | D38: N | E38: PASIVO Y PATRIMONIO NETO. Derivados de cobertura [166]
A39: 33 | B39: 424 | C39: 17 | D39: N | E39: PASIVO Y PATRIMONIO NETO. Pasivos asociados con activos no corrientes en venta [167]
A40: 34 | B40: 441 | C40: 17 | D40: N | E40: PASIVO Y PATRIMONIO NETO. Pasivos por contratos de seguros [504]
A41: 35 | B41: 458 | C41: 17 | D41: N | E41: PASIVO Y PATRIMONIO NETO. Provisiones [168]
A42: 36 | B42: 475 | C42: 17 | D42: N | E42: PASIVO Y PATRIMONIO NETO. Provisiones. Fondo para pensiones y obligaciones similares [169]
A43: 37 | B43: 492 | C43: 17 | D43: N | E43: PASIVO Y PATRIMONIO NETO. Provisiones. Provisiones para impuestos y otras contingencias legales [170]
A44: 38 | B44: 509 | C44: 17 | D44: N | E44: PASIVO Y PATRIMONIO NETO. Provisiones. Provisiones para riesgos y compromisos contingentes [171]
A45: 39 | B45: 526 | C45: 17 | D45: N | E45: PASIVO Y PATRIMONIO NETO. Provisiones. Otras provisiones [172]
A46: 40 | B46: 543 | C46: 17 | D46: N | E46: PASIVO Y PATRIMONIO NETO. Pasivos ﬁscales [173]
A47: 41 | B47: 560 | C47: 17 | D47: N | E47: PASIVO Y PATRIMONIO NETO. Pasivos ﬁscales. Corrientes [174]
A48: 42 | B48: 577 | C48: 17 | D48: N | E48: PASIVO Y PATRIMONIO NETO. Pasivos ﬁscales. Diferidos [175]
A49: 43 | B49: 594 | C49: 17 | D49: N | E49: PASIVO Y PATRIMONIO NETO. Fondo de la Obra social (sólo Cajas de ahorros y Cooperativas de crédito) [176]
A50: 44 | B50: 611 | C50: 17 | D50: N | E50: PASIVO Y PATRIMONIO NETO. Resto de pasivos [177]
A51: 45 | B51: 628 | C51: 17 | D51: N | E51: PASIVO Y PATRIMONIO NETO. Capital reembolsable a la vista (sólo Cooperativas de crédito) [178]
A52: 46 | B52: 645 | C52: 17 | D52: N | E52: PASIVO Y PATRIMONIO NETO. TOTAL PASIVO [179]
A53: 47 | B53: 662 | C53: 12 | D53: An | E53: Fin de registro. | F53: </T22003B01>
A54: Total: | C54: =B53+C53-1 -> 673

Sheet T22003C01
B1: Agencia Tributaria
A3: =+T22001000!A3 -> Modelo 220 | C3: =+T22001000!C3 -> Diseño de registro. 2014
A4: =+T22001000!A4 -> Versión 1.2 | C4: Impuesto Sobre Sociedades. Régimen de consolidación Fiscal. GRUPO DE ENTIDADES DE CRÉDITO. BALANCE CONSOLIDADO: PASIVO Y PATRIMONIO NETO (II)
A6: Nº | B6: Posic. | C6: Lon | D6: Tipo | E6: Descripción | F6: Contenido
A7: 1 | B7: 1 | C7: 2 | D7: An | E7: Inicio del identificador de modelo y página. | F7: <T
A8: =+A7+1 -> 2 | B8: =C7+B7 -> 3 | C8: 3 | D8: Num | E8: Modelo. | F8: 220
A9: 3 | B9: 6 | C9: 2 | D9: An | E9: Página. | F9: 03
A10: 4 | B10: 8 | C10: 1 | D10: An | E10: Letra | F10: C
A11: 5 | B11: 9 | C11: 2 | D11: Num | E11: Hoja | F11: 01
A12: 6 | B12: 11 | C12: 1 | D12: An | E12: Fin de identificador de modelo y página. Constante ">". | F12: >
A13: 7 | B13: 12 | C13: 1 | D13: An | E13: Indicador de página complementaria.
A14: =A13+1 -> 8 | B14: =B13+C13 -> 13 | C14: 3 | D14: Num | E14: Número de orden de la página complementaria
A15: 9 | B15: 16 | C15: 17 | D15: N | E15: PASIVO Y PATRIMONIO NETO (cont.). Fondos propios [180]
A16: 10 | B16: 33 | C16: 17 | D16: N | E16: PASIVO Y PATRIMONIO NETO (cont.). Fondos propios. Capital / Fondo de dotación [181]
A17: 11 | B17: 50 | C17: 17 | D17: N | E17: PASIVO Y PATRIMONIO NETO (cont.). Fondos propios. Capital / Fondo de dotación. Escriturado [182]
A18: 12 | B18: 67 | C18: 17 | D18: N | E18: PASIVO Y PATRIMONIO NETO (cont.). Fondos propios. Capital / Fondo de dotación. Menos: Capital no exigido [183]
A19: 13 | B19: 84 | C19: 17 | D19: N | E19: PASIVO Y PATRIMONIO NETO (cont.). Fondos propios. Prima de emisión [184]
A20: 14 | B20: 101 | C20: 17 | D20: N | E20: PASIVO Y PATRIMONIO NETO (cont.). Fondos propios. Reservas [185]
A21: 15 | B21: 118 | C21: 17 | D21: N | E21: PASIVO Y PATRIMONIO NETO (cont.). Fondos propios.Otros instrumentos de capital [186]
A22: 16 | B22: 135 | C22: 17 | D22: N | E22: PASIVO Y PATRIMONIO NETO (cont.). Fondos propios. Otros instrumentos de capital. De instrumentos ﬁnancieros compuestos [187]
A23: 17 | B23: 152 | C23: 17 | D23: N | E23: PASIVO Y PATRIMONIO NETO (cont.). Fondos propios. Otros instrumentos de capital. Cuotas participativas y fondos asociados (sólo Cajas de ahorros) [188]
A24: 18 | B24: 169 | C24: 17 | D24: N | E24: PASIVO Y PATRIMONIO NETO (cont.). Fondos propios. Otros instrumentos de capital. Resto de instrumentos de capital [189]
A25: 19 | B25: 186 | C25: 17 | D25: N | E25: PASIVO Y PATRIMONIO NETO (cont.). Fondos propios. Menos: Valores propios [190]
A26: 20 | B26: 203 | C26: 17 | D26: N | E26: PASIVO Y PATRIMONIO NETO (cont.). Fondos propios. Resultado del ejercicio atribuido a la sociedad dominante [191]
A27: 21 | B27: 220 | C27: 17 | D27: N | E27: PASIVO Y PATRIMONIO NETO (cont.). Fondos propios. Menos: Dividendos y retribuciones [192]
A28: 22 | B28: 237 | C28: 17 | D28: N | E28: PASIVO Y PATRIMONIO NETO (cont.).Ajustes por valoración [193]
A29: 23 | B29: 254 | C29: 17 | D29: N | E29: PASIVO Y PATRIMONIO NETO (cont.).Ajustes por valoración. Activos ﬁnancieros disponibles para la venta [194]
A30: 24 | B30: 271 | C30: 17 | D30: N | E30: PASIVO Y PATRIMONIO NETO (cont.).Ajustes por valoración. Coberturas de los ﬂ ujos de efectivo [195]
A31: 25 | B31: 288 | C31: 17 | D31: N | E31: PASIVO Y PATRIMONIO NETO (cont.).Ajustes por valoración. Coberturas de inversiones netas en negocios en el extranjero [196]
A32: 26 | B32: 305 | C32: 17 | D32: N | E32: PASIVO Y PATRIMONIO NETO (cont.).Ajustes por valoración. Diferencias de cambio [197]
A33: 27 | B33: 322 | C33: 17 | D33: N | E33: PASIVO Y PATRIMONIO NETO (cont.).Ajustes por valoración. Activos no corrientes en venta [198]
A34: 28 | B34: 339 | C34: 17 | D34: N | E34: PASIVO Y PATRIMONIO NETO (cont.).Ajustes por valoración. Resto de ajustes por valoración [199]
A35: 29 | B35: 356 | C35: 17 | D35: N | E35: PASIVO Y PATRIMONIO NETO (cont.).Intereses minoritarios [505]
A36: 30 | B36: 373 | C36: 17 | D36: N | E36: PASIVO Y PATRIMONIO NETO (cont.).Intereses minoritarios.Ajustes por valoración [506]
A37: 31 | B37: 390 | C37: 17 | D37: N | E37: PASIVO Y PATRIMONIO NETO (cont.).Intereses minoritarios.Resto [507]
A38: 32 | B38: 407 | C38: 17 | D38: N | E38: PASIVO Y PATRIMONIO NETO (cont.).TOTAL PATRIMONIO NETO [200]
A39: 33 | B39: 424 | C39: 17 | D39: N | E39: PASIVO Y PATRIMONIO NETO (cont.).TOTAL PASIVO Y PATRIMONIO NETO [201]
A40: 34 | B40: 441 | C40: 12 | D40: An | E40: Fin de registro. | F40: </T22003C01>
A41: Total: | C41: =B40+C40-1 -> 452

Sheet T22004001
B1: Agencia Tributaria
A3: =+T22001000!A3 -> Modelo 220 | C3: =+T22001000!C3 -> Diseño de registro. 2014
A4: =+T22001000!A4 -> Versión 1.2 | C4: Impuesto Sobre Sociedades. Régimen de consolidación Fiscal. GRUPO DE ENTIDADES DE CRÉDITO. CUENTA DE PÉRDIDAS Y GANANCIAS CONSOLIDADA
A6: Nº | B6: Posic. | C6: Lon | D6: Tipo | E6: Descripción | F6: Contenido
A7: 1 | B7: 1 | C7: 2 | D7: An | E7: Inicio del identificador de modelo y página. | F7: <T
A8: =+A7+1 -> 2 | B8: =C7+B7 -> 3 | C8: 3 | D8: Num | E8: Modelo. | F8: 220
A9: 3 | B9: 6 | C9: 2 | D9: An | E9: Página. | F9: 04
A10: 4 | B10: 8 | C10: 1 | D10: An | E10: Letra | F10: 0
A11: 5 | B11: 9 | C11: 2 | D11: Num | E11: Hoja | F11: 01
A12: 6 | B12: 11 | C12: 1 | D12: An | E12: Fin de identificador de modelo y página. Constante ">". | F12: >
A13: 7 | B13: 12 | C13: 1 | D13: An | E13: Indicador de página complementaria.
A14: =A13+1 -> 8 | B14: =B13+C13 -> 13 | C14: 3 | D14: Num | E14: Número de orden de la página complementaria
A15: 9 | B15: 16 | C15: 17 | D15: N | E15: CUENTA DE PÉRDIDAS Y GANANCIAS CONSOLIDADA. Intereses y rendimientos asimilados [204]
A16: 10 | B16: 33 | C16: 17 | D16: N | E16: CUENTA DE PÉRDIDAS Y GANANCIAS CONSOLIDADA.Intereses y cargas asimiladas [205]
A17: 11 | B17: 50 | C17: 17 | D17: N | E17: CUENTA DE PÉRDIDAS Y GANANCIAS CONSOLIDADA.Remuneración de capital reembolsable a la vista (sólo Cooperativas de crédito) [206]
A18: 12 | B18: 67 | C18: 17 | D18: N | E18: CUENTA DE PÉRDIDAS Y GANANCIAS CONSOLIDADA.MARGEN DE INTERESES [207]
A19: 13 | B19: 84 | C19: 17 | D19: N | E19: CUENTA DE PÉRDIDAS Y GANANCIAS CONSOLIDADA.Rendimiento de instrumentos de capital [208]
A20: 14 | B20: 101 | C20: 17 | D20: N | E20: CUENTA DE PÉRDIDAS Y GANANCIAS CONSOLIDADA.Comisiones percibidas [209]
A21: 15 | B21: 118 | C21: 17 | D21: N | E21: CUENTA DE PÉRDIDAS Y GANANCIAS CONSOLIDADA.Comisiones pagadas [210]
A22: 16 | B22: 135 | C22: 17 | D22: N | E22: CUENTA DE PÉRDIDAS Y GANANCIAS CONSOLIDADA.Resultado de operaciones ﬁnancieras (neto) [211]
A23: 17 | B23: 152 | C23: 17 | D23: N | E23: CUENTA DE PÉRDIDAS Y GANANCIAS CONSOLIDADA.Resultado de operaciones ﬁnancieras (neto). Cartera de negociación [212]
A24: 18 | B24: 169 | C24: 17 | D24: N | E24: CUENTA DE PÉRDIDAS Y GANANCIAS CONSOLIDADA.Resultado de operaciones ﬁnancieras (neto).Otros instrumentos ﬁ nancieros a valor razonable con cambios en pérdidas y ganancias [213]
A25: 19 | B25: 186 | C25: 17 | D25: N | E25: CUENTA DE PÉRDIDAS Y GANANCIAS CONSOLIDADA.Resultado de operaciones ﬁnancieras (neto).Instrumentos ﬁnancieros no valorados a valor razonable con cambios en pérdidas y ganancias [214]
A26: 20 | B26: 203 | C26: 17 | D26: N | E26: CUENTA DE PÉRDIDAS Y GANANCIAS CONSOLIDADA.Resultado de operaciones ﬁnancieras (neto).Otros [215]
A27: 21 | B27: 220 | C27: 17 | D27: N | E27: CUENTA DE PÉRDIDAS Y GANANCIAS CONSOLIDADA.Diferencias de cambio (neto) [216]
A28: 22 | B28: 237 | C28: 17 | D28: N | E28: CUENTA DE PÉRDIDAS Y GANANCIAS CONSOLIDADA.Otros productos de explotación [217]
A29: 23 | B29: 254 | C29: 17 | D29: N | E29: CUENTA DE PÉRDIDAS Y GANANCIAS CONSOLIDADA.Otros productos de explotación. Ingresos de contratos de seguros y reaseguros emitidos [508]
A30: 24 | B30: 271 | C30: 17 | D30: N | E30: CUENTA DE PÉRDIDAS Y GANANCIAS CONSOLIDADA.Otros productos de explotación. Ventas e ingresos por prestación de servicios no ﬁ nancieros [509]
A31: 25 | B31: 288 | C31: 17 | D31: N | E31: CUENTA DE PÉRDIDAS Y GANANCIAS CONSOLIDADA.Otros productos de explotación. Resto de productos de explotación [510]
A32: 26 | B32: 305 | C32: 17 | D32: N | E32: CUENTA DE PÉRDIDAS Y GANANCIAS CONSOLIDADA.Otros productos de explotación. Otras cargas de explotación [218]
A33: 27 | B33: 322 | C33: 17 | D33: N | E33: CUENTA DE PÉRDIDAS Y GANANCIAS CONSOLIDADA.Otros productos de explotación. Otras cargas de explotación. Gastos de contratos de seguros y reaseguros [511]
A34: 28 | B34: 339 | C34: 17 | D34: N | E34: CUENTA DE PÉRDIDAS Y GANANCIAS CONSOLIDADA.Otros productos de explotación. Otras cargas de explotación. Variación de existencias [512]
A35: 29 | B35: 356 | C35: 17 | D35: N | E35: CUENTA DE PÉRDIDAS Y GANANCIAS CONSOLIDADA.Otros productos de explotación. Otras cargas de explotación. Resto de cargas de explotación [513]
A36: 30 | B36: 373 | C36: 17 | D36: N | E36: CUENTA DE PÉRDIDAS Y GANANCIAS CONSOLIDADA.MARGEN BRUTO [219]
A37: 31 | B37: 390 | C37: 17 | D37: N | E37: CUENTA DE PÉRDIDAS Y GANANCIAS CONSOLIDADA.Gastos de administración [220]
A38: 32 | B38: 407 | C38: 17 | D38: N | E38: CUENTA DE PÉRDIDAS Y GANANCIAS CONSOLIDADA.Gastos de administración. Gastos de personal [221]
A39: 33 | B39: 424 | C39: 17 | D39: N | E39: CUENTA DE PÉRDIDAS Y GANANCIAS CONSOLIDADA.Gastos de administración. Otros gastos generales de administración [222]
A40: 34 | B40: 441 | C40: 17 | D40: N | E40: CUENTA DE PÉRDIDAS Y GANANCIAS CONSOLIDADA.Amortización [223]
A41: 35 | B41: 458 | C41: 17 | D41: N | E41: CUENTA DE PÉRDIDAS Y GANANCIAS CONSOLIDADA.Dotaciones a provisiones (neto) [224]
A42: 36 | B42: 475 | C42: 17 | D42: N | E42: CUENTA DE PÉRDIDAS Y GANANCIAS CONSOLIDADA.Pérdidas por deterioro de activos ﬁ nancieros (neto) [225]
A43: 37 | B43: 492 | C43: 17 | D43: N | E43: CUENTA DE PÉRDIDAS Y GANANCIAS CONSOLIDADA.Pérdidas por deterioro de activos ﬁ nancieros (neto). Inversiones crediticias [226]
A44: 38 | B44: 509 | C44: 17 | D44: N | E44: CUENTA DE PÉRDIDAS Y GANANCIAS CONSOLIDADA.Pérdidas por deterioro de activos ﬁ nancieros (neto). Otros instrumentos ﬁ nancieros no valorados a valor razonable con cambios en pérdidas y ganancias [227]
A45: 39 | B45: 526 | C45: 17 | D45: N | E45: CUENTA DE PÉRDIDAS Y GANANCIAS CONSOLIDADA. RESULTADO DE LA ACTIVIDAD DE EXPLOTACIÓN [228]
A46: 40 | B46: 543 | C46: 17 | D46: N | E46: CUENTA DE PÉRDIDAS Y GANANCIAS CONSOLIDADA. Pérdidas por deterioro del resto de activo (neto) . [229]
A47: 41 | B47: 560 | C47: 17 | D47: N | E47: CUENTA DE PÉRDIDAS Y GANANCIAS CONSOLIDADA. Pérdidas por deterioro del resto de activo (neto). Fondo de comercio y otro activo intangible [230]
A48: 42 | B48: 577 | C48: 17 | D48: N | E48: CUENTA DE PÉRDIDAS Y GANANCIAS CONSOLIDADA. Pérdidas por deterioro del resto de activo (neto). Otros activos [231]
A49: 43 | B49: 594 | C49: 17 | D49: N | E49: CUENTA DE PÉRDIDAS Y GANANCIAS CONSOLIDADA. Ganancias (pérdidas) en la baja de activos no clasiﬁ cados como corrientes en venta [232]
A50: 44 | B50: 611 | C50: 17 | D50: N | E50: CUENTA DE PÉRDIDAS Y GANANCIAS CONSOLIDADA. Diferencia negativa en combinaciones de negocios [233]
A51: 45 | B51: 628 | C51: 17 | D51: N | E51: CUENTA DE PÉRDIDAS Y GANANCIAS CONSOLIDADA. Ganancias (pérdidas) de activos no corrientes en venta no clasiﬁ cados como operaciones interrumpidas [234]
A52: 46 | B52: 645 | C52: 17 | D52: N | E52: CUENTA DE PÉRDIDAS Y GANANCIAS CONSOLIDADA.RESULTADO ANTES DE IMPUESTOS [235]
A53: 47 | B53: 662 | C53: 17 | D53: N | E53: CUENTA DE PÉRDIDAS Y GANANCIAS CONSOLIDADA.Impuesto sobre beneﬁ cios [236]
A54: 48 | B54: 679 | C54: 17 | D54: N | E54: CUENTA DE PÉRDIDAS Y GANANCIAS CONSOLIDADA.Dotación obligatoria a obras y fondos sociales (sólo Cajas de ahorros y Cooperativas de crédito) [237]
A55: 49 | B55: 696 | C55: 17 | D55: N | E55: CUENTA DE PÉRDIDAS Y GANANCIAS CONSOLIDADA.RESULTADO DEL EJERCICIO PROCEDENTE DE OPERACIONES CONTINUADAS [238]
A56: 50 | B56: 713 | C56: 17 | D56: N | E56: CUENTA DE PÉRDIDAS Y GANANCIAS CONSOLIDADA.Resultado de operaciones interrumpidas (neto) [239]
A57: 51 | B57: 730 | C57: 17 | D57: N | E57: CUENTA DE PÉRDIDAS Y GANANCIAS CONSOLIDADA.RESULTADO CONSOLIDADO DEL EJERCICIO [500]
A58: 52 | B58: 747 | C58: 17 | D58: N | E58: CUENTA DE PÉRDIDAS Y GANANCIAS CONSOLIDADA.RESULTADO CONSOLIDADO DEL EJERCICIO. Resultado atribuido a la entidad dominante [514]
A59: 53 | B59: 764 | C59: 17 | D59: N | E59: CUENTA DE PÉRDIDAS Y GANANCIAS CONSOLIDADA.RESULTADO CONSOLIDADO DEL EJERCICIO. Resultado atribuido a intereses minoritarios [515]
A60: 54 | B60: 781 | C60: 12 | D60: An | E60: Fin de registro. | F60: </T22004001>
A61: Total: | C61: =B60+C60-1 -> 792

Sheet T22005A01
B1: Agencia Tributaria
A3: =+T22001000!A3 -> Modelo 220 | C3: =+T22001000!C3 -> Diseño de registro. 2014
A4: =+T22001000!A4 -> Versión 1.2 | C4: Impuesto Sobre Sociedades. Régimen de consolidación Fiscal. GRUPO DE ENTIDADES DE CRÉDITO. ESTADO DE CAMBIOS EN EL PATRIMONIO NETO: ESTADO DE INGRESOS Y GASTOS RECONOCIDOS CONSOLIDADO.
A6: Nº | B6: Posic. | C6: Lon | D6: Tipo | E6: Descripción | F6: Contenido
A7: 1 | B7: 1 | C7: 2 | D7: An | E7: Inicio del identificador de modelo y página. | F7: <T
A8: =+A7+1 -> 2 | B8: =C7+B7 -> 3 | C8: 3 | D8: Num | E8: Modelo. | F8: 220
A9: 3 | B9: 6 | C9: 2 | D9: An | E9: Página. | F9: 05
A10: 4 | B10: 8 | C10: 1 | D10: An | E10: Letra | F10: A
A11: 5 | B11: 9 | C11: 2 | D11: Num | E11: Hoja | F11: 01
A12: 6 | B12: 11 | C12: 1 | D12: An | E12: Fin de identificador de modelo y página. Constante ">". | F12: >
A13: 7 | B13: 12 | C13: 1 | D13: An | E13: Indicador de página complementaria.
A14: =A13+1 -> 8 | B14: =B13+C13 -> 13 | C14: 3 | D14: Num | E14: Número de orden de la página complementaria
A15: 9 | B15: 16 | C15: 17 | D15: N | E15: ESTADO DE INGRESOS Y GASTOS RECONOCIDOS CONSOLIDADO EN EL EJERCICIO. Resultado consolidado del ejercicio [500]
A16: 10 | B16: 33 | C16: 17 | D16: N | E16: ESTADO DE INGRESOS Y GASTOS RECONOCIDOS CONSOLIDADO EN EL EJERCICIO. Otros ingresos y gastos reconocidos [256]
A17: 11 | B17: 50 | C17: 17 | D17: N | E17: ESTADO DE INGRESOS Y GASTOS RECONOCIDOS CONSOLIDADO EN EL EJERCICIO. Activos ﬁ nancieros disponibles para la venta [257]
A18: 12 | B18: 67 | C18: 17 | D18: N | E18: ESTADO DE INGRESOS Y GASTOS RECONOCIDOS CONSOLIDADO EN EL EJERCICIO. Activos ﬁnancieros disponibles para la venta. Ganancias (pérdidas) por valoración [258]
A19: 13 | B19: 84 | C19: 17 | D19: N | E19: ESTADO DE INGRESOS Y GASTOS RECONOCIDOS CONSOLIDADO EN EL EJERCICIO. Activos ﬁnancieros disponibles para la venta. Importes transferidos a la cuenta de pérdidas y ganancias [259]
A20: 14 | B20: 101 | C20: 17 | D20: N | E20: ESTADO DE INGRESOS Y GASTOS RECONOCIDOS CONSOLIDADO EN EL EJERCICIO. Activos ﬁnancieros disponibles para la venta. Otras reclasiﬁcaciones [260]
A21: 15 | B21: 118 | C21: 17 | D21: N | E21: ESTADO DE INGRESOS Y GASTOS RECONOCIDOS CONSOLIDADO EN EL EJERCICIO. Coberturas de los ﬂujos de efectivo [261]
A22: 16 | B22: 135 | C22: 17 | D22: N | E22: ESTADO DE INGRESOS Y GASTOS RECONOCIDOS CONSOLIDADO EN EL EJERCICIO. Coberturas de los ﬂujos de efectivo. Ganancias (pérdidas) por valoración [262]
A23: 17 | B23: 152 | C23: 17 | D23: N | E23: ESTADO DE INGRESOS Y GASTOS RECONOCIDOS CONSOLIDADO EN EL EJERCICIO. Coberturas de los ﬂujos de efectivo. Importes transferidos a la cuenta de pérdidas y ganancias [263]
A24: 18 | B24: 169 | C24: 17 | D24: N | E24: ESTADO DE INGRESOS Y GASTOS RECONOCIDOS CONSOLIDADO EN EL EJERCICIO. Coberturas de los ﬂujos de efectivo. Importes transferidos al valor inicial de las partidas cubiertas [264]
A25: 19 | B25: 186 | C25: 17 | D25: N | E25: ESTADO DE INGRESOS Y GASTOS RECONOCIDOS CONSOLIDADO EN EL EJERCICIO. Coberturas de los ﬂujos de efectivo. Otras reclasiﬁ caciones [265]
A26: 20 | B26: 203 | C26: 17 | D26: N | E26: ESTADO DE INGRESOS Y GASTOS RECONOCIDOS CONSOLIDADO EN EL EJERCICIO. Coberturas de inversiones netas en negocios en el extranjero [266]
A27: 21 | B27: 220 | C27: 17 | D27: N | E27: ESTADO DE INGRESOS Y GASTOS RECONOCIDOS CONSOLIDADO EN EL EJERCICIO. Coberturas de inversiones netas en negocios en el extranjero. Ganancias (pérdidas) por valoración [267]
A28: 22 | B28: 237 | C28: 17 | D28: N | E28: ESTADO DE INGRESOS Y GASTOS RECONOCIDOS CONSOLIDADO EN EL EJERCICIO. Coberturas de inversiones netas en negocios en el extranjero. Importes transferidos a la cuenta de pérdidas y ganancias [268]
A29: 23 | B29: 254 | C29: 17 | D29: N | E29: ESTADO DE INGRESOS Y GASTOS RECONOCIDOS CONSOLIDADO EN EL EJERCICIO. Coberturas de inversiones netas en negocios en el extranjero.Otras reclasiﬁcaciones [269]
A30: 24 | B30: 271 | C30: 17 | D30: N | E30: ESTADO DE INGRESOS Y GASTOS RECONOCIDOS CONSOLIDADO EN EL EJERCICIO. Diferencias de cambio [270]
A31: 25 | B31: 288 | C31: 17 | D31: N | E31: ESTADO DE INGRESOS Y GASTOS RECONOCIDOS CONSOLIDADO EN EL EJERCICIO. Diferencias de cambio. Ganancias (pérdidas) por valoración [271]
A32: 26 | B32: 305 | C32: 17 | D32: N | E32: ESTADO DE INGRESOS Y GASTOS RECONOCIDOS CONSOLIDADO EN EL EJERCICIO. Diferencias de cambio. Importes transferidos a la cuenta de pérdidas y ganancias [272]
A33: 27 | B33: 322 | C33: 17 | D33: N | E33: ESTADO DE INGRESOS Y GASTOS RECONOCIDOS CONSOLIDADO EN EL EJERCICIO. Diferencias de cambio. Otras reclasiﬁ caciones [273]
A34: 28 | B34: 339 | C34: 17 | D34: N | E34: ESTADO DE INGRESOS Y GASTOS RECONOCIDOS CONSOLIDADO EN EL EJERCICIO. Activos no corrientes en venta [274]
A35: 29 | B35: 356 | C35: 17 | D35: N | E35: ESTADO DE INGRESOS Y GASTOS RECONOCIDOS CONSOLIDADO EN EL EJERCICIO. Ganancias (pérdidas) por valoración [275]
A36: 30 | B36: 373 | C36: 17 | D36: N | E36: ESTADO DE INGRESOS Y GASTOS RECONOCIDOS CONSOLIDADO EN EL EJERCICIO. Importes transferidos a la cuenta de pérdidas y ganancias [276]
A37: 31 | B37: 390 | C37: 17 | D37: N | E37: ESTADO DE INGRESOS Y GASTOS RECONOCIDOS CONSOLIDADO EN EL EJERCICIO. Otras reclasiﬁcaciones [277]
A38: 32 | B38: 407 | C38: 17 | D38: N | E38: ESTADO DE INGRESOS Y GASTOS RECONOCIDOS CONSOLIDADO EN EL EJERCICIO. Ganancias (pérdidas) actuariales en planes de pensiones [278]
A39: 33 | B39: 424 | C39: 17 | D39: N | E39: ESTADO DE INGRESOS Y GASTOS RECONOCIDOS CONSOLIDADO EN EL EJERCICIO. Resto de ingresos y gastos reconocidos [279]
A40: 34 | B40: 441 | C40: 17 | D40: N | E40: ESTADO DE INGRESOS Y GASTOS RECONOCIDOS CONSOLIDADO EN EL EJERCICIO. Impuesto sobre beneﬁ cios [280]
A41: 35 | B41: 458 | C41: 17 | D41: N | E41: ESTADO DE INGRESOS Y GASTOS RECONOCIDOS CONSOLIDADO EN EL EJERCICIO. Total ingresos y gastos reconocidos [281]
A42: 36 | B42: 475 | C42: 17 | D42: N | E42: ESTADO DE INGRESOS Y GASTOS RECONOCIDOS CONSOLIDADO EN EL EJERCICIO.Total ingresos y gastos reconocidos. Atribuidos a intereses minoritarios [516]
A43: 37 | B43: 492 | C43: 17 | D43: N | E43: ESTADO DE INGRESOS Y GASTOS RECONOCIDOS CONSOLIDADO EN EL EJERCICIO. Total ingresos y gastos reconocidos. Atribuidos a la entidad dominante [517]
A44: 38 | B44: 509 | C44: 12 | D44: An | E44: Fin de registro. | F44: </T22005A01>
A45: Total: | C45: =B44+C44-1 -> 520

Sheet T22005B01
B1: Agencia Tributaria
A3: =+T22001000!A3 -> Modelo 220 | C3: =+T22001000!C3 -> Diseño de registro. 2014
A4: =+T22001000!A4 -> Versión 1.2 | C4: Impuesto Sobre Sociedades. Régimen de consolidación Fiscal. GRUPO DE ENTIDADES DE CRÉDITO. ESTADO DE CAMBIOS EN EL PATRIMONIO NETO: ESTADO TOTAL DE CAMBIOS EN EL PATRIMONIO NETO CONSOLIDADO (I)
A6: Nº | B6: Posic. | C6: Lon | D6: Tipo | E6: Descripción | F6: Contenido
A7: 1 | B7: 1 | C7: 2 | D7: An | E7: Inicio del identificador de modelo y página. | F7: <T
A8: =+A7+1 -> 2 | B8: =C7+B7 -> 3 | C8: 3 | D8: Num | E8: Modelo. | F8: 220
A9: 3 | B9: 6 | C9: 2 | D9: An | E9: Página. | F9: 05
A10: 4 | B10: 8 | C10: 1 | D10: An | E10: Letra | F10: B
A11: 5 | B11: 9 | C11: 2 | D11: Num | E11: Hoja | F11: 01
A12: 6 | B12: 11 | C12: 1 | D12: An | E12: Fin de identificador de modelo y página. Constante ">". | F12: >
A13: 7 | B13: 12 | C13: 1 | D13: An | E13: Indicador de página complementaria.
A14: =A13+1 -> 8 | B14: =B13+C13 -> 13 | C14: 3 | D14: Num | E14: Número de orden de la página complementaria
A15: =A14+1 -> 9 | B15: =B14+C14 -> 16 | C15: 17 | D15: N | E15: ESTADO TOTAL DE CAMBIOS EN EL PATRIMONIO NETO.PATRIMONIO NETO ATRIBUIDO A LA SOCIEDAD DOMINANTE.FONDOS PROPIOS. SALDO, FINAL DEL EJERCICIO ANTERIOR. Capital /Fondo de dotación [282]
A16: 10 | B16: 33 | C16: 17 | D16: N | E16: ESTADO TOTAL DE CAMBIOS EN EL PATRIMONIO NETO.PATRIMONIO NETO ATRIBUIDO A LA SOCIEDAD DOMINANTE.FONDOS PROPIOS. SALDO, FINAL DEL EJERCICIO ANTERIOR. Prima de emisión [283]
A17: 11 | B17: 50 | C17: 17 | D17: N | E17: ESTADO TOTAL DE CAMBIOS EN EL PATRIMONIO NETO.PATRIMONIO NETO ATRIBUIDO A LA SOCIEDAD DOMINANTE.FONDOS PROPIOS. SALDO, FINAL DEL EJERCICIO ANTERIOR. Reservas [284]
A18: 12 | B18: 67 | C18: 17 | D18: N | E18: ESTADO TOTAL DE CAMBIOS EN EL PATRIMONIO NETO.PATRIMONIO NETO ATRIBUIDO A LA SOCIEDAD DOMINANTE.FONDOS PROPIOS. SALDO, FINAL DEL EJERCICIO ANTERIOR. Otros instrumentos de capital [285]
A19: 13 | B19: 84 | C19: 17 | D19: N | E19: ESTADO TOTAL DE CAMBIOS EN EL PATRIMONIO NETO.PATRIMONIO NETO ATRIBUIDO A LA SOCIEDAD DOMINANTE.FONDOS PROPIOS. SALDO, FINAL DEL EJERCICIO ANTERIOR.Menos: Valores propios [286]
A20: 14 | B20: 101 | C20: 17 | D20: N | E20: ESTADO TOTAL DE CAMBIOS EN EL PATRIMONIO NETO.PATRIMONIO NETO ATRIBUIDO A LA SOCIEDAD DOMINANTE.FONDOS PROPIOS. SALDO, FINAL DEL EJERCICIO. Resultado del ejercicio atribuido a la sociedad [287]
A21: 15 | B21: 118 | C21: 17 | D21: N | E21: ESTADO TOTAL DE CAMBIOS EN EL PATRIMONIO NETO.PATRIMONIO NETO ATRIBUIDO A LA SOCIEDAD DOMINANTE.FONDOS PROPIOS. SALDO, FINAL DEL EJERCICIO ANTERIOR.Ajustes por cambio de criterio de ejercicios anteriores. Capital /Fondo de dotación [292]
A22: 16 | B22: 135 | C22: 17 | D22: N | E22: ESTADO TOTAL DE CAMBIOS EN EL PATRIMONIO NETO.PATRIMONIO NETO ATRIBUIDO A LA SOCIEDAD DOMINANTE.FONDOS PROPIOS. SALDO, FINAL DEL EJERCICIO ANTERIOR. Ajustes por cambio de criterio de ejercicios anteriores. Prima de emisión [293]
A23: 17 | B23: 152 | C23: 17 | D23: N | E23: ESTADO TOTAL DE CAMBIOS EN EL PATRIMONIO NETO.PATRIMONIO NETO ATRIBUIDO A LA SOCIEDAD DOMINANTE.FONDOS PROPIOS. SALDO, FINAL DEL EJERCICIO ANTERIOR. Ajustes por cambio de criterio de ejercicios anteriores. Reservas [294]
A24: 18 | B24: 169 | C24: 17 | D24: N | E24: ESTADO TOTAL DE CAMBIOS EN EL PATRIMONIO NETO.PATRIMONIO NETO ATRIBUIDO A LA SOCIEDAD DOMINANTE.FONDOS PROPIOS. SALDO, FINAL DEL EJERCICIO ANTERIOR. Ajustes por cambio de criterio de ejercicios anteriores. Otros instrumentos de capital [295]
A25: 19 | B25: 186 | C25: 17 | D25: N | E25: ESTADO TOTAL DE CAMBIOS EN EL PATRIMONIO NETO.PATRIMONIO NETO ATRIBUIDO A LA SOCIEDAD DOMINANTE.FONDOS PROPIOS. SALDO, FINAL DEL EJERCICIO ANTERIOR. Ajustes por cambio de criterio de ejercicios anteriores. Menos: Valores propios [296]
A26: 20 | B26: 203 | C26: 17 | D26: N | E26: ESTADO TOTAL DE CAMBIOS EN EL PATRIMONIO NETO.PATRIMONIO NETO ATRIBUIDO A LA SOCIEDAD DOMINANTE.FONDOS PROPIOS. SALDO, FINAL DEL EJERCICIO. Ajustes por cambio de criterio de ejercicios anteriores. Resultado del ejercicio atribuido a la sociedad [297]
A27: 21 | B27: 220 | C27: 17 | D27: N | E27: ESTADO TOTAL DE CAMBIOS EN EL PATRIMONIO NETO.PATRIMONIO NETO ATRIBUIDO A LA SOCIEDAD DOMINANTE.FONDOS PROPIOS. SALDO, FINAL DEL EJERCICIO ANTERIOR.Ajustes por errores de ejercicios anteriores. Capital /Fondo de dotación [302]
A28: 22 | B28: 237 | C28: 17 | D28: N | E28: ESTADO TOTAL DE CAMBIOS EN EL PATRIMONIO NETO.PATRIMONIO NETO ATRIBUIDO A LA SOCIEDAD DOMINANTE.FONDOS PROPIOS. SALDO, FINAL DEL EJERCICIO ANTERIOR. Ajustes por errores de ejercicios anteriores. Prima de emisión [303]
A29: 23 | B29: 254 | C29: 17 | D29: N | E29: ESTADO TOTAL DE CAMBIOS EN EL PATRIMONIO NETO.PATRIMONIO NETO ATRIBUIDO A LA SOCIEDAD DOMINANTE.FONDOS PROPIOS. SALDO, FINAL DEL EJERCICIO ANTERIOR. Ajustes por errores de ejercicios anteriores. Reservas [304]
A30: 24 | B30: 271 | C30: 17 | D30: N | E30: ESTADO TOTAL DE CAMBIOS EN EL PATRIMONIO NETO.PATRIMONIO NETO ATRIBUIDO A LA SOCIEDAD DOMINANTE.FONDOS PROPIOS. SALDO, FINAL DEL EJERCICIO ANTERIOR. Ajustes por errores de ejercicios anteriores. Otros instrumentos de capital [305]
A31: 25 | B31: 288 | C31: 17 | D31: N | E31: ESTADO TOTAL DE CAMBIOS EN EL PATRIMONIO NETO.PATRIMONIO NETO ATRIBUIDO A LA SOCIEDAD DOMINANTE.FONDOS PROPIOS. SALDO, FINAL DEL EJERCICIO ANTERIOR. Ajustes por errores de ejercicios anteriores. Menos: Valores propios [306]
A32: 26 | B32: 305 | C32: 17 | D32: N | E32: ESTADO TOTAL DE CAMBIOS EN EL PATRIMONIO NETO.PATRIMONIO NETO ATRIBUIDO A LA SOCIEDAD DOMINANTE.FONDOS PROPIOS. Saldo final al. Ajustes por errores de ejercicios anteriores. Resultado del ejercicio atribuido a la sociedad [307]
A33: 27 | B33: 322 | C33: 17 | D33: N | E33: ESTADO TOTAL DE CAMBIOS EN EL PATRIMONIO NETO.PATRIMONIO NETO ATRIBUIDO A LA SOCIEDAD DOMINANTE.FONDOS PROPIOS. SALDO AJUSTADO, INICIO DEL EJERCICIO. Capital /Fondo de dotación [312]
A34: 28 | B34: 339 | C34: 17 | D34: N | E34: ESTADO TOTAL DE CAMBIOS EN EL PATRIMONIO NETO.PATRIMONIO NETO ATRIBUIDO A LA SOCIEDAD DOMINANTE.FONDOS PROPIOS. SALDO AJUSTADO, INICIO DEL EJERCICIO. Prima de emisión [313]
A35: 29 | B35: 356 | C35: 17 | D35: N | E35: ESTADO TOTAL DE CAMBIOS EN EL PATRIMONIO NETO.PATRIMONIO NETO ATRIBUIDO A LA SOCIEDAD DOMINANTE.FONDOS PROPIOS.SALDO AJUSTADO, INICIO DEL EJERCICIO. Reservas [314]
A36: 30 | B36: 373 | C36: 17 | D36: N | E36: ESTADO TOTAL DE CAMBIOS EN EL PATRIMONIO NETO.PATRIMONIO NETO ATRIBUIDO A LA SOCIEDAD DOMINANTE.FONDOS PROPIOS. SALDO AJUSTADO, INICIO DEL EJERCICIO. Otros instrumentos de capital [315]
A37: 31 | B37: 390 | C37: 17 | D37: N | E37: ESTADO TOTAL DE CAMBIOS EN EL PATRIMONIO NETO.PATRIMONIO NETO ATRIBUIDO A LA SOCIEDAD DOMINANTE.FONDOS PROPIOS. SALDO AJUSTADO, INICIO DEL EJERCICIO. Menos: Valores propios [316]
A38: 32 | B38: 407 | C38: 17 | D38: N | E38: ESTADO TOTAL DE CAMBIOS EN EL PATRIMONIO NETO.PATRIMONIO NETO ATRIBUIDO A LA SOCIEDAD DOMINANTE.FONDOS PROPIOS. SALDO AJUSTADO, INICIO DEL EJERCICIO. Resultado del ejercicio atribuido a la sociedad [317]
A39: 33 | B39: 424 | C39: 17 | D39: N | E39: ESTADO TOTAL DE CAMBIOS EN EL PATRIMONIO NETO.PATRIMONIO NETO ATRIBUIDO A LA SOCIEDAD DOMINANTE.FONDOS PROPIOS. Total ingresos y gastos reconocidos. Capital /Fondo de dotación [322]
A40: 34 | B40: 441 | C40: 17 | D40: N | E40: ESTADO TOTAL DE CAMBIOS EN EL PATRIMONIO NETO.PATRIMONIO NETO ATRIBUIDO A LA SOCIEDAD DOMINANTE.FONDOS PROPIOS.Total ingresos y gastos reconocidos. Prima de emisión [323]
A41: 35 | B41: 458 | C41: 17 | D41: N | E41: ESTADO TOTAL DE CAMBIOS EN EL PATRIMONIO NETO.PATRIMONIO NETO ATRIBUIDO A LA SOCIEDAD DOMINANTE.FONDOS PROPIOS.Total ingresos y gastos reconocidos. Reservas [324]
A42: 36 | B42: 475 | C42: 17 | D42: N | E42: ESTADO TOTAL DE CAMBIOS EN EL PATRIMONIO NETO.PATRIMONIO NETO ATRIBUIDO A LA SOCIEDAD DOMINANTE.FONDOS PROPIOS. Total ingresos y gastos reconocidos. Otros instrumentos de capital [325]
A43: =A42+1 -> 37 | B43: =B42+C42 -> 492 | C43: 17 | D43: N | E43: ESTADO TOTAL DE CAMBIOS EN EL PATRIMONIO NETO.PATRIMONIO NETO ATRIBUIDO A LA SOCIEDAD DOMINANTE.FONDOS PROPIOS. Total ingresos y gastos reconocidos. Menos: Valores propios [326]
A44: 38 | B44: 509 | C44: 17 | D44: N | E44: ESTADO TOTAL DE CAMBIOS EN EL PATRIMONIO NETO.PATRIMONIO NETO ATRIBUIDO A LA SOCIEDAD DOMINANTE.FONDOS PROPIOS. Total ingresos y gastos reconocidos. Resultado del ejercicio atribuido a la sociedad [327]
A45: 39 | B45: 526 | C45: 17 | D45: N | E45: ESTADO TOTAL DE CAMBIOS EN EL PATRIMONIO NETO.PATRIMONIO NETO ATRIBUIDO A LA SOCIEDAD DOMINANTE.FONDOS PROPIOS. TOtras variaciones del patrimonio neto. Capital /Fondo de dotación [332]
A46: 40 | B46: 543 | C46: 17 | D46: N | E46: ESTADO TOTAL DE CAMBIOS EN EL PATRIMONIO NETO.PATRIMONIO NETO ATRIBUIDO A LA SOCIEDAD DOMINANTE.FONDOS PROPIOS.Otras variaciones del patrimonio neto. Prima de emisión [333]
A47: 41 | B47: 560 | C47: 17 | D47: N | E47: ESTADO TOTAL DE CAMBIOS EN EL PATRIMONIO NETO.PATRIMONIO NETO ATRIBUIDO A LA SOCIEDAD DOMINANTE.FONDOS PROPIOS.Otras variaciones del patrimonio neto. Reservas [334]
A48: 42 | B48: 577 | C48: 17 | D48: N | E48: ESTADO TOTAL DE CAMBIOS EN EL PATRIMONIO NETO.PATRIMONIO NETO ATRIBUIDO A LA SOCIEDAD DOMINANTE.FONDOS PROPIOS. Otras variaciones del patrimonio neto. Otros instrumentos de capital [335]
A49: 43 | B49: 594 | C49: 17 | D49: N | E49: ESTADO TOTAL DE CAMBIOS EN EL PATRIMONIO NETO.PATRIMONIO NETO ATRIBUIDO A LA SOCIEDAD DOMINANTE.FONDOS PROPIOS. Otras variaciones del patrimonio neto. Menos: Valores propios [336]
A50: 44 | B50: 611 | C50: 17 | D50: N | E50: ESTADO TOTAL DE CAMBIOS EN EL PATRIMONIO NETO.PATRIMONIO NETO ATRIBUIDO A LA SOCIEDAD DOMINANTE.FONDOS PROPIOS. Otras variaciones del patrimonio neto. Resultado del ejercicio atribuido a la sociedad [337]
A51: 45 | B51: 628 | C51: 17 | D51: N | E51: ESTADO TOTAL DE CAMBIOS EN EL PATRIMONIO NETO.PATRIMONIO NETO ATRIBUIDO A LA SOCIEDAD DOMINANTE.FONDOS PROPIOS. Otras variaciones del patrimonio neto. Aumentos de capital / fondo de dotación. Capital /Fondo de dotación [342]
A52: 46 | B52: 645 | C52: 17 | D52: N | E52: ESTADO TOTAL DE CAMBIOS EN EL PATRIMONIO NETO.PATRIMONIO NETO ATRIBUIDO A LA SOCIEDAD DOMINANTE.FONDOS PROPIOS.Otras variaciones del patrimonio neto. Aumentos de capital / fondo de dotación. Prima de emisión [343]
A53: 47 | B53: 662 | C53: 17 | D53: N | E53: ESTADO TOTAL DE CAMBIOS EN EL PATRIMONIO NETO.PATRIMONIO NETO ATRIBUIDO A LA SOCIEDAD DOMINANTE.FONDOS PROPIOS.Otras variaciones del patrimonio neto. Aumentos de capital / fondo de dotación. Reservas [344]
A54: 48 | B54: 679 | C54: 17 | D54: N | E54: ESTADO TOTAL DE CAMBIOS EN EL PATRIMONIO NETO.PATRIMONIO NETO ATRIBUIDO A LA SOCIEDAD DOMINANTE.FONDOS PROPIOS. Otras variaciones del patrimonio neto. Aumentos de capital / fondo de dotación. Otros instrumentos de capital [345]
A55: 49 | B55: 696 | C55: 17 | D55: N | E55: ESTADO TOTAL DE CAMBIOS EN EL PATRIMONIO NETO.PATRIMONIO NETO ATRIBUIDO A LA SOCIEDAD DOMINANTE.FONDOS PROPIOS. Otras variaciones del patrimonio neto. Aumentos de capital / fondo de dotaciónMenos: Valores propios [346]
A56: 50 | B56: 713 | C56: 17 | D56: N | E56: ESTADO TOTAL DE CAMBIOS EN EL PATRIMONIO NETO.PATRIMONIO NETO ATRIBUIDO A LA SOCIEDAD DOMINANTE.FONDOS PROPIOS. Otras variaciones del patrimonio neto. Aumentos de capital / fondo de dotación. Resultado del ejercicio atribuido a la sociedad [347]
A57: 51 | B57: 730 | C57: 17 | D57: N | E57: ESTADO TOTAL DE CAMBIOS EN EL PATRIMONIO NETO.PATRIMONIO NETO ATRIBUIDO A LA SOCIEDAD DOMINANTE.FONDOS PROPIOS. Otras variaciones del patrimonio neto. Reducciones de capital. Capital /Fondo de dotación [352]
A58: 52 | B58: 747 | C58: 17 | D58: N | E58: ESTADO TOTAL DE CAMBIOS EN EL PATRIMONIO NETO.PATRIMONIO NETO ATRIBUIDO A LA SOCIEDAD DOMINANTE.FONDOS PROPIOS.Otras variaciones del patrimonio neto. Reducciones de capital. Prima de emisión [353]
A59: 53 | B59: 764 | C59: 17 | D59: N | E59: ESTADO TOTAL DE CAMBIOS EN EL PATRIMONIO NETO.PATRIMONIO NETO ATRIBUIDO A LA SOCIEDAD DOMINANTE.FONDOS PROPIOS.Otras variaciones del patrimonio neto. Reducciones de capital. Reservas [354]
A60: 54 | B60: 781 | C60: 17 | D60: N | E60: ESTADO TOTAL DE CAMBIOS EN EL PATRIMONIO NETO.PATRIMONIO NETO ATRIBUIDO A LA SOCIEDAD DOMINANTE.FONDOS PROPIOS. Otras variaciones del patrimonio neto. Reducciones de capital. Otros instrumentos de capital [355]
A61: 55 | B61: 798 | C61: 17 | D61: N | E61: ESTADO TOTAL DE CAMBIOS EN EL PATRIMONIO NETO.PATRIMONIO NETO ATRIBUIDO A LA SOCIEDAD DOMINANTE.FONDOS PROPIOS. Otras variaciones del patrimonio neto. Reducciones de capital. Menos: Valores propios [356]
A62: 56 | B62: 815 | C62: 17 | D62: N | E62: ESTADO TOTAL DE CAMBIOS EN EL PATRIMONIO NETO.PATRIMONIO NETO ATRIBUIDO A LA SOCIEDAD DOMINANTE.FONDOS PROPIOS. Otras variaciones del patrimonio neto. Reducciones de capital. Resultado del ejercicio atribuido a la sociedad [357]
A63: 57 | B63: 832 | C63: 17 | D63: N | E63: ESTADO TOTAL DE CAMBIOS EN EL PATRIMONIO NETO.PATRIMONIO NETO ATRIBUIDO A LA SOCIEDAD DOMINANTE.FONDOS PROPIOS. Otras variaciones del patrimonio neto. Conversión de pasivos ﬁ nancieros en capital. Capital /Fondo de dotación [362]
A64: 58 | B64: 849 | C64: 17 | D64: N | E64: ESTADO TOTAL DE CAMBIOS EN EL PATRIMONIO NETO.PATRIMONIO NETO ATRIBUIDO A LA SOCIEDAD DOMINANTE.FONDOS PROPIOS.Otras variaciones del patrimonio neto. Conversión de pasivos ﬁnancieros en capital. Prima de emisión [363]
A65: 59 | B65: 866 | C65: 17 | D65: N | E65: ESTADO TOTAL DE CAMBIOS EN EL PATRIMONIO NETO.PATRIMONIO NETO ATRIBUIDO A LA SOCIEDAD DOMINANTE.FONDOS PROPIOS.Otras variaciones del patrimonio neto. Conversión de pasivos ﬁnancieros en capital. Reservas [364]
A66: 60 | B66: 883 | C66: 17 | D66: N | E66: ESTADO TOTAL DE CAMBIOS EN EL PATRIMONIO NETO.PATRIMONIO NETO ATRIBUIDO A LA SOCIEDAD DOMINANTE.FONDOS PROPIOS. Otras variaciones del patrimonio neto. Conversión de pasivos ﬁnancieros en capital. Otros instrumentos de capital [365]
A67: 61 | B67: 900 | C67: 17 | D67: N | E67: ESTADO TOTAL DE CAMBIOS EN EL PATRIMONIO NETO.PATRIMONIO NETO ATRIBUIDO A LA SOCIEDAD DOMINANTE.FONDOS PROPIOS. Otras variaciones del patrimonio neto. Conversión de pasivos ﬁnancieros en capital. Menos: Valores propios [366]
A68: 62 | B68: 917 | C68: 17 | D68: N | E68: ESTADO TOTAL DE CAMBIOS EN EL PATRIMONIO NETO.PATRIMONIO NETO ATRIBUIDO A LA SOCIEDAD DOMINANTE.FONDOS PROPIOS. Otras variaciones del patrimonio neto. Conversión de pasivos ﬁnancieros en capital. Resultado del ejercicio atribuido a la sociedad [367]
A69: 63 | B69: 934 | C69: 17 | D69: N | E69: ESTADO TOTAL DE CAMBIOS EN EL PATRIMONIO NETO.PATRIMONIO NETO ATRIBUIDO A LA SOCIEDAD DOMINANTE.FONDOS PROPIOS. Otras variaciones del patrimonio neto. Incrementos de otros instrumentos de capital. Capital /Fondo de dotación [372]
A70: 64 | B70: 951 | C70: 17 | D70: N | E70: ESTADO TOTAL DE CAMBIOS EN EL PATRIMONIO NETO.PATRIMONIO NETO ATRIBUIDO A LA SOCIEDAD DOMINANTE.FONDOS PROPIOS.Otras variaciones del patrimonio neto. Incrementos de otros instrumentos de capital. Prima de emisión [373]
A71: 65 | B71: 968 | C71: 17 | D71: N | E71: ESTADO TOTAL DE CAMBIOS EN EL PATRIMONIO NETO.PATRIMONIO NETO ATRIBUIDO A LA SOCIEDAD DOMINANTE.FONDOS PROPIOS.Otras variaciones del patrimonio neto. Incrementos de otros instrumentos de capital. Reservas [374]
A72: 66 | B72: 985 | C72: 17 | D72: N | E72: ESTADO TOTAL DE CAMBIOS EN EL PATRIMONIO NETO.PATRIMONIO NETO ATRIBUIDO A LA SOCIEDAD DOMINANTE.FONDOS PROPIOS. Otras variaciones del patrimonio neto. Incrementos de otros instrumentos de capital. Otros instrumentos de capital [375]
A73: 67 | B73: 1002 | C73: 17 | D73: N | E73: ESTADO TOTAL DE CAMBIOS EN EL PATRIMONIO NETO.PATRIMONIO NETO ATRIBUIDO A LA SOCIEDAD DOMINANTE.FONDOS PROPIOS. Otras variaciones del patrimonio neto. Incrementos de otros instrumentos de capital. Menos: Valores propios [376]
A74: 68 | B74: 1019 | C74: 17 | D74: N | E74: ESTADO TOTAL DE CAMBIOS EN EL PATRIMONIO NETO.PATRIMONIO NETO ATRIBUIDO A LA SOCIEDAD DOMINANTE.FONDOS PROPIOS. Otras variaciones del patrimonio neto. Incrementos de otros instrumentos de capital. Resultado del ejercicio atribuido a la sociedad [377]
A75: =A74+1 -> 69 | B75: =B74+C74 -> 1036 | C75: 17 | D75: N | E75: ESTADO TOTAL DE CAMBIOS EN EL PATRIMONIO NETO.PATRIMONIO NETO ATRIBUIDO A LA SOCIEDAD DOMINANTE.FONDOS PROPIOS. Otras variaciones del patrimonio neto. Reclasiﬁcación de pasivos ﬁnancieros a otros instrumentos de capital. Capital /Fondo de dotación [382]
A76: 70 | B76: 1053 | C76: 17 | D76: N | E76: ESTADO TOTAL DE CAMBIOS EN EL PATRIMONIO NETO.PATRIMONIO NETO ATRIBUIDO A LA SOCIEDAD DOMINANTE.FONDOS PROPIOS.Otras variaciones del patrimonio neto. Reclasiﬁcación de pasivos ﬁnancieros a otros instrumentos de capital. Prima de emisión [383]
A77: 71 | B77: 1070 | C77: 17 | D77: N | E77: ESTADO TOTAL DE CAMBIOS EN EL PATRIMONIO NETO.PATRIMONIO NETO ATRIBUIDO A LA SOCIEDAD DOMINANTE.FONDOS PROPIOS.Otras variaciones del patrimonio neto. Reclasiﬁcación de pasivos ﬁnancieros a otros instrumentos de capital. Reservas [384]
A78: 72 | B78: 1087 | C78: 17 | D78: N | E78: ESTADO TOTAL DE CAMBIOS EN EL PATRIMONIO NETO.PATRIMONIO NETO ATRIBUIDO A LA SOCIEDAD DOMINANTE.FONDOS PROPIOS. Otras variaciones del patrimonio neto. Reclasiﬁcación de pasivos ﬁnancieros a otros instrumentos de capital. Otros instrumentos de capital [385]
A79: 73 | B79: 1104 | C79: 17 | D79: N | E79: ESTADO TOTAL DE CAMBIOS EN EL PATRIMONIO NETO.PATRIMONIO NETO ATRIBUIDO A LA SOCIEDAD DOMINANTE.FONDOS PROPIOS. Otras variaciones del patrimonio neto. Reclasiﬁcación de pasivos ﬁnancieros a otros instrumentos de capital. Menos: Valores propios [386]
A80: 74 | B80: 1121 | C80: 17 | D80: N | E80: ESTADO TOTAL DE CAMBIOS EN EL PATRIMONIO NETO.PATRIMONIO NETO ATRIBUIDO A LA SOCIEDAD DOMINANTE.FONDOS PROPIOS. Otras variaciones del patrimonio neto. Reclasiﬁcación de pasivos ﬁnancieros a otros instrumentos de capital. Resultado del ejercicio atribuido a la sociedad [387]
A81: 75 | B81: 1138 | C81: 17 | D81: N | E81: ESTADO TOTAL DE CAMBIOS EN EL PATRIMONIO NETO.PATRIMONIO NETO ATRIBUIDO A LA SOCIEDAD DOMINANTE.FONDOS PROPIOS. Otras variaciones del patrimonio neto. Reclasiﬁcación de otros instrumentos de capital a pasivos ﬁnancieros. Capital /Fondo de dotación [392]
A82: 76 | B82: 1155 | C82: 17 | D82: N | E82: ESTADO TOTAL DE CAMBIOS EN EL PATRIMONIO NETO.PATRIMONIO NETO ATRIBUIDO A LA SOCIEDAD DOMINANTE.FONDOS PROPIOS.Otras variaciones del patrimonio neto. Reclasiﬁcación de otros instrumentos de capital a pasivos ﬁnancieros. Prima de emisión [393]
A83: 77 | B83: 1172 | C83: 17 | D83: N | E83: ESTADO TOTAL DE CAMBIOS EN EL PATRIMONIO NETO.PATRIMONIO NETO ATRIBUIDO A LA SOCIEDAD DOMINANTE.FONDOS PROPIOS.Otras variaciones del patrimonio neto. Reclasiﬁcación de otros instrumentos de capital a pasivos ﬁnancieros. Reservas [394]
A84: 78 | B84: 1189 | C84: 17 | D84: N | E84: ESTADO TOTAL DE CAMBIOS EN EL PATRIMONIO NETO.PATRIMONIO NETO ATRIBUIDO A LA SOCIEDAD DOMINANTE.FONDOS PROPIOS. Otras variaciones del patrimonio neto. Reclasiﬁcación de otros instrumentos de capital a pasivos ﬁnancieros. Otros instrumentos de capital [395]
A85: 79 | B85: 1206 | C85: 17 | D85: N | E85: ESTADO TOTAL DE CAMBIOS EN EL PATRIMONIO NETO.PATRIMONIO NETO ATRIBUIDO A LA SOCIEDAD DOMINANTE.FONDOS PROPIOS. Otras variaciones del patrimonio neto. Reclasiﬁcación de otros instrumentos de capital a pasivos ﬁnancieros. Menos: Valores propios [396]
A86: 80 | B86: 1223 | C86: 17 | D86: N | E86: ESTADO TOTAL DE CAMBIOS EN EL PATRIMONIO NETO.PATRIMONIO NETO ATRIBUIDO A LA SOCIEDAD DOMINANTE.FONDOS PROPIOS. Otras variaciones del patrimonio neto. Reclasiﬁcación de otros instrumentos de capital a pasivos ﬁnancieros. Resultado del ejercicio atribuido a la sociedad [397]
A87: 81 | B87: 1240 | C87: 17 | D87: N | E87: ESTADO TOTAL DE CAMBIOS EN EL PATRIMONIO NETO.PATRIMONIO NETO ATRIBUIDO A LA SOCIEDAD DOMINANTE.FONDOS PROPIOS. Otras variaciones del patrimonio neto. Distribución de dividendos / Remuneración a los socios. Capital /Fondo de dotación [402]
A88: 82 | B88: 1257 | C88: 17 | D88: N | E88: ESTADO TOTAL DE CAMBIOS EN EL PATRIMONIO NETO.PATRIMONIO NETO ATRIBUIDO A LA SOCIEDAD DOMINANTE.FONDOS PROPIOS.Otras variaciones del patrimonio neto. Distribución de dividendos / Remuneración a los socios. Prima de emisión [403]
A89: 83 | B89: 1274 | C89: 17 | D89: N | E89: ESTADO TOTAL DE CAMBIOS EN EL PATRIMONIO NETO.PATRIMONIO NETO ATRIBUIDO A LA SOCIEDAD DOMINANTE.FONDOS PROPIOS.Otras variaciones del patrimonio neto. Distribución de dividendos / Remuneración a los socios. Reservas [404]
A90: 84 | B90: 1291 | C90: 17 | D90: N | E90: ESTADO TOTAL DE CAMBIOS EN EL PATRIMONIO NETO.PATRIMONIO NETO ATRIBUIDO A LA SOCIEDAD DOMINANTE.FONDOS PROPIOS. Otras variaciones del patrimonio neto. Distribución de dividendos / Remuneración a los socios. Otros instrumentos de capital [405]
A91: 85 | B91: 1308 | C91: 17 | D91: N | E91: ESTADO TOTAL DE CAMBIOS EN EL PATRIMONIO NETO.PATRIMONIO NETO ATRIBUIDO A LA SOCIEDAD DOMINANTE.FONDOS PROPIOS. Otras variaciones del patrimonio neto. Distribución de dividendos / Remuneración a los socios. Menos: Valores propios [406]
A92: 86 | B92: 1325 | C92: 17 | D92: N | E92: ESTADO TOTAL DE CAMBIOS EN EL PATRIMONIO NETO.PATRIMONIO NETO ATRIBUIDO A LA SOCIEDAD DOMINANTE.FONDOS PROPIOS. Otras variaciones del patrimonio neto. Distribución de dividendos / Remuneración a los socios. Resultado del ejercicio atribuido a la sociedad [407]
A93: 87 | B93: 1342 | C93: 17 | D93: N | E93: ESTADO TOTAL DE CAMBIOS EN EL PATRIMONIO NETO.PATRIMONIO NETO ATRIBUIDO A LA SOCIEDAD DOMINANTE.FONDOS PROPIOS. Otras variaciones del patrimonio neto. Operaciones con instrumentos de capital propio (neto). Capital /Fondo de dotación [412]
A94: 88 | B94: 1359 | C94: 17 | D94: N | E94: ESTADO TOTAL DE CAMBIOS EN EL PATRIMONIO NETO.PATRIMONIO NETO ATRIBUIDO A LA SOCIEDAD DOMINANTE.FONDOS PROPIOS.Otras variaciones del patrimonio neto. Operaciones con instrumentos de capital propio (neto). Prima de emisión [413]
A95: 89 | B95: 1376 | C95: 17 | D95: N | E95: ESTADO TOTAL DE CAMBIOS EN EL PATRIMONIO NETO.PATRIMONIO NETO ATRIBUIDO A LA SOCIEDAD DOMINANTE.FONDOS PROPIOS.Otras variaciones del patrimonio neto. Operaciones con instrumentos de capital propio (neto). Reservas [414]
A96: 90 | B96: 1393 | C96: 17 | D96: N | E96: ESTADO TOTAL DE CAMBIOS EN EL PATRIMONIO NETO.PATRIMONIO NETO ATRIBUIDO A LA SOCIEDAD DOMINANTE.FONDOS PROPIOS. Otras variaciones del patrimonio neto. Operaciones con instrumentos de capital propio (neto). Otros instrumentos de capital [415]
A97: 91 | B97: 1410 | C97: 17 | D97: N | E97: ESTADO TOTAL DE CAMBIOS EN EL PATRIMONIO NETO.PATRIMONIO NETO ATRIBUIDO A LA SOCIEDAD DOMINANTE.FONDOS PROPIOS. Otras variaciones del patrimonio neto. Operaciones con instrumentos de capital propio (neto). Menos: Valores propios [416]
A98: 92 | B98: 1427 | C98: 17 | D98: N | E98: ESTADO TOTAL DE CAMBIOS EN EL PATRIMONIO NETO.PATRIMONIO NETO ATRIBUIDO A LA SOCIEDAD DOMINANTE.FONDOS PROPIOS. Otras variaciones del patrimonio neto. Operaciones con instrumentos de capital propio (neto). Resultado del ejercicio atribuido a la sociedad [417]
A99: 93 | B99: 1444 | C99: 17 | D99: N | E99: ESTADO TOTAL DE CAMBIOS EN EL PATRIMONIO NETO.PATRIMONIO NETO ATRIBUIDO A LA SOCIEDAD DOMINANTE.FONDOS PROPIOS. Otras variaciones del patrimonio neto. Traspasos entre partidas de patrimonio neto. Capital /Fondo de dotación [422]
A100: 94 | B100: 1461 | C100: 17 | D100: N | E100: ESTADO TOTAL DE CAMBIOS EN EL PATRIMONIO NETO.PATRIMONIO NETO ATRIBUIDO A LA SOCIEDAD DOMINANTE.FONDOS PROPIOS.Otras variaciones del patrimonio neto. Traspasos entre partidas de patrimonio neto. Prima de emisión [423]
A101: 95 | B101: 1478 | C101: 17 | D101: N | E101: ESTADO TOTAL DE CAMBIOS EN EL PATRIMONIO NETO.PATRIMONIO NETO ATRIBUIDO A LA SOCIEDAD DOMINANTE.FONDOS PROPIOS.Otras variaciones del patrimonio neto. Traspasos entre partidas de patrimonio neto. Reservas [424]
A102: 96 | B102: 1495 | C102: 17 | D102: N | E102: ESTADO TOTAL DE CAMBIOS EN EL PATRIMONIO NETO.PATRIMONIO NETO ATRIBUIDO A LA SOCIEDAD DOMINANTE.FONDOS PROPIOS. Otras variaciones del patrimonio neto. Traspasos entre partidas de patrimonio neto. Otros instrumentos de capital [425]
A103: 97 | B103: 1512 | C103: 17 | D103: N | E103: ESTADO TOTAL DE CAMBIOS EN EL PATRIMONIO NETO.PATRIMONIO NETO ATRIBUIDO A LA SOCIEDAD DOMINANTE.FONDOS PROPIOS. Otras variaciones del patrimonio neto. Traspasos entre partidas de patrimonio neto. Menos: Valores propios [426]
A104: 98 | B104: 1529 | C104: 17 | D104: N | E104: ESTADO TOTAL DE CAMBIOS EN EL PATRIMONIO NETO.PATRIMONIO NETO ATRIBUIDO A LA SOCIEDAD DOMINANTE.FONDOS PROPIOS. Otras variaciones del patrimonio neto. Traspasos entre partidas de patrimonio neto. Resultado del ejercicio atribuido a la sociedad [427]
A105: 99 | B105: 1546 | C105: 17 | D105: N | E105: ESTADO TOTAL DE CAMBIOS EN EL PATRIMONIO NETO.PATRIMONIO NETO ATRIBUIDO A LA SOCIEDAD DOMINANTE.FONDOS PROPIOS. Otras variaciones del patrimonio neto. Incrementos (reducciones) por combinaciones de negocios. Capital /Fondo de dotación [432]
A106: 100 | B106: 1563 | C106: 17 | D106: N | E106: ESTADO TOTAL DE CAMBIOS EN EL PATRIMONIO NETO.PATRIMONIO NETO ATRIBUIDO A LA SOCIEDAD DOMINANTE.FONDOS PROPIOS.Otras variaciones del patrimonio neto. Incrementos (reducciones) por combinaciones de negocios. Prima de emisión [433]
A107: =A106+1 -> 101 | B107: =B106+C106 -> 1580 | C107: 17 | D107: N | E107: ESTADO TOTAL DE CAMBIOS EN EL PATRIMONIO NETO.PATRIMONIO NETO ATRIBUIDO A LA SOCIEDAD DOMINANTE.FONDOS PROPIOS.Otras variaciones del patrimonio neto. Incrementos (reducciones) por combinaciones de negocios. Reservas [434]
A108: 102 | B108: 1597 | C108: 17 | D108: N | E108: ESTADO TOTAL DE CAMBIOS EN EL PATRIMONIO NETO.PATRIMONIO NETO ATRIBUIDO A LA SOCIEDAD DOMINANTE.FONDOS PROPIOS. Otras variaciones del patrimonio neto. Incrementos (reducciones) por combinaciones de negocios. Otros instrumentos de capital [435]
A109: 103 | B109: 1614 | C109: 17 | D109: N | E109: ESTADO TOTAL DE CAMBIOS EN EL PATRIMONIO NETO.PATRIMONIO NETO ATRIBUIDO A LA SOCIEDAD DOMINANTE.FONDOS PROPIOS. Otras variaciones del patrimonio neto. Incrementos (reducciones) por combinaciones de negocios. Menos: Valores propios [436]
A110: 104 | B110: 1631 | C110: 17 | D110: N | E110: ESTADO TOTAL DE CAMBIOS EN EL PATRIMONIO NETO.PATRIMONIO NETO ATRIBUIDO A LA SOCIEDAD DOMINANTE.FONDOS PROPIOS. Otras variaciones del patrimonio neto. Incrementos (reducciones) por combinaciones de negocios. Resultado del ejercicio atribuido a la sociedad [437]
A111: 105 | B111: 1648 | C111: 17 | D111: N | E111: ESTADO TOTAL DE CAMBIOS EN EL PATRIMONIO NETO.PATRIMONIO NETO ATRIBUIDO A LA SOCIEDAD DOMINANTE.FONDOS PROPIOS. Otras variaciones del patrimonio neto. Dotación discrecional a obras y fondos sociales (sólo Cajas de ahorros y Cooperativas de crédito). Capital /Fondo de dotación [442]
A112: 106 | B112: 1665 | C112: 17 | D112: N | E112: ESTADO TOTAL DE CAMBIOS EN EL PATRIMONIO NETO.PATRIMONIO NETO ATRIBUIDO A LA SOCIEDAD DOMINANTE.FONDOS PROPIOS.Otras variaciones del patrimonio neto. Dotación discrecional a obras y fondos sociales (sólo Cajas de ahorros y Cooperativas de crédito). Prima de emisión [443]
A113: 107 | B113: 1682 | C113: 17 | D113: N | E113: ESTADO TOTAL DE CAMBIOS EN EL PATRIMONIO NETO.PATRIMONIO NETO ATRIBUIDO A LA SOCIEDAD DOMINANTE.FONDOS PROPIOS.Otras variaciones del patrimonio neto. Dotación discrecional a obras y fondos sociales (sólo Cajas de ahorros y Cooperativas de crédito). Reservas [444]
A114: 108 | B114: 1699 | C114: 17 | D114: N | E114: ESTADO TOTAL DE CAMBIOS EN EL PATRIMONIO NETO.PATRIMONIO NETO ATRIBUIDO A LA SOCIEDAD DOMINANTE.FONDOS PROPIOS. Otras variaciones del patrimonio neto. Dotación discrecional a obras y fondos sociales (sólo Cajas de ahorros y Cooperativas de crédito). Otros instrumentos de capital [445]
A115: 109 | B115: 1716 | C115: 17 | D115: N | E115: ESTADO TOTAL DE CAMBIOS EN EL PATRIMONIO NETO.PATRIMONIO NETO ATRIBUIDO A LA SOCIEDAD DOMINANTE.FONDOS PROPIOS. Otras variaciones del patrimonio neto. Dotación discrecional a obras y fondos sociales (sólo Cajas de ahorros y Cooperativas de crédito). Menos: Valores propios [446]
A116: 110 | B116: 1733 | C116: 17 | D116: N | E116: ESTADO TOTAL DE CAMBIOS EN EL PATRIMONIO NETO.PATRIMONIO NETO ATRIBUIDO A LA SOCIEDAD DOMINANTE.FONDOS PROPIOS. Otras variaciones del patrimonio neto. Dotación discrecional a obras y fondos sociales (sólo Cajas de ahorros y Cooperativas de crédito). Resultado del ejercicio atribuido a la sociedad [447]
A117: 111 | B117: 1750 | C117: 17 | D117: N | E117: ESTADO TOTAL DE CAMBIOS EN EL PATRIMONIO NETO.PATRIMONIO NETO ATRIBUIDO A LA SOCIEDAD DOMINANTE.FONDOS PROPIOS. Otras variaciones del patrimonio neto. Pagos con instrumentos de capital . Capital /Fondo de dotación [452]
A118: 112 | B118: 1767 | C118: 17 | D118: N | E118: ESTADO TOTAL DE CAMBIOS EN EL PATRIMONIO NETO.PATRIMONIO NETO ATRIBUIDO A LA SOCIEDAD DOMINANTE.FONDOS PROPIOS.Otras variaciones del patrimonio neto. Pagos con instrumentos de capital . Prima de emisión [453]
A119: 113 | B119: 1784 | C119: 17 | D119: N | E119: ESTADO TOTAL DE CAMBIOS EN EL PATRIMONIO NETO.PATRIMONIO NETO ATRIBUIDO A LA SOCIEDAD DOMINANTE.FONDOS PROPIOS.Otras variaciones del patrimonio neto. Pagos con instrumentos de capital . Reservas [454]
A120: 114 | B120: 1801 | C120: 17 | D120: N | E120: ESTADO TOTAL DE CAMBIOS EN EL PATRIMONIO NETO.PATRIMONIO NETO ATRIBUIDO A LA SOCIEDAD DOMINANTE.FONDOS PROPIOS. Otras variaciones del patrimonio neto. Pagos con instrumentos de capital . Otros instrumentos de capital [455]
A121: 115 | B121: 1818 | C121: 17 | D121: N | E121: ESTADO TOTAL DE CAMBIOS EN EL PATRIMONIO NETO.PATRIMONIO NETO ATRIBUIDO A LA SOCIEDAD DOMINANTE.FONDOS PROPIOS. Otras variaciones del patrimonio neto. Pagos con instrumentos de capital . Menos: Valores propios [456]
A122: 116 | B122: 1835 | C122: 17 | D122: N | E122: ESTADO TOTAL DE CAMBIOS EN EL PATRIMONIO NETO.PATRIMONIO NETO ATRIBUIDO A LA SOCIEDAD DOMINANTE.FONDOS PROPIOS. Otras variaciones del patrimonio neto. Pagos con instrumentos de capital . Resultado del ejercicio atribuido a la sociedad [457]
A123: 117 | B123: 1852 | C123: 17 | D123: N | E123: ESTADO TOTAL DE CAMBIOS EN EL PATRIMONIO NETO.PATRIMONIO NETO ATRIBUIDO A LA SOCIEDAD DOMINANTE.FONDOS PROPIOS. Otras variaciones del patrimonio neto. Resto de incrementos (reducciones) de patrimonio neto . Capital /Fondo de dotación [462]
A124: 118 | B124: 1869 | C124: 17 | D124: N | E124: ESTADO TOTAL DE CAMBIOS EN EL PATRIMONIO NETO.PATRIMONIO NETO ATRIBUIDO A LA SOCIEDAD DOMINANTE.FONDOS PROPIOS.Otras variaciones del patrimonio neto. Resto de incrementos (reducciones) de patrimonio neto. Prima de emisión [463]
A125: 119 | B125: 1886 | C125: 17 | D125: N | E125: ESTADO TOTAL DE CAMBIOS EN EL PATRIMONIO NETO.PATRIMONIO NETO ATRIBUIDO A LA SOCIEDAD DOMINANTE.FONDOS PROPIOS.Otras variaciones del patrimonio neto. Resto de incrementos (reducciones) de patrimonio neto. Reservas [464]
A126: 120 | B126: 1903 | C126: 17 | D126: N | E126: ESTADO TOTAL DE CAMBIOS EN EL PATRIMONIO NETO.PATRIMONIO NETO ATRIBUIDO A LA SOCIEDAD DOMINANTE.FONDOS PROPIOS. Otras variaciones del patrimonio neto. Resto de incrementos (reducciones) de patrimonio neto. Otros instrumentos de capital [465]
A127: 121 | B127: 1920 | C127: 17 | D127: N | E127: ESTADO TOTAL DE CAMBIOS EN EL PATRIMONIO NETO.PATRIMONIO NETO ATRIBUIDO A LA SOCIEDAD DOMINANTE.FONDOS PROPIOS. Otras variaciones del patrimonio neto. Resto de incrementos (reducciones) de patrimonio neto. Menos: Valores propios [466]
A128: 122 | B128: 1937 | C128: 17 | D128: N | E128: ESTADO TOTAL DE CAMBIOS EN EL PATRIMONIO NETO.PATRIMONIO NETO ATRIBUIDO A LA SOCIEDAD DOMINANTE.FONDOS PROPIOS. Otras variaciones del patrimonio neto. Resto de incrementos (reducciones) de patrimonio neto. Resultado del ejercicio atribuido a la sociedad [467]
A129: 123 | B129: 1954 | C129: 17 | D129: N | E129: ESTADO TOTAL DE CAMBIOS EN EL PATRIMONIO NETO.PATRIMONIO NETO ATRIBUIDO A LA SOCIEDAD DOMINANTE.FONDOS PROPIOS. SALDO, FINAL DEL EJERCICIO . Capital /Fondo de dotación [472]
A130: 124 | B130: 1971 | C130: 17 | D130: N | E130: ESTADO TOTAL DE CAMBIOS EN EL PATRIMONIO NETO.PATRIMONIO NETO ATRIBUIDO A LA SOCIEDAD DOMINANTE.FONDOS PROPIOS.SALDO, FINAL DEL EJERCICIO. Prima de emisión [473]
A131: 125 | B131: 1988 | C131: 17 | D131: N | E131: ESTADO TOTAL DE CAMBIOS EN EL PATRIMONIO NETO.PATRIMONIO NETO ATRIBUIDO A LA SOCIEDAD DOMINANTE.FONDOS PROPIOS.SALDO, FINAL DEL EJERCICIO . Reservas [474]
A132: 126 | B132: 2005 | C132: 17 | D132: N | E132: ESTADO TOTAL DE CAMBIOS EN EL PATRIMONIO NETO.PATRIMONIO NETO ATRIBUIDO A LA SOCIEDAD DOMINANTE.FONDOS PROPIOS. SALDO, FINAL DEL EJERCICIO . Otros instrumentos de capital [475]
A133: 127 | B133: 2022 | C133: 17 | D133: N | E133: ESTADO TOTAL DE CAMBIOS EN EL PATRIMONIO NETO.PATRIMONIO NETO ATRIBUIDO A LA SOCIEDAD DOMINANTE.FONDOS PROPIOS. SALDO, FINAL DEL EJERCICIO. Menos: Valores propios [476]
A134: 128 | B134: 2039 | C134: 17 | D134: N | E134: ESTADO TOTAL DE CAMBIOS EN EL PATRIMONIO NETO.PATRIMONIO NETO ATRIBUIDO A LA SOCIEDAD DOMINANTE.FONDOS PROPIOS. SALDO, FINAL DEL EJERCICIO. Resultado del ejercicio atribuido a la sociedad [477]
A135: =A134+1 -> 129 | B135: =B134+C134 -> 2056 | C135: 12 | D135: An | E135: Fin de registro. | F135: </T22005B01>
A136: Total: | C136: =B135+C135-1 -> 2067

Sheet T22005C01
B1: Agencia Tributaria
A3: =+T22001000!A3 -> Modelo 220 | C3: =+T22001000!C3 -> Diseño de registro. 2014
A4: =+T22001000!A4 -> Versión 1.2 | C4: Impuesto Sobre Sociedades. Régimen de consolidación Fiscal. GRUPO DE ENTIDADES DE CRÉDITO. ESTADO DE CAMBIOS EN EL PATRIMONIO NETO: ESTADO TOTAL DE CAMBIOS EN EL PATRIMONIO NETO CONSOLIDADO (II)
A6: Nº | B6: Posic. | C6: Lon | D6: Tipo | E6: Descripción | F6: Contenido
A7: 1 | B7: 1 | C7: 2 | D7: An | E7: Inicio del identificador de modelo y página. | F7: <T
A8: =+A7+1 -> 2 | B8: =C7+B7 -> 3 | C8: 3 | D8: Num | E8: Modelo. | F8: 220
A9: 3 | B9: 6 | C9: 2 | D9: An | E9: Página. | F9: 05
A10: 4 | B10: 8 | C10: 1 | D10: An | E10: Letra | F10: C
A11: 5 | B11: 9 | C11: 2 | D11: Num | E11: Hoja | F11: 01
A12: 6 | B12: 11 | C12: 1 | D12: An | E12: Fin de identificador de modelo y página. Constante ">". | F12: >
A13: 7 | B13: 12 | C13: 1 | D13: An | E13: Indicador de página complementaria.
A14: =A13+1 -> 8 | B14: =B13+C13 -> 13 | C14: 3 | D14: Num | E14: Número de orden de la página complementaria
A15: =A14+1 -> 9 | B15: =B14+C14 -> 16 | C15: 17 | D15: N | E15: ESTADO TOTAL DE CAMBIOS EN EL PATRIMONIO NETO (Cont.). PATRIMONIO NETO ATRIBUIDO A LA SOCIEDAD DOMINANTE. FONDOS PROPIOS. SALDO, FINAL DEL EJERCICIO ANTERIOR. Menos: dividendos y retribuciones [288]
A16: 10 | B16: 33 | C16: 17 | D16: N | E16: ESTADO TOTAL DE CAMBIOS EN EL PATRIMONIO NETO (Cont.). PATRIMONIO NETO ATRIBUIDO A LA SOCIEDAD DOMINANTE. FONDOS PROPIOS. SALDO, FINAL DEL EJERCICIO ANTERIOR. Total fondos propios [289]
A17: 11 | B17: 50 | C17: 17 | D17: N | E17: ESTADO TOTAL DE CAMBIOS EN EL PATRIMONIO NETO (Cont.). PATRIMONIO NETO ATRIBUIDO A LA SOCIEDAD DOMINANTE. SALDO, FINAL DEL EJERCICIO ANTERIOR. AJUSTES POR VALORACIÓN [290]
A18: 12 | B18: 67 | C18: 17 | D18: N | E18: ESTADO TOTAL DE CAMBIOS EN EL PATRIMONIO NETO (Cont.). PATRIMONIO NETO ATRIBUIDO A LA SOCIEDAD DOMINANTE. SALDO, FINAL DEL EJERCICIO ANTERIOR. TOTAL [518]
A19: 13 | B19: 84 | C19: 17 | D19: N | E19: ESTADO TOTAL DE CAMBIOS EN EL PATRIMONIO NETO (Cont.). SALDO, FINAL DEL EJERCICIO ANTERIOR.INTERESES MINORITARIOS [538]
A20: 14 | B20: 101 | C20: 17 | D20: N | E20: ESTADO TOTAL DE CAMBIOS EN EL PATRIMONIO NETO (Cont.). SALDO, FINAL DEL EJERCICIO ANTERIOR.TOTAL PATRIMONIO NETO [291]
A21: 15 | B21: 118 | C21: 17 | D21: N | E21: ESTADO TOTAL DE CAMBIOS EN EL PATRIMONIO NETO (Cont.). PATRIMONIO NETO ATRIBUIDO A LA SOCIEDAD DOMINANTE. FONDOS PROPIOS. SALDO, FINAL DEL EJERCICIO ANTERIOR. Ajustes por cambio de criterio contable. Menos: dividendos y retribuciones [298]
A22: 16 | B22: 135 | C22: 17 | D22: N | E22: ESTADO TOTAL DE CAMBIOS EN EL PATRIMONIO NETO (Cont.). PATRIMONIO NETO ATRIBUIDO A LA SOCIEDAD DOMINANTE. FONDOS PROPIOS. SALDO, FINAL DEL EJERCICIO ANTERIOR.Ajustes por cambio de criterio contable. Total fondos propios [299]
A23: 17 | B23: 152 | C23: 17 | D23: N | E23: ESTADO TOTAL DE CAMBIOS EN EL PATRIMONIO NETO (Cont.). PATRIMONIO NETO ATRIBUIDO A LA SOCIEDAD DOMINANTE. SALDO, FINAL DEL EJERCICIO ANTERIOR. Ajustes por cambio de criterio contable. AJUSTES POR VALORACIÓN [300]
A24: 18 | B24: 169 | C24: 17 | D24: N | E24: ESTADO TOTAL DE CAMBIOS EN EL PATRIMONIO NETO (Cont.). PATRIMONIO NETO ATRIBUIDO A LA SOCIEDAD DOMINANTE. SALDO, FINAL DEL EJERCICIO ANTERIOR. Ajustes por cambio de criterio contable. TOTAL [519]
A25: 19 | B25: 186 | C25: 17 | D25: N | E25: ESTADO TOTAL DE CAMBIOS EN EL PATRIMONIO NETO (Cont.). SALDO, FINAL DEL EJERCICIO ANTERIOR. Ajustes por cambio de criterio contable. INTERESES MINORITARIOS [539]
A26: 20 | B26: 203 | C26: 17 | D26: N | E26: ESTADO TOTAL DE CAMBIOS EN EL PATRIMONIO NETO (Cont.). SALDO, FINAL DEL EJERCICIO ANTERIOR. Ajustes por cambio de criterio contable. TOTAL PATRIMONIO NETO [301]
A27: 21 | B27: 220 | C27: 17 | D27: N | E27: ESTADO TOTAL DE CAMBIOS EN EL PATRIMONIO NETO (Cont.). PATRIMONIO NETO ATRIBUIDO A LA SOCIEDAD DOMINANTE. FONDOS PROPIOS. SALDO, FINAL DEL EJERCICIO ANTERIOR. Ajustes por errores. Menos: dividendos y retribuciones [308]
A28: 22 | B28: 237 | C28: 17 | D28: N | E28: ESTADO TOTAL DE CAMBIOS EN EL PATRIMONIO NETO (Cont.). PATRIMONIO NETO ATRIBUIDO A LA SOCIEDAD DOMINANTE. FONDOS PROPIOS. SALDO, FINAL DEL EJERCICIO ANTERIOR.Ajustes por errores. Total fondos propios [309]
A29: 23 | B29: 254 | C29: 17 | D29: N | E29: ESTADO TOTAL DE CAMBIOS EN EL PATRIMONIO NETO (Cont.). PATRIMONIO NETO ATRIBUIDO A LA SOCIEDAD DOMINANTE. SALDO, FINAL DEL EJERCICIO ANTERIOR. Ajustes por errores. AJUSTES POR VALORACIÓN [310]
A30: 24 | B30: 271 | C30: 17 | D30: N | E30: ESTADO TOTAL DE CAMBIOS EN EL PATRIMONIO NETO (Cont.). PATRIMONIO NETO ATRIBUIDO A LA SOCIEDAD DOMINANTE. SALDO, FINAL DEL EJERCICIO ANTERIOR. Ajustes por errores. TOTAL [520]
A31: 25 | B31: 288 | C31: 17 | D31: N | E31: ESTADO TOTAL DE CAMBIOS EN EL PATRIMONIO NETO (Cont.). SALDO, FINAL DEL EJERCICIO ANTERIOR. Ajustes por errores. INTERESES MINORITARIOS [540]
A32: 26 | B32: 305 | C32: 17 | D32: N | E32: ESTADO TOTAL DE CAMBIOS EN EL PATRIMONIO NETO (Cont.). SALDO, FINAL DEL EJERCICIO ANTERIOR. Ajustes por errores. TOTAL PATRIMONIO NETO [311]
A33: 27 | B33: 322 | C33: 17 | D33: N | E33: ESTADO TOTAL DE CAMBIOS EN EL PATRIMONIO NETO (Cont.). PATRIMONIO NETO ATRIBUIDO A LA SOCIEDAD DOMINANTE. FONDOS PROPIOS. SALDO AJUSTADO, INICIO DEL EJERCICIO. Menos: dividendos y retribuciones [318]
A34: 28 | B34: 339 | C34: 17 | D34: N | E34: ESTADO TOTAL DE CAMBIOS EN EL PATRIMONIO NETO (Cont.). PATRIMONIO NETO ATRIBUIDO A LA SOCIEDAD DOMINANTE. FONDOS PROPIOS. SALDO AJUSTADO, INICIO DEL EJERCICIO. Total fondos propios [319]
A35: 29 | B35: 356 | C35: 17 | D35: N | E35: ESTADO TOTAL DE CAMBIOS EN EL PATRIMONIO NETO (Cont.). PATRIMONIO NETO ATRIBUIDO A LA SOCIEDAD DOMINANTE. SALDO AJUSTADO, INICIO DEL EJERCICIO. AJUSTES POR VALORACIÓN [320]
A36: 30 | B36: 373 | C36: 17 | D36: N | E36: ESTADO TOTAL DE CAMBIOS EN EL PATRIMONIO NETO (Cont.). PATRIMONIO NETO ATRIBUIDO A LA SOCIEDAD DOMINANTE.SALDO AJUSTADO, INICIO DEL EJERCICIO. TOTAL [521]
A37: 31 | B37: 390 | C37: 17 | D37: N | E37: ESTADO TOTAL DE CAMBIOS EN EL PATRIMONIO NETO (Cont.). SALDO AJUSTADO, INICIO DEL EJERCICIO. INTERESES MINORITARIOS [541]
A38: 32 | B38: 407 | C38: 17 | D38: N | E38: ESTADO TOTAL DE CAMBIOS EN EL PATRIMONIO NETO (Cont.). SALDO AJUSTADO, INICIO DEL EJERCICIO. TOTAL PATRIMONIO NETO [321]
A39: 33 | B39: 424 | C39: 17 | D39: N | E39: ESTADO TOTAL DE CAMBIOS EN EL PATRIMONIO NETO (Cont.). PATRIMONIO NETO ATRIBUIDO A LA SOCIEDAD DOMINANTE. FONDOS PROPIOS. Total ingresos y gastos reconocidos. Menos: dividendos y retribuciones [328]
A40: 34 | B40: 441 | C40: 17 | D40: N | E40: ESTADO TOTAL DE CAMBIOS EN EL PATRIMONIO NETO (Cont.). PATRIMONIO NETO ATRIBUIDO A LA SOCIEDAD DOMINANTE. FONDOS PROPIOS. Total ingresos y gastos reconocidos. Total fondos propios [329]
A41: 35 | B41: 458 | C41: 17 | D41: N | E41: ESTADO TOTAL DE CAMBIOS EN EL PATRIMONIO NETO (Cont.). PATRIMONIO NETO ATRIBUIDO A LA SOCIEDAD DOMINANTE. Total ingresos y gastos reconocidos. AJUSTES POR VALORACIÓN [330]
A42: 36 | B42: 475 | C42: 17 | D42: N | E42: ESTADO TOTAL DE CAMBIOS EN EL PATRIMONIO NETO (Cont.). PATRIMONIO NETO ATRIBUIDO A LA SOCIEDAD DOMINANTE.Total ingresos y gastos reconocidos. TOTAL [522]
A43: =A42+1 -> 37 | B43: =B42+C42 -> 492 | C43: 17 | D43: N | E43: ESTADO TOTAL DE CAMBIOS EN EL PATRIMONIO NETO (Cont.). Total ingresos y gastos reconocidos. INTERESES MINORITARIOS [542]
A44: 38 | B44: 509 | C44: 17 | D44: N | E44: ESTADO TOTAL DE CAMBIOS EN EL PATRIMONIO NETO (Cont.). Total ingresos y gastos reconocidos. TOTAL PATRIMONIO NETO [331]
A45: 39 | B45: 526 | C45: 17 | D45: N | E45: ESTADO TOTAL DE CAMBIOS EN EL PATRIMONIO NETO (Cont.). PATRIMONIO NETO ATRIBUIDO A LA SOCIEDAD DOMINANTE. FONDOS PROPIOS. Otras variaciones del patrimonio neto. Menos: dividendos y retribuciones [338]
A46: 40 | B46: 543 | C46: 17 | D46: N | E46: ESTADO TOTAL DE CAMBIOS EN EL PATRIMONIO NETO (Cont.). PATRIMONIO NETO ATRIBUIDO A LA SOCIEDAD DOMINANTE. FONDOS PROPIOS. TOtras variaciones del patrimonio neto. Total fondos propios [339]
A47: 41 | B47: 560 | C47: 17 | D47: N | E47: ESTADO TOTAL DE CAMBIOS EN EL PATRIMONIO NETO (Cont.). PATRIMONIO NETO ATRIBUIDO A LA SOCIEDAD DOMINANTE. Otras variaciones del patrimonio neto. AJUSTES POR VALORACIÓN [340]
A48: 42 | B48: 577 | C48: 17 | D48: N | E48: ESTADO TOTAL DE CAMBIOS EN EL PATRIMONIO NETO (Cont.). PATRIMONIO NETO ATRIBUIDO A LA SOCIEDAD DOMINANTE.Otras variaciones del patrimonio neto. TOTAL [523]
A49: 43 | B49: 594 | C49: 17 | D49: N | E49: ESTADO TOTAL DE CAMBIOS EN EL PATRIMONIO NETO (Cont.). Otras variaciones del patrimonio neto. INTERESES MINORITARIOS [543]
A50: 44 | B50: 611 | C50: 17 | D50: N | E50: ESTADO TOTAL DE CAMBIOS EN EL PATRIMONIO NETO (Cont.). Otras variaciones del patrimonio neto. TOTAL PATRIMONIO NETO [341]
A51: 45 | B51: 628 | C51: 17 | D51: N | E51: ESTADO TOTAL DE CAMBIOS EN EL PATRIMONIO NETO (Cont.). PATRIMONIO NETO ATRIBUIDO A LA SOCIEDAD DOMINANTE. FONDOS PROPIOS. Aumentos de capital / fondo de dotación. Menos: dividendos y retribuciones [348]
A52: 46 | B52: 645 | C52: 17 | D52: N | E52: ESTADO TOTAL DE CAMBIOS EN EL PATRIMONIO NETO (Cont.). PATRIMONIO NETO ATRIBUIDO A LA SOCIEDAD DOMINANTE. FONDOS PROPIOS.Aumentos de capital / fondo de dotación. Total fondos propios [349]
A53: 47 | B53: 662 | C53: 17 | D53: N | E53: ESTADO TOTAL DE CAMBIOS EN EL PATRIMONIO NETO (Cont.). PATRIMONIO NETO ATRIBUIDO A LA SOCIEDAD DOMINANTE. Aumentos de capital / fondo de dotación. AJUSTES POR VALORACIÓN [350]
A54: 48 | B54: 679 | C54: 17 | D54: N | E54: ESTADO TOTAL DE CAMBIOS EN EL PATRIMONIO NETO (Cont.). PATRIMONIO NETO ATRIBUIDO A LA SOCIEDAD DOMINANTE.Aumentos de capital / fondo de dotación. TOTAL [524]
A55: 49 | B55: 696 | C55: 17 | D55: N | E55: ESTADO TOTAL DE CAMBIOS EN EL PATRIMONIO NETO (Cont.). Aumentos de capital / fondo de dotación. INTERESES MINORITARIOS [544]
A56: 50 | B56: 713 | C56: 17 | D56: N | E56: ESTADO TOTAL DE CAMBIOS EN EL PATRIMONIO NETO (Cont.). Aumentos de capital / fondo de dotación. TOTAL PATRIMONIO NETO [351]
A57: 51 | B57: 730 | C57: 17 | D57: N | E57: ESTADO TOTAL DE CAMBIOS EN EL PATRIMONIO NETO (Cont.). PATRIMONIO NETO ATRIBUIDO A LA SOCIEDAD DOMINANTE. FONDOS PROPIOS. Reducciones de capital. Menos: dividendos y retribuciones [358]
A58: 52 | B58: 747 | C58: 17 | D58: N | E58: ESTADO TOTAL DE CAMBIOS EN EL PATRIMONIO NETO (Cont.). PATRIMONIO NETO ATRIBUIDO A LA SOCIEDAD DOMINANTE. FONDOS PROPIOS.Reducciones de capital. Total fondos propios [359]
A59: 53 | B59: 764 | C59: 17 | D59: N | E59: ESTADO TOTAL DE CAMBIOS EN EL PATRIMONIO NETO (Cont.). PATRIMONIO NETO ATRIBUIDO A LA SOCIEDAD DOMINANTE. Reducciones de capital. AJUSTES POR VALORACIÓN [360]
A60: 54 | B60: 781 | C60: 17 | D60: N | E60: ESTADO TOTAL DE CAMBIOS EN EL PATRIMONIO NETO (Cont.). PATRIMONIO NETO ATRIBUIDO A LA SOCIEDAD DOMINANTE.Reducciones de capital. TOTAL [525]
A61: 55 | B61: 798 | C61: 17 | D61: N | E61: ESTADO TOTAL DE CAMBIOS EN EL PATRIMONIO NETO (Cont.).Reducciones de capital. INTERESES MINORITARIOS [545]
A62: 56 | B62: 815 | C62: 17 | D62: N | E62: ESTADO TOTAL DE CAMBIOS EN EL PATRIMONIO NETO (Cont.). Reducciones de capital. TOTAL PATRIMONIO NETO [361]
A63: 57 | B63: 832 | C63: 17 | D63: N | E63: ESTADO TOTAL DE CAMBIOS EN EL PATRIMONIO NETO (Cont.). PATRIMONIO NETO ATRIBUIDO A LA SOCIEDAD DOMINANTE. FONDOS PROPIOS. Conversión de pasivos ﬁ nancieros en capital . Menos: dividendos y retribuciones [368]
A64: 58 | B64: 849 | C64: 17 | D64: N | E64: ESTADO TOTAL DE CAMBIOS EN EL PATRIMONIO NETO (Cont.). PATRIMONIO NETO ATRIBUIDO A LA SOCIEDAD DOMINANTE. FONDOS PROPIOS.Conversión de pasivos ﬁ nancieros en capital . Total fondos propios [369]
A65: 59 | B65: 866 | C65: 17 | D65: N | E65: ESTADO TOTAL DE CAMBIOS EN EL PATRIMONIO NETO (Cont.). PATRIMONIO NETO ATRIBUIDO A LA SOCIEDAD DOMINANTE. Conversión de pasivos ﬁnancieros en capital . AJUSTES POR VALORACIÓN [370]
A66: 60 | B66: 883 | C66: 17 | D66: N | E66: ESTADO TOTAL DE CAMBIOS EN EL PATRIMONIO NETO (Cont.). PATRIMONIO NETO ATRIBUIDO A LA SOCIEDAD DOMINANTE.Conversión de pasivos ﬁnancieros en capital . TOTAL [526]
A67: 61 | B67: 900 | C67: 17 | D67: N | E67: ESTADO TOTAL DE CAMBIOS EN EL PATRIMONIO NETO (Cont.).Conversión de pasivos ﬁnancieros en capital . INTERESES MINORITARIOS [546]
A68: 62 | B68: 917 | C68: 17 | D68: N | E68: ESTADO TOTAL DE CAMBIOS EN EL PATRIMONIO NETO (Cont.). Conversión de pasivos ﬁ nancieros en capital . TOTAL PATRIMONIO NETO [371]
A69: 63 | B69: 934 | C69: 17 | D69: N | E69: ESTADO TOTAL DE CAMBIOS EN EL PATRIMONIO NETO (Cont.). PATRIMONIO NETO ATRIBUIDO A LA SOCIEDAD DOMINANTE. FONDOS PROPIOS. Incrementos de otros instrumentos de capital. Menos: dividendos y retribuciones [378]
A70: 64 | B70: 951 | C70: 17 | D70: N | E70: ESTADO TOTAL DE CAMBIOS EN EL PATRIMONIO NETO (Cont.). PATRIMONIO NETO ATRIBUIDO A LA SOCIEDAD DOMINANTE. FONDOS PROPIOS.Incrementos de otros instrumentos de capital. Total fondos propios [379]
A71: 65 | B71: 968 | C71: 17 | D71: N | E71: ESTADO TOTAL DE CAMBIOS EN EL PATRIMONIO NETO (Cont.). PATRIMONIO NETO ATRIBUIDO A LA SOCIEDAD DOMINANTE. Incrementos de otros instrumentos de capital. AJUSTES POR VALORACIÓN [380]
A72: 66 | B72: 985 | C72: 17 | D72: N | E72: ESTADO TOTAL DE CAMBIOS EN EL PATRIMONIO NETO (Cont.). PATRIMONIO NETO ATRIBUIDO A LA SOCIEDAD DOMINANTE.Incrementos de otros instrumentos de capital. TOTAL [527]
A73: 67 | B73: 1002 | C73: 17 | D73: N | E73: ESTADO TOTAL DE CAMBIOS EN EL PATRIMONIO NETO (Cont.).Incrementos de otros instrumentos de capital. INTERESES MINORITARIOS [547]
A74: 68 | B74: 1019 | C74: 17 | D74: N | E74: ESTADO TOTAL DE CAMBIOS EN EL PATRIMONIO NETO (Cont.). Incrementos de otros instrumentos de capital. TOTAL PATRIMONIO NETO [381]
A75: =A74+1 -> 69 | B75: =B74+C74 -> 1036 | C75: 17 | D75: N | E75: ESTADO TOTAL DE CAMBIOS EN EL PATRIMONIO NETO (Cont.). PATRIMONIO NETO ATRIBUIDO A LA SOCIEDAD DOMINANTE. FONDOS PROPIOS. Reclasiﬁcación de pasivos ﬁnancieros a otros instrumentos de capital. Menos: dividendos y retribuciones [388]
A76: 70 | B76: 1053 | C76: 17 | D76: N | E76: ESTADO TOTAL DE CAMBIOS EN EL PATRIMONIO NETO (Cont.). PATRIMONIO NETO ATRIBUIDO A LA SOCIEDAD DOMINANTE. FONDOS PROPIOS.Reclasiﬁcación de pasivos ﬁnancieros a otros instrumentos de capital. Total fondos propios [389]
A77: 71 | B77: 1070 | C77: 17 | D77: N | E77: ESTADO TOTAL DE CAMBIOS EN EL PATRIMONIO NETO (Cont.). PATRIMONIO NETO ATRIBUIDO A LA SOCIEDAD DOMINANTE. Reclasiﬁcación de pasivos ﬁnancieros a otros instrumentos de capital. AJUSTES POR VALORACIÓN [390]
A78: 72 | B78: 1087 | C78: 17 | D78: N | E78: ESTADO TOTAL DE CAMBIOS EN EL PATRIMONIO NETO (Cont.). PATRIMONIO NETO ATRIBUIDO A LA SOCIEDAD DOMINANTE.Reclasiﬁcación de pasivos ﬁnancieros a otros instrumentos de capital TOTAL [528]
A79: 73 | B79: 1104 | C79: 17 | D79: N | E79: ESTADO TOTAL DE CAMBIOS EN EL PATRIMONIO NETO (Cont.).Reclasiﬁcación de pasivos ﬁnancieros a otros instrumentos de capital. INTERESES MINORITARIOS [548]
A80: 74 | B80: 1121 | C80: 17 | D80: N | E80: ESTADO TOTAL DE CAMBIOS EN EL PATRIMONIO NETO (Cont.). Reclasiﬁcación de pasivos ﬁnancieros a otros instrumentos de capital. TOTAL PATRIMONIO NETO [391]
A81: 75 | B81: 1138 | C81: 17 | D81: N | E81: ESTADO TOTAL DE CAMBIOS EN EL PATRIMONIO NETO (Cont.). PATRIMONIO NETO ATRIBUIDO A LA SOCIEDAD DOMINANTE. FONDOS PROPIOS. Reclasiﬁcación de otros instrumentos de capital a pasivos ﬁnancieros. Menos: dividendos y retribuciones [398]
A82: 76 | B82: 1155 | C82: 17 | D82: N | E82: ESTADO TOTAL DE CAMBIOS EN EL PATRIMONIO NETO (Cont.). PATRIMONIO NETO ATRIBUIDO A LA SOCIEDAD DOMINANTE. FONDOS PROPIOS.Reclasiﬁcación de otros instrumentos de capital a pasivos ﬁnancieros. Total fondos propios [399]
A83: 77 | B83: 1172 | C83: 17 | D83: N | E83: ESTADO TOTAL DE CAMBIOS EN EL PATRIMONIO NETO (Cont.). PATRIMONIO NETO ATRIBUIDO A LA SOCIEDAD DOMINANTE. Reclasiﬁcación de otros instrumentos de capital a pasivos ﬁnancieros. AJUSTES POR VALORACIÓN [400]
A84: 78 | B84: 1189 | C84: 17 | D84: N | E84: ESTADO TOTAL DE CAMBIOS EN EL PATRIMONIO NETO (Cont.). PATRIMONIO NETO ATRIBUIDO A LA SOCIEDAD DOMINANTE.Reclasiﬁcación de otros instrumentos de capital a pasivos ﬁnancieros. TOTAL [529]
A85: 79 | B85: 1206 | C85: 17 | D85: N | E85: ESTADO TOTAL DE CAMBIOS EN EL PATRIMONIO NETO (Cont.).Reclasiﬁcación de otros instrumentos de capital a pasivos ﬁnancieros. INTERESES MINORITARIOS [549]
A86: 80 | B86: 1223 | C86: 17 | D86: N | E86: ESTADO TOTAL DE CAMBIOS EN EL PATRIMONIO NETO (Cont.). Reclasiﬁcación de otros instrumentos de capital a pasivos ﬁnancieros. TOTAL PATRIMONIO NETO [401]
A87: 81 | B87: 1240 | C87: 17 | D87: N | E87: ESTADO TOTAL DE CAMBIOS EN EL PATRIMONIO NETO (Cont.). PATRIMONIO NETO ATRIBUIDO A LA SOCIEDAD DOMINANTE. FONDOS PROPIOS. Distribución de dividendos / Remuneración a los socios. Menos: dividendos y retribuciones [408]
A88: 82 | B88: 1257 | C88: 17 | D88: N | E88: ESTADO TOTAL DE CAMBIOS EN EL PATRIMONIO NETO (Cont.). PATRIMONIO NETO ATRIBUIDO A LA SOCIEDAD DOMINANTE. FONDOS PROPIOS.Distribución de dividendos / Remuneración a los socios. Total fondos propios [409]
A89: 83 | B89: 1274 | C89: 17 | D89: N | E89: ESTADO TOTAL DE CAMBIOS EN EL PATRIMONIO NETO (Cont.). PATRIMONIO NETO ATRIBUIDO A LA SOCIEDAD DOMINANTE. Distribución de dividendos / Remuneración a los socios. AJUSTES POR VALORACIÓN [410]
A90: 84 | B90: 1291 | C90: 17 | D90: N | E90: ESTADO TOTAL DE CAMBIOS EN EL PATRIMONIO NETO (Cont.). PATRIMONIO NETO ATRIBUIDO A LA SOCIEDAD DOMINANTE.Distribución de dividendos / Remuneración a los socios. TOTAL [530]
A91: 85 | B91: 1308 | C91: 17 | D91: N | E91: ESTADO TOTAL DE CAMBIOS EN EL PATRIMONIO NETO (Cont.).Distribución de dividendos / Remuneración a los socios. INTERESES MINORITARIOS [550]
A92: 86 | B92: 1325 | C92: 17 | D92: N | E92: ESTADO TOTAL DE CAMBIOS EN EL PATRIMONIO NETO (Cont.). Distribución de dividendos / Remuneración a los socios. TOTAL PATRIMONIO NETO [411]
A93: 87 | B93: 1342 | C93: 17 | D93: N | E93: ESTADO TOTAL DE CAMBIOS EN EL PATRIMONIO NETO (Cont.). PATRIMONIO NETO ATRIBUIDO A LA SOCIEDAD DOMINANTE. FONDOS PROPIOS. Operaciones con instrumentos de capital propio (neto). Menos: dividendos y retribuciones [418]
A94: 88 | B94: 1359 | C94: 17 | D94: N | E94: ESTADO TOTAL DE CAMBIOS EN EL PATRIMONIO NETO (Cont.). PATRIMONIO NETO ATRIBUIDO A LA SOCIEDAD DOMINANTE. FONDOS PROPIOS.Operaciones con instrumentos de capital propio (neto). Total fondos propios [419]
A95: 89 | B95: 1376 | C95: 17 | D95: N | E95: ESTADO TOTAL DE CAMBIOS EN EL PATRIMONIO NETO (Cont.). PATRIMONIO NETO ATRIBUIDO A LA SOCIEDAD DOMINANTE. Operaciones con instrumentos de capital propio (neto). AJUSTES POR VALORACIÓN [420]
A96: 90 | B96: 1393 | C96: 17 | D96: N | E96: ESTADO TOTAL DE CAMBIOS EN EL PATRIMONIO NETO (Cont.). PATRIMONIO NETO ATRIBUIDO A LA SOCIEDAD DOMINANTE.Operaciones con instrumentos de capital propio (neto). TOTAL [531]
A97: 91 | B97: 1410 | C97: 17 | D97: N | E97: ESTADO TOTAL DE CAMBIOS EN EL PATRIMONIO NETO (Cont.).Operaciones con instrumentos de capital propio (neto). INTERESES MINORITARIOS [551]
A98: 92 | B98: 1427 | C98: 17 | D98: N | E98: ESTADO TOTAL DE CAMBIOS EN EL PATRIMONIO NETO (Cont.). Operaciones con instrumentos de capital propio (neto). TOTAL PATRIMONIO NETO [421]
A99: 93 | B99: 1444 | C99: 17 | D99: N | E99: ESTADO TOTAL DE CAMBIOS EN EL PATRIMONIO NETO (Cont.). PATRIMONIO NETO ATRIBUIDO A LA SOCIEDAD DOMINANTE. FONDOS PROPIOS. Traspasos entre partidas de patrimonio neto. Menos: dividendos y retribuciones [428]
A100: 94 | B100: 1461 | C100: 17 | D100: N | E100: ESTADO TOTAL DE CAMBIOS EN EL PATRIMONIO NETO (Cont.). PATRIMONIO NETO ATRIBUIDO A LA SOCIEDAD DOMINANTE. FONDOS PROPIOS.Traspasos entre partidas de patrimonio neto. Total fondos propios [429]
A101: 95 | B101: 1478 | C101: 17 | D101: N | E101: ESTADO TOTAL DE CAMBIOS EN EL PATRIMONIO NETO (Cont.). PATRIMONIO NETO ATRIBUIDO A LA SOCIEDAD DOMINANTE. Traspasos entre partidas de patrimonio neto. AJUSTES POR VALORACIÓN [430]
A102: 96 | B102: 1495 | C102: 17 | D102: N | E102: ESTADO TOTAL DE CAMBIOS EN EL PATRIMONIO NETO (Cont.). PATRIMONIO NETO ATRIBUIDO A LA SOCIEDAD DOMINANTE.Traspasos entre partidas de patrimonio neto. TOTAL [532]
A103: 97 | B103: 1512 | C103: 17 | D103: N | E103: ESTADO TOTAL DE CAMBIOS EN EL PATRIMONIO NETO (Cont.).Traspasos entre partidas de patrimonio neto. INTERESES MINORITARIOS [552]
A104: 98 | B104: 1529 | C104: 17 | D104: N | E104: ESTADO TOTAL DE CAMBIOS EN EL PATRIMONIO NETO (Cont.). Traspasos entre partidas de patrimonio neto. TOTAL PATRIMONIO NETO [431]
A105: 99 | B105: 1546 | C105: 17 | D105: N | E105: ESTADO TOTAL DE CAMBIOS EN EL PATRIMONIO NETO (Cont.). PATRIMONIO NETO ATRIBUIDO A LA SOCIEDAD DOMINANTE. FONDOS PROPIOS. Incrementos (reducciones) por combinaciones de negocios. Menos: dividendos y retribuciones [438]
A106: 100 | B106: 1563 | C106: 17 | D106: N | E106: ESTADO TOTAL DE CAMBIOS EN EL PATRIMONIO NETO (Cont.). PATRIMONIO NETO ATRIBUIDO A LA SOCIEDAD DOMINANTE. FONDOS PROPIOS.Incrementos (reducciones) por combinaciones de negocios. Total fondos propios [439]
A107: =A106+1 -> 101 | B107: =B106+C106 -> 1580 | C107: 17 | D107: N | E107: ESTADO TOTAL DE CAMBIOS EN EL PATRIMONIO NETO (Cont.). PATRIMONIO NETO ATRIBUIDO A LA SOCIEDAD DOMINANTE. TIncrementos (reducciones) por combinaciones de negocios. AJUSTES POR VALORACIÓN [440]
A108: 102 | B108: 1597 | C108: 17 | D108: N | E108: ESTADO TOTAL DE CAMBIOS EN EL PATRIMONIO NETO (Cont.). PATRIMONIO NETO ATRIBUIDO A LA SOCIEDAD DOMINANTE.Incrementos (reducciones) por combinaciones de negocios. TOTAL [533]
A109: 103 | B109: 1614 | C109: 17 | D109: N | E109: ESTADO TOTAL DE CAMBIOS EN EL PATRIMONIO NETO (Cont.).Incrementos (reducciones) por combinaciones de negocios. INTERESES MINORITARIOS [553]
A110: 104 | B110: 1631 | C110: 17 | D110: N | E110: ESTADO TOTAL DE CAMBIOS EN EL PATRIMONIO NETO (Cont.). Incrementos (reducciones) por combinaciones de negocios. TOTAL PATRIMONIO NETO [441]
A111: 105 | B111: 1648 | C111: 17 | D111: N | E111: ESTADO TOTAL DE CAMBIOS EN EL PATRIMONIO NETO (Cont.). PATRIMONIO NETO ATRIBUIDO A LA SOCIEDAD DOMINANTE. FONDOS PROPIOS. Dotación discrecional a obras y fondos sociales (sólo Cajas de ahorros y Cooperativas de crédito). Menos: dividendos y retribuciones [448]
A112: 106 | B112: 1665 | C112: 17 | D112: N | E112: ESTADO TOTAL DE CAMBIOS EN EL PATRIMONIO NETO (Cont.). PATRIMONIO NETO ATRIBUIDO A LA SOCIEDAD DOMINANTE. FONDOS PROPIOS.Dotación discrecional a obras y fondos sociales (sólo Cajas de ahorros y Cooperativas de crédito). Total fondos propios [449]
A113: 107 | B113: 1682 | C113: 17 | D113: N | E113: ESTADO TOTAL DE CAMBIOS EN EL PATRIMONIO NETO (Cont.). PATRIMONIO NETO ATRIBUIDO A LA SOCIEDAD DOMINANTE. Dotación discrecional a obras y fondos sociales (sólo Cajas de ahorros y Cooperativas de crédito). AJUSTES POR VALORACIÓN [450]
A114: 108 | B114: 1699 | C114: 17 | D114: N | E114: ESTADO TOTAL DE CAMBIOS EN EL PATRIMONIO NETO (Cont.). PATRIMONIO NETO ATRIBUIDO A LA SOCIEDAD DOMINANTE.Dotación discrecional a obras y fondos sociales (sólo Cajas de ahorros y Cooperativas de crédito). TOTAL [534]
A115: 109 | B115: 1716 | C115: 17 | D115: N | E115: ESTADO TOTAL DE CAMBIOS EN EL PATRIMONIO NETO (Cont.).Dotación discrecional a obras y fondos sociales (sólo Cajas de ahorros y Cooperativas de crédito). INTERESES MINORITARIOS [554]
A116: 110 | B116: 1733 | C116: 17 | D116: N | E116: ESTADO TOTAL DE CAMBIOS EN EL PATRIMONIO NETO (Cont.). Dotación discrecional a obras y fondos sociales (sólo Cajas de ahorros y Cooperativas de crédito). TOTAL PATRIMONIO NETO [451]
A117: 111 | B117: 1750 | C117: 17 | D117: N | E117: ESTADO TOTAL DE CAMBIOS EN EL PATRIMONIO NETO (Cont.). PATRIMONIO NETO ATRIBUIDO A LA SOCIEDAD DOMINANTE. FONDOS PROPIOS. Pagos con instrumentos de capital. Menos: dividendos y retribuciones [458]
A118: 112 | B118: 1767 | C118: 17 | D118: N | E118: ESTADO TOTAL DE CAMBIOS EN EL PATRIMONIO NETO (Cont.). PATRIMONIO NETO ATRIBUIDO A LA SOCIEDAD DOMINANTE. FONDOS PROPIOS.Pagos con instrumentos de capital. Total fondos propios [459]
A119: 113 | B119: 1784 | C119: 17 | D119: N | E119: ESTADO TOTAL DE CAMBIOS EN EL PATRIMONIO NETO (Cont.). PATRIMONIO NETO ATRIBUIDO A LA SOCIEDAD DOMINANTE. Pagos con instrumentos de capital. AJUSTES POR VALORACIÓN [460]
A120: 114 | B120: 1801 | C120: 17 | D120: N | E120: ESTADO TOTAL DE CAMBIOS EN EL PATRIMONIO NETO (Cont.). PATRIMONIO NETO ATRIBUIDO A LA SOCIEDAD DOMINANTE.Pagos con instrumentos de capital. TOTAL [535]
A121: 115 | B121: 1818 | C121: 17 | D121: N | E121: ESTADO TOTAL DE CAMBIOS EN EL PATRIMONIO NETO (Cont.).Pagos con instrumentos de capital. INTERESES MINORITARIOS [555]
A122: 116 | B122: 1835 | C122: 17 | D122: N | E122: ESTADO TOTAL DE CAMBIOS EN EL PATRIMONIO NETO (Cont.). Pagos con instrumentos de capital. TOTAL PATRIMONIO NETO [461]
A123: 117 | B123: 1852 | C123: 17 | D123: N | E123: ESTADO TOTAL DE CAMBIOS EN EL PATRIMONIO NETO (Cont.). PATRIMONIO NETO ATRIBUIDO A LA SOCIEDAD DOMINANTE. FONDOS PROPIOS. Resto de incrementos (reducciones) de patrimonio neto. Menos: dividendos y retribuciones [468]
A124: 118 | B124: 1869 | C124: 17 | D124: N | E124: ESTADO TOTAL DE CAMBIOS EN EL PATRIMONIO NETO (Cont.). PATRIMONIO NETO ATRIBUIDO A LA SOCIEDAD DOMINANTE. FONDOS PROPIOS.Resto de incrementos (reducciones) de patrimonio neto. Total fondos propios [469]
A125: 119 | B125: 1886 | C125: 17 | D125: N | E125: ESTADO TOTAL DE CAMBIOS EN EL PATRIMONIO NETO (Cont.). PATRIMONIO NETO ATRIBUIDO A LA SOCIEDAD DOMINANTE. Resto de incrementos (reducciones) de patrimonio neto. AJUSTES POR VALORACIÓN [470]
A126: 120 | B126: 1903 | C126: 17 | D126: N | E126: ESTADO TOTAL DE CAMBIOS EN EL PATRIMONIO NETO (Cont.). PATRIMONIO NETO ATRIBUIDO A LA SOCIEDAD DOMINANTE.Resto de incrementos (reducciones) de patrimonio neto. TOTAL [536]
A127: 121 | B127: 1920 | C127: 17 | D127: N | E127: ESTADO TOTAL DE CAMBIOS EN EL PATRIMONIO NETO (Cont.).Resto de incrementos (reducciones) de patrimonio neto. INTERESES MINORITARIOS [556]
A128: 122 | B128: 1937 | C128: 17 | D128: N | E128: ESTADO TOTAL DE CAMBIOS EN EL PATRIMONIO NETO (Cont.). Resto de incrementos (reducciones) de patrimonio neto. TOTAL PATRIMONIO NETO [471]
A129: 123 | B129: 1954 | C129: 17 | D129: N | E129: ESTADO TOTAL DE CAMBIOS EN EL PATRIMONIO NETO (Cont.). PATRIMONIO NETO ATRIBUIDO A LA SOCIEDAD DOMINANTE. FONDOS PROPIOS. SALDO, FINAL DEL EJERCICIO. Menos: dividendos y retribuciones [478]
A130: 124 | B130: 1971 | C130: 17 | D130: N | E130: ESTADO TOTAL DE CAMBIOS EN EL PATRIMONIO NETO (Cont.). PATRIMONIO NETO ATRIBUIDO A LA SOCIEDAD DOMINANTE. FONDOS PROPIOS.SALDO, FINAL DEL EJERCICIO. Total fondos propios [479]
A131: 125 | B131: 1988 | C131: 17 | D131: N | E131: ESTADO TOTAL DE CAMBIOS EN EL PATRIMONIO NETO (Cont.). PATRIMONIO NETO ATRIBUIDO A LA SOCIEDAD DOMINANTE. SALDO, FINAL DEL EJERCICIO. AJUSTES POR VALORACIÓN [480]
A132: 126 | B132: 2005 | C132: 17 | D132: N | E132: ESTADO TOTAL DE CAMBIOS EN EL PATRIMONIO NETO (Cont.). PATRIMONIO NETO ATRIBUIDO A LA SOCIEDAD DOMINANTE.SALDO, FINAL DEL EJERCICIO. TOTAL [537]
A133: 127 | B133: 2022 | C133: 17 | D133: N | E133: ESTADO TOTAL DE CAMBIOS EN EL PATRIMONIO NETO (Cont.).SALDO, FINAL DEL EJERCICIO. INTERESES MINORITARIOS [557]
A134: 128 | B134: 2039 | C134: 17 | D134: N | E134: ESTADO TOTAL DE CAMBIOS EN EL PATRIMONIO NETO (Cont.). SALDO, FINAL DEL EJERCICIO. TOTAL PATRIMONIO NETO [481]
A135: =A134+1 -> 129 | B135: =B134+C134 -> 2056 | C135: 12 | D135: An | E135: Fin de registro. | F135: </T22005C01>
A136: Total: | C136: =B135+C135-1 -> 2067

Sheet T22003A02
B1: Agencia Tributaria
A3: =+T22001000!A3 -> Modelo 220 | C3: =+T22001000!C3 -> Diseño de registro. 2014
A4: =+T22001000!A4 -> Versión 1.2 | C4: Impuesto Sobre Sociedades. Regimen de consolidación fiscal. GRUPO DE ENTIDADES ASEGURADORAS. BALANCE CONSOLIDADO: ACTIVO (I)
A6: Nº | B6: Posic. | C6: Lon | D6: Tipo | E6: Descripción | F6: Contenido
A7: 1 | B7: 1 | C7: 2 | D7: An | E7: Inicio del identificador de modelo y página. | F7: <T
A8: =+A7+1 -> 2 | B8: =C7+B7 -> 3 | C8: 3 | D8: Num | E8: Modelo. | F8: 220
A9: 3 | B9: =C8+B8 -> 6 | C9: 2 | D9: An | E9: Página. | F9: 03
A10: 4 | B10: =B9+C9 -> 8 | C10: 1 | D10: An | E10: Letra | F10: A
A11: 5 | B11: 9 | C11: 2 | D11: Num | E11: Hoja | F11: 02
A12: 6 | B12: =C11+B11 -> 11 | C12: 1 | D12: An | E12: Fin de identificador de modelo y página. Constante ">". | F12: >
A13: 7 | B13: =C12+B12 -> 12 | C13: 1 | D13: An | E13: Indicador de página complementaria.
A14: 8 | B14: =C13+B13 -> 13 | C14: 3 | D14: Num | E14: Número de orden de la página complementaria
A15: 9 | B15: 16 | C15: 17 | D15: N | E15: ACTIVO. Efectivo y otros activos líquidos equivalentes. [101]
A16: 10 | B16: 33 | C16: 17 | D16: N | E16: ACTIVO. Activos financieros mantenidos para negociar. [102]
A17: 11 | B17: 50 | C17: 17 | D17: N | E17: ACTIVO. Activos financieros mantenidos para negociar.Instrumentos de patrimonio. [103]
A18: =+A17+1 -> 12 | B18: 67 | C18: 17 | D18: N | E18: ACTIVO. Activos financieros mantenidos para negociar. Valores representativos de deuda. [104]
A19: 13 | B19: 84 | C19: 17 | D19: N | E19: ACTIVO. Activos financieros mantenidos para negociar.Derivados. [105]
A20: 14 | B20: 101 | C20: 17 | D20: N | E20: ACTIVO. Activos financieros mantenidos para negociar. Otros. [106]
A21: 15 | B21: 118 | C21: 17 | D21: N | E21: ACTIVO. Otros activos financieros a valor razonable con cambios en pérdidas y ganancias. [107]
A22: 16 | B22: 135 | C22: 17 | D22: N | E22: ACTIVO. Otros activos financieros a valor razonable con cambios en pérdidas y ganancias. Instrumentos de patrimonio. [108]
A23: 17 | B23: 152 | C23: 17 | D23: N | E23: ACTIVO. Otros activos financieros a valor razonable con cambios en pérdidas y ganancias. Valores representativos de deuda. [109]
A24: 18 | B24: 169 | C24: 17 | D24: N | E24: ACTIVO. Otros activos financieros a valor razonable con cambios en pérdidas y ganancias. Instrumentos híbridos. [110]
A25: 19 | B25: 186 | C25: 17 | D25: N | E25: ACTIVO. Otros activos financieros a valor razonable con cambios en pérdidas y ganancias. nversiones por cuenta de los tomadores de seguros de vida que asuman el riesgo de la inversión. [111]
A26: 20 | B26: 203 | C26: 17 | D26: N | E26: ACTIVO. Otros activos financieros a valor razonable con cambios en pérdidas y ganancias. Otros. [112]
A27: 21 | B27: 220 | C27: 17 | D27: N | E27: ACTIVO. Activos financieros disponibles para la venta. [113]
A28: 22 | B28: 237 | C28: 17 | D28: N | E28: ACTIVO. Activos financieros disponibles para la venta. Instrumentos de patrimonio. [114]
A29: 23 | B29: 254 | C29: 17 | D29: N | E29: ACTIVO. Activos financieros disponibles para la venta. Valores representativos de deuda. [115]
A30: 24 | B30: 271 | C30: 17 | D30: N | E30: ACTIVO. Activos financieros disponibles para la venta. Inversiones por cuenta de los tomadores de seguros de vida que asuman el riesgo de la inversión. [116]
A31: 25 | B31: =C30+B30 -> 288 | C31: 17 | D31: N | E31: ACTIVO. Activos financieros disponibles para la venta. Otros. [117]
A32: 26 | B32: 305 | C32: 17 | D32: N | E32: ACTIVO. Préstamos y partidas a cobrar. [118]
A33: 27 | B33: 322 | C33: 17 | D33: N | E33: ACTIVO. Préstamos y partidas a cobrar. Valores representativos de deuda. [119]
A34: 28 | B34: 339 | C34: 17 | D34: N | E34: ACTIVO. Préstamos y partidas a cobrar. Préstamos. [120]
A35: 29 | B35: 356 | C35: 17 | D35: N | E35: ACTIVO. Préstamos y partidas a cobrar. Anticipos sobre pólizas. [121]
A36: 30 | B36: 373 | C36: 17 | D36: N | E36: ACTIVO. Préstamos y partidas a cobrar. Préstamos a entidades del grupo y asociadas. [122]
A37: =A36+1 -> 31 | B37: =B36+C36 -> 390 | C37: 17 | D37: N | E37: ACTIVO. Préstamos y partidas a cobrar. Préstamos a entidades del grupo y asociadas. Entidades asociadas [700]
A38: =A37+1 -> 32 | B38: =B37+C37 -> 407 | C38: 17 | D38: N | E38: ACTIVO. Préstamos y partidas a cobrar. Préstamos a entidades del grupo y asociadas. Entidades multigrupo [701]
A39: =A38+1 -> 33 | B39: =B38+C38 -> 424 | C39: 17 | D39: N | E39: ACTIVO. Préstamos y partidas a cobrar. Préstamos a entidades del grupo y asociadas. Otros [702]
A40: =+A39+1 -> 34 | B40: =C39+B39 -> 441 | C40: 17 | D40: N | E40: ACTIVO. Préstamos y partidas a cobrar. Préstamos a otras partes vinculadas. [123]
A41: 35 | B41: 458 | C41: 17 | D41: N | E41: ACTIVO. Préstamos y partidas a cobrar. Depósitos en entidades de crédito. [124]
A42: 36 | B42: 475 | C42: 17 | D42: N | E42: ACTIVO. Préstamos y partidas a cobrar. Depósitos constituídos por reaseguro aceptado. [125]
A43: 37 | B43: 492 | C43: 17 | D43: N | E43: ACTIVO. Préstamos y partidas a cobrar. Créditos por operaciones de seguro directo. [126]
A44: 38 | B44: 509 | C44: 17 | D44: N | E44: ACTIVO. Préstamos y partidas a cobrar. Tomadores de seguro. [127]
A45: 39 | B45: 526 | C45: 17 | D45: N | E45: ACTIVO. Préstamos y partidas a cobrar. Mediadores. [128]
A46: 40 | B46: 543 | C46: 17 | D46: N | E46: ACTIVO. Préstamos y partidas a cobrar. Créditos por operaciones de reaseguro. [129]
A47: 41 | B47: 560 | C47: 17 | D47: N | E47: ACTIVO. Préstamos y partidas a cobrar. Créditos por operaciones de coaseguro. [130]
A48: 42 | B48: 577 | C48: 17 | D48: N | E48: ACTIVO. Préstamos y partidas a cobrar. Desembolsos exigidos. [131]
A49: 43 | B49: 594 | C49: 17 | D49: N | E49: ACTIVO. Préstamos y partidas a cobrar. Otros créditos. [132]
A50: 44 | B50: 611 | C50: 17 | D50: N | E50: ACTIVO. Préstamos y partidas a cobrar. Créditos con las Administraciones Públicas. [133]
A51: 45 | B51: 628 | C51: 17 | D51: N | E51: ACTIVO. Préstamos y partidas a cobrar. Resto de créditos. [134]
A52: 46 | B52: 645 | C52: 17 | D52: N | E52: ACTIVO. Cartera de inversión a vencimiento. [135]
A53: 47 | B53: 662 | C53: 17 | D53: N | E53: ACTIVO. Derivados de cobertura. [136]
A54: 48 | B54: 679 | C54: 17 | D54: N | E54: ACTIVO. Participación del reaseguro en las provisiones técnicas. [137]
A55: 49 | B55: 696 | C55: 17 | D55: N | E55: ACTIVO. Participación del reaseguro en las provisiones técnicas.. Provisión para primas no consumidas. [138]
A56: 50 | B56: 713 | C56: 17 | D56: N | E56: ACTIVO. Participación del reaseguro en las provisiones técnicas.Provisión de seguros de vida. [139]
A57: 51 | B57: 730 | C57: 17 | D57: N | E57: ACTIVO. Participación del reaseguro en las provisiones técnicas.. Provisión para prestaciones. [140]
A58: 52 | B58: 747 | C58: 17 | D58: N | E58: ACTIVO. Participación del reaseguro en las provisiones técnicas. Otras provisiones técnicas. [141]
A59: 53 | B59: 764 | C59: 17 | D59: N | E59: ACTIVO. Inmovilizado material e inversiones inmobiliarias. [142]
A60: 54 | B60: 781 | C60: 17 | D60: N | E60: ACTIVO. Inmovilizado material e inversiones inmobiliarias. Inmovilizado material. [143]
A61: 55 | B61: 798 | C61: 17 | D61: N | E61: ACTIVO. Inmovilizado material e inversiones inmobiliarias. Inversiones inmobiliarias. [144]
A62: =A61+1 -> 56 | B62: =B61+C61 -> 815 | C62: 12 | D62: An | E62: Fin de registro. | F62: </T22003A02>
A63: Total: | C63: =B62+C62-1 -> 826

Sheet T22003B02
B1: Agencia Tributaria
A3: =+T22001000!A3 -> Modelo 220 | C3: =+T22001000!C3 -> Diseño de registro. 2014
A4: =+T22001000!A4 -> Versión 1.2 | C4: Impuesto Sobre Sociedades. Régimen de consolidación Fiscal. GRUPO DE ENTIDADES ASEGURADORAS. BALANCE CONSOLIDADO: ACTIVO (II)
A6: Nº | B6: Posic. | C6: Lon | D6: Tipo | E6: Descripción | F6: Contenido
A7: 1 | B7: 1 | C7: 2 | D7: An | E7: Inicio del identificador de modelo y página. | F7: <T
A8: =+A7+1 -> 2 | B8: =C7+B7 -> 3 | C8: 3 | D8: Num | E8: Modelo. | F8: 220
A9: 3 | B9: =C8+B8 -> 6 | C9: 2 | D9: An | E9: Página. | F9: 03
A10: 4 | B10: =B9+C9 -> 8 | C10: 1 | D10: An | E10: Letra | F10: B
A11: 5 | B11: 9 | C11: 2 | D11: Num | E11: Hoja | F11: 02
A12: 6 | B12: =C11+B11 -> 11 | C12: 1 | D12: An | E12: Fin de identificador de modelo y página. Constante ">". | F12: >
A13: 7 | B13: =C12+B12 -> 12 | C13: 1 | D13: An | E13: Indicador de página complementaria.
A14: 8 | B14: =B13+C13 -> 13 | C14: 3 | D14: Num | E14: Número de orden de la página complementaria
A15: 9 | B15: =B14+C14 -> 16 | C15: 17 | D15: N | E15: ACTIVO. Inmovilizado intangible. [145]
A16: 10 | B16: 33 | C16: 17 | D16: N | E16: ACTIVO. Inmovilizado intangible. Fondo de comercio. [647]
A17: 11 | B17: 50 | C17: 17 | D17: N | E17: ACTIVO. Inmovilizado intangible. Fondo de comercio de consolidación. [648]
A18: 12 | B18: 67 | C18: 17 | D18: N | E18: ACTIVO. Inmovilizado intangible. Otros. [146]
A19: 13 | B19: =C18+B18 -> 84 | C19: 17 | D19: N | E19: ACTIVO. Inmovilizado intangible. Derechos económicos derivados de carteras de pólizas adquiridas a mediadores. [147]
A20: 14 | B20: 101 | C20: 17 | D20: N | E20: ACTIVO. Inmovilizado intangible. Otro activo intangible. [148]
A21: 15 | B21: 118 | C21: 17 | D21: N | E21: ACTIVO. Participaciones en sociedades puestas en equivalencia. [149]
A22: 16 | B22: =C21+B21 -> 135 | C22: 17 | D22: N | E22: ACTIVO. Participaciones en Empresas asociadas. [150]
A23: 17 | B23: 152 | C23: 17 | D23: N | E23: ACTIVO. Participaciones en empresas multigrupo. [151]
A24: 18 | B24: =B23+C23 -> 169 | C24: 17 | D24: N | E24: ACTIVO. Participaciones en entidades del grupo y asociadas. [152]
A25: =+A24+1 -> 19 | B25: =B24+C24 -> 186 | C25: 17 | D25: N | E25: ACTIVO. Activos fiscales. [153]
A26: =+A25+1 -> 20 | B26: 203 | C26: 17 | D26: N | E26: ACTIVO. Activos fiscales. Activos por impuesto corriente. [154]
A27: =+A26+1 -> 21 | B27: =C26+B26 -> 220 | C27: 17 | D27: N | E27: ACTIVO. Activos fiscales. Activos por impuesto diferido. [155]
A28: 22 | B28: 237 | C28: 17 | D28: N | E28: ACTIVO. Otros activos. [156]
A29: 23 | B29: 254 | C29: 17 | D29: N | E29: ACTIVO. Otros activos. Activos y derechos de reembolso por retribuciones a largo plazo al personal. [157]
A30: 24 | B30: 271 | C30: 17 | D30: N | E30: ACTIVO. Otros activos. Comisiones anticipadas y otros costes de adquisición. [158]
A31: 25 | B31: 288 | C31: 17 | D31: N | E31: ACTIVO. Otros activos. Periodificaciones. [159]
A32: 26 | B32: 305 | C32: 17 | D32: N | E32: ACTIVO. Otros activos. Resto de activos. [160]
A33: 27 | B33: 322 | C33: 17 | D33: N | E33: ACTIVO. Activos y grupos de activos en venta. [161]
A34: 28 | B34: 339 | C34: 17 | D34: N | E34: ACTIVO. TOTAL ACTIVO. [162]
A35: 29 | B35: 356 | C35: 12 | D35: An | E35: Fin de registro. | F35: </T22003B02>
A36: Total: | C36: =B35+C35-1 -> 367

Sheet T22003C02
B1: Agencia Tributaria
A3: =+T22001000!A3 -> Modelo 220 | C3: =+T22001000!C3 -> Diseño de registro. 2014
A4: =+T22001000!A4 -> Versión 1.2 | C4: Impuesto Sobre Sociedades. Régimen de consolidación Fiscal. GRUPO DE ENTIDADES ASEGURADORAS. BALANCE CONSOLIDADO: PASIVO Y PATRIMONIO NETO (I)
A6: Nº | B6: Posic. | C6: Lon | D6: Tipo | E6: Descripción | F6: Contenido
A7: 1 | B7: 1 | C7: 2 | D7: An | E7: Inicio del identificador de modelo y página. | F7: <T
A8: =+A7+1 -> 2 | B8: =C7+B7 -> 3 | C8: 3 | D8: Num | E8: Modelo. | F8: 220
A9: 3 | B9: =C8+B8 -> 6 | C9: 2 | D9: An | E9: Página. | F9: 03
A10: 4 | B10: =B9+C9 -> 8 | C10: 1 | D10: An | E10: Letra | F10: C
A11: 5 | B11: 9 | C11: 2 | D11: Num | E11: Hoja | F11: 02
A12: 6 | B12: =C11+B11 -> 11 | C12: 1 | D12: An | E12: Fin de identificador de modelo y página. Constante ">". | F12: >
A13: 7 | B13: =C12+B12 -> 12 | C13: 1 | D13: An | E13: Indicador de página complementaria.
A14: 8 | B14: =C13+B13 -> 13 | C14: 3 | D14: Num | E14: Número de orden de la página complementaria
A15: =+A14+1 -> 9 | B15: =C14+B14 -> 16 | C15: 17 | D15: N | E15: PASIVO. Pasivos financieros mantenidos para negociar. [163]
A16: 10 | B16: 33 | C16: 17 | D16: N | E16: PASIVO. Otros pasivos financieros a valor razonable con cambios en pérdidas y ganancias. [164]
A17: 11 | B17: 50 | C17: 17 | D17: N | E17: PASIVO. Débitos y partidas a pagar. [165]
A18: 12 | B18: 67 | C18: 17 | D18: N | E18: PASIVO. Débitos y partidas a pagar. Pasivos subordinados. [166]
A19: 13 | B19: 84 | C19: 17 | D19: N | E19: PASIVO. Débitos y partidas a pagar. Depósitos recibidos por reaseguro cedido. [167]
A20: 14 | B20: 101 | C20: 17 | D20: N | E20: PASIVO. Débitos y partidas a pagar. Deudas por operaciones de seguro. [168]
A21: 15 | B21: 118 | C21: 17 | D21: N | E21: PASIVO. Débitos y partidas a pagar. Deudas con asegurados. [169]
A22: 16 | B22: 135 | C22: 17 | D22: N | E22: PASIVO. Débitos y partidas a pagar. Deudas con mediadores. [170]
A23: 17 | B23: 152 | C23: 17 | D23: N | E23: PASIVO. Débitos y partidas a pagar. Deudas condicionadas. [171]
A24: 18 | B24: 169 | C24: 17 | D24: N | E24: PASIVO. Débitos y partidas a pagar. Deudas por operaciones de reaseguro. [172]
A25: 19 | B25: 186 | C25: 17 | D25: N | E25: PASIVO. Débitos y partidas a pagar. Deudas por operaciones de coaseguro. [173]
A26: 20 | B26: 203 | C26: 17 | D26: N | E26: PASIVO. Débitos y partidas a pagar. Obligaciones y otros valores negociables. [174]
A27: 21 | B27: 220 | C27: 17 | D27: N | E27: PASIVO. Débitos y partidas a pagar. Deudas con entidades de crédito. [175]
A28: 22 | B28: 237 | C28: 17 | D28: N | E28: PASIVO. Débitos y partidas a pagar. Deudas por operaciones preparatorias de contratos de seguro. [176]
A29: 23 | B29: 254 | C29: 17 | D29: N | E29: PASIVO. Débitos y partidas a pagar. Otras deudas. [177]
A30: 24 | B30: 271 | C30: 17 | D30: N | E30: PASIVO. Débitos y partidas a pagar. Otras deudas. Deudas con las Administraciones Públicas. [178]
A31: 25 | B31: 288 | C31: 17 | D31: N | E31: PASIVO. Débitos y partidas a pagar. Otras deudas. Otras deudas con entidades del grupo y asociadas. [179]
A32: =A31+1 -> 26 | B32: =B31+C31 -> 305 | C32: 17 | D32: N | E32: PASIVO. Débitos y partidas a pagar. Otras deudas. Otras deudas con entidades del grupo y asociadas. Entidades asociadas [703]
A33: =A32+1 -> 27 | B33: =B32+C32 -> 322 | C33: 17 | D33: N | E33: PASIVO. Débitos y partidas a pagar. Otras deudas. Otras deudas con entidades del grupo y asociadas. Entidades multigrupo [704]
A34: =A33+1 -> 28 | B34: =B33+C33 -> 339 | C34: 17 | D34: N | E34: PASIVO. Débitos y partidas a pagar. Otras deudas. Otras deudas con entidades del grupo y asociadas. Otros [705]
A35: =+A34+1 -> 29 | B35: =C34+B34 -> 356 | C35: 17 | D35: N | E35: PASIVO. Débitos y partidas a pagar. Otras deudas. Resto de otras deudas. [180]
A36: 30 | B36: 373 | C36: 17 | D36: N | E36: PASIVO. Derivados de cobertura. [181]
A37: 31 | B37: 390 | C37: 17 | D37: N | E37: PASIVO. Provisiones técnicas. [182]
A38: 32 | B38: 407 | C38: 17 | D38: N | E38: PASIVO. Provisiones técnicas. Provisión para primas no consumidas. [183]
A39: 33 | B39: 424 | C39: 17 | D39: N | E39: PASIVO. Provisiones técnicas. Provisión para riesgos en curso. [184]
A40: 34 | B40: 441 | C40: 17 | D40: N | E40: PASIVO. Provisiones técnicas. Provisión de seguros de vida. [185]
A41: 35 | B41: 458 | C41: 17 | D41: N | E41: PASIVO. Provisiones técnicas. Provisión de seguros de vida. Provisión para primas no consumidas. [186]
A42: 36 | B42: 475 | C42: 17 | D42: N | E42: PASIVO. Provisiones técnicas. Provisión de seguros de vida. Provisión para riesgos en curso. [187]
A43: 37 | B43: 492 | C43: 17 | D43: N | E43: PASIVO. Provisiones técnicas. Provisión de seguros de vida. Provisión matemática. [188]
A44: 38 | B44: 509 | C44: 17 | D44: N | E44: PASIVO. Provisiones técnicas. Provisión de seguros de vida. Provisión de seguros de vida cuando el riesgo de la inversión lo asuma el tomador. [189]
A45: 39 | B45: 526 | C45: 17 | D45: N | E45: PASIVO. Provisiones técnicas. Provisión para prestaciones. [190]
A46: 40 | B46: 543 | C46: 17 | D46: N | E46: PASIVO. Provisiones técnicas. Provisión para participación en benefi cios y para extornos. [191]
A47: 41 | B47: 560 | C47: 17 | D47: N | E47: PASIVO. Provisiones técnicas. Otras provisiones técnicas. [192]
A48: 42 | B48: 577 | C48: 17 | D48: N | E48: PASIVO. Provisiones no técnicas. [193]
A49: 43 | B49: 594 | C49: 17 | D49: N | E49: PASIVO. Provisiones no técnicas. Provisiones para impuestos y otras contingencias legales. [194]
A50: 44 | B50: 611 | C50: 17 | D50: N | E50: PASIVO. Provisiones no técnicas. Provisión para pensiones y obligaciones similares. [195]
A51: 45 | B51: 628 | C51: 17 | D51: N | E51: PASIVO. Provisiones no técnicas. Provisión para pagos por convenios de liquidación. [196]
A52: 46 | B52: 645 | C52: 17 | D52: N | E52: PASIVO. Provisiones no técnicas. Otras provisiones no técnicas. [197]
A53: 47 | B53: 662 | C53: 17 | D53: N | E53: PASIVO. Pasivos fiscales. [198]
A54: 48 | B54: 679 | C54: 17 | D54: N | E54: PASIVO. Pasivos fiscales. Pasivos por impuesto corriente. [199]
A55: 49 | B55: 696 | C55: 17 | D55: N | E55: PASIVO. Pasivos fiscales. Pasivos por impuesto diferido. [200]
A56: 50 | B56: 713 | C56: 17 | D56: N | E56: PASIVO. Resto de pasivos. [201]
A57: 51 | B57: 730 | C57: 17 | D57: N | E57: PASIVO. Resto de pasivos. Periodificaciones. [202]
A58: 52 | B58: 747 | C58: 17 | D58: N | E58: PASIVO. Resto de pasivos. Pasivos por asimetrías contables. [203]
A59: 53 | B59: 764 | C59: 17 | D59: N | E59: PASIVO. Resto de pasivos. Comisiones y otros costes de adquisición del reaseguro cedido. [204]
A60: 54 | B60: 781 | C60: 17 | D60: N | E60: PASIVO. Resto de pasivos. Otros pasivos. [205]
A61: 55 | B61: 798 | C61: 17 | D61: N | E61: PASIVO. Pasivos vinculados con activos mantenidos para la venta. [206]
A62: 56 | B62: 815 | C62: 17 | D62: N | E62: PASIVO. TOTAL PASIVO. [207]
A63: =A62+1 -> 57 | B63: =B62+C62 -> 832 | C63: 12 | D63: An | E63: Fin de registro. | F63: </T22003C02>
A64: Total: | C64: =B63+C63-1 -> 843

Sheet T22003D02
B1: Agencia Tributaria
A3: =+T22001000!A3 -> Modelo 220 | C3: =+T22001000!C3 -> Diseño de registro. 2014
A4: =+T22001000!A4 -> Versión 1.2 | C4: Impuesto Sobre Sociedades. Régimen de consolidación Fiscal. GRUPO DE ENTIDADES ASEGURADORAS. BALANCE CONSOLIDADO: PASIVO Y PATRIMONIO NETO (II)
A6: Nº | B6: Posic. | C6: Lon | D6: Tipo | E6: Descripción | F6: Contenido
A7: 1 | B7: 1 | C7: 2 | D7: An | E7: Inicio del identificador de modelo y página. | F7: <T
A8: =+A7+1 -> 2 | B8: =C7+B7 -> 3 | C8: 3 | D8: Num | E8: Modelo. | F8: 220
A9: 3 | B9: =C8+B8 -> 6 | C9: 2 | D9: An | E9: Página. | F9: 03
A10: 4 | B10: =B9+C9 -> 8 | C10: 1 | D10: An | E10: Letra | F10: D
A11: 5 | B11: 9 | C11: 2 | D11: Num | E11: Hoja | F11: 02
A12: 6 | B12: =C11+B11 -> 11 | C12: 1 | D12: An | E12: Fin de identificador de modelo y página. Constante ">". | F12: >
A13: 7 | B13: =C12+B12 -> 12 | C13: 1 | D13: An | E13: Indicador de página complementaria.
A14: 8 | B14: =C13+B13 -> 13 | C14: 3 | D14: Num | E14: Número de orden de la página complementaria
A15: 9 | B15: 16 | C15: 17 | D15: N | E15: PATRIMONIO NETO. Fondos propios. [208]
A16: 10 | B16: 33 | C16: 17 | D16: N | E16: PATRIMONIO NETO. Fondos propios. Capital o fondo mutual. [209]
A17: 11 | B17: 50 | C17: 17 | D17: N | E17: PATRIMONIO NETO. Fondos propios. Capital escriturado o fondo mutual. [210]
A18: 12 | B18: 67 | C18: 17 | D18: N | E18: PATRIMONIO NETO. Fondos propios. (Capital no exigido). [211]
A19: 13 | B19: 84 | C19: 17 | D19: N | E19: PATRIMONIO NETO. Fondos propios. Prima de emisión. [212]
A20: 14 | B20: 101 | C20: 17 | D20: N | E20: PATRIMONIO NETO. Fondos propios. Reservas. [213]
A21: 15 | B21: 118 | C21: 17 | D21: N | E21: PATRIMONIO NETO. Fondos propios. Reservas. Legal y estatutarias. [214]
A22: 16 | B22: 135 | C22: 17 | D22: N | E22: PATRIMONIO NETO. Fondos propios. Reservas. Reserva de estabilización. [215]
A23: 17 | B23: 152 | C23: 17 | D23: N | E23: PATRIMONIO NETO. Fondos propios. Reservas. Reservas en sociedades consolidadas. [649]
A24: 18 | B24: 169 | C24: 17 | D24: N | E24: PATRIMONIO NETO. Fondos propios. Reservas. Reservas en sociedades puestas en equivalencia. [728]
A25: 19 | B25: 186 | C25: 17 | D25: N | E25: PATRIMONIO NETO. Fondos propios. Reservas. Otras reservas. [216]
A26: 20 | B26: 203 | C26: 17 | D26: N | E26: PATRIMONIO NETO. Fondos propios. (Acciones y participaciones en patrimonio propias y de la sociedad dominante). [217]
A27: 21 | B27: 220 | C27: 17 | D27: N | E27: PATRIMONIO NETO. Fondos propios. Resultados de ejercicios anteriores. [218]
A28: 22 | B28: 237 | C28: 17 | D28: N | E28: PATRIMONIO NETO. Fondos propios. Resultados de ejercicios anteriores. Remanente. [219]
A29: 23 | B29: 254 | C29: 17 | D29: N | E29: PATRIMONIO NETO. Fondos propios. Resultados de ejercicios anteriores. (Resultados negativos de ejercicios anteriores atribuidos a la sociedad dominante). [220]
A30: 24 | B30: 271 | C30: 17 | D30: N | E30: PATRIMONIO NETO. Fondos propios. Otras aportaciones de socios y mutualistas. [221]
A31: 25 | B31: 288 | C31: 17 | D31: N | E31: PATRIMONIO NETO. Fondos propios. Resultado del ejercicio atribuido a la sociedad dominante. [692]
A32: 26 | B32: 305 | C32: 17 | D32: N | E32: PATRIMONIO NETO. Fondos propios. Resultado del ejercicio atribuido a la sociedad dominante. Pérdidas y ganancias consolidadas. [222]
A33: 27 | B33: 322 | C33: 17 | D33: N | E33: PATRIMONIO NETO. Fondos propios. Resultado del ejercicio atribuido a la sociedad dominante. (Pérdidas y ganancias socios externos). [693]
A34: 28 | B34: 339 | C34: 17 | D34: N | E34: PATRIMONIO NETO. Fondos propios. (Dividendo a cuenta y reserva de estabilización a cuenta). [223]
A35: 29 | B35: 356 | C35: 17 | D35: N | E35: PATRIMONIO NETO. Fondos propios. Otros instrumentos de patrimonio neto. [224]
A36: 30 | B36: 373 | C36: 17 | D36: N | E36: PATRIMONIO NETO. Ajustes por cambios de valor. [225]
A37: 31 | B37: 390 | C37: 17 | D37: N | E37: PATRIMONIO NETO. Ajustes por cambios de valor. Activos financieros disponibles para la venta. [226]
A38: 32 | B38: 407 | C38: 17 | D38: N | E38: PATRIMONIO NETO. Ajustes por cambios de valor. Operaciones de cobertura. [227]
A39: 33 | B39: 424 | C39: 17 | D39: N | E39: PATRIMONIO NETO. Ajustes por cambios de valor. Diferencias de cambio y conversión. [228]
A40: 34 | B40: 441 | C40: 17 | D40: N | E40: PATRIMONIO NETO. Ajustes por cambios de valor. Corrección de asimetrías contables. [229]
A41: 35 | B41: 458 | C41: 17 | D41: N | E41: PATRIMONIO NETO. Ajustes por cambios de valor. Sociedades puestas en equivalencia. [729]
A42: 36 | B42: =C41+B41 -> 475 | C42: 17 | D42: N | E42: PATRIMONIO NETO. Ajustes por cambios de valor. Otros ajustes. [230]
A43: =+A42+1 -> 37 | B43: =C42+B42 -> 492 | C43: 17 | D43: N | E43: PATRIMONIO NETO. Subvenciones, donaciones y legados recibidos. [231]
A44: 38 | B44: 509 | C44: 17 | D44: N | E44: PATRIMONIO NETO. Socios externos. [652]
A45: 39 | B45: 526 | C45: 17 | D45: N | E45: PATRIMONIO NETO. Socios externos. Ajustes por valoración. [694]
A46: 40 | B46: 543 | C46: 17 | D46: N | E46: PATRIMONIO NETO. Socios externos. Resto. [695]
A47: 41 | B47: 560 | C47: 17 | D47: N | E47: PATRIMONIO NETO. TOTAL PATRIMONIO NETO. [232]
A48: 42 | B48: 577 | C48: 17 | D48: N | E48: PATRIMONIO NETO. TOTAL PASIVO Y PATRIMONIO NETO. [233]
A49: 43 | B49: 594 | C49: 12 | D49: An | E49: Fin de registro. | F49: </T22003D02>
A50: Total: | C50: =B49+C49-1 -> 605

Sheet T22004A02
B1: Agencia Tributaria
A3: =+T22001000!A3 -> Modelo 220 | C3: =+T22001000!C3 -> Diseño de registro. 2014
A4: =+T22001000!A4 -> Versión 1.2 | C4: Impuesto Sobre Sociedades. Régimen de consolidación Fiscal. GRUPO DE ENTIDADES ASEGURADORAS. CUENTA DE PÉRDIDAS Y GANACIAS CONSOLIDADA (I)
A6: Nº | B6: Posic. | C6: Lon | D6: Tipo | E6: Descripción | F6: Contenido
A7: 1 | B7: 1 | C7: 2 | D7: An | E7: Inicio del identificador de modelo y página. | F7: <T
A8: =+A7+1 -> 2 | B8: =C7+B7 -> 3 | C8: 3 | D8: Num | E8: Modelo. | F8: 220
A9: 3 | B9: =C8+B8 -> 6 | C9: 2 | D9: An | E9: Página. | F9: 04
A10: 4 | B10: =B9+C9 -> 8 | C10: 1 | D10: An | E10: Letra | F10: A
A11: 5 | B11: 9 | C11: 2 | D11: Num | E11: Hoja | F11: 02
A12: 6 | B12: =C11+B11 -> 11 | C12: 1 | D12: An | E12: Fin de identificador de modelo y página. Constante ">". | F12: >
A13: 7 | B13: =C12+B12 -> 12 | C13: 1 | D13: An | E13: Indicador de página complementaria.
A14: 8 | B14: =C13+B13 -> 13 | C14: 3 | D14: Num | E14: Número de orden de la página complementaria
A15: 9 | B15: 16 | C15: 17 | D15: N | E15: CUENTA TÉCNICA SEGURO NO VIDA. Primas imputadas al ejercicio, netas de reaseguro. [234]
A16: =+A15+1 -> 10 | B16: =C15+B15 -> 33 | C16: 17 | D16: N | E16: CUENTA TÉCNICA SEGURO NO VIDA. Primas imputadas al ejercicio, netas de reaseguro. Primas devengadas. [235]
A17: 11 | B17: 50 | C17: 17 | D17: N | E17: CUENTA TÉCNICA SEGURO NO VIDA. Primas imputadas al ejercicio, netas de reaseguro. Primas devengadas. Seguro directo. [236]
A18: 12 | B18: 67 | C18: 17 | D18: N | E18: CUENTA TÉCNICA SEGURO NO VIDA. Primas imputadas al ejercicio, netas de reaseguro. Primas devengadas. Reaseguro aceptado. [237]
A19: 13 | B19: 84 | C19: 17 | D19: N | E19: CUENTA TÉCNICA SEGURO NO VIDA. Primas imputadas al ejercicio, netas de reaseguro. Primas devengadas. Variación de la corrección por deterioro de las primas pendientes de cobro (+ ó -). [238]
A20: 14 | B20: 101 | C20: 17 | D20: N | E20: CUENTA TÉCNICA SEGURO NO VIDA. Primas imputadas al ejercicio, netas de reaseguro. Primas del reaseguro cedido (-). [239]
A21: 15 | B21: 118 | C21: 17 | D21: N | E21: CUENTA TÉCNICA SEGURO NO VIDA. Primas imputadas al ejercicio, netas de reaseguro. Variación de la provisión para primas no consumidas y para riesgos en curso (+ ó -). [240]
A22: 16 | B22: 135 | C22: 17 | D22: N | E22: CUENTA TÉCNICA SEGURO NO VIDA. Primas imputadas al ejercicio, netas de reaseguro.Variación de la provisión para primas no consumidas y para riesgos en curso (+ ó -). Seguro directo. [241]
A23: 17 | B23: 152 | C23: 17 | D23: N | E23: CUENTA TÉCNICA SEGURO NO VIDA. Primas imputadas al ejercicio, netas de reaseguro. Variación de la provisión para primas no consumidas y para riesgos en curso (+ ó -). Reaseguro aceptado. [242]
A24: 18 | B24: 169 | C24: 17 | D24: N | E24: CUENTA TÉCNICA SEGURO NO VIDA. Primas imputadas al ejercicio, netas de reaseguro. Variación de la provisión para primas no consumidas, reaseguro cedido (+ ó -). [243]
A25: 19 | B25: 186 | C25: 17 | D25: N | E25: CUENTA TÉCNICA SEGURO NO VIDA. Ingresos del inmovilizado material y de las inversiones. [244]
A26: 20 | B26: 203 | C26: 17 | D26: N | E26: CUENTA TÉCNICA SEGURO NO VIDA. Ingresos del inmovilizado material y de las inversiones. Ingresos procedentes de las inversiones inmobiliarias. [245]
A27: 21 | B27: 220 | C27: 17 | D27: N | E27: CUENTA TÉCNICA SEGURO NO VIDA. Ingresos del inmovilizado material y de las inversiones. Ingresos procedentes de las inversiones fi nancieras. [246]
A28: 22 | B28: 237 | C28: 17 | D28: N | E28: CUENTA TÉCNICA SEGURO NO VIDA. Ingresos del inmovilizado material y de las inversiones. Aplicaciones de correcciones de valor por deterioro del inmovilizado material y de las inversiones. [247]
A29: 23 | B29: 254 | C29: 17 | D29: N | E29: CUENTA TÉCNICA SEGURO NO VIDA. Ingresos del inmovilizado material y de las inversiones. Aplicaciones de correcciones de valor por deterioro del inmovilizado material y de las inversiones. Del inmovilizado material y de las inversiones inmobiliarias. [248]
A30: 24 | B30: 271 | C30: 17 | D30: N | E30: CUENTA TÉCNICA SEGURO NO VIDA. Ingresos del inmovilizado material y de las inversiones. Aplicaciones de correcciones de valor por deterioro del inmovilizado material y de las inversiones. De inversiones financieras. [249]
A31: 25 | B31: 288 | C31: 17 | D31: N | E31: CUENTA TÉCNICA SEGURO NO VIDA. Ingresos del inmovilizado material y de las inversiones. Beneficios en realización del inmovilizado material y de las inversiones. [250]
A32: 26 | B32: 305 | C32: 17 | D32: N | E32: CUENTA TÉCNICA SEGURO NO VIDA. Ingresos del inmovilizado material y de las inversiones. Beneficios en realización del inmovilizado material y de las inversiones. Del inmovilizado material y de las inversiones inmobiliarias. [251]
A33: 27 | B33: 322 | C33: 17 | D33: N | E33: CUENTA TÉCNICA SEGURO NO VIDA. Ingresos del inmovilizado material y de las inversiones. Beneficios en realización del inmovilizado material y de las inversiones. De inversiones financieras. [252]
A34: =A33+1 -> 28 | B34: =B33+C33 -> 339 | C34: 17 | D34: N | E34: CUENTA TÉCNICA SEGURO NO VIDA. Ingresos del inmovilizado material y de las inversiones. Ingresos de entidades incluidas en la consolidación. [706]
A35: =A34+1 -> 29 | B35: =B34+C34 -> 356 | C35: 17 | D35: N | E35: CUENTA TÉCNICA SEGURO NO VIDA. Ingresos del inmovilizado material y de las inversiones. Ingresos de entidades incluidas en la consolidación. Participación en beneficios de entidades puestas en equivalencia [707]
A36: =A35+1 -> 30 | B36: =B35+C35 -> 373 | C36: 17 | D36: N | E36: CUENTA TÉCNICA SEGURO NO VIDA. Ingresos del inmovilizado material y de las inversiones. Ingresos de entidades incluidas en la consolidación. Beneficios por enajenación de participaciones en sociedades puestas en equivalencia. [708]
A37: =+A36+1 -> 31 | B37: =C36+B36 -> 390 | C37: 17 | D37: N | E37: CUENTA TÉCNICA SEGURO NO VIDA. Ingresos del inmovilizado material y de las inversiones. Beneficios por la enajenación de participaciones en sociedades consolidadas. [696]
A38: 32 | B38: 407 | C38: 17 | D38: N | E38: CUENTA TÉCNICA SEGURO NO VIDA. Otros ingresos técnicos. [253]
A39: 33 | B39: 424 | C39: 17 | D39: N | E39: CUENTA TÉCNICA SEGURO NO VIDA. Siniestralidad del ejercicio, neta de reaseguro. [254]
A40: 34 | B40: 441 | C40: 17 | D40: N | E40: CUENTA TÉCNICA SEGURO NO VIDA. Siniestralidad del ejercicio, neta de reaseguro. Prestaciones y gastos pagados. [255]
A41: 35 | B41: 458 | C41: 17 | D41: N | E41: CUENTA TÉCNICA SEGURO NO VIDA. Siniestralidad del ejercicio, neta de reaseguro. Prestaciones y gastos pagados. Seguro directo. [256]
A42: 36 | B42: 475 | C42: 17 | D42: N | E42: CUENTA TÉCNICA SEGURO NO VIDA. Siniestralidad del ejercicio, neta de reaseguro. Prestaciones y gastos pagados. Reaseguro aceptado. [257]
A43: 37 | B43: 492 | C43: 17 | D43: N | E43: CUENTA TÉCNICA SEGURO NO VIDA. Siniestralidad del ejercicio, neta de reaseguro. Prestaciones y gastos pagados. Reaseguro cedido (-). [258]
A44: 38 | B44: 509 | C44: 17 | D44: N | E44: CUENTA TÉCNICA SEGURO NO VIDA. Siniestralidad del ejercicio, neta de reaseguro. Variación de la provisión para prestaciones (+ ó -). [259]
A45: 39 | B45: 526 | C45: 17 | D45: N | E45: CUENTA TÉCNICA SEGURO NO VIDA. Siniestralidad del ejercicio, neta de reaseguro. Variación de la provisión para prestaciones (+ ó -). Seguro directo. [260]
A46: 40 | B46: 543 | C46: 17 | D46: N | E46: CUENTA TÉCNICA SEGURO NO VIDA. Siniestralidad del ejercicio, neta de reaseguro. Variación de la provisión para prestaciones (+ ó -). Reaseguro aceptado. [261]
A47: 41 | B47: 560 | C47: 17 | D47: N | E47: CUENTA TÉCNICA SEGURO NO VIDA. Siniestralidad del ejercicio, neta de reaseguro. Variación de la provisión para prestaciones (+ ó -). Reaseguro cedido (-). [262]
A48: =+A47+1 -> 42 | B48: 577 | C48: 17 | D48: N | E48: CUENTA TÉCNICA SEGURO NO VIDA. Siniestralidad del ejercicio, neta de reaseguro. Gastos imputables a prestaciones. [263]
A49: =+A48+1 -> 43 | B49: 594 | C49: 17 | D49: N | E49: CUENTA TÉCNICA SEGURO NO VIDA. Variación de otras provisiones técnicas, netas de reaseguro (+ ó -). [264]
A50: 44 | B50: =C49+B49 -> 611 | C50: 17 | D50: N | E50: CUENTA TÉCNICA SEGURO NO VIDA. Participación en beneficios y extornos. [265]
A51: 45 | B51: 628 | C51: 17 | D51: N | E51: CUENTA TÉCNICA SEGURO NO VIDA. Participación en beneficios y extornos. Prestaciones y gastos por participación en beneficios y extornos. [266]
A52: 46 | B52: 645 | C52: 17 | D52: N | E52: CUENTA TÉCNICA SEGURO NO VIDA. Participación en beneficios y extornos. Variación de la provisión para participación en benefi cios y extornos (+ ó -). [267]
A53: 47 | B53: 662 | C53: 17 | D53: N | E53: CUENTA TÉCNICA SEGURO NO VIDA. Gastos de explotación netos. [268]
A54: 48 | B54: 679 | C54: 17 | D54: N | E54: CUENTA TÉCNICA SEGURO NO VIDA. Gastos de explotación netos. Gastos de adquisición. [269]
A55: 49 | B55: 696 | C55: 17 | D55: N | E55: CUENTA TÉCNICA SEGURO NO VIDA. Gastos de explotación netos. Gastos de administración. [270]
A56: 50 | B56: 713 | C56: 17 | D56: N | E56: CUENTA TÉCNICA SEGURO NO VIDA. Gastos de explotación netos. Comisiones y participaciones en el reaseguro cedido y retrocedido. [271]
A57: 51 | B57: 730 | C57: 17 | D57: N | E57: CUENTA TÉCNICA SEGURO NO VIDA. Otros gastos técnicos (+ ó -). [272]
A58: 52 | B58: 747 | C58: 17 | D58: N | E58: CUENTA TÉCNICA SEGURO NO VIDA. Otros gastos técnicos (+ ó -). Variación del deterioro por insolvencias (+ ó -). [273]
A59: 53 | B59: 764 | C59: 17 | D59: N | E59: CUENTA TÉCNICA SEGURO NO VIDA. Otros gastos técnicos (+ ó -). Variación del deterioro del inmovilizado (+ ó -). [274]
A60: 54 | B60: 781 | C60: 17 | D60: N | E60: CUENTA TÉCNICA SEGURO NO VIDA. Otros gastos técnicos (+ ó -). Variación de prestaciones por convenios de liquidación de siniestros (+ ó -). [275]
A61: 55 | B61: 798 | C61: 17 | D61: N | E61: CUENTA TÉCNICA SEGURO NO VIDA. Otros gastos técnicos (+ ó -). Otros. [276]
A62: =A61+1 -> 56 | B62: =B61+C61 -> 815 | C62: 12 | D62: An | E62: Fin de registro. | F62: </T22004A02>
A63: Total: | C63: =B62+C62-1 -> 826

Sheet T22004B02
B1: Agencia Tributaria
A3: =+T22001000!A3 -> Modelo 220 | C3: =+T22001000!C3 -> Diseño de registro. 2014
A4: =+T22001000!A4 -> Versión 1.2 | C4: Impuesto Sobre Sociedades. Régimen de consolidación Fiscal. GRUPO DE ENTIDADES ASEGURADORAS. CUENTA DE PÉRDIDAS Y GANACIAS CONSOLIDADA (II)
A6: Nº | B6: Posic. | C6: Lon | D6: Tipo | E6: Descripción | F6: Contenido
A7: 1 | B7: 1 | C7: 2 | D7: An | E7: Inicio del identificador de modelo y página. | F7: <T
A8: =+A7+1 -> 2 | B8: =C7+B7 -> 3 | C8: 3 | D8: Num | E8: Modelo. | F8: 220
A9: 3 | B9: =C8+B8 -> 6 | C9: 2 | D9: An | E9: Página. | F9: 04
A10: 4 | B10: =B9+C9 -> 8 | C10: 1 | D10: An | E10: Letra | F10: B
A11: 5 | B11: 9 | C11: 2 | D11: Num | E11: Hoja | F11: 02
A12: 6 | B12: =C11+B11 -> 11 | C12: 1 | D12: An | E12: Fin de identificador de modelo y página. Constante ">". | F12: >
A13: 7 | B13: =C12+B12 -> 12 | C13: 1 | D13: An | E13: Indicador de página complementaria.
A14: 8 | B14: =C13+B13 -> 13 | C14: 3 | D14: Num | E14: Número de orden de la página complementaria
A15: =+A14+1 -> 9 | B15: =C14+B14 -> 16 | C15: 17 | D15: N | E15: CUENTA TÉCNICA SEGURO NO VIDA. Gastos del inmovilizado material y de las inversiones. [277]
A16: 10 | B16: 33 | C16: 17 | D16: N | E16: CUENTA TÉCNICA SEGURO NO VIDA. Gastos del inmovilizado material y de las inversiones. Gastos de gestión de las inversiones. [278]
A17: 11 | B17: 50 | C17: 17 | D17: N | E17: CUENTA TÉCNICA SEGURO NO VIDA. Gastos del inmovilizado material y de las inversiones. Gastos de gestión de las inversiones. Gastos del inmovilizado material y de las inversiones inmobiliarias. [279]
A18: 12 | B18: 67 | C18: 17 | D18: N | E18: CUENTA TÉCNICA SEGURO NO VIDA. Gastos del inmovilizado material y de las inversiones. Gastos de gestión de las inversiones. Gastos de inversiones y cuentas fi nancieras. [280]
A19: 13 | B19: 84 | C19: 17 | D19: N | E19: CUENTA TÉCNICA SEGURO NO VIDA. Gastos del inmovilizado material y de las inversiones. Correcciones de valor del inmovilizado material y de las inversiones. [281]
A20: 14 | B20: 101 | C20: 17 | D20: N | E20: CUENTA TÉCNICA SEGURO NO VIDA. Gastos del inmovilizado material y de las inversiones. Correcciones de valor del inmovilizado material y de las inversiones. Amortización del inmovilizado material y de las inversiones inmobiliarias. [282]
A21: 15 | B21: 118 | C21: 17 | D21: N | E21: CUENTA TÉCNICA SEGURO NO VIDA. Gastos del inmovilizado material y de las inversiones. Correcciones de valor del inmovilizado material y de las inversiones. Deterioro del inmovilizado material y de las inversiones inmobiliarias. [283]
A22: 16 | B22: 135 | C22: 17 | D22: N | E22: CUENTA TÉCNICA SEGURO NO VIDA. Gastos del inmovilizado material y de las inversiones. Correcciones de valor del inmovilizado material y de las inversiones. Deterioro de inversiones fi nancieras. [284]
A23: 17 | B23: 152 | C23: 17 | D23: N | E23: CUENTA TÉCNICA SEGURO NO VIDA. Gastos del inmovilizado material y de las inversiones. Pérdidas procedentes del inmovilizado material y de las inversiones. [285]
A24: 18 | B24: 169 | C24: 17 | D24: N | E24: CUENTA TÉCNICA SEGURO NO VIDA. Gastos del inmovilizado material y de las inversiones. Pérdidas procedentes del inmovilizado material y de las inversiones. Del inmovilizado material y de las inversiones inmobiliarias. [286]
A25: 19 | B25: 186 | C25: 17 | D25: N | E25: CUENTA TÉCNICA SEGURO NO VIDA. Gastos del inmovilizado material y de las inversiones. Pérdidas procedentes del inmovilizado material y de las inversiones. De las inversiones financieras. [287]
A26: =A25+1 -> 20 | B26: =B25+C25 -> 203 | C26: 17 | D26: N | E26: CUENTA TÉCNICA SEGURO NO VIDA. Gastos del inmovilizado material y de las inversiones. Gastos de entidades incluidas en la consolidación. [709]
A27: =A26+1 -> 21 | B27: =B26+C26 -> 220 | C27: 17 | D27: N | E27: CUENTA TÉCNICA SEGURO NO VIDA. Gastos del inmovilizado material y de las inversiones. Gastos de entidades incluidas en la consolidación. Participación en pérdidas de entidades puestas en equivalencia. [710]
A28: =A27+1 -> 22 | B28: =B27+C27 -> 237 | C28: 17 | D28: N | E28: CUENTA TÉCNICA SEGURO NO VIDA. Gastos del inmovilizado material y de las inversiones. Gastos de entidades incluidas en la consolidación. Pérdidas por la enajenación de participaciones en sociedades puestas en equivalencia. [711]
A29: =+A28+1 -> 23 | B29: =C28+B28 -> 254 | C29: 17 | D29: N | E29: CUENTA TÉCNICA SEGURO NO VIDA. Gastos del inmovilizado material y de las inversiones.Pérdidas por la enajenación de participaciones en sociedades consolidadas. [656]
A30: 24 | B30: 271 | C30: 17 | D30: N | E30: CUENTA TÉCNICA SEGURO NO VIDA. Subtotal (Resultado de la cuenta técnica del seguro no vida). [288]
A31: 25 | B31: 288 | C31: 12 | D31: An | E31: Fin de registro. | F31: </T22004B02>
A32: Total: | C32: =B31+C31-1 -> 299

Sheet T22004C02
B1: Agencia Tributaria
A3: =+T22001000!A3 -> Modelo 220 | C3: =+T22001000!C3 -> Diseño de registro. 2014
A4: =+T22001000!A4 -> Versión 1.2 | C4: Impuesto Sobre Sociedades. Régimen de consolidación Fiscal. GRUPO DE ENTIDADES ASEGURADORAS. CUENTA DE PÉRDIDAS Y GANACIAS CONSOLIDADA (III)
A6: Nº | B6: Posic. | C6: Lon | D6: Tipo | E6: Descripción | F6: Contenido
A7: 1 | B7: 1 | C7: 2 | D7: An | E7: Inicio del identificador de modelo y página. | F7: <T
A8: =+A7+1 -> 2 | B8: =C7+B7 -> 3 | C8: 3 | D8: Num | E8: Modelo. | F8: 220
A9: 3 | B9: =C8+B8 -> 6 | C9: 2 | D9: An | E9: Página. | F9: 04
A10: 4 | B10: =B9+C9 -> 8 | C10: 1 | D10: An | E10: Letra | F10: C
A11: 5 | B11: 9 | C11: 2 | D11: Num | E11: Hoja | F11: 02
A12: 6 | B12: =C11+B11 -> 11 | C12: 1 | D12: An | E12: Fin de identificador de modelo y página. Constante ">". | F12: >
A13: 7 | B13: =C12+B12 -> 12 | C13: 1 | D13: An | E13: Indicador de página complementaria.
A14: 8 | B14: =C13+B13 -> 13 | C14: 3 | D14: Num | E14: Número de orden de la página complementaria
A15: =+A14+1 -> 9 | B15: =C14+B14 -> 16 | C15: 17 | D15: N | E15: CUENTA TÉCNICA SEGURO DE VIDA. Prima imputadas al ejercicio, netas de reaseguro. [289]
A16: 10 | B16: 33 | C16: 17 | D16: N | E16: CUENTA TÉCNICA SEGURO DE VIDA. Prima imputadas al ejercicio, netas de reaseguro. Primas devengadas. [290]
A17: 11 | B17: 50 | C17: 17 | D17: N | E17: CUENTA TÉCNICA SEGURO DE VIDA. Prima imputadas al ejercicio, netas de reaseguro. Primas devengadas. Seguro directo. [291]
A18: 12 | B18: 67 | C18: 17 | D18: N | E18: CUENTA TÉCNICA SEGURO DE VIDA. Prima imputadas al ejercicio, netas de reaseguro. Primas devengadas. Reaseguro aceptado. [292]
A19: 13 | B19: 84 | C19: 17 | D19: N | E19: CUENTA TÉCNICA SEGURO DE VIDA. Prima imputadas al ejercicio, netas de reaseguro. Primas devengadas. Variación de la corrección por deterioro de las primas pendientes de cobro (+ ó -). [293]
A20: 14 | B20: 101 | C20: 17 | D20: N | E20: CUENTA TÉCNICA SEGURO DE VIDA. Prima imputadas al ejercicio, netas de reaseguro. Primas del reaseguro cedido (-). [294]
A21: 15 | B21: 118 | C21: 17 | D21: N | E21: CUENTA TÉCNICA SEGURO DE VIDA. Prima imputadas al ejercicio, netas de reaseguro. Variación de la provisión para primas no consumidas y para riesgos en curso (+ ó -). [295]
A22: 16 | B22: 135 | C22: 17 | D22: N | E22: CUENTA TÉCNICA SEGURO DE VIDA. Prima imputadas al ejercicio, netas de reaseguro. Variación de la provisión para primas no consumidas y para riesgos en curso (+ ó -). Seguro directo. [296]
A23: 17 | B23: 152 | C23: 17 | D23: N | E23: CUENTA TÉCNICA SEGURO DE VIDA. Prima imputadas al ejercicio, netas de reaseguro. Variación de la provisión para primas no consumidas y para riesgos en curso (+ ó -). Reaseguro aceptado. [297]
A24: 18 | B24: 169 | C24: 17 | D24: N | E24: CUENTA TÉCNICA SEGURO DE VIDA. Prima imputadas al ejercicio, netas de reaseguro. Variación de la provisión para primas no consumidas y para riesgos en curso (+ ó -). Variación de la provisión para primas no consumidas, reaseguro cedido (+ ó -). [298]
A25: 19 | B25: 186 | C25: 17 | D25: N | E25: CUENTA TÉCNICA SEGURO DE VIDA. Ingresos del inmovilizado material y de las inversiones. [299]
A26: 20 | B26: 203 | C26: 17 | D26: N | E26: CUENTA TÉCNICA SEGURO DE VIDA. Ingresos procedentes de las inversiones inmobiliarias. [300]
A27: 21 | B27: 220 | C27: 17 | D27: N | E27: CUENTA TÉCNICA SEGURO DE VIDA. Ingresos procedentes de las inversiones financieras. [301]
A28: 22 | B28: 237 | C28: 17 | D28: N | E28: CUENTA TÉCNICA SEGURO DE VIDA. Aplicaciones de correcciones de valor por deterioro del inmovilizado material y de las inversiones. [302]
A29: 23 | B29: 254 | C29: 17 | D29: N | E29: CUENTA TÉCNICA SEGURO DE VIDA. Aplicaciones de correcciones de valor por deterioro del inmovilizado material y de las inversiones. Del inmovilizado material y de las inversiones inmobiliarias. [303]
A30: 24 | B30: 271 | C30: 17 | D30: N | E30: CUENTA TÉCNICA SEGURO DE VIDA. Aplicaciones de correcciones de valor por deterioro del inmovilizado material y de las inversiones. De inversiones financieras. [304]
A31: 25 | B31: 288 | C31: 17 | D31: N | E31: CUENTA TÉCNICA SEGURO DE VIDA. Beneficios en realización del inmovilizado material y de las inversiones. [305]
A32: 26 | B32: 305 | C32: 17 | D32: N | E32: CUENTA TÉCNICA SEGURO DE VIDA. Beneficios en realización del inmovilizado material y de las inversiones. Del inmovilizado material y de las inversiones inmobiliarias. [306]
A33: 27 | B33: 322 | C33: 17 | D33: N | E33: CUENTA TÉCNICA SEGURO DE VIDA. Beneficios en realización del inmovilizado material y de las inversiones. De inversiones financieras. [307]
A34: =A33+1 -> 28 | B34: =B33+C33 -> 339 | C34: 17 | D34: N | E34: CUENTA TÉCNICA SEGURO DE VIDA. Beneficios en realización del inmovilizado material y de las inversiones. Ingresos de entidades incluidas en la consolidación. [712]
A35: =A34+1 -> 29 | B35: =B34+C34 -> 356 | C35: 17 | D35: N | E35: CUENTA TÉCNICA SEGURO DE VIDA. Beneficios en realización del inmovilizado material y de las inversiones. Ingresos de entidades incluidas en la consolidación. Participación en beneficios de entidades puestas en equivalencia. [713]
A36: =A35+1 -> 30 | B36: =B35+C35 -> 373 | C36: 17 | D36: N | E36: CUENTA TÉCNICA SEGURO DE VIDA. Beneficios en realización del inmovilizado material y de las inversiones. Ingresos de entidades incluidas en la consolidación. Beneficios por la enajenación de participaciones en sociedades puestas en equivalencia. [714]
A37: =+A36+1 -> 31 | B37: =C36+B36 -> 390 | C37: 17 | D37: N | E37: CUENTA TÉCNICA SEGURO DE VIDA. Beneficios por la enajenación de participaciones en sociedades consolidadas. [657]
A38: 32 | B38: 407 | C38: 17 | D38: N | E38: CUENTA TÉCNICA SEGURO DE VIDA. Ingresos de inversiones afectas a seguros en los que el tomador asume el riesgo de la inversión. [308]
A39: 33 | B39: 424 | C39: 17 | D39: N | E39: CUENTA TÉCNICA SEGURO DE VIDA. Otros ingresos técnicos. [309]
A40: 34 | B40: 441 | C40: 17 | D40: N | E40: CUENTA TÉCNICA SEGURO DE VIDA. Siniestralidad del ejercicio, neta de reaseguro. [310]
A41: 35 | B41: 458 | C41: 17 | D41: N | E41: CUENTA TÉCNICA SEGURO DE VIDA. Siniestralidad del ejercicio, neta de reaseguro. Prestaciones y gastos pagados. [311]
A42: 36 | B42: 475 | C42: 17 | D42: N | E42: CUENTA TÉCNICA SEGURO DE VIDA. Siniestralidad del ejercicio, neta de reaseguro. Prestaciones y gastos pagados. Seguro directo. [312]
A43: 37 | B43: 492 | C43: 17 | D43: N | E43: CUENTA TÉCNICA SEGURO DE VIDA. Siniestralidad del ejercicio, neta de reaseguro. Prestaciones y gastos pagados. Reaseguro aceptado. [313]
A44: 38 | B44: 509 | C44: 17 | D44: N | E44: CUENTA TÉCNICA SEGURO DE VIDA. Siniestralidad del ejercicio, neta de reaseguro. Prestaciones y gastos pagados. Reaseguro cedido (-). [314]
A45: 39 | B45: 526 | C45: 17 | D45: N | E45: CUENTA TÉCNICA SEGURO DE VIDA. Siniestralidad del ejercicio, neta de reaseguro. Variación de la provisión para prestaciones (+ ó -). [315]
A46: 40 | B46: 543 | C46: 17 | D46: N | E46: CUENTA TÉCNICA SEGURO DE VIDA. Siniestralidad del ejercicio, neta de reaseguro. Variación de la provisión para prestaciones (+ ó -). Seguro directo. [316]
A47: 41 | B47: 560 | C47: 17 | D47: N | E47: CUENTA TÉCNICA SEGURO DE VIDA. Siniestralidad del ejercicio, neta de reaseguro. Variación de la provisión para prestaciones (+ ó -). Reaseguro aceptado. [317]
A48: 42 | B48: 577 | C48: 17 | D48: N | E48: CUENTA TÉCNICA SEGURO DE VIDA. Siniestralidad del ejercicio, neta de reaseguro. Variación de la provisión para prestaciones (+ ó -). Reaseguro cedido (-). [318]
A49: =+A48+1 -> 43 | B49: 594 | C49: 17 | D49: N | E49: CUENTA TÉCNICA SEGURO DE VIDA. Siniestralidad del ejercicio, neta de reaseguro. Gastos imputables a prestaciones. [319]
A50: 44 | B50: =C49+B49 -> 611 | C50: 17 | D50: N | E50: CUENTA TÉCNICA SEGURO DE VIDA. Variación de otras provisiones técnicas, netas de reaseguro (+ ó -). [320]
A51: 45 | B51: 628 | C51: 17 | D51: N | E51: CUENTA TÉCNICA SEGURO DE VIDA. Variación de otras provisiones técnicas, netas de reaseguro (+ ó -). Provisiones para seguros de vida. [321]
A52: 46 | B52: 645 | C52: 17 | D52: N | E52: CUENTA TÉCNICA SEGURO DE VIDA. Variación de otras provisiones técnicas, netas de reaseguro (+ ó -). Provisiones para seguros de vida. Seguro directo. [322]
A53: 47 | B53: 662 | C53: 17 | D53: N | E53: CUENTA TÉCNICA SEGURO DE VIDA. Variación de otras provisiones técnicas, netas de reaseguro (+ ó -). Provisiones para seguros de vida. Reaseguro aceptado. [323]
A54: 48 | B54: 679 | C54: 17 | D54: N | E54: CUENTA TÉCNICA SEGURO DE VIDA. Variación de otras provisiones técnicas, netas de reaseguro (+ ó -). Provisiones para seguros de vida. Reaseguro cedido (-). [324]
A55: 49 | B55: 696 | C55: 17 | D55: N | E55: CUENTA TÉCNICA SEGURO DE VIDA. Variación de otras provisiones técnicas, netas de reaseguro (+ ó -). Provisiones para seguros de vida cuando el riesgo de inversión lo asuman los tomadores de seguros. [325]
A56: =+A55+1 -> 50 | B56: 713 | C56: 17 | D56: N | E56: CUENTA TÉCNICA SEGURO DE VIDA. Variación de otras provisiones técnicas, netas de reaseguro (+ ó -). Otras provisiones técnicas. [326]
A57: 51 | B57: 730 | C57: 17 | D57: N | E57: CUENTA TÉCNICA SEGURO DE VIDA. Participación en beneficios y extornos. [327]
A58: 52 | B58: 747 | C58: 17 | D58: N | E58: CUENTA TÉCNICA SEGURO DE VIDA. Participación en beneficios y extornos. Prestaciones y gastos por participación en beneficios y extornos. [328]
A59: 53 | B59: 764 | C59: 17 | D59: N | E59: CUENTA TÉCNICA SEGURO DE VIDA. Participación en beneficios y extornos. Variación de la provisión para participación en beneficios extornos (+ ó -). [329]
A60: 54 | B60: 781 | C60: 17 | D60: N | E60: CUENTA TÉCNICA SEGURO DE VIDA. Gastos de explotación netos. [330]
A61: 55 | B61: 798 | C61: 17 | D61: N | E61: CUENTA TÉCNICA SEGURO DE VIDA. Gastos de explotación netos. Gastos de adquisición. [331]
A62: 56 | B62: 815 | C62: 17 | D62: N | E62: CUENTA TÉCNICA SEGURO DE VIDA. Gastos de explotación netos. Gastos de administración. [332]
A63: 57 | B63: 832 | C63: 17 | D63: N | E63: CUENTA TÉCNICA SEGURO DE VIDA. Gastos de explotación netos. Comisiones y participaciones en el reaseguro cedido y retrocedido. [333]
A64: =A63+1 -> 58 | B64: =B63+C63 -> 849 | C64: 12 | D64: An | E64: Fin de registro. | F64: </T22004C02>
A65: Total: | C65: =B64+C64-1 -> 860

Sheet T22004D02
B1: Agencia Tributaria
A3: =+T22001000!A3 -> Modelo 220 | C3: =+T22001000!C3 -> Diseño de registro. 2014
A4: =+T22001000!A4 -> Versión 1.2 | C4: Impuesto Sobre Sociedades. Régimen de consolidación Fiscal. GRUPO DE ENTIDADES ASEGURADORAS. CUENTA DE PÉRDIDAS Y GANANCIAS CONSOLIDADA (IV)
A6: Nº | B6: Posic. | C6: Lon | D6: Tipo | E6: Descripción | F6: Contenido
A7: 1 | B7: 1 | C7: 2 | D7: An | E7: Inicio del identificador de modelo y página. | F7: <T
A8: =+A7+1 -> 2 | B8: =C7+B7 -> 3 | C8: 3 | D8: Num | E8: Modelo. | F8: 220
A9: 3 | B9: =C8+B8 -> 6 | C9: 2 | D9: An | E9: Página. | F9: 04
A10: 4 | B10: =B9+C9 -> 8 | C10: 1 | D10: An | E10: Letra | F10: D
A11: 5 | B11: 9 | C11: 2 | D11: Num | E11: Hoja | F11: 02
A12: 6 | B12: =C11+B11 -> 11 | C12: 1 | D12: An | E12: Fin de identificador de modelo y página. Constante ">". | F12: >
A13: 7 | B13: =C12+B12 -> 12 | C13: 1 | D13: An | E13: Indicador de página complementaria.
A14: 8 | B14: =C13+B13 -> 13 | C14: 3 | D14: Num | E14: Número de orden de la página complementaria
A15: 9 | B15: 16 | C15: 17 | D15: N | E15: CUENTA TÉCNICA SEGURO DE VIDA. Otros gastos técnicos (+ ó -). [334]
A16: 10 | B16: 33 | C16: 17 | D16: N | E16: CUENTA TÉCNICA SEGURO DE VIDA. Otros gastos técnicos (+ ó -). Variación del deterioro por insolvencias (+ ó -). [335]
A17: 11 | B17: 50 | C17: 17 | D17: N | E17: CUENTA TÉCNICA SEGURO DE VIDA. Otros gastos técnicos (+ ó -). Variación del deterioro del inmovilizado (+ ó -). [336]
A18: =+A17+1 -> 12 | B18: =C17+B17 -> 67 | C18: 17 | D18: N | E18: CUENTA TÉCNICA SEGURO DE VIDA. Otros gastos técnicos (+ ó -). Otros. [337]
A19: =+A18+1 -> 13 | B19: =C18+B18 -> 84 | C19: 17 | D19: N | E19: CUENTA TÉCNICA SEGURO DE VIDA. Gastos del inmovilizado material y de las inversiones. [338]
A20: =+A19+1 -> 14 | B20: =C19+B19 -> 101 | C20: 17 | D20: N | E20: CUENTA TÉCNICA SEGURO DE VIDA. Gastos del inmovilizado material y de las inversiones. Gastos de gestión del inmovilizado material y de las inversiones. [339]
A21: 15 | B21: 118 | C21: 17 | D21: N | E21: CUENTA TÉCNICA SEGURO DE VIDA. Gastos del inmovilizado material y de las inversiones. Gastos de gestión del inmovilizado material y de las inversiones. Gastos del inmovilizado material y de las inversiones inmobiliarias. [340]
A22: 16 | B22: 135 | C22: 17 | D22: N | E22: CUENTA TÉCNICA SEGURO DE VIDA. Gastos del inmovilizado material y de las inversiones. Gastos de gestión del inmovilizado material y de las inversiones. Gastos de inversiones y cuentas financieras. [341]
A23: 17 | B23: 152 | C23: 17 | D23: N | E23: CUENTA TÉCNICA SEGURO DE VIDA. Gastos del inmovilizado material y de las inversiones. Correcciones de valor del inmovilizado material y de las inversiones. [342]
A24: 18 | B24: 169 | C24: 17 | D24: N | E24: CUENTA TÉCNICA SEGURO DE VIDA. Gastos del inmovilizado material y de las inversiones. Correcciones de valor del inmovilizado material y de las inversiones. Amortización del inmovilizado material y de las inversiones inmobiliarias. [343]
A25: 19 | B25: 186 | C25: 17 | D25: N | E25: CUENTA TÉCNICA SEGURO DE VIDA. Gastos del inmovilizado material y de las inversiones. Correcciones de valor del inmovilizado material y de las inversiones. Deterioro del inmovilizado material y de las inversiones inmobiliarias. [344]
A26: 20 | B26: 203 | C26: 17 | D26: N | E26: CUENTA TÉCNICA SEGURO DE VIDA. Gastos del inmovilizado material y de las inversiones. Correcciones de valor del inmovilizado material y de las inversiones. Deterioro de inversiones financieras. [345]
A27: 21 | B27: 220 | C27: 17 | D27: N | E27: CUENTA TÉCNICA SEGURO DE VIDA. Gastos del inmovilizado material y de las inversiones. Pérdidas procedentes del inmovilizado material y de las inversiones. [346]
A28: 22 | B28: 237 | C28: 17 | D28: N | E28: CUENTA TÉCNICA SEGURO DE VIDA. Gastos del inmovilizado material y de las inversiones. Pérdidas procedentes del inmovilizado material y de las inversiones. Del inmovilizado material y de las inversiones inmobiliarias. [347]
A29: 23 | B29: 254 | C29: 17 | D29: N | E29: CUENTA TÉCNICA SEGURO DE VIDA. Gastos del inmovilizado material y de las inversiones. Pérdidas procedentes del inmovilizado material y de las inversiones. De las inversiones financieras. [348]
A30: =A29+1 -> 24 | B30: =B29+C29 -> 271 | C30: 17 | D30: N | E30: CUENTA TÉCNICA SEGURO DE VIDA. Gastos del inmovilizado material y de las inversiones. Gastos de entidades incluidas en la consolidación. [715]
A31: =A30+1 -> 25 | B31: =B30+C30 -> 288 | C31: 17 | D31: N | E31: CUENTA TÉCNICA SEGURO DE VIDA. Gastos del inmovilizado material y de las inversiones. Gastos de entidades incluidas en la consolidación. Participación en pérdidas de entidades puestas en equivalencia. [716]
A32: =A31+1 -> 26 | B32: =B31+C31 -> 305 | C32: 17 | D32: N | E32: CUENTA TÉCNICA SEGURO DE VIDA. Gastos del inmovilizado material y de las inversiones. Gastos de entidades incluidas en la consolidación. Pérdidas por enajenación de participaciones en sociedades puestas en equivalencia. [717]
A33: =+A32+1 -> 27 | B33: =C32+B32 -> 322 | C33: 17 | D33: N | E33: CUENTA TÉCNICA SEGURO DE VIDA. Gastos del inmovilizado material y de las inversiones. Pérdidas por la enajenación de participaciones en sociedades consolidadas. [658]
A34: 28 | B34: 339 | C34: 17 | D34: N | E34: CUENTA TÉCNICA SEGURO DE VIDA. Gastos de inversiones afectas a seguros en los que el tomador asume el riesgo de la inversión. [349]
A35: 29 | B35: 356 | C35: 17 | D35: N | E35: CUENTA TÉCNICA SEGURO DE VIDA. Subtotal (Resultado de la cuenta técnica del seguro de vida). [350]
A36: =A35+1 -> 30 | B36: =B35+C35 -> 373 | C36: 17 | D36: N | E36: CUENTA NO TÉCNICA. Resultados de la cuenta técnica del seguro no vida. [718]
A37: =A36+1 -> 31 | B37: =B36+C36 -> 390 | C37: 17 | D37: N | E37: CUENTA NO TÉCNICA. Resultados de la cuenta técnica del seguro de vida. [719]
A38: =+A37+1 -> 32 | B38: =C37+B37 -> 407 | C38: 17 | D38: N | E38: CUENTA NO TÉCNICA. Ingresos del inmovilizado material y de las inversiones. [351]
A39: 33 | B39: 424 | C39: 17 | D39: N | E39: CUENTA NO TÉCNICA. Ingresos del inmovilizado material y de las inversiones. Ingresos procedentes de las inversiones inmobiliarias. [352]
A40: 34 | B40: 441 | C40: 17 | D40: N | E40: CUENTA NO TÉCNICA. Ingresos del inmovilizado material y de las inversiones. Ingresos procedentes de las inversiones financieras. [353]
A41: 35 | B41: 458 | C41: 17 | D41: N | E41: CUENTA NO TÉCNICA. Ingresos del inmovilizado material y de las inversiones. Aplicaciones de correcciones de valor por deterioro del inmovilizado material y de las inversiones. [354]
A42: 36 | B42: 475 | C42: 17 | D42: N | E42: CUENTA NO TÉCNICA. Ingresos del inmovilizado material y de las inversiones. Aplicaciones de correcciones de valor por deterioro del inmovilizado material y de las inversiones. Del inmovilizado material y de las inversiones inmobiliarias. [355]
A43: 37 | B43: 492 | C43: 17 | D43: N | E43: CUENTA NO TÉCNICA. Ingresos del inmovilizado material y de las inversiones. Aplicaciones de correcciones de valor por deterioro del inmovilizado material y de las inversiones. De inversiones financieras. [356]
A44: 38 | B44: 509 | C44: 17 | D44: N | E44: CUENTA NO TÉCNICA. Ingresos del inmovilizado material y de las inversiones. Beneficios en realización del inmovilizado material y de las inversiones. [357]
A45: 39 | B45: 526 | C45: 17 | D45: N | E45: CUENTA NO TÉCNICA. Ingresos del inmovilizado material y de las inversiones. Beneficios en realización del inmovilizado material y de las inversiones. Del inmovilizado material y de las inversiones inmobiliarias. [358]
A46: 40 | B46: 543 | C46: 17 | D46: N | E46: CUENTA NO TÉCNICA. Ingresos del inmovilizado material y de las inversiones. Beneficios en realización del inmovilizado material y de las inversiones. De inversiones financieras. [359]
A47: =A46+1 -> 41 | B47: =B46+C46 -> 560 | C47: 17 | D47: N | E47: CUENTA NO TÉCNICA. Ingresos de entidades incluidas en la consolidación. [720]
A48: =A47+1 -> 42 | B48: =B47+C47 -> 577 | C48: 17 | D48: N | E48: CUENTA NO TÉCNICA. Ingresos de entidades incluidas en la consolidación. Participación en beneficios de entidades puestas en equivalencia [721]
A49: =A48+1 -> 43 | B49: =B48+C48 -> 594 | C49: 17 | D49: N | E49: CUENTA NO TÉCNICA. Ingresos de entidades incluidas en la consolidación. Beneficios por enajenación de participaciones en sociedades puestas en equivalencia [722]
A50: =A49+1 -> 44 | B50: 611 | C50: 17 | D50: N | E50: CUENTA NO TÉCNICA. Ingresos del inmovilizado material y de las inversiones. Beneficios por la enajenación de participaciones en sociedades consolidadas. [659]
A51: 45 | B51: 628 | C51: 17 | D51: N | E51: CUENTA NO TÉCNICA. Diferencias negativas de consolidación. [723]
A52: 46 | B52: 645 | C52: 17 | D52: N | E52: CUENTA NO TÉCNICA. Ingresos del inmovilizado material y de las inversiones. Diferencias negativa de consolidación de sociedades consolidadas. Sociedades consolidadas. [660]
A53: 47 | B53: =B52+C52 -> 662 | C53: 17 | D53: N | E53: CUENTA NO TÉCNICA. Ingresos del inmovilizado material y de las inversiones. Diferencias negativa de consolidación de sociedades consolidadas. Sociedades puestas en equivalencia. [724]
A54: =A53+1 -> 48 | B54: =B53+C53 -> 679 | C54: 12 | D54: An | E54: Fin de registro. | F54: </T22004D02>
A55: Total: | C55: =B54+C54-1 -> 690

Sheet T22004E02
B1: Agencia Tributaria
A3: =+T22001000!A3 -> Modelo 220 | C3: =+T22001000!C3 -> Diseño de registro. 2014
A4: =+T22001000!A4 -> Versión 1.2 | C4: Impuesto Sobre Sociedades. Régimen de consolidación Fiscal. GRUPO DE ENTIDADES ASEGURADORAS. CUENTA DE PÉRDIDAS Y GANANCIAS CONSOLIDADA (V)
A6: Nº | B6: Posic. | C6: Lon | D6: Tipo | E6: Descripción | F6: Contenido
A7: 1 | B7: 1 | C7: 2 | D7: An | E7: Inicio del identificador de modelo y página. | F7: <T
A8: =+A7+1 -> 2 | B8: =C7+B7 -> 3 | C8: 3 | D8: Num | E8: Modelo. | F8: 220
A9: 3 | B9: =C8+B8 -> 6 | C9: 2 | D9: An | E9: Página. | F9: 04
A10: 4 | B10: =B9+C9 -> 8 | C10: 1 | D10: An | E10: Letra | F10: E
A11: 5 | B11: 9 | C11: 2 | D11: Num | E11: Hoja | F11: 02
A12: 6 | B12: =C11+B11 -> 11 | C12: 1 | D12: An | E12: Fin de identificador de modelo y página. Constante ">". | F12: >
A13: 7 | B13: =C12+B12 -> 12 | C13: 1 | D13: An | E13: Indicador de página complementaria.
A14: 8 | B14: =C13+B13 -> 13 | C14: 3 | D14: Num | E14: Número de orden de la página complementaria
A15: =+A14+1 -> 9 | B15: 16 | C15: 17 | D15: N | E15: CUENTA NO TÉCNICA. Gastos del inmovilizado material y de las inversiones. [360]
A16: =+A15+1 -> 10 | B16: =C15+B15 -> 33 | C16: 17 | D16: N | E16: CUENTA NO TÉCNICA. Gastos del inmovilizado material y de las inversiones. Gastos de gestión de las inversiones. [361]
A17: 11 | B17: 50 | C17: 17 | D17: N | E17: CUENTA NO TÉCNICA. Gastos del inmovilizado material y de las inversiones. Gastos de gestión de las inversiones. Gastos de inversiones y cuentas financieras. [363]
A18: 12 | B18: 67 | C18: 17 | D18: N | E18: CUENTA NO TÉCNICA. Gastos del inmovilizado material y de las inversiones. Gastos de gestión de las inversiones. Gastos de inversiones materiales. [362]
A19: 13 | B19: 84 | C19: 17 | D19: N | E19: CUENTA NO TÉCNICA. Gastos del inmovilizado material y de las inversiones. Correcciones de valor del inmovilizado material y de las inversiones. [364]
A20: 14 | B20: 101 | C20: 17 | D20: N | E20: CUENTA NO TÉCNICA. Gastos del inmovilizado material y de las inversiones. Correcciones de valor del inmovilizado material y de las inversiones. Amortización del inmovilizado material y de las inversiones inmobiliarias. [365]
A21: 15 | B21: 118 | C21: 17 | D21: N | E21: CUENTA NO TÉCNICA. Gastos del inmovilizado material y de las inversiones. Correcciones de valor del inmovilizado material y de las inversiones. Deterioro del inmovilizado material y de las inversiones inmobiliarias. [366]
A22: 16 | B22: 135 | C22: 17 | D22: N | E22: CUENTA NO TÉCNICA. Gastos del inmovilizado material y de las inversiones. Correcciones de valor del inmovilizado material y de las inversiones. Deterioro de inversiones financieras. [367]
A23: 17 | B23: 152 | C23: 17 | D23: N | E23: CUENTA NO TÉCNICA. Gastos del inmovilizado material y de las inversiones. Pérdidas procedentes del inmovilizado material y de las inversiones. [368]
A24: 18 | B24: 169 | C24: 17 | D24: N | E24: CUENTA NO TÉCNICA. Gastos del inmovilizado material y de las inversiones. Pérdidas procedentes del inmovilizado material y de las inversiones. Del inmovilizado material y de las inversiones inmobiliarias. [369]
A25: 19 | B25: 186 | C25: 17 | D25: N | E25: CUENTA NO TÉCNICA. Gastos del inmovilizado material y de las inversiones. Pérdidas procedentes del inmovilizado material y de las inversiones. De las inversiones financieras. [370]
A26: =A25+1 -> 20 | B26: =B25+C25 -> 203 | C26: 17 | D26: N | E26: CUENTA NO TÉCNICA. Gastos del inmovilizado material y de las inversiones. Gastos de entidades incluidas en la consolidación. [725]
A27: =A26+1 -> 21 | B27: =B26+C26 -> 220 | C27: 17 | D27: N | E27: CUENTA NO TÉCNICA. Gastos del inmovilizado material y de las inversiones. Gastos de entidades incluidas en la consolidación. Participación en pérdidas de entidades puestas en equivalencia. [726]
A28: =A27+1 -> 22 | B28: =B27+C27 -> 237 | C28: 17 | D28: N | E28: CUENTA NO TÉCNICA. Gastos del inmovilizado material y de las inversiones. Gastos de entidades incluidas en la consolidación. Pérdidas de la enajenación de participaciones en sociedades puestas en equivalencia. [727]
A29: =+A28+1 -> 23 | B29: =C28+B28 -> 254 | C29: 17 | D29: N | E29: CUENTA NO TÉCNICA. Gastos del inmovilizado material y de las inversiones. Perdidas por la enajenación de participaciones en sociedades consolidadas. [661]
A30: 24 | B30: 271 | C30: 17 | D30: N | E30: CUENTA NO TÉCNICA. Otros ingresos. [371]
A31: 25 | B31: 288 | C31: 17 | D31: N | E31: CUENTA NO TÉCNICA. Otros ingresos. Ingresos por la administración de fondos de pensiones. [372]
A32: 26 | B32: 305 | C32: 17 | D32: N | E32: CUENTA NO TÉCNICA. Otros ingresos. Resto de ingresos. [373]
A33: 27 | B33: 322 | C33: 17 | D33: N | E33: CUENTA NO TÉCNICA. Otros gastos. [374]
A34: 28 | B34: 339 | C34: 17 | D34: N | E34: CUENTA NO TÉCNICA. Otros gastos. Gastos por la administración de fondos de pensiones. [375]
A35: 29 | B35: 356 | C35: 17 | D35: N | E35: CUENTA NO TÉCNICA. Otros gastos. Resto de gastos. [376]
A36: 30 | B36: 373 | C36: 17 | D36: N | E36: CUENTA NO TÉCNICA. Subtotal (Resultado de la cuenta no técnica). [377]
A37: 31 | B37: 390 | C37: 17 | D37: N | E37: CUENTA NO TÉCNICA. Resultado antes de impuestos. [378]
A38: 32 | B38: 407 | C38: 17 | D38: N | E38: CUENTA NO TÉCNICA. Impuesto sobre beneficios. [379]
A39: 33 | B39: 424 | C39: 17 | D39: N | E39: CUENTA NO TÉCNICA. Resultado procedente de operaciones continuadas. [380]
A40: 34 | B40: 441 | C40: 17 | D40: N | E40: CUENTA NO TÉCNICA. Resultado procedente de operaciones interrumpidas neto de impuestos. [381]
A41: 35 | B41: 458 | C41: 17 | D41: N | E41: CUENTA NO TÉCNICA. Resultado consolidado del ejercicio. [500]
A42: 36 | B42: 475 | C42: 17 | D42: N | E42: CUENTA NO TÉCNICA. Resultado consolidado del ejercicio. Resultado atribuido a la sociedad dominante. [662]
A43: 37 | B43: 492 | C43: 17 | D43: N | E43: CUENTA NO TÉCNICA. Resultado consolidado del ejercicio. Resultado atribuido a los socios externos. [663]
A44: 38 | B44: 509 | C44: 12 | D44: An | E44: Fin de registro. | F44: </T22004E02>
A45: Total: | C45: =B44+C44-1 -> 520

Sheet T22005A02
B1: Agencia Tributaria
A3: =+T22001000!A3 -> Modelo 220 | C3: =+T22001000!C3 -> Diseño de registro. 2014
A4: =+T22001000!A4 -> Versión 1.2 | C4: Impuesto Sobre Sociedades. Régimen de consolidación Fiscal. GRUPO DE ENTIDADES ASEGURADORAS. ESTADO DE CAMBIOS EN EL PATRIMONIO NETO: ESTADO DE INGRESOS Y GASTOS RECONOCIDOS CONSOLIDADO
A6: Nº | B6: Posic. | C6: Lon | D6: Tipo | E6: Descripción | F6: Contenido
A7: 1 | B7: 1 | C7: 2 | D7: An | E7: Inicio del identificador de modelo y página. | F7: <T
A8: =+A7+1 -> 2 | B8: =C7+B7 -> 3 | C8: 3 | D8: Num | E8: Modelo. | F8: 220
A9: 3 | B9: =C8+B8 -> 6 | C9: 2 | D9: An | E9: Página. | F9: 05
A10: 4 | B10: =B9+C9 -> 8 | C10: 1 | D10: An | E10: Letra | F10: A
A11: 5 | B11: 9 | C11: 2 | D11: Num | E11: Hoja | F11: 02
A12: 6 | B12: =C11+B11 -> 11 | C12: 1 | D12: An | E12: Fin de identificador de modelo y página. Constante ">". | F12: >
A13: 7 | B13: =C12+B12 -> 12 | C13: 1 | D13: An | E13: Indicador de página complementaria.
A14: 8 | B14: =C13+B13 -> 13 | C14: 3 | D14: Num | E14: Número de orden de la página complementaria
A15: =+A14+1 -> 9 | B15: =C14+B14 -> 16 | C15: 17 | D15: N | E15: ESTADO DE INGRESOS Y GASTOS RECONOCIDOS CONSOLIDADO EN EL EJERCICIO. RESULTADO CONSOLIDADO DEL EJERCICIO. [500]
A16: 10 | B16: 33 | C16: 17 | D16: N | E16: ESTADO DE INGRESOS Y GASTOS RECONOCIDOS CONSOLIDADO EN EL EJERCICIO. OTROS INGRESOS Y GASTOS RECONOCIDOS. [383]
A17: 11 | B17: 50 | C17: 17 | D17: N | E17: ESTADO DE INGRESOS Y GASTOS RECONOCIDOS CONSOLIDADO EN EL EJERCICIO. Activos fi nancieros disponibles para la venta. [384]
A18: 12 | B18: 67 | C18: 17 | D18: N | E18: ESTADO DE INGRESOS Y GASTOS RECONOCIDOS CONSOLIDADO EN EL EJERCICIO. Activos fi nancieros disponibles para la ventaGanancias y pérdidas por valoración. [385]
A19: 13 | B19: 84 | C19: 17 | D19: N | E19: ESTADO DE INGRESOS Y GASTOS RECONOCIDOS CONSOLIDADO EN EL EJERCICIO. Activos fi nancieros disponibles para la venta Importes transferidos a la cuenta de pérdidas y ganancias. [386]
A20: 14 | B20: 101 | C20: 17 | D20: N | E20: ESTADO DE INGRESOS Y GASTOS RECONOCIDOS CONSOLIDADO EN EL EJERCICIO. Activos fi nancieros disponibles para la venta Otras reclasifi caciones. [387]
A21: 15 | B21: 118 | C21: 17 | D21: N | E21: ESTADO DE INGRESOS Y GASTOS RECONOCIDOS CONSOLIDADO EN EL EJERCICIO. Cobertura de los flujos de efectivo. [388]
A22: 16 | B22: 135 | C22: 17 | D22: N | E22: ESTADO DE INGRESOS Y GASTOS RECONOCIDOS CONSOLIDADO EN EL EJERCICIO. Cobertura de los flujos de efectivo. Ganancias y pérdidas por valoración. [389]
A23: 17 | B23: 152 | C23: 17 | D23: N | E23: ESTADO DE INGRESOS Y GASTOS RECONOCIDOS CONSOLIDADO EN EL EJERCICIO. Cobertura de los flujos de efectivo. Importes transferidos a la cuenta de pérdidas y ganancias. [390]
A24: 18 | B24: 169 | C24: 17 | D24: N | E24: ESTADO DE INGRESOS Y GASTOS RECONOCIDOS CONSOLIDADO EN EL EJERCICIO. Cobertura de los flujos de efectivo. Importes transferidos al valor inicial de las partidas cubiertas. [391]
A25: 19 | B25: 186 | C25: 17 | D25: N | E25: ESTADO DE INGRESOS Y GASTOS RECONOCIDOS CONSOLIDADO EN EL EJERCICIO. Cobertura de los flujos de efectivo. Otras reclasifi caciones. [392]
A26: 20 | B26: 203 | C26: 17 | D26: N | E26: ESTADO DE INGRESOS Y GASTOS RECONOCIDOS CONSOLIDADO EN EL EJERCICIO. Coberturas de inversiones netas en negocios en el extranjero. [393]
A27: 21 | B27: 220 | C27: 17 | D27: N | E27: ESTADO DE INGRESOS Y GASTOS RECONOCIDOS CONSOLIDADO EN EL EJERCICIO. Coberturas de inversiones netas en negocios en el extranjero. Ganancias y pérdidas por valoración. [394]
A28: 22 | B28: 237 | C28: 17 | D28: N | E28: ESTADO DE INGRESOS Y GASTOS RECONOCIDOS CONSOLIDADO EN EL EJERCICIO. Coberturas de inversiones netas en negocios en el extranjero. Importes transferidos a la cuenta de pérdidas y ganancias. [395]
A29: 23 | B29: 254 | C29: 17 | D29: N | E29: ESTADO DE INGRESOS Y GASTOS RECONOCIDOS CONSOLIDADO EN EL EJERCICIO. Coberturas de inversiones netas en negocios en el extranjero. Otras reclasificaciones. [396]
A30: 24 | B30: 271 | C30: 17 | D30: N | E30: ESTADO DE INGRESOS Y GASTOS RECONOCIDOS CONSOLIDADO EN EL EJERCICIO. Diferencias de cambio y conversión. [397]
A31: 25 | B31: 288 | C31: 17 | D31: N | E31: ESTADO DE INGRESOS Y GASTOS RECONOCIDOS CONSOLIDADO EN EL EJERCICIO. Diferencias de cambio y conversión. Ganancias y pérdidas por valoración. [398]
A32: 26 | B32: 305 | C32: 17 | D32: N | E32: ESTADO DE INGRESOS Y GASTOS RECONOCIDOS CONSOLIDADO EN EL EJERCICIO. Diferencias de cambio y conversión. Importes transferidos a la cuenta de pérdidas y ganancias. [399]
A33: 27 | B33: 322 | C33: 17 | D33: N | E33: ESTADO DE INGRESOS Y GASTOS RECONOCIDOS CONSOLIDADO EN EL EJERCICIO. Diferencias de cambio y conversión. Otras reclasificaciones. [400]
A34: 28 | B34: 339 | C34: 17 | D34: N | E34: ESTADO DE INGRESOS Y GASTOS RECONOCIDOS CONSOLIDADO EN EL EJERCICIO. Corrección de asimetrías contables. [401]
A35: 29 | B35: 356 | C35: 17 | D35: N | E35: ESTADO DE INGRESOS Y GASTOS RECONOCIDOS CONSOLIDADO EN EL EJERCICIO. Corrección de asimetrías contables. Ganancias y pérdidas por valoración. [402]
A36: 30 | B36: 373 | C36: 17 | D36: N | E36: ESTADO DE INGRESOS Y GASTOS RECONOCIDOS CONSOLIDADO EN EL EJERCICIO. Corrección de asimetrías contables. Importes transferidos a la cuenta de pérdidas y ganancias. [403]
A37: 31 | B37: 390 | C37: 17 | D37: N | E37: ESTADO DE INGRESOS Y GASTOS RECONOCIDOS CONSOLIDADO EN EL EJERCICIO. Corrección de asimetrías contables. Otras reclasifi caciones. [404]
A38: 32 | B38: 407 | C38: 17 | D38: N | E38: ESTADO DE INGRESOS Y GASTOS RECONOCIDOS CONSOLIDADO EN EL EJERCICIO. Activos mantenidos para la venta. [405]
A39: 33 | B39: 424 | C39: 17 | D39: N | E39: ESTADO DE INGRESOS Y GASTOS RECONOCIDOS CONSOLIDADO EN EL EJERCICIO. Activos mantenidos para la venta. Ganancias y pérdidas por valoración. [406]
A40: 34 | B40: 441 | C40: 17 | D40: N | E40: ESTADO DE INGRESOS Y GASTOS RECONOCIDOS CONSOLIDADO EN EL EJERCICIO. Activos mantenidos para la venta. Importes transferidos a la cuenta de pérdidas y ganancias. [407]
A41: 35 | B41: 458 | C41: 17 | D41: N | E41: ESTADO DE INGRESOS Y GASTOS RECONOCIDOS CONSOLIDADO EN EL EJERCICIO. Activos mantenidos para la venta. Otras reclasificaciones. [408]
A42: 36 | B42: 475 | C42: 17 | D42: N | E42: ESTADO DE INGRESOS Y GASTOS RECONOCIDOS CONSOLIDADO EN EL EJERCICIO. Ganancias / (pérdidas) actuariales por retribuciones a largo plazo al personal. [409]
A43: =A42+1 -> 37 | B43: =B42+C42 -> 492 | C43: 17 | D43: N | E43: ESTADO DE INGRESOS Y GASTOS RECONOCIDOS CONSOLIDADO EN EL EJERCICIO. Entidades valoradas por puesta en equivalencia. [730]
A44: =A43+1 -> 38 | B44: =B43+C43 -> 509 | C44: 17 | D44: N | E44: ESTADO DE INGRESOS Y GASTOS RECONOCIDOS CONSOLIDADO EN EL EJERCICIO. Entidades valoradas por puesta en equivalencia. Ganancias y pérdidas por valoración. [731]
A45: =A44+1 -> 39 | B45: =B44+C44 -> 526 | C45: 17 | D45: N | E45: ESTADO DE INGRESOS Y GASTOS RECONOCIDOS CONSOLIDADO EN EL EJERCICIO. Entidades valoradas por puesta en equivalencia. Importes transferidos a la cuenta de pérdidas y ganancias. [732]
A46: =A45+1 -> 40 | B46: =B45+C45 -> 543 | C46: 17 | D46: N | E46: ESTADO DE INGRESOS Y GASTOS RECONOCIDOS CONSOLIDADO EN EL EJERCICIO. Entidades valoradas por puesta en equivalencia. Otras reclasificaciones. [733]
A47: =+A46+1 -> 41 | B47: =C46+B46 -> 560 | C47: 17 | D47: N | E47: ESTADO DE INGRESOS Y GASTOS RECONOCIDOS CONSOLIDADO EN EL EJERCICIO. Otros ingresos y gastos reconocidos. [410]
A48: 42 | B48: 577 | C48: 17 | D48: N | E48: ESTADO DE INGRESOS Y GASTOS RECONOCIDOS CONSOLIDADO EN EL EJERCICIO. Impuesto sobre beneficios. [411]
A49: 43 | B49: 594 | C49: 17 | D49: N | E49: ESTADO DE INGRESOS Y GASTOS RECONOCIDOS CONSOLIDADO EN EL EJERCICIO. TOTAL DE INGRESOS Y GASTOS CONSOLIDADOS RECONOCIDOS. [412]
A50: =+A49+1 -> 44 | B50: 611 | C50: 17 | D50: N | E50: ESTADO DE INGRESOS Y GASTOS RECONOCIDOS CONSOLIDADO EN EL EJERCICIO. TOTAL DE INGRESOS Y GASTOS CONSOLIDADOS RECONOCIDOS. Atribuidos a la entidad dominante. [697]
A51: =+A50+1 -> 45 | B51: 628 | C51: 17 | D51: N | E51: ESTADO DE INGRESOS Y GASTOS RECONOCIDOS CONSOLIDADO EN EL EJERCICIO. TOTAL DE INGRESOS Y GASTOS CONSOLIDADOS RECONOCIDOS. Atribuidos a socios externos. [698]
A52: =+A51+1 -> 46 | B52: 645 | C52: 12 | D52: An | E52: Fin de registro. | F52: </T22005A02>
A53: Total: | C53: =B52+C52-1 -> 656

Sheet T22005B02
B1: Agencia Tributaria
A3: =+T22001000!A3 -> Modelo 220 | C3: =+T22001000!C3 -> Diseño de registro. 2014
A4: =+T22001000!A4 -> Versión 1.2 | C4: Impuesto Sobre Sociedades. Régimen de consolidación Fiscal. GRUPO DE ENTIDADES ASEGURADORAS. ESTADO DE CAMBIOS EN EL PATRIMONIO NETO: ESTADO TOTAL DE CAMBIOS EN EL PATRIMONIO NETO CONSOLIDADO (I)
A6: Nº | B6: Posic. | C6: Lon | D6: Tipo | E6: Descripción | F6: Contenido
A7: 1 | B7: 1 | C7: 2 | D7: An | E7: Inicio del identificador de modelo y página. | F7: <T
A8: =+A7+1 -> 2 | B8: =C7+B7 -> 3 | C8: 3 | D8: Num | E8: Modelo. | F8: 220
A9: 3 | B9: =C8+B8 -> 6 | C9: 2 | D9: An | E9: Página. | F9: 05
A10: 4 | B10: =B9+C9 -> 8 | C10: 1 | D10: An | E10: Letra | F10: B
A11: 5 | B11: 9 | C11: 2 | D11: Num | E11: Hoja | F11: 02
A12: 6 | B12: =C11+B11 -> 11 | C12: 1 | D12: An | E12: Fin de identificador de modelo y página. Constante ">". | F12: >
A13: 7 | B13: =C12+B12 -> 12 | C13: 1 | D13: An | E13: Indicador de página complementaria.
A14: 8 | B14: =C13+B13 -> 13 | C14: 3 | D14: Num | E14: Número de orden de la página complementaria
A15: =+A14+1 -> 9 | B15: =C14+B14 -> 16 | C15: 17 | D15: N | E15: SALDO, FINAL DEL EJERCICIO ANTERIOR. Capital. [413]
A16: 10 | B16: 33 | C16: 17 | D16: N | E16: SALDO, FINAL DEL EJERCICIO ANTERIOR. Prima de emisión. [415]
A17: 11 | B17: 50 | C17: 17 | D17: N | E17: SALDO, FINAL DEL EJERCICIO ANTERIOR. Reservas y result. de ejercicios anteriores. [416]
A18: 12 | B18: 67 | C18: 17 | D18: N | E18: SALDO, FINAL DEL EJERCICIO ANTERIOR. (Acciones propias y de la soc. dominante). [417]
A19: 13 | B19: 84 | C19: 17 | D19: N | E19: SALDO, FINAL DEL EJERCICIO ANTERIOR. Otras aportaciones de socios o mutualistas. [419]
A20: 14 | B20: 101 | C20: 17 | D20: N | E20: SALDO, FINAL DEL EJERCICIO ANTERIOR. Resultado del ejercicio atribuido a soc. dominante. [420]
A21: 15 | B21: 118 | C21: 17 | D21: N | E21: SALDO, FINAL DEL EJERCICIO ANTERIOR. Ajustes por cambio de criterio de ejercicios anteriores. Capital. [426]
A22: 16 | B22: 135 | C22: 17 | D22: N | E22: SALDO, FINAL DEL EJERCICIO ANTERIOR. Ajustes por cambio de criterio de ejercicios anteriores. Prima de emisión. [428]
A23: 17 | B23: 152 | C23: 17 | D23: N | E23: SALDO, FINAL DEL EJERCICIO ANTERIOR. Ajustes por cambio de criterio de ejercicios anteriores. Reservas y result. de ejercicios anteriores. [429]
A24: 18 | B24: 169 | C24: 17 | D24: N | E24: SALDO, FINAL DEL EJERCICIO ANTERIOR. Ajustes por cambio de criterio de ejercicios anteriores. (Acciones propias y de la soc. dominante). [430]
A25: 19 | B25: 186 | C25: 17 | D25: N | E25: SALDO, FINAL DEL EJERCICIO ANTERIOR. Ajustes por cambio de criterio de ejercicios anteriores. Otras aportaciones de socios o mutualistas. [432]
A26: 20 | B26: 203 | C26: 17 | D26: N | E26: SALDO, FINAL DEL EJERCICIO ANTERIOR. Ajustes por cambio de criterio de ejercicios anteriores. Resultado del ejercicio atribuido a soc. dominante. [433]
A27: 21 | B27: 220 | C27: 17 | D27: N | E27: SALDO, FINAL DEL EJERCICIO ANTERIOR. Ajustes por errores de ejercicios anteriores. Capital. [439]
A28: 22 | B28: 237 | C28: 17 | D28: N | E28: SALDO, FINAL DEL EJERCICIO ANTERIOR. Ajustes por errores de ejercicios anteriores. Prima de emisión. [441]
A29: 23 | B29: 254 | C29: 17 | D29: N | E29: SALDO, FINAL DEL EJERCICIO ANTERIOR. Ajustes por errores de ejercicios anteriores. Reservas y result. de ejercicios anteriores. [442]
A30: 24 | B30: 271 | C30: 17 | D30: N | E30: SALDO, FINAL DEL EJERCICIO ANTERIOR. Ajustes por errores de ejercicios anteriores. (Acciones propias y de la soc. dominante). [443]
A31: 25 | B31: 288 | C31: 17 | D31: N | E31: SALDO, FINAL DEL EJERCICIO ANTERIOR. Ajustes por errores de ejercicios anteriores. Otras aportaciones de socios o mutualistas. [445]
A32: 26 | B32: 305 | C32: 17 | D32: N | E32: SALDO, FINAL DEL EJERCICIO ANTERIOR. Ajustes por errores de ejercicios anteriores. Resultado del ejercicio atribuido a soc. dominante. [446]
A33: 27 | B33: 322 | C33: 17 | D33: N | E33: SALDO AJUSTADO, INICIO DEL EJERCICIO. Capital. [452]
A34: 28 | B34: 339 | C34: 17 | D34: N | E34: SALDO AJUSTADO, INICIO DEL EJERCICIO. Prima de emisión. [454]
A35: 29 | B35: 356 | C35: 17 | D35: N | E35: SALDO AJUSTADO, INICIO DEL EJERCICIO. Reservas y result. de ejercicios anteriores. [455]
A36: 30 | B36: 373 | C36: 17 | D36: N | E36: SALDO AJUSTADO, INICIO DEL EJERCICIO. (Acciones propias y de la soc. dominante). [456]
A37: 31 | B37: 390 | C37: 17 | D37: N | E37: SALDO AJUSTADO, INICIO DEL EJERCICIO. Otras aportaciones de socios o mutualistas. [458]
A38: 32 | B38: 407 | C38: 17 | D38: N | E38: SALDO AJUSTADO, INICIO DEL EJERCICIO. Resultado del ejercicio atribuido a soc. dominante. [459]
A39: 33 | B39: 424 | C39: 17 | D39: N | E39: Total ingresos y gastos consolidados reconocidos. Capital. [465]
A40: 34 | B40: 441 | C40: 17 | D40: N | E40: Total ingresos y gastos consolidados reconocidos. Prima de emisión. [467]
A41: 35 | B41: 458 | C41: 17 | D41: N | E41: Total ingresos y gastos consolidados reconocidos. Reservas y result. de ejercicios anteriores. [468]
A42: 36 | B42: 475 | C42: 17 | D42: N | E42: Total ingresos y gastos consolidados reconocidos. (Acciones propias y de la soc. dominante). [469]
A43: 37 | B43: 492 | C43: 17 | D43: N | E43: Total ingresos y gastos consolidados reconocidos. Otras aportaciones de socios o mutualistas. [471]
A44: 38 | B44: 509 | C44: 17 | D44: N | E44: Total ingresos y gastos consolidados reconocidos. Resultado del ejercicio atribuido a soc. dominante. [472]
A45: 39 | B45: 526 | C45: 17 | D45: N | E45: Operaciones con socios o mutualistas. Capital. [478]
A46: 40 | B46: 543 | C46: 17 | D46: N | E46: Operaciones con socios o mutualistas. Prima de emisión. [480]
A47: =+A46+1 -> 41 | B47: =C46+B46 -> 560 | C47: 17 | D47: N | E47: Operaciones con socios o mutualistas. Reservas y result. de ejercicios anteriores. [481]
A48: 42 | B48: 577 | C48: 17 | D48: N | E48: Operaciones con socios o mutualistas. (Acciones propias y de la soc. dominante). [482]
A49: 43 | B49: 594 | C49: 17 | D49: N | E49: Operaciones con socios o mutualistas. Otras aportaciones de socios o mutualistas. [484]
A50: 44 | B50: 611 | C50: 17 | D50: N | E50: Operaciones con socios o mutualistas. Resultado del ejercicio atribuido a soc. dominante. [485]
A51: 45 | B51: 628 | C51: 17 | D51: N | E51: Operaciones con socios o mutualistas. Aumentos (reducciones) de capital o fondo mutual. Capital. [491]
A52: 46 | B52: 645 | C52: 17 | D52: N | E52: Operaciones con socios o mutualistas. Aumentos (reducciones) de capital o fondo mutual. Prima de emisión. [493]
A53: 47 | B53: 662 | C53: 17 | D53: N | E53: Operaciones con socios o mutualistas.Aumentos (reducciones) de capital o fondo mutual. Reservas y result. de ejercicios anteriores. [494]
A54: 48 | B54: 679 | C54: 17 | D54: N | E54: Operaciones con socios o mutualistas. Aumentos (reducciones) de capital o fondo mutual. (Acciones propias y de la soc. dominante). [495]
A55: 49 | B55: 696 | C55: 17 | D55: N | E55: Operaciones con socios o mutualistas. Aumentos (reducciones) de capital o fondo mutual. Otras aportaciones de socios o mutualistas. [497]
A56: 50 | B56: 713 | C56: 17 | D56: N | E56: Operaciones con socios o mutualistas. Aumentos (reducciones) de capital o fondo mutual. Resultado del ejercicio atribuido a soc. dominante. [498]
A57: 51 | B57: 730 | C57: 17 | D57: N | E57: Operaciones con socios o mutualistas. Conversión de pasivos fi nancieros en patrimonio neto (conversión de obligaciones, condonaciones de deudas). Capital. [517]
A58: 52 | B58: 747 | C58: 17 | D58: N | E58: Operaciones con socios o mutualistas. Conversión de pasivos fi nancieros en patrimonio neto (conversión de obligaciones, condonaciones de deudas). Prima de emisión. [519]
A59: 53 | B59: 764 | C59: 17 | D59: N | E59: Operaciones con socios o mutualistas. Conversión de pasivos fi nancieros en patrimonio neto (conversión de obligaciones, condonaciones de deudas). Reservas y result. de ejercicios anteriores. [520]
A60: 54 | B60: 781 | C60: 17 | D60: N | E60: Operaciones con socios o mutualistas. Conversión de pasivos fi nancieros en patrimonio neto (conversión de obligaciones, condonaciones de deudas). (Acciones propias y de la soc. dominante). [521]
A61: 55 | B61: 798 | C61: 17 | D61: N | E61: Operaciones con socios o mutualistas. Conversión de pasivos fi nancieros en patrimonio neto (conversión de obligaciones, condonaciones de deudas). Otras aportaciones de socios o mutualistas. [523]
A62: 56 | B62: 815 | C62: 17 | D62: N | E62: Operaciones con socios o mutualistas. Conversión de pasivos fi nancieros en patrimonio neto (conversión de obligaciones, condonaciones de deudas). Resultado del ejercicio atribuido a soc. dominante. [524]
A63: 57 | B63: 832 | C63: 17 | D63: N | E63: Operaciones con socios o mutualistas. (-) Distribución de dividendos o derramas activas. Capital. [530]
A64: 58 | B64: 849 | C64: 17 | D64: N | E64: Operaciones con socios o mutualistas. (-) Distribución de dividendos o derramas activas. Prima de emisión. [532]
A65: 59 | B65: 866 | C65: 17 | D65: N | E65: Operaciones con socios o mutualistas. (-) Distribución de dividendos o derramas activas. Reservas y result. de ejercicios anteriores. [533]
A66: 60 | B66: 883 | C66: 17 | D66: N | E66: Operaciones con socios o mutualistas. (-) Distribución de dividendos o derramas activas. (Acciones propias y de la soc. dominante). [534]
A67: 61 | B67: 900 | C67: 17 | D67: N | E67: Operaciones con socios o mutualistas. (-) Distribución de dividendos o derramas activas. Otras aportaciones de socios o mutualistas. [536]
A68: 62 | B68: 917 | C68: 17 | D68: N | E68: Operaciones con socios o mutualistas. (-) Distribución de dividendos o derramas activas. Resultado del ejercicio atribuido a soc. dominante. [537]
A69: =+A68+1 -> 63 | B69: 934 | C69: 17 | D69: N | E69: Operaciones con socios o mutualistas.Operaciones con acciones o participaciones propias y de la sociedad dominante (netas). Capital. [543]
A70: =+A69+1 -> 64 | B70: 951 | C70: 17 | D70: N | E70: Operaciones con socios o mutualistas. Operaciones con acciones o participaciones propias y de la sociedad dominante (netas). Prima de emisión. [545]
A71: 65 | B71: 968 | C71: 17 | D71: N | E71: Operaciones con socios o mutualistas. Operaciones con acciones o participaciones propias y de la sociedad dominante (netas). Reservas y result. de ejercicios anteriores. [546]
A72: 66 | B72: 985 | C72: 17 | D72: N | E72: Operaciones con socios o mutualistas. Operaciones con acciones o participaciones propias y de la sociedad dominante (netas). (Acciones propias y de la soc. dominante). [547]
A73: 67 | B73: 1002 | C73: 17 | D73: N | E73: Operaciones con socios o mutualistas. Operaciones con acciones o participaciones propias y de la sociedad dominante (netas). Otras aportaciones de socios o mutualistas. [549]
A74: 68 | B74: 1019 | C74: 17 | D74: N | E74: Operaciones con socios o mutualistas.Operaciones con acciones o participaciones propias y de la sociedad dominante (netas). Resultado del ejercicio atribuido a soc. dominante. [550]
A75: 69 | B75: 1036 | C75: 17 | D75: N | E75: Operaciones con socios o mutualistas.Incremento (reducción) de patrimonio neto resultante de una combinación de negocios. Capital. [556]
A76: 70 | B76: 1053 | C76: 17 | D76: N | E76: Operaciones con socios o mutualistas. Incremento (reducción) de patrimonio neto resultante de una combinación de negocios. Prima de emisión. [558]
A77: 71 | B77: 1070 | C77: 17 | D77: N | E77: Operaciones con socios o mutualistas. Incremento (reducción) de patrimonio neto resultante de una combinación de negocios. Reservas y result. de ejercicios anteriores. [559]
A78: 72 | B78: 1087 | C78: 17 | D78: N | E78: Operaciones con socios o mutualistas. Incremento (reducción) de patrimonio neto resultante de una combinación de negocios. (Acciones propias y de la soc. dominante). [560]
A79: 73 | B79: =C78+B78 -> 1104 | C79: 17 | D79: N | E79: Operaciones con socios o mutualistas. Incremento (reducción) de patrimonio neto resultante de una combinación de negocios. Otras aportaciones de socios o mutualistas. [562]
A80: 74 | B80: 1121 | C80: 17 | D80: N | E80: Operaciones con socios o mutualistas.Incremento (reducción) de patrimonio neto resultante de una combinación de negocios. Resultado del ejercicio atribuido a soc. dominante. [563]
A81: 75 | B81: 1138 | C81: 17 | D81: N | E81: Operaciones con socios o mutualistas.Adquisiciones (ventas) de participaciones de socios externos. Capital. [677]
A82: 76 | B82: 1155 | C82: 17 | D82: N | E82: Operaciones con socios o mutualistas.Adquisiciones (ventas) de participaciones de socios externos. Prima de emisión. [678]
A83: 77 | B83: 1172 | C83: 17 | D83: N | E83: Operaciones con socios o mutualistas.Adquisiciones (ventas) de participaciones de socios externos. Reservas y result. de ejercicios anteriores. [679]
A84: 78 | B84: 1189 | C84: 17 | D84: N | E84: Operaciones con socios o mutualistas.Adquisiciones (ventas) de participaciones de socios externos. (Acciones propias y de la soc. dominante). [680]
A85: 79 | B85: 1206 | C85: 17 | D85: N | E85: Operaciones con socios o mutualistas.Adquisiciones (ventas) de participaciones de socios externos. Otras aportaciones de socios o mutualistas. [681]
A86: 80 | B86: 1223 | C86: 17 | D86: N | E86: Operaciones con socios o mutualistas.Adquisiciones (ventas) de participaciones de socios externos. Resultado del ejercicio atribuido a soc. dominante. [682]
A87: =+A86+1 -> 81 | B87: 1240 | C87: 17 | D87: N | E87: Operaciones con socios o mutualistas.Otras operaciones con socios o mutualistas. Capital. [569]
A88: =+A87+1 -> 82 | B88: 1257 | C88: 17 | D88: N | E88: Operaciones con socios o mutualistas.Otras operaciones con socios o mutualistas. Prima de emisión. [571]
A89: 83 | B89: 1274 | C89: 17 | D89: N | E89: Operaciones con socios o mutualistas.Otras operaciones con socios o mutualistas. Reservas y result. de ejercicios anteriores. [572]
A90: 84 | B90: 1291 | C90: 17 | D90: N | E90: Operaciones con socios o mutualistas.Otras operaciones con socios o mutualistas. (Acciones propias y de la soc. dominante). [573]
A91: 85 | B91: 1308 | C91: 17 | D91: N | E91: Operaciones con socios o mutualistas.Otras operaciones con socios o mutualistas. Otras aportaciones de socios o mutualistas. [575]
A92: 86 | B92: 1325 | C92: 17 | D92: N | E92: Operaciones con socios o mutualistas.Otras operaciones con socios o mutualistas. Resultado del ejercicio atribuido a soc. dominante. [576]
A93: 87 | B93: 1342 | C93: 17 | D93: N | E93: Otras variaciones del patrimonio neto. Capital. [582]
A94: 88 | B94: 1359 | C94: 17 | D94: N | E94: Otras variaciones del patrimonio neto. Prima de emisión. [584]
A95: 89 | B95: 1376 | C95: 17 | D95: N | E95: Otras variaciones del patrimonio neto. Reservas y result. de ejercicios anteriores. [585]
A96: 90 | B96: 1393 | C96: 17 | D96: N | E96: Otras variaciones del patrimonio neto. (Acciones propias y de la soc. dominante). [586]
A97: 91 | B97: 1410 | C97: 17 | D97: N | E97: Otras variaciones del patrimonio neto. Otras aportaciones de socios o mutualistas. [588]
A98: 92 | B98: 1427 | C98: 17 | D98: N | E98: Otras variaciones del patrimonio neto. Resultado del ejercicio atribuido a soc. dominante. [589]
A99: =+A98+1 -> 93 | B99: 1444 | C99: 17 | D99: N | E99: SALDO, FINAL DEL EJERCICIO. Capital. [634]
A100: 94 | B100: 1461 | C100: 17 | D100: N | E100: SALDO, FINAL DEL EJERCICIO. Prima de emisión. [636]
A101: 95 | B101: 1478 | C101: 17 | D101: N | E101: SALDO, FINAL DEL EJERCICIO. Reservas y result. de ejercicios anteriores. [637]
A102: 96 | B102: 1495 | C102: 17 | D102: N | E102: SALDO, FINAL DEL EJERCICIO. (Acciones propias y de la soc. dominante). [638]
A103: 97 | B103: 1512 | C103: 17 | D103: N | E103: SALDO, FINAL DEL EJERCICIO. Otras aportaciones de socios o mutualistas. [640]
A104: 98 | B104: 1529 | C104: 17 | D104: N | E104: SALDO, FINAL DEL EJERCICIO. Resultado del ejercicio atribuido a soc. dominante. [641]
A105: =A104+1 -> 99 | B105: =B104 + C104 -> 1546 | C105: 12 | D105: An | E105: Fin de registro. | F105: </T22005B02>
A106: Total: | C106: =B105+C105-1 -> 1557

Sheet T22005C02
B1: Agencia Tributaria
A3: =+T22001000!A3 -> Modelo 220 | C3: =+T22001000!C3 -> Diseño de registro. 2014
A4: =+T22001000!A4 -> Versión 1.2 | C4: Impuesto Sobre Sociedades. Régimen de consolidación Fiscal. GRUPO DE ENTIDADES ASEGURADORAS. ESTADO DE CAMBIOS EN EL PATRIMONIO NETO: ESTADO TOTAL DE CAMBIOS EN EL PATRIMONIO NETO CONSOLIDADO (II)
A6: Nº | B6: Posic. | C6: Lon | D6: Tipo | E6: Descripción | F6: Contenido
A7: 1 | B7: 1 | C7: 2 | D7: An | E7: Inicio del identificador de modelo y página. | F7: <T
A8: =+A7+1 -> 2 | B8: =C7+B7 -> 3 | C8: 3 | D8: Num | E8: Modelo. | F8: 220
A9: 3 | B9: =C8+B8 -> 6 | C9: 2 | D9: An | E9: Página. | F9: 05
A10: 4 | B10: =B9+C9 -> 8 | C10: 1 | D10: An | E10: Letra | F10: C
A11: 5 | B11: 9 | C11: 2 | D11: Num | E11: Hoja | F11: 02
A12: 6 | B12: =C11+B11 -> 11 | C12: 1 | D12: An | E12: Fin de identificador de modelo y página. Constante ">". | F12: >
A13: 7 | B13: =C12+B12 -> 12 | C13: 1 | D13: An | E13: Indicador de página complementaria.
A14: 8 | B14: =C13+B13 -> 13 | C14: 3 | D14: Num | E14: Número de orden de la página complementaria
A15: 9 | B15: 16 | C15: 17 | D15: N | E15: SALDO, FINAL DEL EJERCICIO ANTERIOR. (Dividendo a cuenta). [421]
A16: 10 | B16: 33 | C16: 17 | D16: N | E16: SALDO, FINAL DEL EJERCICIO ANTERIOR. Otros instrumentos de patrimonio neto. [422]
A17: =+A16+1 -> 11 | B17: 50 | C17: 17 | D17: N | E17: SALDO, FINAL DEL EJERCICIO ANTERIOR. Ajustes por cambios de valor. [423]
A18: 12 | B18: =C17+B17 -> 67 | C18: 17 | D18: N | E18: SALDO, FINAL DEL EJERCICIO ANTERIOR. Subvenciones, donaciones y legados recibidos. [424]
A19: 13 | B19: 84 | C19: 17 | D19: N | E19: SALDO, FINAL DEL EJERCICIO ANTERIOR. Socios externos. [699]
A20: 14 | B20: 101 | C20: 17 | D20: N | E20: SALDO, FINAL DEL EJERCICIO ANTERIOR. TOTAL. [425]
A21: 15 | B21: 118 | C21: 17 | D21: N | E21: SALDO, FINAL DEL EJERCICIO ANTERIOR. Ajustes por cambio de criterio de ejercicios anteriores. (Dividendo a cuenta). [434]
A22: 16 | B22: 135 | C22: 17 | D22: N | E22: SALDO, FINAL DEL EJERCICIO ANTERIOR. Ajustes por cambio de criterio de ejercicios anteriores. Otros instrumentos de patrimonio neto. [435]
A23: 17 | B23: 152 | C23: 17 | D23: N | E23: SALDO, FINAL DEL EJERCICIO ANTERIOR. Ajustes por cambio de criterio de ejercicios anteriores. Ajustes por cambios de valor. [436]
A24: 18 | B24: 169 | C24: 17 | D24: N | E24: SALDO, FINAL DEL EJERCICIO ANTERIOR. Ajustes por cambio de criterio de ejercicios anteriores. Subvenciones, donaciones y legados recibidos. [437]
A25: 19 | B25: 186 | C25: 17 | D25: N | E25: SALDO, FINAL DEL EJERCICIO ANTERIOR. Ajustes por cambio de criterio de ejercicios anteriores. Socios externos. [667]
A26: 20 | B26: 203 | C26: 17 | D26: N | E26: SALDO, FINAL DEL EJERCICIO ANTERIOR. Ajustes por cambio de criterio de ejercicios anteriores. TOTAL. [438]
A27: 21 | B27: 220 | C27: 17 | D27: N | E27: SALDO, FINAL DEL EJERCICIO ANTERIOR. Ajustes por errores de ejercicios anteriores. (Dividendo a cuenta). [447]
A28: 22 | B28: 237 | C28: 17 | D28: N | E28: SALDO, FINAL DEL EJERCICIO ANTERIOR. Ajustes por errores de ejercicios anteriores. Otros instrumentos de patrimonio neto. [448]
A29: 23 | B29: 254 | C29: 17 | D29: N | E29: SALDO, FINAL DEL EJERCICIO ANTERIOR. Ajustes por errores de ejercicios anteriores. Ajustes por cambios de valor. [449]
A30: 24 | B30: 271 | C30: 17 | D30: N | E30: SALDO, FINAL DEL EJERCICIO ANTERIOR. Ajustes por errores de ejercicios anteriores. Subvenciones, donaciones y legados recibidos. [450]
A31: 25 | B31: 288 | C31: 17 | D31: N | E31: SALDO, FINAL DEL EJERCICIO ANTERIOR. Ajustes por errores de ejercicios anteriores. Socios externos. [668]
A32: 26 | B32: 305 | C32: 17 | D32: N | E32: SALDO, FINAL DEL EJERCICIO ANTERIOR. Ajustes por errores de ejercicios anteriores. TOTAL. [451]
A33: 27 | B33: 322 | C33: 17 | D33: N | E33: SALDO AJUSTADO, INICIO DEL EJERCICIO. (Dividendo a cuenta). [460]
A34: 28 | B34: 339 | C34: 17 | D34: N | E34: SALDO AJUSTADO, INICIO DEL EJERCICIO. Otros instrumentos de patrimonio neto. [461]
A35: 29 | B35: 356 | C35: 17 | D35: N | E35: SALDO AJUSTADO, INICIO DEL EJERCICIO. Ajustes por cambios de valor. [462]
A36: 30 | B36: 373 | C36: 17 | D36: N | E36: SALDO AJUSTADO, INICIO DEL EJERCICIO. Subvenciones, donaciones y legados recibidos. [463]
A37: 31 | B37: 390 | C37: 17 | D37: N | E37: SALDO AJUSTADO, INICIO DEL EJERCICIO. Socios externos. [669]
A38: 32 | B38: 407 | C38: 17 | D38: N | E38: SALDO AJUSTADO, INICIO DEL EJERCICIO. TOTAL. [464]
A39: 33 | B39: 424 | C39: 17 | D39: N | E39: Total ingresos y gastos consolidados reconocidos. (Dividendo a cuenta). [473]
A40: 34 | B40: 441 | C40: 17 | D40: N | E40: Total ingresos y gastos consolidados reconocidos. Otros instrumentos de patrimonio neto. [474]
A41: 35 | B41: 458 | C41: 17 | D41: N | E41: Total ingresos y gastos consolidados reconocidos. Ajustes por cambios de valor. [475]
A42: 36 | B42: 475 | C42: 17 | D42: N | E42: Total ingresos y gastos consolidados reconocidos. Subvenciones, donaciones y legados recibidos. [476]
A43: 37 | B43: 492 | C43: 17 | D43: N | E43: Total ingresos y gastos consolidados reconocidos. Socios externos. [670]
A44: 38 | B44: 509 | C44: 17 | D44: N | E44: Total ingresos y gastos consolidados reconocidos. TOTAL. [477]
A45: 39 | B45: 526 | C45: 17 | D45: N | E45: Operaciones con socios o mutualistas. (Dividendo a cuenta). [486]
A46: 40 | B46: 543 | C46: 17 | D46: N | E46: Operaciones con socios o mutualistas. Otros instrumentos de patrimonio neto. [487]
A47: =+A46+1 -> 41 | B47: =C46+B46 -> 560 | C47: 17 | D47: N | E47: Operaciones con socios o mutualistas. Ajustes por cambios de valor. [488]
A48: 42 | B48: 577 | C48: 17 | D48: N | E48: Operaciones con socios o mutualistas. Subvenciones, donaciones y legados recibidos. [489]
A49: 43 | B49: 594 | C49: 17 | D49: N | E49: Operaciones con socios o mutualistas. Socios externos. [671]
A50: 44 | B50: 611 | C50: 17 | D50: N | E50: Operaciones con socios o mutualistas. TOTAL. [490]
A51: 45 | B51: 628 | C51: 17 | D51: N | E51: Operaciones con socios o mutualistas. Aumentos (reducciones) de capital o fondo mutual. (Dividendo a cuenta). [499]
A52: 46 | B52: 645 | C52: 17 | D52: N | E52: Operaciones con socios o mutualistas. Aumentos (reducciones) de capital o fondo mutual. Otros instrumentos de patrimonio neto. [382]
